Workbook

Sheet Welcome
F2: Last Updated: | H2: 2026-05-20
A6: 1) Make the selections as appropriate to the project. Contact your RSP Grants Specialist or RCS Contract Manager if you have questions.
A17: 2) Make the selections as appropriate to the cost-sharing portion of the project.
A25: 3) Demographic Information (Assists RSP, RCS and RFS when reviewing the project budget)
A27: Enter the RAPSS Funding Proposal (FP) Number | F27: FPxxxxxxxx
A28: Enter the RAPSS Award Modification Request (AMR) Number | F28: AMRxxxxxxxx
A29: Enter the RAPSS Award (AWD) or Award Modification (AWD_MOD) Number | F29: AWDxxxxxxxx
A30: Enter the Project Title | F30: Project Title
A31: Enter the PD/PI's full name | F31: PD/PI Name
A32: Enter the name of the Direct Sponsor | F32: Direct Sponsor
A33: Enter the name of the Prime Sponsor (if applicable) | F33: Prime Sponsor (if applicable)
A34: Oracle Award number (if available) | F34: xxxxxx
A35: Oracle Project number (if available) | F35: xxxxxx
A36: Oracle Cost Sharing Project number (if applicable) | F36: xxxxxx
A37: Oracle Program Income Project number (if applicable) | F37: xxxxxx
A38: Budget Preparation Date | F38: mm/dd/yyyy
A40: 4) Select the number of budget periods and enter the dates for each below: | G40: Use Days or Whole Months:
B42: Start Date (mm/dd/yyyy) | C42: End Date (mm/dd/yyyy) | D42: Budget Period Begins in FY1 | E42: Budget Period Ends in FY2 | F42: FY1 F&A Rate | G42: FY2 F&A Rate (if different) | H42: =IF(sDAYMO=2,"Days @ FY 1 Rate","Months @ FY 1 Rate") -> Months @ FY 1 Rate | I42: =IF(sDAYMO=2,"Days @ FY 2 Rate (If Different)","Months @ FY 2 Rate (if different)") -> Months @ FY 2 Rate (if different) | J42: Cost Sharing FY1 F&A Rate | K42: Cost Sharing FY2 F&A Rate (if different) | L42: =IF(sDAYMO="Days","Cost Sharing Days @ FY 1 Rate","Cost Sharing Months @ FY 1 Rate") -> Cost Sharing Months @ FY 1 Rate | M42: =IF(sDAYMO="Days","Cost Sharing Days @ FY 2 Rate (If Different)","Cost Sharing Months @ FY 2 Rate (if different)") -> Cost Sharing Months @ FY 2 Rate (if different) | N42: FY1 Rate | O42: FY2 Rate | P42: Cost Sharing FY1 Rate | Q42: Cost Sharing FY2 Rate | R42: =IF(sDAYMO="Days","Split in Days","Split in Whole Months") -> Split in Whole Months | S42: =IF(sDAYMO="Days","Split in Days","Split in Whole Months") -> Split in Whole Months | T42: FY1 Days | U42: FY2 Days | V42: FY1 Whole Months | W42: FY2 Whole Months | X42: FY1 Start | Y42: FY1 End | Z42: FY2 Start | AA42: FY2 End
A43: Budget Period 1 | B43: Enter Date | C43: Enter Date | D43: =IF(OR(ISBLANK(B43),ISTEXT(B43),B43="Enter Start Date"),"N/A",YEAR(B43)+(IF(MONTH(B43)>=7,1,0))) -> N/A | E43: =IF(OR(ISBLANK(C43),ISTEXT(C43),C43="Enter End Date"),"N/A",YEAR(C43)+(IF(MONTH(C43)>=7,1,0))) -> N/A | F43: =N43 -> N/A | G43: =IF(N43=O43,"N/A",O43) -> N/A | H43: =IF(OR(D43="N/A",E43="N/A"),"N/A",IF(G43="N/A",SUM(R43:S43),R43)) -> N/A | I43: =IF(OR(D43="N/A",E43="N/A"),"N/A",IF(G43="N/A",0,S43)) -> N/A | J43: =P43 -> N/A | K43: =IF(P43=Q43,"N/A",Q43) -> N/A | L43: =IF(OR(D43="N/A",E43="N/A"),"N/A",IF(K43="N/A",SUM(R43:S43),R43)) -> N/A | M43: =IF(OR(D43="N/A",E43="N/A"),"N/A",IF(K43="N/A",0,S43)) -> N/A | N43: =IF(OR(D43="N/A",D43<=2016,sFABC=3),"N/A",IF(sFARC=6,budNSFARABP1,INDEX(FARATES[],MATCH(D43,rngFYC,0),MATCH(sFARCO,rngFARCO,0)))) -> N/A | O43: =IF(OR(E43="N/A",E43<=2016,sFABC=3),"N/A",IF(sFARC=6,"N/A",INDEX(FARATES[],MATCH(E43,rngFYC,0),MATCH(sFARCO,rngFARCO,0)))) -> N/A | P43: =IF(OR(D43="N/A",D43<=2016,sFABCCS=3,sCS=2),"N/A",IF(sFARCCS=6,budNSFARABP1CS,INDEX(FARATES[],MATCH(D43,rngFYC,0),MATCH(sFARCOCS,rngFARCO,0)))) -> N/A | Q43: =IF(OR(E43="N/A",E43<=2016,sFABCCS=3,sCS=2),"N/A",IF(sFARCCS=6,"N/A",INDEX(FARATES[],MATCH(E43,rngFYC,0),MATCH(sFARCOCS,rngFARCO,0)))) -> N/A | R43: =IF(sDAYMO=2,T43,V43) -> N/A | S43: =IF(sDAYMO=2,U43,W43) -> N/A | T43: =IF(OR(D43="N/A",E43="N/A"),"N/A",DATEDIF(MAX(B43,X43),MIN(C43,Y43),"D")+1) -> N/A | U43: =IF(OR(D43="N/A",E43="N/A"),"N/A",IF(D43=E43,0,DATEDIF(MAX(B43,Z43),MIN(C43,AA43),"D")+1)) -> N/A | V43: =IF(OR(D43="N/A",E43="N/A"),"N/A",DATEDIF(MAX(B43,X43),MIN(C43,Y43),"M")+1) -> N/A | W43: =IF(OR(D43="N/A",E43="N/A"),"N/A",IF(D43=E43,0,DATEDIF(MAX(B43,Z43),MIN(C43,AA43),"M")+1)) -> N/A | X43: =IF(D43="N/A","N/A",DATE(D43-1,7,1)) -> N/A | Y43: =IF(D43="N/A","N/A",DATE(D43,6,30)) -> N/A | Z43: =IF(E43="N/A","N/A",DATE(E43-1,7,1)) -> N/A | AA43: =IF(E43="N/A","N/A",DATE(E43,6,30)) -> N/A
A44: Budget Period 2 | B44: Enter Date | C44: Enter Date | D44: =IF(OR(ISBLANK(B44),ISTEXT(B44),B44="Enter Start Date"),"N/A",YEAR(B44)+(IF(MONTH(B44)>=7,1,0))) -> N/A | E44: N/A | F44: =N44 -> N/A | G44: =IF(N44=O44,"N/A",O44) -> N/A | H44: =IF(OR(D44="N/A",E44="N/A"),"N/A",IF(G44="N/A",SUM(R44:S44),R44)) -> N/A | I44: =IF(OR(D44="N/A",E44="N/A"),"N/A",IF(G44="N/A",0,S44)) -> N/A | J44: =P44 -> N/A | K44: =IF(P44=Q44,"N/A",Q44) -> N/A | L44: =IF(OR(D44="N/A",E44="N/A"),"N/A",IF(K44="N/A",SUM(R44:S44),R44)) -> N/A | M44: =IF(OR(D44="N/A",E44="N/A"),"N/A",IF(K44="N/A",0,S44)) -> N/A | N44: =IF(OR(D44="N/A",D44<=2016,sFABC=3),"N/A",IF(sFARC=6,budNSFARABP2,INDEX(FARATES[],MATCH(D44,rngFYC,0),MATCH(sFARCO,rngFARCO,0)))) -> N/A | O44: =IF(OR(E44="N/A",E44<=2016,sFABC=3),"N/A",IF(sFARC=6,"N/A",INDEX(FARATES[],MATCH(E44,rngFYC,0),MATCH(sFARCO,rngFARCO,0)))) -> N/A | P44: =IF(OR(D44="N/A",D44<=2016,sFABCCS=3,sCS=2),"N/A",IF(sFARCCS=6,budNSFARABP2CS,INDEX(FARATES[],MATCH(D44,rngFYC,0),MATCH(sFARCOCS,rngFARCO,0)))) -> N/A | Q44: =IF(OR(E44="N/A",E44<=2016,sFABCCS=3,sCS=2),"N/A",IF(sFARCCS=6,"N/A",INDEX(FARATES[],MATCH(E44,rngFYC,0),MATCH(sFARCOCS,rngFARCO,0)))) -> N/A | R44: N/A | S44: N/A | T44: =IF(OR(D44="N/A",E44="N/A"),"N/A",DATEDIF(MAX(B44,X44),MIN(C44,Y44),"D")+1) -> N/A | U44: N/A | V44: N/A | W44: =IF(OR(D44="N/A",E44="N/A"),"N/A",IF(D44=E44,0,DATEDIF(MAX(B44,Z44),MIN(C44,AA44),"M")+1)) -> N/A | X44: =IF(OR(D44="N/A",B44="Enter Start Date"),"N/A",DATE(D44-1,7,1)) -> N/A | Y44: =IF(OR(D44="N/A",B44="Enter Start Date"),"N/A",DATE(D44,6,30)) -> N/A | Z44: =IF(OR(E44="N/A",C44="Enter End Date"),"N/A",DATE(E44-1,7,1)) -> N/A | AA44: =IF(OR(E44="N/A",C44="Enter End Date"),"N/A",DATE(E44,6,30)) -> N/A
A45: Budget Period 3 | B45: Enter Date | C45: Enter Date | D45: N/A | E45: N/A | F45: =N45 -> N/A | G45: N/A | H45: N/A | I45: N/A | J45: N/A | K45: N/A | L45: =IF(OR(D45="N/A",E45="N/A"),"N/A",IF(K45="N/A",SUM(R45:S45),R45)) -> N/A | M45: N/A | N45: =IF(OR(D45="N/A",D45<=2016,sFABC=3),"N/A",IF(sFARC=6,budNSFARABP3,INDEX(FARATES[],MATCH(D45,rngFYC,0),MATCH(sFARCO,rngFARCO,0)))) -> N/A | O45: =IF(OR(E45="N/A",E45<=2016,sFABC=3),"N/A",IF(sFARC=6,"N/A",INDEX(FARATES[],MATCH(E45,rngFYC,0),MATCH(sFARCO,rngFARCO,0)))) -> N/A | P45: =IF(OR(D45="N/A",D45<=2016,sFABCCS=3,sCS=2),"N/A",IF(sFARCCS=6,budNSFARABP3CS,INDEX(FARATES[],MATCH(D45,rngFYC,0),MATCH(sFARCOCS,rngFARCO,0)))) -> N/A | Q45: =IF(OR(E45="N/A",E45<=2016,sFABCCS=3,sCS=2),"N/A",IF(sFARCCS=6,"N/A",INDEX(FARATES[],MATCH(E45,rngFYC,0),MATCH(sFARCOCS,rngFARCO,0)))) -> N/A | R45: N/A | S45: N/A | T45: N/A | U45: N/A | V45: N/A | W45: N/A | X45: N/A | Y45: N/A | Z45: N/A | AA45: N/A
A46: Budget Period 4 | B46: Enter Date | C46: Enter Date | D46: N/A | E46: N/A | F46: N/A | G46: N/A | H46: N/A | I46: N/A | J46: N/A | K46: N/A | L46: =IF(OR(D46="N/A",E46="N/A"),"N/A",IF(K46="N/A",SUM(R46:S46),R46)) -> N/A | M46: N/A | N46: =IF(OR(D46="N/A",D46<=2016,sFABC=3),"N/A",IF(sFARC=6,budNSFARABP4,INDEX(FARATES[],MATCH(D46,rngFYC,0),MATCH(sFARCO,rngFARCO,0)))) -> N/A | O46: =IF(OR(E46="N/A",E46<=2016,sFABC=3),"N/A",IF(sFARC=6,"N/A",INDEX(FARATES[],MATCH(E46,rngFYC,0),MATCH(sFARCO,rngFARCO,0)))) -> N/A | P46: =IF(OR(D46="N/A",D46<=2016,sFABCCS=3,sCS=2),"N/A",IF(sFARCCS=6,budNSFARABP4CS,INDEX(FARATES[],MATCH(D46,rngFYC,0),MATCH(sFARCOCS,rngFARCO,0)))) -> N/A | Q46: =IF(OR(E46="N/A",E46<=2016,sFABCCS=3,sCS=2),"N/A",IF(sFARCCS=6,"N/A",INDEX(FARATES[],MATCH(E46,rngFYC,0),MATCH(sFARCOCS,rngFARCO,0)))) -> N/A | R46: N/A | S46: N/A | T46: N/A | U46: N/A | V46: N/A | W46: N/A | X46: N/A | Y46: N/A | Z46: N/A | AA46: N/A
A47: Budget Period 5 | B47: Enter Date | C47: Enter Date | D47: N/A | E47: N/A | F47: N/A | G47: N/A | H47: N/A | I47: N/A | J47: N/A | K47: N/A | L47: =IF(OR(D47="N/A",E47="N/A"),"N/A",IF(K47="N/A",SUM(R47:S47),R47)) -> N/A | M47: N/A | N47: =IF(OR(D47="N/A",D47<=2016,sFABC=3),"N/A",IF(sFARC=6,budNSFARABP5,INDEX(FARATES[],MATCH(D47,rngFYC,0),MATCH(sFARCO,rngFARCO,0)))) -> N/A | O47: =IF(OR(E47="N/A",E47<=2016,sFABC=3),"N/A",IF(sFARC=6,"N/A",INDEX(FARATES[],MATCH(E47,rngFYC,0),MATCH(sFARCO,rngFARCO,0)))) -> N/A | P47: =IF(OR(D47="N/A",D47<=2016,sFABCCS=3,sCS=2),"N/A",IF(sFARCCS=6,budNSFARABP5CS,INDEX(FARATES[],MATCH(D47,rngFYC,0),MATCH(sFARCOCS,rngFARCO,0)))) -> N/A | Q47: =IF(OR(E47="N/A",E47<=2016,sFABCCS=3,sCS=2),"N/A",IF(sFARCCS=6,"N/A",INDEX(FARATES[],MATCH(E47,rngFYC,0),MATCH(sFARCOCS,rngFARCO,0)))) -> N/A | R47: N/A | S47: N/A | T47: N/A | U47: N/A | V47: N/A | W47: N/A | X47: N/A | Y47: N/A | Z47: N/A | AA47: N/A
A48: Budget Period 6 | B48: Enter Date | C48: Enter Date | D48: N/A | E48: N/A | F48: N/A | G48: N/A | H48: N/A | I48: N/A | J48: N/A | K48: N/A | L48: N/A | M48: N/A | N48: =IF(OR(D48="N/A",D48<=2016,sFABC=3),"N/A",IF(sFARC=6,budNSFARABP6,INDEX(FARATES[],MATCH(D48,rngFYC,0),MATCH(sFARCO,rngFARCO,0)))) -> N/A | O48: =IF(OR(E48="N/A",E48<=2016,sFABC=3),"N/A",IF(sFARC=6,"N/A",INDEX(FARATES[],MATCH(E48,rngFYC,0),MATCH(sFARCO,rngFARCO,0)))) -> N/A | P48: =IF(OR(D48="N/A",D48<=2016,sFABCCS=3,sCS=2),"N/A",IF(sFARCCS=6,budNSFARABP6CS,INDEX(FARATES[],MATCH(D48,rngFYC,0),MATCH(sFARCOCS,rngFARCO,0)))) -> N/A | Q48: =IF(OR(E48="N/A",E48<=2016,sFABCCS=3,sCS=2),"N/A",IF(sFARCCS=6,"N/A",INDEX(FARATES[],MATCH(E48,rngFYC,0),MATCH(sFARCOCS,rngFARCO,0)))) -> N/A | R48: N/A | S48: N/A | T48: N/A | U48: N/A | V48: N/A | W48: N/A | X48: N/A | Y48: N/A | Z48: N/A | AA48: N/A
A49: Budget Period 7 | B49: Enter Date | C49: Enter Date | D49: N/A | E49: N/A | F49: N/A | G49: N/A | H49: N/A | I49: N/A | J49: N/A | K49: N/A | L49: N/A | M49: N/A | N49: =IF(OR(D49="N/A",D49<=2016,sFABC=3),"N/A",IF(sFARC=6,budNSFARABP7,INDEX(FARATES[],MATCH(D49,rngFYC,0),MATCH(sFARCO,rngFARCO,0)))) -> N/A | O49: =IF(OR(E49="N/A",E49<=2016,sFABC=3),"N/A",IF(sFARC=6,"N/A",INDEX(FARATES[],MATCH(E49,rngFYC,0),MATCH(sFARCO,rngFARCO,0)))) -> N/A | P49: =IF(OR(D49="N/A",D49<=2016,sFABCCS=3,sCS=2),"N/A",IF(sFARCCS=6,budNSFARABP7CS,INDEX(FARATES[],MATCH(D49,rngFYC,0),MATCH(sFARCOCS,rngFARCO,0)))) -> N/A | Q49: =IF(OR(E49="N/A",E49<=2016,sFABCCS=3,sCS=2),"N/A",IF(sFARCCS=6,"N/A",INDEX(FARATES[],MATCH(E49,rngFYC,0),MATCH(sFARCOCS,rngFARCO,0)))) -> N/A | R49: N/A | S49: N/A | T49: N/A | U49: N/A | V49: N/A | W49: N/A | X49: N/A | Y49: N/A | Z49: N/A | AA49: N/A
A50: Budget Period 8 | B50: Enter Date | C50: Enter Date | D50: N/A | E50: N/A | F50: N/A | G50: N/A | H50: N/A | I50: N/A | J50: N/A | K50: N/A | L50: N/A | M50: N/A | N50: =IF(OR(D50="N/A",D50<=2016,sFABC=3),"N/A",IF(sFARC=6,budNSFARABP8,INDEX(FARATES[],MATCH(D50,rngFYC,0),MATCH(sFARCO,rngFARCO,0)))) -> N/A | O50: =IF(OR(E50="N/A",E50<=2016,sFABC=3),"N/A",IF(sFARC=6,"N/A",INDEX(FARATES[],MATCH(E50,rngFYC,0),MATCH(sFARCO,rngFARCO,0)))) -> N/A | P50: =IF(OR(D50="N/A",D50<=2016,sFABCCS=3,sCS=2),"N/A",IF(sFARCCS=6,budNSFARABP8CS,INDEX(FARATES[],MATCH(D50,rngFYC,0),MATCH(sFARCOCS,rngFARCO,0)))) -> N/A | Q50: =IF(OR(E50="N/A",E50<=2016,sFABCCS=3,sCS=2),"N/A",IF(sFARCCS=6,"N/A",INDEX(FARATES[],MATCH(E50,rngFYC,0),MATCH(sFARCOCS,rngFARCO,0)))) -> N/A | R50: N/A | S50: N/A | T50: N/A | U50: N/A | V50: N/A | W50: N/A | X50: N/A | Y50: N/A | Z50: N/A | AA50: N/A
A51: Budget Period 9 | B51: Enter Date | C51: Enter Date | D51: N/A | E51: N/A | F51: N/A | G51: N/A | H51: N/A | I51: N/A | J51: N/A | K51: N/A | L51: N/A | M51: N/A | N51: =IF(OR(D51="N/A",D51<=2016,sFABC=3),"N/A",IF(sFARC=6,budNSFARABP9,INDEX(FARATES[],MATCH(D51,rngFYC,0),MATCH(sFARCO,rngFARCO,0)))) -> N/A | O51: =IF(OR(E51="N/A",E51<=2016,sFABC=3),"N/A",IF(sFARC=6,"N/A",INDEX(FARATES[],MATCH(E51,rngFYC,0),MATCH(sFARCO,rngFARCO,0)))) -> N/A | P51: =IF(OR(D51="N/A",D51<=2016,sFABCCS=3,sCS=2),"N/A",IF(sFARCCS=6,budNSFARABP9CS,INDEX(FARATES[],MATCH(D51,rngFYC,0),MATCH(sFARCOCS,rngFARCO,0)))) -> N/A | Q51: =IF(OR(E51="N/A",E51<=2016,sFABCCS=3,sCS=2),"N/A",IF(sFARCCS=6,"N/A",INDEX(FARATES[],MATCH(E51,rngFYC,0),MATCH(sFARCOCS,rngFARCO,0)))) -> N/A | R51: N/A | S51: N/A | T51: N/A | U51: N/A | V51: N/A | W51: N/A | X51: N/A | Y51: N/A | Z51: N/A | AA51: N/A
A52: Budget Period 10 | B52: Enter Date | C52: Enter Date | D52: N/A | E52: N/A | F52: N/A | G52: N/A | H52: N/A | I52: N/A | J52: N/A | K52: N/A | L52: N/A | M52: N/A | N52: =IF(OR(D52="N/A",D52<=2016,sFABC=3),"N/A",IF(sFARC=6,budNSFARABP10,INDEX(FARATES[],MATCH(D52,rngFYC,0),MATCH(sFARCO,rngFARCO,0)))) -> N/A | O52: =IF(OR(E52="N/A",E52<=2016,sFABC=3),"N/A",IF(sFARC=6,"N/A",INDEX(FARATES[],MATCH(E52,rngFYC,0),MATCH(sFARCO,rngFARCO,0)))) -> N/A | P52: =IF(OR(D52="N/A",D52<=2016,sFABCCS=3,sCS=2),"N/A",IF(sFARCCS=6,budNSFARABP10CS,INDEX(FARATES[],MATCH(D52,rngFYC,0),MATCH(sFARCOCS,rngFARCO,0)))) -> N/A | Q52: =IF(OR(E52="N/A",E52<=2016,sFABCCS=3,sCS=2),"N/A",IF(sFARCCS=6,"N/A",INDEX(FARATES[],MATCH(E52,rngFYC,0),MATCH(sFARCOCS,rngFARCO,0)))) -> N/A | R52: N/A | S52: N/A | T52: N/A | U52: N/A | V52: N/A | W52: N/A | X52: N/A | Y52: N/A | Z52: N/A | AA52: N/A
A54: 5) Go to the Budget sheet and/or Budget (Cost Sharing) sheet to complete the budget for the project.
A56: The Empty Sheet is optional and may be used to enter freeform notes or calculations regardng the budget.
A57: The Effort Calculator is available for use in determining effort in person months.
A58: The F&A Rates and Fringe Rates and MTDC Structure sheets may be used for reference.
A60: Send any questions regarding the budget template to: ru-orsp@research.rutgers.edu

Sheet Budget
A1: BUDGET
AO2: =wsFP -> FPxxxxxxxx | AP2: =wsDirectSPon -> Direct Sponsor | AR2: =IF(sFABC=3,budNSFARABP1,_xlfn.CONCAT(wsFA1BP1," | ",wsFA2BP1)) -> N/A | N/A | AS2: =IF(sFABC=3,budNSFARABP2,_xlfn.CONCAT(wsFA1BP2," | ",wsFA2BP2)) -> N/A | N/A | AT2: =IF(sFABC=3,budNSFARABP3,_xlfn.CONCAT(wsFA1BP3," | ",wsFA2BP3)) -> N/A | N/A | AU2: =IF(sFABC=3,budNSFARABP4,_xlfn.CONCAT(wsFA1BP4," | ",wsFA2BP4)) -> N/A | N/A | AV2: =IF(sFABC=3,budNSFARABP5,_xlfn.CONCAT(wsFA1BP5," | ",wsFA2BP5)) -> N/A | N/A | AW2: =IF(sFABC=3,budNSFARABP6,_xlfn.CONCAT(wsFA1BP6," | ",wsFA2BP6)) -> N/A | N/A | AX2: =IF(sFABC=3,budNSFARABP7,_xlfn.CONCAT(wsFA1BP7," | ",wsFA2BP7)) -> N/A | N/A | AY2: =IF(sFABC=3,budNSFARABP8,_xlfn.CONCAT(wsFA1BP8," | ",wsFA2BP8)) -> N/A | N/A | AZ2: =IF(sFABC=3,budNSFARABP9,_xlfn.CONCAT(wsFA1BP9," | ",wsFA2BP9)) -> N/A | N/A | BA2: =IF(sFABC=3,budNSFARABP10,_xlfn.CONCAT(wsFA1BP10," | ",wsFA2BP10)) -> N/A | N/A | BB2: =IF(sFABC=3,"F&A Amount","F&A Rate") -> F&A Rate
E3: 0 | H3: 0 | K3: 0 | N3: 0 | Q3: 0 | T3: 0 | W3: 0 | Z3: 0 | AC3: 0 | AF3: 0 | AO3: =_xlfn.CONCAT(wsAWD," | ",wsAMR) -> AWDxxxxxxxx | AMRxxxxxxxx | AP3: =wsPrimeSpon -> Prime Sponsor (if applicable) | AR3: =wsBP1 -> Enter Date | AS3: =wsBP2 -> Enter Date | AT3: =wsBP3 -> Enter Date | AU3: =wsBP4 -> Enter Date | AV3: =wsBP5 -> Enter Date | AW3: =wsBP6 -> Enter Date | AX3: =wsBP7 -> Enter Date | AY3: =wsBP8 -> Enter Date | AZ3: =wsBP9 -> Enter Date | BA3: =wsBP10 -> Enter Date | BB3: Start Date
A4: =IF(COUNTIF(rngCFA1,"Yes")+COUNTIF(rngCFA2,"Yes")>0,"BUDGET PREPARED USING CUSTOM FRINGE RATES",IF(sFBRC=1,"BUDGET PREPARED WITH SPONSORED FB RATES","BUDGET PREPARED WITH NON-SPOSORED FB RATES")) -> BUDGET PREPARED WITH SPONSORED FB RATES | AO4: =_xlfn.CONCAT("Oracle Award: ",wsOracleAward) -> Oracle Award: xxxxxx | AP4: =wsPDPI -> PD/PI Name | AR4: =weBP1 -> Enter Date | AS4: =weBP2 -> Enter Date | AT4: =weBP3 -> Enter Date | AU4: =weBP4 -> Enter Date | AV4: =weBP5 -> Enter Date | AW4: =weBP6 -> Enter Date | AX4: =weBP7 -> Enter Date | AY4: =weBP8 -> Enter Date | AZ4: =weBP9 -> Enter Date | BA4: =weBP10 -> Enter Date | BB4: End Date | BC4: PROJECT
D5: Included in F&A Base | E5: Budget Period 1 | H5: Budget Period 2 | K5: Budget Period 3 | N5: Budget Period 4 | Q5: Budget Period 5 | T5: Budget Period 6 | W5: Budget Period 7 | Z5: Budget Period 8 | AC5: Budget Period 9 | AF5: Budget Period 10 | AI5: Total | AL5: NOTES | AM5: NOTES | AO5: =_xlfn.CONCAT("Oracle Project: ",wsOracleProject) -> Oracle Project: xxxxxx | AP5: =wsTitle -> Project Title | AR5: =wsfyBP1 -> N/A | AS5: =wsfyBP2 -> N/A | AT5: =wsfyBP3 -> N/A | AU5: =wsfyBP4 -> N/A | AV5: =wsfyBP5 -> N/A | AW5: =wsfyBP6 -> N/A | AX5: =wsfyBP7 -> N/A | AY5: =wsfyBP8 -> N/A | AZ5: =wsfyBP9 -> N/A | BA5: =wsfyBP10 -> N/A | BB5: Begin FY | BC5: BUDGET
E6: =IF(ISNUMBER(wsBP1)=TRUE,wsBP1,"N/A") -> N/A | F6: =IF(ISNUMBER(weBP1)=TRUE,weBP1,"N/A") -> N/A | G6: =IF(OR(ISNUMBER(wsBP1)=TRUE,ISNUMBER(weBP1)=TRUE),wsfyBP1,"N/A") -> N/A | H6: =IF(ISNUMBER(wsBP2)=TRUE,wsBP2,"N/A") -> N/A | I6: =IF(ISNUMBER(weBP2)=TRUE,weBP2,"N/A") -> N/A | J6: =IF(AND(ISNUMBER(wsBP2),ISNUMBER(weBP2))=TRUE,wsfyBP2,"N/A") -> N/A | K6: =IF(ISNUMBER(wsBP3),wsBP3,"N/A") -> N/A | L6: =IF(ISNUMBER(weBP3),weBP3,"N/A") -> N/A | M6: =IF(AND(ISNUMBER(wsBP3),ISNUMBER(weBP3))=TRUE,wsfyBP3,"N/A") -> N/A | N6: =IF(ISNUMBER(wsBP4),wsBP4,"N/A") -> N/A | O6: =IF(ISNUMBER(weBP4),weBP4,"N/A") -> N/A | P6: =IF(AND(ISNUMBER(wsBP4),ISNUMBER(weBP4))=TRUE,wsfyBP4,"N/A") -> N/A | Q6: =IF(ISNUMBER(wsBP5),wsBP5,"N/A") -> N/A | R6: =IF(ISNUMBER(weBP5),weBP5,"N/A") -> N/A | S6: =IF(AND(ISNUMBER(wsBP5),ISNUMBER(weBP5))=TRUE,wsfyBP5,"N/A") -> N/A | T6: =IF(ISNUMBER(wsBP6),wsBP6,"N/A") -> N/A | U6: =IF(ISNUMBER(weBP6),weBP6,"N/A") -> N/A | V6: =IF(AND(ISNUMBER(wsBP6),ISNUMBER(weBP6))=TRUE,wsfyBP6,"N/A") -> N/A | W6: =IF(ISNUMBER(wsBP7),wsBP7,"N/A") -> N/A | X6: =IF(ISNUMBER(weBP7),weBP7,"N/A") -> N/A | Y6: =IF(AND(ISNUMBER(wsBP7),ISNUMBER(weBP7))=TRUE,wsfyBP7,"N/A") -> N/A | Z6: =IF(ISNUMBER(wsBP8),wsBP8,"N/A") -> N/A | AA6: =IF(ISNUMBER(weBP8),weBP8,"N/A") -> N/A | AB6: =IF(AND(ISNUMBER(wsBP8),ISNUMBER(weBP8))=TRUE,wsfyBP8,"N/A") -> N/A | AC6: =IF(ISNUMBER(wsBP9),wsBP9,"N/A") -> N/A | AD6: =IF(ISNUMBER(weBP9),weBP9,"N/A") -> N/A | AE6: =IF(AND(ISNUMBER(wsBP9),ISNUMBER(weBP9))=TRUE,wsfyBP9,"N/A") -> N/A | AF6: =IF(ISNUMBER(wsBP10),wsBP10,"N/A") -> N/A | AG6: =IF(ISNUMBER(weBP10),weBP10,"N/A") -> N/A | AH6: =IF(AND(ISNUMBER(wsBP10),ISNUMBER(weBP10))=TRUE,wsfyBP10,"N/A") -> N/A | AO6: =_xlfn.CONCAT(IF(sOOC=1,"On Campus", "Off Campus")," | ",IF(sFABC=1,"MTDC",IF(sFABC=2,"TDC","Cust. F&A Amt."))) -> On Campus | MTDC | AP6: =IF(sFARC=1,"Research",IF(sFARC=2,"Instruction",IF(sFARC=3,"Other Sponsored Programs",IF(sFARC=4,"Special Instruction (Off-Campus only)",IF(sFARC=5,"Industry Sponsored Clinical Trials","Custom F&A Rate"))))) -> Research
A7: A1. SALARIES & WAGES (ADVANCED) | AO7: Account Code | AP7: Description | AQ7: F&A Base | AR7: Budget Period 1 | AS7: Budget Period 2 | AT7: Budget Period 3 | AU7: Budget Period 4 | AV7: Budget Period 5 | AW7: Budget Period 6 | AX7: Budget Period 7 | AY7: Budget Period 8 | AZ7: Budget Period 9 | BA7: Budget Period 10 | BB7: Total | BC7: Notes
D8: Base Salary | E8: % Effort | F8: PM | G8: COLA | H8: % Effort | I8: PM | J8: COLA | K8: % Effort | L8: PM | M8: COLA | N8: % Effort | O8: PM | P8: COLA | Q8: % Effort | R8: PM | S8: COLA | T8: % Effort | U8: PM | V8: COLA | W8: % Effort | X8: PM | Y8: COLA | Z8: % Effort | AA8: PM | AB8: COLA | AC8: % Effort | AD8: PM | AE8: COLA | AF8: % Effort | AG8: PM | AH8: COLA
A9: =_xlfn.XLOOKUP(B9,MTDC[Description],MTDC[VALUE],"N/A",0) -> N/A | B9: Make a selection | D9: 0 | E9: 0 | F9: =_xlfn.LET(_xlpm.months,IF(sDAYMO=1,DATEDIF(wsBP1,weBP1,"m")+1,YEARFRAC(wsBP1,weBP1,1)*12),_xlpm.factor,_xlfn.XLOOKUP(B12,rngecAT,rngecMonths)/_xlfn.XLOOKUP(B12,rngecAT,rngecTerm),IFERROR(_xlpm.months*E9*_xlpm.factor,"N/A")) -> N/A | G9: 0 | H9: 0 | I9: =_xlfn.LET(_xlpm.months,IF(sDAYMO=1,DATEDIF(wsBP2,weBP2,"m")+1,YEARFRAC(wsBP2,weBP2,1)*12),_xlpm.factor,_xlfn.XLOOKUP(B12,rngecAT,rngecMonths)/_xlfn.XLOOKUP(B12,rngecAT,rngecTerm),IFERROR(_xlpm.months*H9*_xlpm.factor,"N/A")) -> N/A | J9: 0 | K9: 0 | L9: =_xlfn.LET(_xlpm.months,IF(sDAYMO=1,DATEDIF(wsBP3,weBP3,"m")+1,YEARFRAC(wsBP3,weBP3,1)*12),_xlpm.factor,_xlfn.XLOOKUP(B12,rngecAT,rngecMonths)/_xlfn.XLOOKUP(B12,rngecAT,rngecTerm),IFERROR(_xlpm.months*K9*_xlpm.factor,"N/A")) -> N/A | M9: 0 | N9: 0 | O9: =_xlfn.LET(_xlpm.months,IF(sDAYMO=1,DATEDIF(wsBP4,weBP4,"m")+1,YEARFRAC(wsBP4,weBP4,1)*12),_xlpm.factor,_xlfn.XLOOKUP(B12,rngecAT,rngecMonths)/_xlfn.XLOOKUP(B12,rngecAT,rngecTerm),IFERROR(_xlpm.months*N9*_xlpm.factor,"N/A")) -> N/A | P9: 0 | Q9: 0 | R9: =_xlfn.LET(_xlpm.months,IF(sDAYMO=1,DATEDIF(wsBP5,weBP5,"m")+1,YEARFRAC(wsBP5,weBP5,1)*12),_xlpm.factor,_xlfn.XLOOKUP(B12,rngecAT,rngecMonths)/_xlfn.XLOOKUP(B12,rngecAT,rngecTerm),IFERROR(_xlpm.months*Q9*_xlpm.factor,"N/A")) -> N/A | S9: 0 | T9: 0 | U9: =_xlfn.LET(_xlpm.months,IF(sDAYMO=1,DATEDIF(wsBP6,weBP6,"m")+1,YEARFRAC(wsBP6,weBP6,1)*12),_xlpm.factor,_xlfn.XLOOKUP(B12,rngecAT,rngecMonths)/_xlfn.XLOOKUP(B12,rngecAT,rngecTerm),IFERROR(_xlpm.months*T9*_xlpm.factor,"N/A")) -> N/A | V9: 0 | W9: 0 | X9: =_xlfn.LET(_xlpm.months,IF(sDAYMO=1,DATEDIF(wsBP7,weBP7,"m")+1,YEARFRAC(wsBP7,weBP7,1)*12),_xlpm.factor,_xlfn.XLOOKUP(B12,rngecAT,rngecMonths)/_xlfn.XLOOKUP(B12,rngecAT,rngecTerm),IFERROR(_xlpm.months*W9*_xlpm.factor,"N/A")) -> N/A | Y9: 0 | Z9: 0 | AA9: =_xlfn.LET(_xlpm.months,IF(sDAYMO=1,DATEDIF(wsBP8,weBP8,"m")+1,YEARFRAC(wsBP8,weBP8,1)*12),_xlpm.factor,_xlfn.XLOOKUP(B12,rngecAT,rngecMonths)/_xlfn.XLOOKUP(B12,rngecAT,rngecTerm),IFERROR(_xlpm.months*Z9*_xlpm.factor,"N/A")) -> N/A | AB9: 0 | AC9: 0 | AD9: =_xlfn.LET(_xlpm.months,IF(sDAYMO=1,DATEDIF(wsBP9,weBP9,"m")+1,YEARFRAC(wsBP9,weBP9,1)*12),_xlpm.factor,_xlfn.XLOOKUP(B12,rngecAT,rngecMonths)/_xlfn.XLOOKUP(B12,rngecAT,rngecTerm),IFERROR(_xlpm.months*AC9*_xlpm.factor,"N/A")) -> N/A | AE9: 0 | AF9: 0 | AG9: =_xlfn.LET(_xlpm.months,IF(sDAYMO=1,DATEDIF(wsBP10,weBP10,"m")+1,YEARFRAC(wsBP10,weBP10,1)*12),_xlpm.factor,_xlfn.XLOOKUP(B12,rngecAT,rngecMonths)/_xlfn.XLOOKUP(B12,rngecAT,rngecTerm),IFERROR(_xlpm.months*AF9*_xlpm.factor,"N/A")) -> N/A | AH9: 0
A10: =A9 -> N/A | B10: Enter Staff Name | D10: Salary | E10: =IF(OR(COUNT(D9,E9,G9,wsBP1,weBP1,wsfyBP1)<6,B9="Make a Selection",B12="Make a Selection"),0,D9*F9/_xlfn.XLOOKUP(B12,rngecAT,rngecTerm,"N/A",0)*(1+G9)) -> 0 | H10: =IF(OR(COUNT(D9,E9,G9,H9,J9,wsBP2,weBP2,wsfyBP2)<8,B9="Make a Selection",B12="Make a Selection"),0,D9*I9/_xlfn.XLOOKUP(B12,rngecAT,rngecTerm,"N/A",0)*(1+G9)*(1+J9)) -> 0 | K10: =IF(OR(COUNT(D9,E9,G9,H9,J9,K9,M9,wsBP3,weBP3,wsfyBP3)<10,B9="Make a Selection",B12="Make a Selection"),0,D9*L9/_xlfn.XLOOKUP(B12,rngecAT,rngecTerm,"N/A",0)*(1+G9)*(1+J9)*(1+M9)) -> 0 | N10: =IF(OR(COUNT(D9,E9,G9,H9,J9,K9,M9,N9,P9,wsBP4,weBP4,wsfyBP4)<12,B9="Make a Selection",B12="Make a Selection"),0,D9*O9/_xlfn.XLOOKUP(B12,rngecAT,rngecTerm,"N/A",0)*(1+G9)*(1+J9)*(1+M9)*(1+P9)) -> 0 | Q10: =IF(OR(COUNT(D9,E9,G9,H9,J9,K9,M9,N9,P9,Q9,S9,wsBP5,weBP5,wsfyBP5)<14,B9="Make a Selection",B12="Make a Selection"),0,D9*R9/_xlfn.XLOOKUP(B12,rngecAT,rngecTerm,"N/A",0)*(1+G9)*(1+J9)*(1+M9)*(1+P9)*(1+S9)) -> 0 | T10: =IF(OR(COUNT(D9,E9,G9,H9,J9,K9,M9,N9,P9,Q9,S9,T9,V9,wsBP6,weBP6,wsfyBP6)<16,B9="Make a Selection",B12="Make a Selection"),0,D9*U9/_xlfn.XLOOKUP(B12,rngecAT,rngecTerm,"N/A",0)*(1+G9)*(1+J9)*(1+M9)*(1+P9)*(1+S9)*(1+V9)) -> 0 | W10: =IF(OR(COUNT(D9,E9,G9,H9,J9,K9,M9,N9,P9,Q9,S9,T9,V9,W9,Y9,wsBP7,weBP7,wsfyBP7)<18,B9="Make a Selection",B12="Make a Selection"),0,D9*X9/_xlfn.XLOOKUP(B12,rngecAT,rngecTerm,"N/A",0)*(1+G9)*(1+J9)*(1+M9)*(1+P9)*(1+S9)*(1+V9)*(1+Y9)) -> 0 | Z10: =IF(OR(COUNT(D9,E9,G9,H9,J9,K9,M9,N9,P9,Q9,S9,T9,V9,W9,Y9,Z9,AB9,wsBP8,weBP8,wsfyBP8)<20,B9="Make a Selection",B12="Make a Selection"),0,D9*AA9/_xlfn.XLOOKUP(B12,rngecAT,rngecTerm,"N/A",0)*(1+G9)*(1+J9)*(1+M9)*(1+P9)*(1+S9)*(1+V9)*(1+Y9)*(1+AB9)) -> 0 | AC10: =IF(OR(COUNT(D9,E9,G9,H9,J9,K9,M9,N9,P9,Q9,S9,T9,V9,W9,Y9,Z9,AB9,AC9,wsBP9,weBP9,wsfyBP9)<21,B9="Make a Selection",B12="Make a Selection"),0,D9*AD9/_xlfn.XLOOKUP(B12,rngecAT,rngecTerm,"N/A",0)*(1+G9)*(1+J9)*(1+M9)*(1+P9)*(1+S9)*(1+V9)*(1+Y9)*(1+AB9)*(1+AE9)) -> 0 | AF10: =IF(OR(COUNT(D9,E9,G9,H9,J9,K9,M9,N9,P9,Q9,S9,T9,V9,W9,Y9,Z9,AB9,AC9,AF9,AH9,wsBP10,weBP10,wsfyBP10)<23,B9="Make a Selection",B12="Make a Selection"),0,D9*AG9/_xlfn.XLOOKUP(B12,rngecAT,rngecTerm,"N/A",0)*(1+G9)*(1+J9)*(1+M9)*(1+P9)*(1+S9)*(1+V9)*(1+Y9)*(1+AB9)*(1+AE9)*(1+AH9)) -> 0 | AI10: =SUM(E10:AH10) -> 0
A11: No | B11: Custom Fringe @ | C11: 0 | D11: Fringe | E11: =IF(OR(COUNT(E10,C11,wsBP1,weBP1,wsfyBP1)<5,B9="Make a Selection",B12="Make a Selection"),0,IF(A11="Yes",E10*C11,IF(sFBRC=1,E10*_xlfn.XLOOKUP(bpFY1,rngFFRfy,_xlfn.XLOOKUP(A10,rngFFRc,rngFFR,"N/A",0),"N/A",0),E10*_xlfn.XLOOKUP(bpFY1,rngnFFRfy,_xlfn.XLOOKUP(A10,rngnFFRc,rngnFFR,"N/A",0),"N/A",0)))) -> 0 | H11: =IF(OR(COUNT(H10,C11,wsBP2,weBP2,wsfyBP2)<5,B9="Make a Selection",B12="Make a Selection"),0,IF(A11="Yes",H10*C11,IF(sFBRC=1,H10*_xlfn.XLOOKUP(bpFY2,rngFFRfy,_xlfn.XLOOKUP(A10,rngFFRc,rngFFR,"N/A",0),"N/A",0),H10*_xlfn.XLOOKUP(bpFY2,rngnFFRfy,_xlfn.XLOOKUP(A10,rngnFFRc,rngnFFR,"N/A",0),"N/A",0)))) -> 0 | K11: =IF(OR(COUNT(K10,C11,wsBP3,weBP3,wsfyBP3)<5,B9="Make a Selection",B12="Make a Selection"),0,IF(A11="Yes",K10*C11,IF(sFBRC=1,K10*_xlfn.XLOOKUP(bpFY3,rngFFRfy,_xlfn.XLOOKUP(A10,rngFFRc,rngFFR,"N/A",0),"N/A",0),K10*_xlfn.XLOOKUP(bpFY3,rngnFFRfy,_xlfn.XLOOKUP(A10,rngnFFRc,rngnFFR,"N/A",0),"N/A",0)))) -> 0 | N11: =IF(OR(COUNT(N10,C11,wsBP4,weBP4,wsfyBP4)<5,B9="Make a Selection",B12="Make a Selection"),0,IF(A11="Yes",N10*C11,IF(sFBRC=1,N10*_xlfn.XLOOKUP(bpFY4,rngFFRfy,_xlfn.XLOOKUP(A10,rngFFRc,rngFFR,"N/A",0),"N/A",0),N10*_xlfn.XLOOKUP(bpFY4,rngnFFRfy,_xlfn.XLOOKUP(A10,rngnFFRc,rngnFFR,"N/A",0),"N/A",0)))) -> 0 | Q11: =IF(OR(COUNT(Q10,C11,wsBP5,weBP5,wsfyBP5)<5,B9="Make a Selection",B12="Make a Selection"),0,IF(A11="Yes",Q10*C11,IF(sFBRC=1,Q10*_xlfn.XLOOKUP(bpFY5,rngFFRfy,_xlfn.XLOOKUP(A10,rngFFRc,rngFFR,"N/A",0),"N/A",0),Q10*_xlfn.XLOOKUP(bpFY5,rngnFFRfy,_xlfn.XLOOKUP(A10,rngnFFRc,rngnFFR,"N/A",0),"N/A",0)))) -> 0 | T11: =IF(OR(COUNT(T10,C11,wsBP6,weBP6,wsfyBP6)<5,B9="Make a Selection",B12="Make a Selection"),0,IF(A11="Yes",T10*C11,IF(sFBRC=1,T10*_xlfn.XLOOKUP(bpFY6,rngFFRfy,_xlfn.XLOOKUP(A10,rngFFRc,rngFFR,"N/A",0),"N/A",0),T10*_xlfn.XLOOKUP(bpFY6,rngnFFRfy,_xlfn.XLOOKUP(A10,rngnFFRc,rngnFFR,"N/A",0),"N/A",0)))) -> 0 | W11: =IF(OR(COUNT(W10,C11,wsBP7,weBP7,wsfyBP7)<5,B9="Make a Selection",B12="Make a Selection"),0,IF(A11="Yes",W10*C11,IF(sFBRC=1,W10*_xlfn.XLOOKUP(bpFY7,rngFFRfy,_xlfn.XLOOKUP(A10,rngFFRc,rngFFR,"N/A",0),"N/A",0),W10*_xlfn.XLOOKUP(bpFY7,rngnFFRfy,_xlfn.XLOOKUP(A10,rngnFFRc,rngnFFR,"N/A",0),"N/A",0)))) -> 0 | Z11: =IF(OR(COUNT(Z10,C11,wsBP8,weBP8,wsfyBP8)<5,B9="Make a Selection",B12="Make a Selection"),0,IF(A11="Yes",Z10*C11,IF(sFBRC=1,Z10*_xlfn.XLOOKUP(bpFY8,rngFFRfy,_xlfn.XLOOKUP(A10,rngFFRc,rngFFR,"N/A",0),"N/A",0),Z10*_xlfn.XLOOKUP(bpFY8,rngnFFRfy,_xlfn.XLOOKUP(A10,rngnFFRc,rngnFFR,"N/A",0),"N/A",0)))) -> 0 | AC11: =IF(OR(COUNT(AC10,C11,wsBP9,weBP9,wsfyBP9)<5,B9="Make a Selection",B12="Make a Selection"),0,IF(A11="Yes",AC10*C11,IF(sFBRC=1,AC10*_xlfn.XLOOKUP(bpFY9,rngFFRfy,_xlfn.XLOOKUP(A10,rngFFRc,rngFFR,"N/A",0),"N/A",0),AC10*_xlfn.XLOOKUP(bpFY9,rngnFFRfy,_xlfn.XLOOKUP(A10,rngnFFRc,rngnFFR,"N/A",0),"N/A",0)))) -> 0 | AF11: =IF(OR(COUNT(AF10,C11,wsBP10,weBP10,wsfyBP10)<5,B9="Make a Selection",B12="Make a Selection"),0,IF(A11="Yes",AF10*C11,IF(sFBRC=1,AF10*_xlfn.XLOOKUP(bpFY10,rngFFRfy,_xlfn.XLOOKUP(A10,rngFFRc,rngFFR,"N/A",0),"N/A",0),AF10*_xlfn.XLOOKUP(bpFY10,rngnFFRfy,_xlfn.XLOOKUP(A10,rngnFFRc,rngnFFR,"N/A",0),"N/A",0)))) -> 0 | AI11: =SUM(E11:AH11) -> 0
B12: Make a Selection | D12: Subtotal | E12: =IF(OR(NOT(ISNUMBER(E10)),NOT(ISNUMBER(E11))),0,SUM(E10:E11)) -> 0 | H12: =IF(OR(NOT(ISNUMBER(H10)),NOT(ISNUMBER(H11))),0,SUM(H10:H11)) -> 0 | K12: =IF(OR(NOT(ISNUMBER(K10)),NOT(ISNUMBER(K11))),0,SUM(K10:K11)) -> 0 | N12: =IF(OR(NOT(ISNUMBER(N10)),NOT(ISNUMBER(N11))),0,SUM(N10:N11)) -> 0 | Q12: =IF(OR(NOT(ISNUMBER(Q10)),NOT(ISNUMBER(Q11))),0,SUM(Q10:Q11)) -> 0 | T12: =IF(OR(NOT(ISNUMBER(T10)),NOT(ISNUMBER(T11))),0,SUM(T10:T11)) -> 0 | W12: =IF(OR(NOT(ISNUMBER(W10)),NOT(ISNUMBER(W11))),0,SUM(W10:W11)) -> 0 | Z12: =IF(OR(NOT(ISNUMBER(Z10)),NOT(ISNUMBER(Z11))),0,SUM(Z10:Z11)) -> 0 | AC12: =IF(OR(NOT(ISNUMBER(AC10)),NOT(ISNUMBER(AC11))),0,SUM(AC10:AC11)) -> 0 | AF12: =IF(OR(NOT(ISNUMBER(AF10)),NOT(ISNUMBER(AF11))),0,SUM(AF10:AF11)) -> 0 | AI12: 0
A14: =_xlfn.XLOOKUP(B14,MTDC[Description],MTDC[VALUE],"N/A",0) -> 50010 | B14: S&W Staff | D14: =IF(AND(B14="Make a Selection",OR(sFABC=1,sFABC=2,sFABC=3)),"",IF(sFABC=2,"Included",IF(sFABC=3,"Custom F&A Amt",IF(_xlfn.XLOOKUP(B14,MTDC[Description],MTDC[Include in MTDC],"N/A",0)="MTDC","Included","Excluded")))) -> Included | E14: =IF(ISNUMBER(SUMPRODUCT(--ISNUMBER(rngCFA1)*(INDEX(budA1BP1,0,1))*(INDEX(budA1SF,0,1)="Salary")*(rngCFA1=A14))),SUMPRODUCT(--ISNUMBER(rngCFA1)*(INDEX(budA1BP1,0,1))*(INDEX(budA1SF,0,1)="Salary")*(rngCFA1=A14)),0) -> 0 | H14: =IF(ISNUMBER(SUMPRODUCT(--ISNUMBER(rngCFA1)*(INDEX(budA1BP2,0,1))*(INDEX(budA1SF,0,1)="Salary")*(rngCFA1=A14))),SUMPRODUCT(--ISNUMBER(rngCFA1)*(INDEX(budA1BP2,0,1))*(INDEX(budA1SF,0,1)="Salary")*(rngCFA1=A14)),0) -> 0 | K14: =IF(ISNUMBER(SUMPRODUCT(--ISNUMBER(rngCFA1)*(INDEX(budA1BP3,0,1))*(INDEX(budA1SF,0,1)="Salary")*(rngCFA1=A14))),SUMPRODUCT(--ISNUMBER(rngCFA1)*(INDEX(budA1BP3,0,1))*(INDEX(budA1SF,0,1)="Salary")*(rngCFA1=A14)),0) -> 0 | N14: =IF(ISNUMBER(SUMPRODUCT(--ISNUMBER(rngCFA1)*(INDEX(budA1BP4,0,1))*(INDEX(budA1SF,0,1)="Salary")*(rngCFA1=A14))),SUMPRODUCT(--ISNUMBER(rngCFA1)*(INDEX(budA1BP4,0,1))*(INDEX(budA1SF,0,1)="Salary")*(rngCFA1=A14)),0) -> 0 | Q14: =IF(ISNUMBER(SUMPRODUCT(--ISNUMBER(rngCFA1)*(INDEX(budA1BP5,0,1))*(INDEX(budA1SF,0,1)="Salary")*(rngCFA1=A14))),SUMPRODUCT(--ISNUMBER(rngCFA1)*(INDEX(budA1BP5,0,1))*(INDEX(budA1SF,0,1)="Salary")*(rngCFA1=A14)),0) -> 0 | T14: =IF(ISNUMBER(SUMPRODUCT(--ISNUMBER(rngCFA1)*(INDEX(budA1BP6,0,1))*(INDEX(budA1SF,0,1)="Salary")*(rngCFA1=A14))),SUMPRODUCT(--ISNUMBER(rngCFA1)*(INDEX(budA1BP6,0,1))*(INDEX(budA1SF,0,1)="Salary")*(rngCFA1=A14)),0) -> 0 | W14: =IF(ISNUMBER(SUMPRODUCT(--ISNUMBER(rngCFA1)*(INDEX(budA1BP7,0,1))*(INDEX(budA1SF,0,1)="Salary")*(rngCFA1=A14))),SUMPRODUCT(--ISNUMBER(rngCFA1)*(INDEX(budA1BP7,0,1))*(INDEX(budA1SF,0,1)="Salary")*(rngCFA1=A14)),0) -> 0 | Z14: =IF(ISNUMBER(SUMPRODUCT(--ISNUMBER(rngCFA1)*(INDEX(budA1BP8,0,1))*(INDEX(budA1SF,0,1)="Salary")*(rngCFA1=A14))),SUMPRODUCT(--ISNUMBER(rngCFA1)*(INDEX(budA1BP8,0,1))*(INDEX(budA1SF,0,1)="Salary")*(rngCFA1=A14)),0) -> 0 | AC14: =IF(ISNUMBER(SUMPRODUCT(--ISNUMBER(rngCFA1)*(INDEX(budA1BP9,0,1))*(INDEX(budA1SF,0,1)="Salary")*(rngCFA1=A14))),SUMPRODUCT(--ISNUMBER(rngCFA1)*(INDEX(budA1BP9,0,1))*(INDEX(budA1SF,0,1)="Salary")*(rngCFA1=A14)),0) -> 0 | AF14: =IF(ISNUMBER(SUMPRODUCT(--ISNUMBER(rngCFA1)*(INDEX(budA1BP10,0,1))*(INDEX(budA1SF,0,1)="Salary")*(rngCFA1=A14))),SUMPRODUCT(--ISNUMBER(rngCFA1)*(INDEX(budA1BP10,0,1))*(INDEX(budA1SF,0,1)="Salary")*(rngCFA1=A14)),0) -> 0 | AI14: =SUM(E14:AH14) -> 0
A15: =_xlfn.XLOOKUP(B15,MTDC[Description],MTDC[VALUE],"N/A",0) -> 50020 | B15: S&W Tenured Faculty | D15: =IF(AND(B15="Make a Selection",OR(sFABC=1,sFABC=2,sFABC=3)),"",IF(sFABC=2,"Included",IF(sFABC=3,"Custom F&A Amt",IF(_xlfn.XLOOKUP(B15,MTDC[Description],MTDC[Include in MTDC],"N/A",0)="MTDC","Included","Excluded")))) -> Included | E15: =IF(ISNUMBER(SUMPRODUCT(--ISNUMBER(rngCFA1)*(INDEX(budA1BP1,0,1))*(INDEX(budA1SF,0,1)="Salary")*(rngCFA1=A15))),SUMPRODUCT(--ISNUMBER(rngCFA1)*(INDEX(budA1BP1,0,1))*(INDEX(budA1SF,0,1)="Salary")*(rngCFA1=A15)),0) -> 0 | H15: =IF(ISNUMBER(SUMPRODUCT(--ISNUMBER(rngCFA1)*(INDEX(budA1BP2,0,1))*(INDEX(budA1SF,0,1)="Salary")*(rngCFA1=A15))),SUMPRODUCT(--ISNUMBER(rngCFA1)*(INDEX(budA1BP2,0,1))*(INDEX(budA1SF,0,1)="Salary")*(rngCFA1=A15)),0) -> 0 | K15: =IF(ISNUMBER(SUMPRODUCT(--ISNUMBER(rngCFA1)*(INDEX(budA1BP3,0,1))*(INDEX(budA1SF,0,1)="Salary")*(rngCFA1=A15))),SUMPRODUCT(--ISNUMBER(rngCFA1)*(INDEX(budA1BP3,0,1))*(INDEX(budA1SF,0,1)="Salary")*(rngCFA1=A15)),0) -> 0 | N15: =IF(ISNUMBER(SUMPRODUCT(--ISNUMBER(rngCFA1)*(INDEX(budA1BP4,0,1))*(INDEX(budA1SF,0,1)="Salary")*(rngCFA1=A15))),SUMPRODUCT(--ISNUMBER(rngCFA1)*(INDEX(budA1BP4,0,1))*(INDEX(budA1SF,0,1)="Salary")*(rngCFA1=A15)),0) -> 0 | Q15: =IF(ISNUMBER(SUMPRODUCT(--ISNUMBER(rngCFA1)*(INDEX(budA1BP5,0,1))*(INDEX(budA1SF,0,1)="Salary")*(rngCFA1=A15))),SUMPRODUCT(--ISNUMBER(rngCFA1)*(INDEX(budA1BP5,0,1))*(INDEX(budA1SF,0,1)="Salary")*(rngCFA1=A15)),0) -> 0 | T15: =IF(ISNUMBER(SUMPRODUCT(--ISNUMBER(rngCFA1)*(INDEX(budA1BP6,0,1))*(INDEX(budA1SF,0,1)="Salary")*(rngCFA1=A15))),SUMPRODUCT(--ISNUMBER(rngCFA1)*(INDEX(budA1BP6,0,1))*(INDEX(budA1SF,0,1)="Salary")*(rngCFA1=A15)),0) -> 0 | W15: =IF(ISNUMBER(SUMPRODUCT(--ISNUMBER(rngCFA1)*(INDEX(budA1BP7,0,1))*(INDEX(budA1SF,0,1)="Salary")*(rngCFA1=A15))),SUMPRODUCT(--ISNUMBER(rngCFA1)*(INDEX(budA1BP7,0,1))*(INDEX(budA1SF,0,1)="Salary")*(rngCFA1=A15)),0) -> 0 | Z15: =IF(ISNUMBER(SUMPRODUCT(--ISNUMBER(rngCFA1)*(INDEX(budA1BP8,0,1))*(INDEX(budA1SF,0,1)="Salary")*(rngCFA1=A15))),SUMPRODUCT(--ISNUMBER(rngCFA1)*(INDEX(budA1BP8,0,1))*(INDEX(budA1SF,0,1)="Salary")*(rngCFA1=A15)),0) -> 0 | AC15: =IF(ISNUMBER(SUMPRODUCT(--ISNUMBER(rngCFA1)*(INDEX(budA1BP9,0,1))*(INDEX(budA1SF,0,1)="Salary")*(rngCFA1=A15))),SUMPRODUCT(--ISNUMBER(rngCFA1)*(INDEX(budA1BP9,0,1))*(INDEX(budA1SF,0,1)="Salary")*(rngCFA1=A15)),0) -> 0 | AF15: =IF(ISNUMBER(SUMPRODUCT(--ISNUMBER(rngCFA1)*(INDEX(budA1BP10,0,1))*(INDEX(budA1SF,0,1)="Salary")*(rngCFA1=A15))),SUMPRODUCT(--ISNUMBER(rngCFA1)*(INDEX(budA1BP10,0,1))*(INDEX(budA1SF,0,1)="Salary")*(rngCFA1=A15)),0) -> 0 | AI15: =SUM(E15:AH15) -> 0
A16: =_xlfn.XLOOKUP(B16,MTDC[Description],MTDC[VALUE],"N/A",0) -> 50030 | B16: S&W Tenure Track Faculty | D16: =IF(AND(B16="Make a Selection",OR(sFABC=1,sFABC=2,sFABC=3)),"",IF(sFABC=2,"Included",IF(sFABC=3,"Custom F&A Amt",IF(_xlfn.XLOOKUP(B16,MTDC[Description],MTDC[Include in MTDC],"N/A",0)="MTDC","Included","Excluded")))) -> Included | E16: =IF(ISNUMBER(SUMPRODUCT(--ISNUMBER(rngCFA1)*(INDEX(budA1BP1,0,1))*(INDEX(budA1SF,0,1)="Salary")*(rngCFA1=A16))),SUMPRODUCT(--ISNUMBER(rngCFA1)*(INDEX(budA1BP1,0,1))*(INDEX(budA1SF,0,1)="Salary")*(rngCFA1=A16)),0) -> 0 | H16: =IF(ISNUMBER(SUMPRODUCT(--ISNUMBER(rngCFA1)*(INDEX(budA1BP2,0,1))*(INDEX(budA1SF,0,1)="Salary")*(rngCFA1=A16))),SUMPRODUCT(--ISNUMBER(rngCFA1)*(INDEX(budA1BP2,0,1))*(INDEX(budA1SF,0,1)="Salary")*(rngCFA1=A16)),0) -> 0 | K16: =IF(ISNUMBER(SUMPRODUCT(--ISNUMBER(rngCFA1)*(INDEX(budA1BP3,0,1))*(INDEX(budA1SF,0,1)="Salary")*(rngCFA1=A16))),SUMPRODUCT(--ISNUMBER(rngCFA1)*(INDEX(budA1BP3,0,1))*(INDEX(budA1SF,0,1)="Salary")*(rngCFA1=A16)),0) -> 0 | N16: =IF(ISNUMBER(SUMPRODUCT(--ISNUMBER(rngCFA1)*(INDEX(budA1BP4,0,1))*(INDEX(budA1SF,0,1)="Salary")*(rngCFA1=A16))),SUMPRODUCT(--ISNUMBER(rngCFA1)*(INDEX(budA1BP4,0,1))*(INDEX(budA1SF,0,1)="Salary")*(rngCFA1=A16)),0) -> 0 | Q16: =IF(ISNUMBER(SUMPRODUCT(--ISNUMBER(rngCFA1)*(INDEX(budA1BP5,0,1))*(INDEX(budA1SF,0,1)="Salary")*(rngCFA1=A16))),SUMPRODUCT(--ISNUMBER(rngCFA1)*(INDEX(budA1BP5,0,1))*(INDEX(budA1SF,0,1)="Salary")*(rngCFA1=A16)),0) -> 0 | T16: =IF(ISNUMBER(SUMPRODUCT(--ISNUMBER(rngCFA1)*(INDEX(budA1BP6,0,1))*(INDEX(budA1SF,0,1)="Salary")*(rngCFA1=A16))),SUMPRODUCT(--ISNUMBER(rngCFA1)*(INDEX(budA1BP6,0,1))*(INDEX(budA1SF,0,1)="Salary")*(rngCFA1=A16)),0) -> 0 | W16: =IF(ISNUMBER(SUMPRODUCT(--ISNUMBER(rngCFA1)*(INDEX(budA1BP7,0,1))*(INDEX(budA1SF,0,1)="Salary")*(rngCFA1=A16))),SUMPRODUCT(--ISNUMBER(rngCFA1)*(INDEX(budA1BP7,0,1))*(INDEX(budA1SF,0,1)="Salary")*(rngCFA1=A16)),0) -> 0 | Z16: =IF(ISNUMBER(SUMPRODUCT(--ISNUMBER(rngCFA1)*(INDEX(budA1BP8,0,1))*(INDEX(budA1SF,0,1)="Salary")*(rngCFA1=A16))),SUMPRODUCT(--ISNUMBER(rngCFA1)*(INDEX(budA1BP8,0,1))*(INDEX(budA1SF,0,1)="Salary")*(rngCFA1=A16)),0) -> 0 | AC16: =IF(ISNUMBER(SUMPRODUCT(--ISNUMBER(rngCFA1)*(INDEX(budA1BP9,0,1))*(INDEX(budA1SF,0,1)="Salary")*(rngCFA1=A16))),SUMPRODUCT(--ISNUMBER(rngCFA1)*(INDEX(budA1BP9,0,1))*(INDEX(budA1SF,0,1)="Salary")*(rngCFA1=A16)),0) -> 0 | AF16: =IF(ISNUMBER(SUMPRODUCT(--ISNUMBER(rngCFA1)*(INDEX(budA1BP10,0,1))*(INDEX(budA1SF,0,1)="Salary")*(rngCFA1=A16))),SUMPRODUCT(--ISNUMBER(rngCFA1)*(INDEX(budA1BP10,0,1))*(INDEX(budA1SF,0,1)="Salary")*(rngCFA1=A16)),0) -> 0 | AI16: 0
A17: =_xlfn.XLOOKUP(B17,MTDC[Description],MTDC[VALUE],"N/A",0) -> 50040 | B17: S&W NonTenured Faculty | D17: =IF(AND(B17="Make a Selection",OR(sFABC=1,sFABC=2,sFABC=3)),"",IF(sFABC=2,"Included",IF(sFABC=3,"Custom F&A Amt",IF(_xlfn.XLOOKUP(B17,MTDC[Description],MTDC[Include in MTDC],"N/A",0)="MTDC","Included","Excluded")))) -> Included | E17: =IF(ISNUMBER(SUMPRODUCT(--ISNUMBER(rngCFA1)*(INDEX(budA1BP1,0,1))*(INDEX(budA1SF,0,1)="Salary")*(rngCFA1=A17))),SUMPRODUCT(--ISNUMBER(rngCFA1)*(INDEX(budA1BP1,0,1))*(INDEX(budA1SF,0,1)="Salary")*(rngCFA1=A17)),0) -> 0 | H17: =IF(ISNUMBER(SUMPRODUCT(--ISNUMBER(rngCFA1)*(INDEX(budA1BP2,0,1))*(INDEX(budA1SF,0,1)="Salary")*(rngCFA1=A17))),SUMPRODUCT(--ISNUMBER(rngCFA1)*(INDEX(budA1BP2,0,1))*(INDEX(budA1SF,0,1)="Salary")*(rngCFA1=A17)),0) -> 0 | K17: =IF(ISNUMBER(SUMPRODUCT(--ISNUMBER(rngCFA1)*(INDEX(budA1BP3,0,1))*(INDEX(budA1SF,0,1)="Salary")*(rngCFA1=A17))),SUMPRODUCT(--ISNUMBER(rngCFA1)*(INDEX(budA1BP3,0,1))*(INDEX(budA1SF,0,1)="Salary")*(rngCFA1=A17)),0) -> 0 | N17: =IF(ISNUMBER(SUMPRODUCT(--ISNUMBER(rngCFA1)*(INDEX(budA1BP4,0,1))*(INDEX(budA1SF,0,1)="Salary")*(rngCFA1=A17))),SUMPRODUCT(--ISNUMBER(rngCFA1)*(INDEX(budA1BP4,0,1))*(INDEX(budA1SF,0,1)="Salary")*(rngCFA1=A17)),0) -> 0 | Q17: =IF(ISNUMBER(SUMPRODUCT(--ISNUMBER(rngCFA1)*(INDEX(budA1BP5,0,1))*(INDEX(budA1SF,0,1)="Salary")*(rngCFA1=A17))),SUMPRODUCT(--ISNUMBER(rngCFA1)*(INDEX(budA1BP5,0,1))*(INDEX(budA1SF,0,1)="Salary")*(rngCFA1=A17)),0) -> 0 | T17: =IF(ISNUMBER(SUMPRODUCT(--ISNUMBER(rngCFA1)*(INDEX(budA1BP6,0,1))*(INDEX(budA1SF,0,1)="Salary")*(rngCFA1=A17))),SUMPRODUCT(--ISNUMBER(rngCFA1)*(INDEX(budA1BP6,0,1))*(INDEX(budA1SF,0,1)="Salary")*(rngCFA1=A17)),0) -> 0 | W17: =IF(ISNUMBER(SUMPRODUCT(--ISNUMBER(rngCFA1)*(INDEX(budA1BP7,0,1))*(INDEX(budA1SF,0,1)="Salary")*(rngCFA1=A17))),SUMPRODUCT(--ISNUMBER(rngCFA1)*(INDEX(budA1BP7,0,1))*(INDEX(budA1SF,0,1)="Salary")*(rngCFA1=A17)),0) -> 0 | Z17: =IF(ISNUMBER(SUMPRODUCT(--ISNUMBER(rngCFA1)*(INDEX(budA1BP8,0,1))*(INDEX(budA1SF,0,1)="Salary")*(rngCFA1=A17))),SUMPRODUCT(--ISNUMBER(rngCFA1)*(INDEX(budA1BP8,0,1))*(INDEX(budA1SF,0,1)="Salary")*(rngCFA1=A17)),0) -> 0 | AC17: =IF(ISNUMBER(SUMPRODUCT(--ISNUMBER(rngCFA1)*(INDEX(budA1BP9,0,1))*(INDEX(budA1SF,0,1)="Salary")*(rngCFA1=A17))),SUMPRODUCT(--ISNUMBER(rngCFA1)*(INDEX(budA1BP9,0,1))*(INDEX(budA1SF,0,1)="Salary")*(rngCFA1=A17)),0) -> 0 | AF17: =IF(ISNUMBER(SUMPRODUCT(--ISNUMBER(rngCFA1)*(INDEX(budA1BP10,0,1))*(INDEX(budA1SF,0,1)="Salary")*(rngCFA1=A17))),SUMPRODUCT(--ISNUMBER(rngCFA1)*(INDEX(budA1BP10,0,1))*(INDEX(budA1SF,0,1)="Salary")*(rngCFA1=A17)),0) -> 0 | AI17: 0
A18: =_xlfn.XLOOKUP(B18,MTDC[Description],MTDC[VALUE],"N/A",0) -> 50050 | B18: S&W TA & GA | D18: =IF(AND(B18="Make a Selection",OR(sFABC=1,sFABC=2,sFABC=3)),"",IF(sFABC=2,"Included",IF(sFABC=3,"Custom F&A Amt",IF(_xlfn.XLOOKUP(B18,MTDC[Description],MTDC[Include in MTDC],"N/A",0)="MTDC","Included","Excluded")))) -> Included | E18: =IF(ISNUMBER(SUMPRODUCT(--ISNUMBER(rngCFA1)*(INDEX(budA1BP1,0,1))*(INDEX(budA1SF,0,1)="Salary")*(rngCFA1=A18))),SUMPRODUCT(--ISNUMBER(rngCFA1)*(INDEX(budA1BP1,0,1))*(INDEX(budA1SF,0,1)="Salary")*(rngCFA1=A18)),0) -> 0 | H18: =IF(ISNUMBER(SUMPRODUCT(--ISNUMBER(rngCFA1)*(INDEX(budA1BP2,0,1))*(INDEX(budA1SF,0,1)="Salary")*(rngCFA1=A18))),SUMPRODUCT(--ISNUMBER(rngCFA1)*(INDEX(budA1BP2,0,1))*(INDEX(budA1SF,0,1)="Salary")*(rngCFA1=A18)),0) -> 0 | K18: =IF(ISNUMBER(SUMPRODUCT(--ISNUMBER(rngCFA1)*(INDEX(budA1BP3,0,1))*(INDEX(budA1SF,0,1)="Salary")*(rngCFA1=A18))),SUMPRODUCT(--ISNUMBER(rngCFA1)*(INDEX(budA1BP3,0,1))*(INDEX(budA1SF,0,1)="Salary")*(rngCFA1=A18)),0) -> 0 | N18: =IF(ISNUMBER(SUMPRODUCT(--ISNUMBER(rngCFA1)*(INDEX(budA1BP4,0,1))*(INDEX(budA1SF,0,1)="Salary")*(rngCFA1=A18))),SUMPRODUCT(--ISNUMBER(rngCFA1)*(INDEX(budA1BP4,0,1))*(INDEX(budA1SF,0,1)="Salary")*(rngCFA1=A18)),0) -> 0 | Q18: =IF(ISNUMBER(SUMPRODUCT(--ISNUMBER(rngCFA1)*(INDEX(budA1BP5,0,1))*(INDEX(budA1SF,0,1)="Salary")*(rngCFA1=A18))),SUMPRODUCT(--ISNUMBER(rngCFA1)*(INDEX(budA1BP5,0,1))*(INDEX(budA1SF,0,1)="Salary")*(rngCFA1=A18)),0) -> 0 | T18: =IF(ISNUMBER(SUMPRODUCT(--ISNUMBER(rngCFA1)*(INDEX(budA1BP6,0,1))*(INDEX(budA1SF,0,1)="Salary")*(rngCFA1=A18))),SUMPRODUCT(--ISNUMBER(rngCFA1)*(INDEX(budA1BP6,0,1))*(INDEX(budA1SF,0,1)="Salary")*(rngCFA1=A18)),0) -> 0 | W18: =IF(ISNUMBER(SUMPRODUCT(--ISNUMBER(rngCFA1)*(INDEX(budA1BP7,0,1))*(INDEX(budA1SF,0,1)="Salary")*(rngCFA1=A18))),SUMPRODUCT(--ISNUMBER(rngCFA1)*(INDEX(budA1BP7,0,1))*(INDEX(budA1SF,0,1)="Salary")*(rngCFA1=A18)),0) -> 0 | Z18: =IF(ISNUMBER(SUMPRODUCT(--ISNUMBER(rngCFA1)*(INDEX(budA1BP8,0,1))*(INDEX(budA1SF,0,1)="Salary")*(rngCFA1=A18))),SUMPRODUCT(--ISNUMBER(rngCFA1)*(INDEX(budA1BP8,0,1))*(INDEX(budA1SF,0,1)="Salary")*(rngCFA1=A18)),0) -> 0 | AC18: =IF(ISNUMBER(SUMPRODUCT(--ISNUMBER(rngCFA1)*(INDEX(budA1BP9,0,1))*(INDEX(budA1SF,0,1)="Salary")*(rngCFA1=A18))),SUMPRODUCT(--ISNUMBER(rngCFA1)*(INDEX(budA1BP9,0,1))*(INDEX(budA1SF,0,1)="Salary")*(rngCFA1=A18)),0) -> 0 | AF18: =IF(ISNUMBER(SUMPRODUCT(--ISNUMBER(rngCFA1)*(INDEX(budA1BP10,0,1))*(INDEX(budA1SF,0,1)="Salary")*(rngCFA1=A18))),SUMPRODUCT(--ISNUMBER(rngCFA1)*(INDEX(budA1BP10,0,1))*(INDEX(budA1SF,0,1)="Salary")*(rngCFA1=A18)),0) -> 0 | AI18: 0
A19: =_xlfn.XLOOKUP(B19,MTDC[Description],MTDC[VALUE],"N/A",0) -> 50060 | B19: S&W Post Doctorate & Associates | D19: =IF(AND(B19="Make a Selection",OR(sFABC=1,sFABC=2,sFABC=3)),"",IF(sFABC=2,"Included",IF(sFABC=3,"Custom F&A Amt",IF(_xlfn.XLOOKUP(B19,MTDC[Description],MTDC[Include in MTDC],"N/A",0)="MTDC","Included","Excluded")))) -> Included | E19: =IF(ISNUMBER(SUMPRODUCT(--ISNUMBER(rngCFA1)*(INDEX(budA1BP1,0,1))*(INDEX(budA1SF,0,1)="Salary")*(rngCFA1=A19))),SUMPRODUCT(--ISNUMBER(rngCFA1)*(INDEX(budA1BP1,0,1))*(INDEX(budA1SF,0,1)="Salary")*(rngCFA1=A19)),0) -> 0 | H19: =IF(ISNUMBER(SUMPRODUCT(--ISNUMBER(rngCFA1)*(INDEX(budA1BP2,0,1))*(INDEX(budA1SF,0,1)="Salary")*(rngCFA1=A19))),SUMPRODUCT(--ISNUMBER(rngCFA1)*(INDEX(budA1BP2,0,1))*(INDEX(budA1SF,0,1)="Salary")*(rngCFA1=A19)),0) -> 0 | K19: =IF(ISNUMBER(SUMPRODUCT(--ISNUMBER(rngCFA1)*(INDEX(budA1BP3,0,1))*(INDEX(budA1SF,0,1)="Salary")*(rngCFA1=A19))),SUMPRODUCT(--ISNUMBER(rngCFA1)*(INDEX(budA1BP3,0,1))*(INDEX(budA1SF,0,1)="Salary")*(rngCFA1=A19)),0) -> 0 | N19: =IF(ISNUMBER(SUMPRODUCT(--ISNUMBER(rngCFA1)*(INDEX(budA1BP4,0,1))*(INDEX(budA1SF,0,1)="Salary")*(rngCFA1=A19))),SUMPRODUCT(--ISNUMBER(rngCFA1)*(INDEX(budA1BP4,0,1))*(INDEX(budA1SF,0,1)="Salary")*(rngCFA1=A19)),0) -> 0 | Q19: =IF(ISNUMBER(SUMPRODUCT(--ISNUMBER(rngCFA1)*(INDEX(budA1BP5,0,1))*(INDEX(budA1SF,0,1)="Salary")*(rngCFA1=A19))),SUMPRODUCT(--ISNUMBER(rngCFA1)*(INDEX(budA1BP5,0,1))*(INDEX(budA1SF,0,1)="Salary")*(rngCFA1=A19)),0) -> 0 | T19: =IF(ISNUMBER(SUMPRODUCT(--ISNUMBER(rngCFA1)*(INDEX(budA1BP6,0,1))*(INDEX(budA1SF,0,1)="Salary")*(rngCFA1=A19))),SUMPRODUCT(--ISNUMBER(rngCFA1)*(INDEX(budA1BP6,0,1))*(INDEX(budA1SF,0,1)="Salary")*(rngCFA1=A19)),0) -> 0 | W19: =IF(ISNUMBER(SUMPRODUCT(--ISNUMBER(rngCFA1)*(INDEX(budA1BP7,0,1))*(INDEX(budA1SF,0,1)="Salary")*(rngCFA1=A19))),SUMPRODUCT(--ISNUMBER(rngCFA1)*(INDEX(budA1BP7,0,1))*(INDEX(budA1SF,0,1)="Salary")*(rngCFA1=A19)),0) -> 0 | Z19: =IF(ISNUMBER(SUMPRODUCT(--ISNUMBER(rngCFA1)*(INDEX(budA1BP8,0,1))*(INDEX(budA1SF,0,1)="Salary")*(rngCFA1=A19))),SUMPRODUCT(--ISNUMBER(rngCFA1)*(INDEX(budA1BP8,0,1))*(INDEX(budA1SF,0,1)="Salary")*(rngCFA1=A19)),0) -> 0 | AC19: =IF(ISNUMBER(SUMPRODUCT(--ISNUMBER(rngCFA1)*(INDEX(budA1BP9,0,1))*(INDEX(budA1SF,0,1)="Salary")*(rngCFA1=A19))),SUMPRODUCT(--ISNUMBER(rngCFA1)*(INDEX(budA1BP9,0,1))*(INDEX(budA1SF,0,1)="Salary")*(rngCFA1=A19)),0) -> 0 | AF19: =IF(ISNUMBER(SUMPRODUCT(--ISNUMBER(rngCFA1)*(INDEX(budA1BP10,0,1))*(INDEX(budA1SF,0,1)="Salary")*(rngCFA1=A19))),SUMPRODUCT(--ISNUMBER(rngCFA1)*(INDEX(budA1BP10,0,1))*(INDEX(budA1SF,0,1)="Salary")*(rngCFA1=A19)),0) -> 0 | AI19: 0
A20: =_xlfn.XLOOKUP(B20,MTDC[Description],MTDC[VALUE],"N/A",0) -> 50070 | B20: S&W Housestaff | D20: =IF(AND(B20="Make a Selection",OR(sFABC=1,sFABC=2,sFABC=3)),"",IF(sFABC=2,"Included",IF(sFABC=3,"Custom F&A Amt",IF(_xlfn.XLOOKUP(B20,MTDC[Description],MTDC[Include in MTDC],"N/A",0)="MTDC","Included","Excluded")))) -> Included | E20: =IF(ISNUMBER(SUMPRODUCT(--ISNUMBER(rngCFA1)*(INDEX(budA1BP1,0,1))*(INDEX(budA1SF,0,1)="Salary")*(rngCFA1=A20))),SUMPRODUCT(--ISNUMBER(rngCFA1)*(INDEX(budA1BP1,0,1))*(INDEX(budA1SF,0,1)="Salary")*(rngCFA1=A20)),0) -> 0 | H20: =IF(ISNUMBER(SUMPRODUCT(--ISNUMBER(rngCFA1)*(INDEX(budA1BP2,0,1))*(INDEX(budA1SF,0,1)="Salary")*(rngCFA1=A20))),SUMPRODUCT(--ISNUMBER(rngCFA1)*(INDEX(budA1BP2,0,1))*(INDEX(budA1SF,0,1)="Salary")*(rngCFA1=A20)),0) -> 0 | K20: =IF(ISNUMBER(SUMPRODUCT(--ISNUMBER(rngCFA1)*(INDEX(budA1BP3,0,1))*(INDEX(budA1SF,0,1)="Salary")*(rngCFA1=A20))),SUMPRODUCT(--ISNUMBER(rngCFA1)*(INDEX(budA1BP3,0,1))*(INDEX(budA1SF,0,1)="Salary")*(rngCFA1=A20)),0) -> 0 | N20: =IF(ISNUMBER(SUMPRODUCT(--ISNUMBER(rngCFA1)*(INDEX(budA1BP4,0,1))*(INDEX(budA1SF,0,1)="Salary")*(rngCFA1=A20))),SUMPRODUCT(--ISNUMBER(rngCFA1)*(INDEX(budA1BP4,0,1))*(INDEX(budA1SF,0,1)="Salary")*(rngCFA1=A20)),0) -> 0 | Q20: =IF(ISNUMBER(SUMPRODUCT(--ISNUMBER(rngCFA1)*(INDEX(budA1BP5,0,1))*(INDEX(budA1SF,0,1)="Salary")*(rngCFA1=A20))),SUMPRODUCT(--ISNUMBER(rngCFA1)*(INDEX(budA1BP5,0,1))*(INDEX(budA1SF,0,1)="Salary")*(rngCFA1=A20)),0) -> 0 | T20: =IF(ISNUMBER(SUMPRODUCT(--ISNUMBER(rngCFA1)*(INDEX(budA1BP6,0,1))*(INDEX(budA1SF,0,1)="Salary")*(rngCFA1=A20))),SUMPRODUCT(--ISNUMBER(rngCFA1)*(INDEX(budA1BP6,0,1))*(INDEX(budA1SF,0,1)="Salary")*(rngCFA1=A20)),0) -> 0 | W20: =IF(ISNUMBER(SUMPRODUCT(--ISNUMBER(rngCFA1)*(INDEX(budA1BP7,0,1))*(INDEX(budA1SF,0,1)="Salary")*(rngCFA1=A20))),SUMPRODUCT(--ISNUMBER(rngCFA1)*(INDEX(budA1BP7,0,1))*(INDEX(budA1SF,0,1)="Salary")*(rngCFA1=A20)),0) -> 0 | Z20: =IF(ISNUMBER(SUMPRODUCT(--ISNUMBER(rngCFA1)*(INDEX(budA1BP8,0,1))*(INDEX(budA1SF,0,1)="Salary")*(rngCFA1=A20))),SUMPRODUCT(--ISNUMBER(rngCFA1)*(INDEX(budA1BP8,0,1))*(INDEX(budA1SF,0,1)="Salary")*(rngCFA1=A20)),0) -> 0 | AC20: =IF(ISNUMBER(SUMPRODUCT(--ISNUMBER(rngCFA1)*(INDEX(budA1BP9,0,1))*(INDEX(budA1SF,0,1)="Salary")*(rngCFA1=A20))),SUMPRODUCT(--ISNUMBER(rngCFA1)*(INDEX(budA1BP9,0,1))*(INDEX(budA1SF,0,1)="Salary")*(rngCFA1=A20)),0) -> 0 | AF20: =IF(ISNUMBER(SUMPRODUCT(--ISNUMBER(rngCFA1)*(INDEX(budA1BP10,0,1))*(INDEX(budA1SF,0,1)="Salary")*(rngCFA1=A20))),SUMPRODUCT(--ISNUMBER(rngCFA1)*(INDEX(budA1BP10,0,1))*(INDEX(budA1SF,0,1)="Salary")*(rngCFA1=A20)),0) -> 0 | AI20: 0
A21: =_xlfn.XLOOKUP(B21,MTDC[Description],MTDC[VALUE],"N/A",0) -> 50080 | B21: S&W Coadjutant NonInstructional (Summer Salary) | D21: =IF(AND(B21="Make a Selection",OR(sFABC=1,sFABC=2,sFABC=3)),"",IF(sFABC=2,"Included",IF(sFABC=3,"Custom F&A Amt",IF(_xlfn.XLOOKUP(B21,MTDC[Description],MTDC[Include in MTDC],"N/A",0)="MTDC","Included","Excluded")))) -> Included | E21: =IF(ISNUMBER(SUMPRODUCT(--ISNUMBER(rngCFA1)*(INDEX(budA1BP1,0,1))*(INDEX(budA1SF,0,1)="Salary")*(rngCFA1=A21))),SUMPRODUCT(--ISNUMBER(rngCFA1)*(INDEX(budA1BP1,0,1))*(INDEX(budA1SF,0,1)="Salary")*(rngCFA1=A21)),0) -> 0 | H21: =IF(ISNUMBER(SUMPRODUCT(--ISNUMBER(rngCFA1)*(INDEX(budA1BP2,0,1))*(INDEX(budA1SF,0,1)="Salary")*(rngCFA1=A21))),SUMPRODUCT(--ISNUMBER(rngCFA1)*(INDEX(budA1BP2,0,1))*(INDEX(budA1SF,0,1)="Salary")*(rngCFA1=A21)),0) -> 0 | K21: =IF(ISNUMBER(SUMPRODUCT(--ISNUMBER(rngCFA1)*(INDEX(budA1BP3,0,1))*(INDEX(budA1SF,0,1)="Salary")*(rngCFA1=A21))),SUMPRODUCT(--ISNUMBER(rngCFA1)*(INDEX(budA1BP3,0,1))*(INDEX(budA1SF,0,1)="Salary")*(rngCFA1=A21)),0) -> 0 | N21: =IF(ISNUMBER(SUMPRODUCT(--ISNUMBER(rngCFA1)*(INDEX(budA1BP4,0,1))*(INDEX(budA1SF,0,1)="Salary")*(rngCFA1=A21))),SUMPRODUCT(--ISNUMBER(rngCFA1)*(INDEX(budA1BP4,0,1))*(INDEX(budA1SF,0,1)="Salary")*(rngCFA1=A21)),0) -> 0 | Q21: =IF(ISNUMBER(SUMPRODUCT(--ISNUMBER(rngCFA1)*(INDEX(budA1BP5,0,1))*(INDEX(budA1SF,0,1)="Salary")*(rngCFA1=A21))),SUMPRODUCT(--ISNUMBER(rngCFA1)*(INDEX(budA1BP5,0,1))*(INDEX(budA1SF,0,1)="Salary")*(rngCFA1=A21)),0) -> 0 | T21: =IF(ISNUMBER(SUMPRODUCT(--ISNUMBER(rngCFA1)*(INDEX(budA1BP6,0,1))*(INDEX(budA1SF,0,1)="Salary")*(rngCFA1=A21))),SUMPRODUCT(--ISNUMBER(rngCFA1)*(INDEX(budA1BP6,0,1))*(INDEX(budA1SF,0,1)="Salary")*(rngCFA1=A21)),0) -> 0 | W21: =IF(ISNUMBER(SUMPRODUCT(--ISNUMBER(rngCFA1)*(INDEX(budA1BP7,0,1))*(INDEX(budA1SF,0,1)="Salary")*(rngCFA1=A21))),SUMPRODUCT(--ISNUMBER(rngCFA1)*(INDEX(budA1BP7,0,1))*(INDEX(budA1SF,0,1)="Salary")*(rngCFA1=A21)),0) -> 0 | Z21: =IF(ISNUMBER(SUMPRODUCT(--ISNUMBER(rngCFA1)*(INDEX(budA1BP8,0,1))*(INDEX(budA1SF,0,1)="Salary")*(rngCFA1=A21))),SUMPRODUCT(--ISNUMBER(rngCFA1)*(INDEX(budA1BP8,0,1))*(INDEX(budA1SF,0,1)="Salary")*(rngCFA1=A21)),0) -> 0 | AC21: =IF(ISNUMBER(SUMPRODUCT(--ISNUMBER(rngCFA1)*(INDEX(budA1BP9,0,1))*(INDEX(budA1SF,0,1)="Salary")*(rngCFA1=A21))),SUMPRODUCT(--ISNUMBER(rngCFA1)*(INDEX(budA1BP9,0,1))*(INDEX(budA1SF,0,1)="Salary")*(rngCFA1=A21)),0) -> 0 | AF21: =IF(ISNUMBER(SUMPRODUCT(--ISNUMBER(rngCFA1)*(INDEX(budA1BP10,0,1))*(INDEX(budA1SF,0,1)="Salary")*(rngCFA1=A21))),SUMPRODUCT(--ISNUMBER(rngCFA1)*(INDEX(budA1BP10,0,1))*(INDEX(budA1SF,0,1)="Salary")*(rngCFA1=A21)),0) -> 0 | AI21: =SUM(E21:AH21) -> 0
A22: =_xlfn.XLOOKUP(B22,MTDC[Description],MTDC[VALUE],"N/A",0) -> 50081 | B22: S&W Coadjutant PTL Instructional | D22: =IF(AND(B22="Make a Selection",OR(sFABC=1,sFABC=2,sFABC=3)),"",IF(sFABC=2,"Included",IF(sFABC=3,"Custom F&A Amt",IF(_xlfn.XLOOKUP(B22,MTDC[Description],MTDC[Include in MTDC],"N/A",0)="MTDC","Included","Excluded")))) -> Included | E22: =IF(ISNUMBER(SUMPRODUCT(--ISNUMBER(rngCFA1)*(INDEX(budA1BP1,0,1))*(INDEX(budA1SF,0,1)="Salary")*(rngCFA1=A22))),SUMPRODUCT(--ISNUMBER(rngCFA1)*(INDEX(budA1BP1,0,1))*(INDEX(budA1SF,0,1)="Salary")*(rngCFA1=A22)),0) -> 0 | H22: =IF(ISNUMBER(SUMPRODUCT(--ISNUMBER(rngCFA1)*(INDEX(budA1BP2,0,1))*(INDEX(budA1SF,0,1)="Salary")*(rngCFA1=A22))),SUMPRODUCT(--ISNUMBER(rngCFA1)*(INDEX(budA1BP2,0,1))*(INDEX(budA1SF,0,1)="Salary")*(rngCFA1=A22)),0) -> 0 | K22: =IF(ISNUMBER(SUMPRODUCT(--ISNUMBER(rngCFA1)*(INDEX(budA1BP3,0,1))*(INDEX(budA1SF,0,1)="Salary")*(rngCFA1=A22))),SUMPRODUCT(--ISNUMBER(rngCFA1)*(INDEX(budA1BP3,0,1))*(INDEX(budA1SF,0,1)="Salary")*(rngCFA1=A22)),0) -> 0 | N22: =IF(ISNUMBER(SUMPRODUCT(--ISNUMBER(rngCFA1)*(INDEX(budA1BP4,0,1))*(INDEX(budA1SF,0,1)="Salary")*(rngCFA1=A22))),SUMPRODUCT(--ISNUMBER(rngCFA1)*(INDEX(budA1BP4,0,1))*(INDEX(budA1SF,0,1)="Salary")*(rngCFA1=A22)),0) -> 0 | Q22: =IF(ISNUMBER(SUMPRODUCT(--ISNUMBER(rngCFA1)*(INDEX(budA1BP5,0,1))*(INDEX(budA1SF,0,1)="Salary")*(rngCFA1=A22))),SUMPRODUCT(--ISNUMBER(rngCFA1)*(INDEX(budA1BP5,0,1))*(INDEX(budA1SF,0,1)="Salary")*(rngCFA1=A22)),0) -> 0 | T22: =IF(ISNUMBER(SUMPRODUCT(--ISNUMBER(rngCFA1)*(INDEX(budA1BP6,0,1))*(INDEX(budA1SF,0,1)="Salary")*(rngCFA1=A22))),SUMPRODUCT(--ISNUMBER(rngCFA1)*(INDEX(budA1BP6,0,1))*(INDEX(budA1SF,0,1)="Salary")*(rngCFA1=A22)),0) -> 0 | W22: =IF(ISNUMBER(SUMPRODUCT(--ISNUMBER(rngCFA1)*(INDEX(budA1BP7,0,1))*(INDEX(budA1SF,0,1)="Salary")*(rngCFA1=A22))),SUMPRODUCT(--ISNUMBER(rngCFA1)*(INDEX(budA1BP7,0,1))*(INDEX(budA1SF,0,1)="Salary")*(rngCFA1=A22)),0) -> 0 | Z22: =IF(ISNUMBER(SUMPRODUCT(--ISNUMBER(rngCFA1)*(INDEX(budA1BP8,0,1))*(INDEX(budA1SF,0,1)="Salary")*(rngCFA1=A22))),SUMPRODUCT(--ISNUMBER(rngCFA1)*(INDEX(budA1BP8,0,1))*(INDEX(budA1SF,0,1)="Salary")*(rngCFA1=A22)),0) -> 0 | AC22: =IF(ISNUMBER(SUMPRODUCT(--ISNUMBER(rngCFA1)*(INDEX(budA1BP9,0,1))*(INDEX(budA1SF,0,1)="Salary")*(rngCFA1=A22))),SUMPRODUCT(--ISNUMBER(rngCFA1)*(INDEX(budA1BP9,0,1))*(INDEX(budA1SF,0,1)="Salary")*(rngCFA1=A22)),0) -> 0 | AF22: =IF(ISNUMBER(SUMPRODUCT(--ISNUMBER(rngCFA1)*(INDEX(budA1BP10,0,1))*(INDEX(budA1SF,0,1)="Salary")*(rngCFA1=A22))),SUMPRODUCT(--ISNUMBER(rngCFA1)*(INDEX(budA1BP10,0,1))*(INDEX(budA1SF,0,1)="Salary")*(rngCFA1=A22)),0) -> 0 | AI22: 0
A23: =_xlfn.XLOOKUP(B23,MTDC[Description],MTDC[VALUE],"N/A",0) -> 50090 | B23: S&W Student Employment | D23: =IF(AND(B23="Make a Selection",OR(sFABC=1,sFABC=2,sFABC=3)),"",IF(sFABC=2,"Included",IF(sFABC=3,"Custom F&A Amt",IF(_xlfn.XLOOKUP(B23,MTDC[Description],MTDC[Include in MTDC],"N/A",0)="MTDC","Included","Excluded")))) -> Included | E23: =IF(ISNUMBER(SUMPRODUCT(--ISNUMBER(rngCFA1)*(INDEX(budA1BP1,0,1))*(INDEX(budA1SF,0,1)="Salary")*(rngCFA1=A23))),SUMPRODUCT(--ISNUMBER(rngCFA1)*(INDEX(budA1BP1,0,1))*(INDEX(budA1SF,0,1)="Salary")*(rngCFA1=A23)),0) -> 0 | H23: =IF(ISNUMBER(SUMPRODUCT(--ISNUMBER(rngCFA1)*(INDEX(budA1BP2,0,1))*(INDEX(budA1SF,0,1)="Salary")*(rngCFA1=A23))),SUMPRODUCT(--ISNUMBER(rngCFA1)*(INDEX(budA1BP2,0,1))*(INDEX(budA1SF,0,1)="Salary")*(rngCFA1=A23)),0) -> 0 | K23: =IF(ISNUMBER(SUMPRODUCT(--ISNUMBER(rngCFA1)*(INDEX(budA1BP3,0,1))*(INDEX(budA1SF,0,1)="Salary")*(rngCFA1=A23))),SUMPRODUCT(--ISNUMBER(rngCFA1)*(INDEX(budA1BP3,0,1))*(INDEX(budA1SF,0,1)="Salary")*(rngCFA1=A23)),0) -> 0 | N23: =IF(ISNUMBER(SUMPRODUCT(--ISNUMBER(rngCFA1)*(INDEX(budA1BP4,0,1))*(INDEX(budA1SF,0,1)="Salary")*(rngCFA1=A23))),SUMPRODUCT(--ISNUMBER(rngCFA1)*(INDEX(budA1BP4,0,1))*(INDEX(budA1SF,0,1)="Salary")*(rngCFA1=A23)),0) -> 0 | Q23: =IF(ISNUMBER(SUMPRODUCT(--ISNUMBER(rngCFA1)*(INDEX(budA1BP5,0,1))*(INDEX(budA1SF,0,1)="Salary")*(rngCFA1=A23))),SUMPRODUCT(--ISNUMBER(rngCFA1)*(INDEX(budA1BP5,0,1))*(INDEX(budA1SF,0,1)="Salary")*(rngCFA1=A23)),0) -> 0 | T23: =IF(ISNUMBER(SUMPRODUCT(--ISNUMBER(rngCFA1)*(INDEX(budA1BP6,0,1))*(INDEX(budA1SF,0,1)="Salary")*(rngCFA1=A23))),SUMPRODUCT(--ISNUMBER(rngCFA1)*(INDEX(budA1BP6,0,1))*(INDEX(budA1SF,0,1)="Salary")*(rngCFA1=A23)),0) -> 0 | W23: =IF(ISNUMBER(SUMPRODUCT(--ISNUMBER(rngCFA1)*(INDEX(budA1BP7,0,1))*(INDEX(budA1SF,0,1)="Salary")*(rngCFA1=A23))),SUMPRODUCT(--ISNUMBER(rngCFA1)*(INDEX(budA1BP7,0,1))*(INDEX(budA1SF,0,1)="Salary")*(rngCFA1=A23)),0) -> 0 | Z23: =IF(ISNUMBER(SUMPRODUCT(--ISNUMBER(rngCFA1)*(INDEX(budA1BP8,0,1))*(INDEX(budA1SF,0,1)="Salary")*(rngCFA1=A23))),SUMPRODUCT(--ISNUMBER(rngCFA1)*(INDEX(budA1BP8,0,1))*(INDEX(budA1SF,0,1)="Salary")*(rngCFA1=A23)),0) -> 0 | AC23: =IF(ISNUMBER(SUMPRODUCT(--ISNUMBER(rngCFA1)*(INDEX(budA1BP9,0,1))*(INDEX(budA1SF,0,1)="Salary")*(rngCFA1=A23))),SUMPRODUCT(--ISNUMBER(rngCFA1)*(INDEX(budA1BP9,0,1))*(INDEX(budA1SF,0,1)="Salary")*(rngCFA1=A23)),0) -> 0 | AF23: =IF(ISNUMBER(SUMPRODUCT(--ISNUMBER(rngCFA1)*(INDEX(budA1BP10,0,1))*(INDEX(budA1SF,0,1)="Salary")*(rngCFA1=A23))),SUMPRODUCT(--ISNUMBER(rngCFA1)*(INDEX(budA1BP10,0,1))*(INDEX(budA1SF,0,1)="Salary")*(rngCFA1=A23)),0) -> 0 | AI23: 0
A24: =_xlfn.XLOOKUP(B24,MTDC[Description],MTDC[VALUE],"N/A",0) -> 50100 | B24: S&W Contracted | D24: =IF(AND(B24="Make a Selection",OR(sFABC=1,sFABC=2,sFABC=3)),"",IF(sFABC=2,"Included",IF(sFABC=3,"Custom F&A Amt",IF(_xlfn.XLOOKUP(B24,MTDC[Description],MTDC[Include in MTDC],"N/A",0)="MTDC","Included","Excluded")))) -> Included | E24: =IF(ISNUMBER(SUMPRODUCT(--ISNUMBER(rngCFA1)*(INDEX(budA1BP1,0,1))*(INDEX(budA1SF,0,1)="Salary")*(rngCFA1=A24))),SUMPRODUCT(--ISNUMBER(rngCFA1)*(INDEX(budA1BP1,0,1))*(INDEX(budA1SF,0,1)="Salary")*(rngCFA1=A24)),0) -> 0 | H24: =IF(ISNUMBER(SUMPRODUCT(--ISNUMBER(rngCFA1)*(INDEX(budA1BP2,0,1))*(INDEX(budA1SF,0,1)="Salary")*(rngCFA1=A24))),SUMPRODUCT(--ISNUMBER(rngCFA1)*(INDEX(budA1BP2,0,1))*(INDEX(budA1SF,0,1)="Salary")*(rngCFA1=A24)),0) -> 0 | K24: =IF(ISNUMBER(SUMPRODUCT(--ISNUMBER(rngCFA1)*(INDEX(budA1BP3,0,1))*(INDEX(budA1SF,0,1)="Salary")*(rngCFA1=A24))),SUMPRODUCT(--ISNUMBER(rngCFA1)*(INDEX(budA1BP3,0,1))*(INDEX(budA1SF,0,1)="Salary")*(rngCFA1=A24)),0) -> 0 | N24: =IF(ISNUMBER(SUMPRODUCT(--ISNUMBER(rngCFA1)*(INDEX(budA1BP4,0,1))*(INDEX(budA1SF,0,1)="Salary")*(rngCFA1=A24))),SUMPRODUCT(--ISNUMBER(rngCFA1)*(INDEX(budA1BP4,0,1))*(INDEX(budA1SF,0,1)="Salary")*(rngCFA1=A24)),0) -> 0 | Q24: =IF(ISNUMBER(SUMPRODUCT(--ISNUMBER(rngCFA1)*(INDEX(budA1BP5,0,1))*(INDEX(budA1SF,0,1)="Salary")*(rngCFA1=A24))),SUMPRODUCT(--ISNUMBER(rngCFA1)*(INDEX(budA1BP5,0,1))*(INDEX(budA1SF,0,1)="Salary")*(rngCFA1=A24)),0) -> 0 | T24: =IF(ISNUMBER(SUMPRODUCT(--ISNUMBER(rngCFA1)*(INDEX(budA1BP6,0,1))*(INDEX(budA1SF,0,1)="Salary")*(rngCFA1=A24))),SUMPRODUCT(--ISNUMBER(rngCFA1)*(INDEX(budA1BP6,0,1))*(INDEX(budA1SF,0,1)="Salary")*(rngCFA1=A24)),0) -> 0 | W24: =IF(ISNUMBER(SUMPRODUCT(--ISNUMBER(rngCFA1)*(INDEX(budA1BP7,0,1))*(INDEX(budA1SF,0,1)="Salary")*(rngCFA1=A24))),SUMPRODUCT(--ISNUMBER(rngCFA1)*(INDEX(budA1BP7,0,1))*(INDEX(budA1SF,0,1)="Salary")*(rngCFA1=A24)),0) -> 0 | Z24: =IF(ISNUMBER(SUMPRODUCT(--ISNUMBER(rngCFA1)*(INDEX(budA1BP8,0,1))*(INDEX(budA1SF,0,1)="Salary")*(rngCFA1=A24))),SUMPRODUCT(--ISNUMBER(rngCFA1)*(INDEX(budA1BP8,0,1))*(INDEX(budA1SF,0,1)="Salary")*(rngCFA1=A24)),0) -> 0 | AC24: =IF(ISNUMBER(SUMPRODUCT(--ISNUMBER(rngCFA1)*(INDEX(budA1BP9,0,1))*(INDEX(budA1SF,0,1)="Salary")*(rngCFA1=A24))),SUMPRODUCT(--ISNUMBER(rngCFA1)*(INDEX(budA1BP9,0,1))*(INDEX(budA1SF,0,1)="Salary")*(rngCFA1=A24)),0) -> 0 | AF24: =IF(ISNUMBER(SUMPRODUCT(--ISNUMBER(rngCFA1)*(INDEX(budA1BP10,0,1))*(INDEX(budA1SF,0,1)="Salary")*(rngCFA1=A24))),SUMPRODUCT(--ISNUMBER(rngCFA1)*(INDEX(budA1BP10,0,1))*(INDEX(budA1SF,0,1)="Salary")*(rngCFA1=A24)),0) -> 0 | AI24: 0
A25: =_xlfn.XLOOKUP(B25,MTDC[Description],MTDC[VALUE],"N/A",0) -> 50110 | B25: Student Aid Student Researcher Stipend | D25: =IF(AND(B25="Make a Selection",OR(sFABC=1,sFABC=2,sFABC=3)),"",IF(sFABC=2,"Included",IF(sFABC=3,"Custom F&A Amt",IF(_xlfn.XLOOKUP(B25,MTDC[Description],MTDC[Include in MTDC],"N/A",0)="MTDC","Included","Excluded")))) -> Included | E25: =IF(ISNUMBER(SUMPRODUCT(--ISNUMBER(rngCFA1)*(INDEX(budA1BP1,0,1))*(INDEX(budA1SF,0,1)="Salary")*(rngCFA1=A25))),SUMPRODUCT(--ISNUMBER(rngCFA1)*(INDEX(budA1BP1,0,1))*(INDEX(budA1SF,0,1)="Salary")*(rngCFA1=A25)),0) -> 0 | H25: =IF(ISNUMBER(SUMPRODUCT(--ISNUMBER(rngCFA1)*(INDEX(budA1BP2,0,1))*(INDEX(budA1SF,0,1)="Salary")*(rngCFA1=A25))),SUMPRODUCT(--ISNUMBER(rngCFA1)*(INDEX(budA1BP2,0,1))*(INDEX(budA1SF,0,1)="Salary")*(rngCFA1=A25)),0) -> 0 | K25: =IF(ISNUMBER(SUMPRODUCT(--ISNUMBER(rngCFA1)*(INDEX(budA1BP3,0,1))*(INDEX(budA1SF,0,1)="Salary")*(rngCFA1=A25))),SUMPRODUCT(--ISNUMBER(rngCFA1)*(INDEX(budA1BP3,0,1))*(INDEX(budA1SF,0,1)="Salary")*(rngCFA1=A25)),0) -> 0 | N25: =IF(ISNUMBER(SUMPRODUCT(--ISNUMBER(rngCFA1)*(INDEX(budA1BP4,0,1))*(INDEX(budA1SF,0,1)="Salary")*(rngCFA1=A25))),SUMPRODUCT(--ISNUMBER(rngCFA1)*(INDEX(budA1BP4,0,1))*(INDEX(budA1SF,0,1)="Salary")*(rngCFA1=A25)),0) -> 0 | Q25: =IF(ISNUMBER(SUMPRODUCT(--ISNUMBER(rngCFA1)*(INDEX(budA1BP5,0,1))*(INDEX(budA1SF,0,1)="Salary")*(rngCFA1=A25))),SUMPRODUCT(--ISNUMBER(rngCFA1)*(INDEX(budA1BP5,0,1))*(INDEX(budA1SF,0,1)="Salary")*(rngCFA1=A25)),0) -> 0 | T25: =IF(ISNUMBER(SUMPRODUCT(--ISNUMBER(rngCFA1)*(INDEX(budA1BP6,0,1))*(INDEX(budA1SF,0,1)="Salary")*(rngCFA1=A25))),SUMPRODUCT(--ISNUMBER(rngCFA1)*(INDEX(budA1BP6,0,1))*(INDEX(budA1SF,0,1)="Salary")*(rngCFA1=A25)),0) -> 0 | W25: =IF(ISNUMBER(SUMPRODUCT(--ISNUMBER(rngCFA1)*(INDEX(budA1BP7,0,1))*(INDEX(budA1SF,0,1)="Salary")*(rngCFA1=A25))),SUMPRODUCT(--ISNUMBER(rngCFA1)*(INDEX(budA1BP7,0,1))*(INDEX(budA1SF,0,1)="Salary")*(rngCFA1=A25)),0) -> 0 | Z25: =IF(ISNUMBER(SUMPRODUCT(--ISNUMBER(rngCFA1)*(INDEX(budA1BP8,0,1))*(INDEX(budA1SF,0,1)="Salary")*(rngCFA1=A25))),SUMPRODUCT(--ISNUMBER(rngCFA1)*(INDEX(budA1BP8,0,1))*(INDEX(budA1SF,0,1)="Salary")*(rngCFA1=A25)),0) -> 0 | AC25: =IF(ISNUMBER(SUMPRODUCT(--ISNUMBER(rngCFA1)*(INDEX(budA1BP9,0,1))*(INDEX(budA1SF,0,1)="Salary")*(rngCFA1=A25))),SUMPRODUCT(--ISNUMBER(rngCFA1)*(INDEX(budA1BP9,0,1))*(INDEX(budA1SF,0,1)="Salary")*(rngCFA1=A25)),0) -> 0 | AF25: =IF(ISNUMBER(SUMPRODUCT(--ISNUMBER(rngCFA1)*(INDEX(budA1BP10,0,1))*(INDEX(budA1SF,0,1)="Salary")*(rngCFA1=A25))),SUMPRODUCT(--ISNUMBER(rngCFA1)*(INDEX(budA1BP10,0,1))*(INDEX(budA1SF,0,1)="Salary")*(rngCFA1=A25)),0) -> 0 | AI25: 0
A26: =_xlfn.XLOOKUP(B26,MTDC[Description],MTDC[VALUE],"N/A",0) -> 50115 | B26: Student Aid Pre & Post Fellowship | D26: =IF(AND(B26="Make a Selection",OR(sFABC=1,sFABC=2,sFABC=3)),"",IF(sFABC=2,"Included",IF(sFABC=3,"Custom F&A Amt",IF(_xlfn.XLOOKUP(B26,MTDC[Description],MTDC[Include in MTDC],"N/A",0)="MTDC","Included","Excluded")))) -> Included | E26: =IF(ISNUMBER(SUMPRODUCT(--ISNUMBER(rngCFA1)*(INDEX(budA1BP1,0,1))*(INDEX(budA1SF,0,1)="Salary")*(rngCFA1=A26))),SUMPRODUCT(--ISNUMBER(rngCFA1)*(INDEX(budA1BP1,0,1))*(INDEX(budA1SF,0,1)="Salary")*(rngCFA1=A26)),0) -> 0 | H26: =IF(ISNUMBER(SUMPRODUCT(--ISNUMBER(rngCFA1)*(INDEX(budA1BP2,0,1))*(INDEX(budA1SF,0,1)="Salary")*(rngCFA1=A26))),SUMPRODUCT(--ISNUMBER(rngCFA1)*(INDEX(budA1BP2,0,1))*(INDEX(budA1SF,0,1)="Salary")*(rngCFA1=A26)),0) -> 0 | K26: =IF(ISNUMBER(SUMPRODUCT(--ISNUMBER(rngCFA1)*(INDEX(budA1BP3,0,1))*(INDEX(budA1SF,0,1)="Salary")*(rngCFA1=A26))),SUMPRODUCT(--ISNUMBER(rngCFA1)*(INDEX(budA1BP3,0,1))*(INDEX(budA1SF,0,1)="Salary")*(rngCFA1=A26)),0) -> 0 | N26: =IF(ISNUMBER(SUMPRODUCT(--ISNUMBER(rngCFA1)*(INDEX(budA1BP4,0,1))*(INDEX(budA1SF,0,1)="Salary")*(rngCFA1=A26))),SUMPRODUCT(--ISNUMBER(rngCFA1)*(INDEX(budA1BP4,0,1))*(INDEX(budA1SF,0,1)="Salary")*(rngCFA1=A26)),0) -> 0 | Q26: =IF(ISNUMBER(SUMPRODUCT(--ISNUMBER(rngCFA1)*(INDEX(budA1BP5,0,1))*(INDEX(budA1SF,0,1)="Salary")*(rngCFA1=A26))),SUMPRODUCT(--ISNUMBER(rngCFA1)*(INDEX(budA1BP5,0,1))*(INDEX(budA1SF,0,1)="Salary")*(rngCFA1=A26)),0) -> 0 | T26: =IF(ISNUMBER(SUMPRODUCT(--ISNUMBER(rngCFA1)*(INDEX(budA1BP6,0,1))*(INDEX(budA1SF,0,1)="Salary")*(rngCFA1=A26))),SUMPRODUCT(--ISNUMBER(rngCFA1)*(INDEX(budA1BP6,0,1))*(INDEX(budA1SF,0,1)="Salary")*(rngCFA1=A26)),0) -> 0 | W26: =IF(ISNUMBER(SUMPRODUCT(--ISNUMBER(rngCFA1)*(INDEX(budA1BP7,0,1))*(INDEX(budA1SF,0,1)="Salary")*(rngCFA1=A26))),SUMPRODUCT(--ISNUMBER(rngCFA1)*(INDEX(budA1BP7,0,1))*(INDEX(budA1SF,0,1)="Salary")*(rngCFA1=A26)),0) -> 0 | Z26: =IF(ISNUMBER(SUMPRODUCT(--ISNUMBER(rngCFA1)*(INDEX(budA1BP8,0,1))*(INDEX(budA1SF,0,1)="Salary")*(rngCFA1=A26))),SUMPRODUCT(--ISNUMBER(rngCFA1)*(INDEX(budA1BP8,0,1))*(INDEX(budA1SF,0,1)="Salary")*(rngCFA1=A26)),0) -> 0 | AC26: =IF(ISNUMBER(SUMPRODUCT(--ISNUMBER(rngCFA1)*(INDEX(budA1BP9,0,1))*(INDEX(budA1SF,0,1)="Salary")*(rngCFA1=A26))),SUMPRODUCT(--ISNUMBER(rngCFA1)*(INDEX(budA1BP9,0,1))*(INDEX(budA1SF,0,1)="Salary")*(rngCFA1=A26)),0) -> 0 | AF26: =IF(ISNUMBER(SUMPRODUCT(--ISNUMBER(rngCFA1)*(INDEX(budA1BP10,0,1))*(INDEX(budA1SF,0,1)="Salary")*(rngCFA1=A26))),SUMPRODUCT(--ISNUMBER(rngCFA1)*(INDEX(budA1BP10,0,1))*(INDEX(budA1SF,0,1)="Salary")*(rngCFA1=A26)),0) -> 0 | AI26: 0
A27: =_xlfn.XLOOKUP(B27,MTDC[Description],MTDC[VALUE],"N/A",0) -> 50120 | B27: S&W Hourly Employees | D27: =IF(AND(B27="Make a Selection",OR(sFABC=1,sFABC=2,sFABC=3)),"",IF(sFABC=2,"Included",IF(sFABC=3,"Custom F&A Amt",IF(_xlfn.XLOOKUP(B27,MTDC[Description],MTDC[Include in MTDC],"N/A",0)="MTDC","Included","Excluded")))) -> Included | E27: =IF(ISNUMBER(SUMPRODUCT(--ISNUMBER(rngCFA1)*(INDEX(budA1BP1,0,1))*(INDEX(budA1SF,0,1)="Salary")*(rngCFA1=A27))),SUMPRODUCT(--ISNUMBER(rngCFA1)*(INDEX(budA1BP1,0,1))*(INDEX(budA1SF,0,1)="Salary")*(rngCFA1=A27)),0) -> 0 | H27: =IF(ISNUMBER(SUMPRODUCT(--ISNUMBER(rngCFA1)*(INDEX(budA1BP2,0,1))*(INDEX(budA1SF,0,1)="Salary")*(rngCFA1=A27))),SUMPRODUCT(--ISNUMBER(rngCFA1)*(INDEX(budA1BP2,0,1))*(INDEX(budA1SF,0,1)="Salary")*(rngCFA1=A27)),0) -> 0 | K27: =IF(ISNUMBER(SUMPRODUCT(--ISNUMBER(rngCFA1)*(INDEX(budA1BP3,0,1))*(INDEX(budA1SF,0,1)="Salary")*(rngCFA1=A27))),SUMPRODUCT(--ISNUMBER(rngCFA1)*(INDEX(budA1BP3,0,1))*(INDEX(budA1SF,0,1)="Salary")*(rngCFA1=A27)),0) -> 0 | N27: =IF(ISNUMBER(SUMPRODUCT(--ISNUMBER(rngCFA1)*(INDEX(budA1BP4,0,1))*(INDEX(budA1SF,0,1)="Salary")*(rngCFA1=A27))),SUMPRODUCT(--ISNUMBER(rngCFA1)*(INDEX(budA1BP4,0,1))*(INDEX(budA1SF,0,1)="Salary")*(rngCFA1=A27)),0) -> 0 | Q27: =IF(ISNUMBER(SUMPRODUCT(--ISNUMBER(rngCFA1)*(INDEX(budA1BP5,0,1))*(INDEX(budA1SF,0,1)="Salary")*(rngCFA1=A27))),SUMPRODUCT(--ISNUMBER(rngCFA1)*(INDEX(budA1BP5,0,1))*(INDEX(budA1SF,0,1)="Salary")*(rngCFA1=A27)),0) -> 0 | T27: =IF(ISNUMBER(SUMPRODUCT(--ISNUMBER(rngCFA1)*(INDEX(budA1BP6,0,1))*(INDEX(budA1SF,0,1)="Salary")*(rngCFA1=A27))),SUMPRODUCT(--ISNUMBER(rngCFA1)*(INDEX(budA1BP6,0,1))*(INDEX(budA1SF,0,1)="Salary")*(rngCFA1=A27)),0) -> 0 | W27: =IF(ISNUMBER(SUMPRODUCT(--ISNUMBER(rngCFA1)*(INDEX(budA1BP7,0,1))*(INDEX(budA1SF,0,1)="Salary")*(rngCFA1=A27))),SUMPRODUCT(--ISNUMBER(rngCFA1)*(INDEX(budA1BP7,0,1))*(INDEX(budA1SF,0,1)="Salary")*(rngCFA1=A27)),0) -> 0 | Z27: =IF(ISNUMBER(SUMPRODUCT(--ISNUMBER(rngCFA1)*(INDEX(budA1BP8,0,1))*(INDEX(budA1SF,0,1)="Salary")*(rngCFA1=A27))),SUMPRODUCT(--ISNUMBER(rngCFA1)*(INDEX(budA1BP8,0,1))*(INDEX(budA1SF,0,1)="Salary")*(rngCFA1=A27)),0) -> 0 | AC27: =IF(ISNUMBER(SUMPRODUCT(--ISNUMBER(rngCFA1)*(INDEX(budA1BP9,0,1))*(INDEX(budA1SF,0,1)="Salary")*(rngCFA1=A27))),SUMPRODUCT(--ISNUMBER(rngCFA1)*(INDEX(budA1BP9,0,1))*(INDEX(budA1SF,0,1)="Salary")*(rngCFA1=A27)),0) -> 0 | AF27: =IF(ISNUMBER(SUMPRODUCT(--ISNUMBER(rngCFA1)*(INDEX(budA1BP10,0,1))*(INDEX(budA1SF,0,1)="Salary")*(rngCFA1=A27))),SUMPRODUCT(--ISNUMBER(rngCFA1)*(INDEX(budA1BP10,0,1))*(INDEX(budA1SF,0,1)="Salary")*(rngCFA1=A27)),0) -> 0 | AI27: 0
A28: =_xlfn.XLOOKUP(B28,MTDC[Description],MTDC[VALUE],"N/A",0) -> 51110 | B28: FB Staff Employees | D28: =IF(sFABC=2,"Included",IF(sFABC=3,"Custom F&A Amt",IF(_xlfn.XLOOKUP(B28,MTDC[Description],MTDC[Include in MTDC],"N/A",0)="MTDC","Included","Excluded"))) -> Included | E28: =SUMPRODUCT((INDEX(budA1SF,0,1)="Fringe")*INDEX(budA1BP1,0,1)) -> 0 | H28: =SUMPRODUCT((INDEX(budA1SF,0,1)="Fringe")*INDEX(budA1BP2,0,1)) -> 0 | K28: =SUMPRODUCT((INDEX(budA1SF,0,1)="Fringe")*INDEX(budA1BP3,0,1)) -> 0 | N28: =SUMPRODUCT((INDEX(budA1SF,0,1)="Fringe")*INDEX(budA1BP4,0,1)) -> 0 | Q28: =SUMPRODUCT((INDEX(budA1SF,0,1)="Fringe")*INDEX(budA1BP5,0,1)) -> 0 | T28: =SUMPRODUCT((INDEX(budA1SF,0,1)="Fringe")*INDEX(budA1BP6,0,1)) -> 0 | W28: =SUMPRODUCT((INDEX(budA1SF,0,1)="Fringe")*INDEX(budA1BP7,0,1)) -> 0 | Z28: =SUMPRODUCT((INDEX(budA1SF,0,1)="Fringe")*INDEX(budA1BP8,0,1)) -> 0 | AC28: =SUMPRODUCT((INDEX(budA1SF,0,1)="Fringe")*INDEX(budA1BP9,0,1)) -> 0 | AF28: =SUMPRODUCT((INDEX(budA1SF,0,1)="Fringe")*INDEX(budA1BP10,0,1)) -> 0 | AI28: =SUM(E28:AH28) -> 0
B30: Salary & Wages (Advanced) | E30: =SUM(E14:G27) -> 0 | H30: =SUM(H14:J27) -> 0 | K30: =SUM(K14:M27) -> 0 | N30: =SUM(N14:P27) -> 0 | Q30: =SUM(Q14:S27) -> 0 | T30: =SUM(T14:V27) -> 0 | W30: =SUM(W14:Y27) -> 0 | Z30: =SUM(Z14:AB27) -> 0 | AC30: =SUM(AC14:AE27) -> 0 | AF30: =SUM(AF14:AH27) -> 0 | AI30: =SUM(E30:AH30) -> 0
B31: Fringe (Advanced) | E31: =SUMPRODUCT((INDEX(budA1SF,0,1)="Fringe")*INDEX(budA1BP1,0,1)) -> 0 | H31: =SUMPRODUCT((INDEX(budA1SF,0,1)="Fringe")*INDEX(budA1BP2,0,1)) -> 0 | K31: =SUMPRODUCT((INDEX(budA1SF,0,1)="Fringe")*INDEX(budA1BP3,0,1)) -> 0 | N31: =SUMPRODUCT((INDEX(budA1SF,0,1)="Fringe")*INDEX(budA1BP4,0,1)) -> 0 | Q31: =SUMPRODUCT((INDEX(budA1SF,0,1)="Fringe")*INDEX(budA1BP5,0,1)) -> 0 | T31: =SUMPRODUCT((INDEX(budA1SF,0,1)="Fringe")*INDEX(budA1BP6,0,1)) -> 0 | W31: =SUMPRODUCT((INDEX(budA1SF,0,1)="Fringe")*INDEX(budA1BP7,0,1)) -> 0 | Z31: =SUMPRODUCT((INDEX(budA1SF,0,1)="Fringe")*INDEX(budA1BP8,0,1)) -> 0 | AC31: =SUMPRODUCT((INDEX(budA1SF,0,1)="Fringe")*INDEX(budA1BP9,0,1)) -> 0 | AF31: =SUMPRODUCT((INDEX(budA1SF,0,1)="Fringe")*INDEX(budA1BP10,0,1)) -> 0 | AI31: =SUM(E31:AH31) -> 0
B32: Total Salary & Wages (Advanced) | E32: =SUM(E30:G31) -> 0 | H32: =SUM(H30:J31) -> 0 | K32: =SUM(K30:M31) -> 0 | N32: =SUM(N30:P31) -> 0 | Q32: =SUM(Q30:S31) -> 0 | T32: =SUM(T30:V31) -> 0 | W32: =SUM(W30:Y31) -> 0 | Z32: =SUM(Z30:AB31) -> 0 | AC32: =SUM(AC30:AE31) -> 0 | AF32: =SUM(AF30:AH31) -> 0 | AI32: =SUM(E32:AH32) -> 0
A34: A2. SALARIES & WAGES (BASIC)
A35: =_xlfn.XLOOKUP(B35,MTDC[Description],MTDC[VALUE],"N/A",0) -> N/A | B35: Make a selection | D35: Salary | E35: 0 | H35: 0 | K35: 0 | N35: 0 | Q35: 0 | T35: 0 | W35: 0 | Z35: 0 | AC35: 0 | AF35: 0 | AI35: =SUM(E35:AH35) -> 0
B36: Enter Staff Name | D36: Fringe | E36: =IF(OR(B35="Make a Selection",COUNT(E35,C37,wsBP1,weBP1,wsfyBP1)<5),0,E35*IF(A37="Yes",C37,IF(sFBRC=1,_xlfn.XLOOKUP(bpFY1,rngFFRfy,_xlfn.XLOOKUP(A35,rngFFRc,rngFFR,"N/A",0),"N/A",0),_xlfn.XLOOKUP(bpFY1,rngnFFRfy,_xlfn.XLOOKUP(A35,rngnFFRc,rngnFFR,"N/A",0),"N/A",0)))) -> 0 | H36: =IF(OR(B35="Make a Selection",COUNT(H35,C37,wsBP2,weBP2,wsfyBP2)<5),0,H35*IF(A37="Yes",C37,IF(sFBRC=1,_xlfn.XLOOKUP(bpFY2,rngFFRfy,_xlfn.XLOOKUP(A35,rngFFRc,rngFFR,"N/A",0),"N/A",0),_xlfn.XLOOKUP(bpFY2,rngnFFRfy,_xlfn.XLOOKUP(A35,rngnFFRc,rngnFFR,"N/A",0),"N/A",0)))) -> 0 | K36: =IF(OR(B35="Make a Selection",COUNT(K35,C37,wsBP3,weBP3,wsfyBP3)<5),0,K35*IF(A37="Yes",C37,IF(sFBRC=1,_xlfn.XLOOKUP(bpFY3,rngFFRfy,_xlfn.XLOOKUP(A35,rngFFRc,rngFFR,"N/A",0),"N/A",0),_xlfn.XLOOKUP(bpFY3,rngnFFRfy,_xlfn.XLOOKUP(A35,rngnFFRc,rngnFFR,"N/A",0),"N/A",0)))) -> 0 | N36: =IF(OR(B35="Make a Selection",COUNT(N35,C37,wsBP4,weBP4,wsfyBP4)<5),0,N35*IF(A37="Yes",C37,IF(sFBRC=1,_xlfn.XLOOKUP(bpFY4,rngFFRfy,_xlfn.XLOOKUP(A35,rngFFRc,rngFFR,"N/A",0),"N/A",0),_xlfn.XLOOKUP(bpFY4,rngnFFRfy,_xlfn.XLOOKUP(A35,rngnFFRc,rngnFFR,"N/A",0),"N/A",0)))) -> 0 | Q36: =IF(OR(B35="Make a Selection",COUNT(Q35,C37,wsBP5,weBP5,wsfyBP5)<5),0,Q35*IF(A37="Yes",C37,IF(sFBRC=1,_xlfn.XLOOKUP(bpFY5,rngFFRfy,_xlfn.XLOOKUP(A35,rngFFRc,rngFFR,"N/A",0),"N/A",0),_xlfn.XLOOKUP(bpFY5,rngnFFRfy,_xlfn.XLOOKUP(A35,rngnFFRc,rngnFFR,"N/A",0),"N/A",0)))) -> 0 | T36: =IF(OR(B35="Make a Selection",COUNT(T35,C37,wsBP6,weBP6,wsfyBP6)<5),0,T35*IF(A37="Yes",C37,IF(sFBRC=1,_xlfn.XLOOKUP(bpFY6,rngFFRfy,_xlfn.XLOOKUP(A35,rngFFRc,rngFFR,"N/A",0),"N/A",0),_xlfn.XLOOKUP(bpFY6,rngnFFRfy,_xlfn.XLOOKUP(A35,rngnFFRc,rngnFFR,"N/A",0),"N/A",0)))) -> 0 | W36: =IF(OR(B35="Make a Selection",COUNT(W35,C37,wsBP7,weBP7,wsfyBP7)<5),0,W35*IF(A37="Yes",C37,IF(sFBRC=1,_xlfn.XLOOKUP(bpFY7,rngFFRfy,_xlfn.XLOOKUP(A35,rngFFRc,rngFFR,"N/A",0),"N/A",0),_xlfn.XLOOKUP(bpFY7,rngnFFRfy,_xlfn.XLOOKUP(A35,rngnFFRc,rngnFFR,"N/A",0),"N/A",0)))) -> 0 | Z36: =IF(OR(B35="Make a Selection",COUNT(Z35,C37,wsBP8,weBP8,wsfyBP8)<5),0,Z35*IF(A37="Yes",C37,IF(sFBRC=1,_xlfn.XLOOKUP(bpFY8,rngFFRfy,_xlfn.XLOOKUP(A35,rngFFRc,rngFFR,"N/A",0),"N/A",0),_xlfn.XLOOKUP(bpFY8,rngnFFRfy,_xlfn.XLOOKUP(A35,rngnFFRc,rngnFFR,"N/A",0),"N/A",0)))) -> 0 | AC36: =IF(OR(B35="Make a Selection",COUNT(AC35,C37,wsBP9,weBP9,wsfyBP9)<5),0,AC35*IF(A37="Yes",C37,IF(sFBRC=1,_xlfn.XLOOKUP(bpFY9,rngFFRfy,_xlfn.XLOOKUP(A35,rngFFRc,rngFFR,"N/A",0),"N/A",0),_xlfn.XLOOKUP(bpFY9,rngnFFRfy,_xlfn.XLOOKUP(A35,rngnFFRc,rngnFFR,"N/A",0),"N/A",0)))) -> 0 | AF36: =IF(OR(B35="Make a Selection",COUNT(AF35,C37,wsBP10,weBP10,wsfyBP10)<5),0,AF35*IF(A37="Yes",C37,IF(sFBRC=1,_xlfn.XLOOKUP(bpFY10,rngFFRfy,_xlfn.XLOOKUP(A35,rngFFRc,rngFFR,"N/A",0),"N/A",0),_xlfn.XLOOKUP(bpFY10,rngnFFRfy,_xlfn.XLOOKUP(A35,rngnFFRc,rngnFFR,"N/A",0),"N/A",0)))) -> 0 | AI36: 0
A37: No | B37: Custom Fringe @ | C37: 0 | D37: Subtotal | E37: =IF(ISNUMBER(E35)=FALSE,0,SUM(E35:G36)) -> 0 | H37: =IF(ISNUMBER(H35)=FALSE,0,SUM(H35:J36)) -> 0 | K37: =IF(ISNUMBER(K35)=FALSE,0,SUM(K35:M36)) -> 0 | N37: =IF(ISNUMBER(N35)=FALSE,0,SUM(N35:P36)) -> 0 | Q37: =IF(ISNUMBER(Q35)=FALSE,0,SUM(Q35:S36)) -> 0 | T37: =IF(ISNUMBER(T35)=FALSE,0,SUM(T35:V36)) -> 0 | W37: =IF(ISNUMBER(W35)=FALSE,0,SUM(W35:Y36)) -> 0 | Z37: =IF(ISNUMBER(Z35)=FALSE,0,SUM(Z35:AB36)) -> 0 | AC37: =IF(ISNUMBER(AC35)=FALSE,0,SUM(AC35:AE36)) -> 0 | AF37: =IF(ISNUMBER(AF35)=FALSE,0,SUM(AF35:AH36)) -> 0 | AI37: 0
A39: =_xlfn.XLOOKUP(B39,MTDC[Description],MTDC[VALUE],"N/A",0) -> 50010 | B39: S&W Staff | D39: =IF(AND(B39="Make a Selection",OR(sFABC=1,sFABC=2,sFABC=3)),"",IF(sFABC=2,"Included",IF(sFABC=3,"Custom F&A Amt",IF(_xlfn.XLOOKUP(B39,MTDC[Description],MTDC[Include in MTDC],"N/A",0)="MTDC","Included","Excluded")))) -> Included | E39: =IF(ISNUMBER(SUMPRODUCT(--ISNUMBER(rngCFA2)*(INDEX(budA2BP1,0,1))*(INDEX(budA2SF,0,1)="Salary")*(rngCFA2=A39))),SUMPRODUCT(--ISNUMBER(rngCFA2)*(INDEX(budA2BP1,0,1))*(INDEX(budA2SF,0,1)="Salary")*(rngCFA2=A39)),0) -> 0 | H39: =IF(ISNUMBER(SUMPRODUCT(--ISNUMBER(rngCFA2)*(INDEX(budA2BP2,0,1))*(INDEX(budA2SF,0,1)="Salary")*(rngCFA2=A39))),SUMPRODUCT(--ISNUMBER(rngCFA2)*(INDEX(budA2BP2,0,1))*(INDEX(budA2SF,0,1)="Salary")*(rngCFA2=A39)),0) -> 0 | K39: =IF(ISNUMBER(SUMPRODUCT(--ISNUMBER(rngCFA2)*(INDEX(budA2BP3,0,1))*(INDEX(budA2SF,0,1)="Salary")*(rngCFA2=A39))),SUMPRODUCT(--ISNUMBER(rngCFA2)*(INDEX(budA2BP3,0,1))*(INDEX(budA2SF,0,1)="Salary")*(rngCFA2=A39)),0) -> 0 | N39: =IF(ISNUMBER(SUMPRODUCT(--ISNUMBER(rngCFA2)*(INDEX(budA2BP4,0,1))*(INDEX(budA2SF,0,1)="Salary")*(rngCFA2=A39))),SUMPRODUCT(--ISNUMBER(rngCFA2)*(INDEX(budA2BP4,0,1))*(INDEX(budA2SF,0,1)="Salary")*(rngCFA2=A39)),0) -> 0 | Q39: =IF(ISNUMBER(SUMPRODUCT(--ISNUMBER(rngCFA2)*(INDEX(budA2BP5,0,1))*(INDEX(budA2SF,0,1)="Salary")*(rngCFA2=A39))),SUMPRODUCT(--ISNUMBER(rngCFA2)*(INDEX(budA2BP5,0,1))*(INDEX(budA2SF,0,1)="Salary")*(rngCFA2=A39)),0) -> 0 | T39: =IF(ISNUMBER(SUMPRODUCT(--ISNUMBER(rngCFA2)*(INDEX(budA2BP6,0,1))*(INDEX(budA2SF,0,1)="Salary")*(rngCFA2=A39))),SUMPRODUCT(--ISNUMBER(rngCFA2)*(INDEX(budA2BP6,0,1))*(INDEX(budA2SF,0,1)="Salary")*(rngCFA2=A39)),0) -> 0 | W39: =IF(ISNUMBER(SUMPRODUCT(--ISNUMBER(rngCFA2)*(INDEX(budA2BP7,0,1))*(INDEX(budA2SF,0,1)="Salary")*(rngCFA2=A39))),SUMPRODUCT(--ISNUMBER(rngCFA2)*(INDEX(budA2BP7,0,1))*(INDEX(budA2SF,0,1)="Salary")*(rngCFA2=A39)),0) -> 0 | Z39: =IF(ISNUMBER(SUMPRODUCT(--ISNUMBER(rngCFA2)*(INDEX(budA2BP8,0,1))*(INDEX(budA2SF,0,1)="Salary")*(rngCFA2=A39))),SUMPRODUCT(--ISNUMBER(rngCFA2)*(INDEX(budA2BP8,0,1))*(INDEX(budA2SF,0,1)="Salary")*(rngCFA2=A39)),0) -> 0 | AC39: =IF(ISNUMBER(SUMPRODUCT(--ISNUMBER(rngCFA2)*(INDEX(budA2BP9,0,1))*(INDEX(budA2SF,0,1)="Salary")*(rngCFA2=A39))),SUMPRODUCT(--ISNUMBER(rngCFA2)*(INDEX(budA2BP9,0,1))*(INDEX(budA2SF,0,1)="Salary")*(rngCFA2=A39)),0) -> 0 | AF39: =IF(ISNUMBER(SUMPRODUCT(--ISNUMBER(rngCFA2)*(INDEX(budA2BP10,0,1))*(INDEX(budA2SF,0,1)="Salary")*(rngCFA2=A39))),SUMPRODUCT(--ISNUMBER(rngCFA2)*(INDEX(budA2BP10,0,1))*(INDEX(budA2SF,0,1)="Salary")*(rngCFA2=A39)),0) -> 0 | AI39: =SUM(E39:AH39) -> 0
A40: =_xlfn.XLOOKUP(B40,MTDC[Description],MTDC[VALUE],"N/A",0) -> 50020 | B40: S&W Tenured Faculty | D40: =IF(AND(B40="Make a Selection",OR(sFABC=1,sFABC=2,sFABC=3)),"",IF(sFABC=2,"Included",IF(sFABC=3,"Custom F&A Amt",IF(_xlfn.XLOOKUP(B40,MTDC[Description],MTDC[Include in MTDC],"N/A",0)="MTDC","Included","Excluded")))) -> Included | E40: =IF(ISNUMBER(SUMPRODUCT(--ISNUMBER(rngCFA2)*(INDEX(budA2BP1,0,1))*(INDEX(budA2SF,0,1)="Salary")*(rngCFA2=A40))),SUMPRODUCT(--ISNUMBER(rngCFA2)*(INDEX(budA2BP1,0,1))*(INDEX(budA2SF,0,1)="Salary")*(rngCFA2=A40)),0) -> 0 | H40: =IF(ISNUMBER(SUMPRODUCT(--ISNUMBER(rngCFA2)*(INDEX(budA2BP2,0,1))*(INDEX(budA2SF,0,1)="Salary")*(rngCFA2=A40))),SUMPRODUCT(--ISNUMBER(rngCFA2)*(INDEX(budA2BP2,0,1))*(INDEX(budA2SF,0,1)="Salary")*(rngCFA2=A40)),0) -> 0 | K40: =IF(ISNUMBER(SUMPRODUCT(--ISNUMBER(rngCFA2)*(INDEX(budA2BP3,0,1))*(INDEX(budA2SF,0,1)="Salary")*(rngCFA2=A40))),SUMPRODUCT(--ISNUMBER(rngCFA2)*(INDEX(budA2BP3,0,1))*(INDEX(budA2SF,0,1)="Salary")*(rngCFA2=A40)),0) -> 0 | N40: =IF(ISNUMBER(SUMPRODUCT(--ISNUMBER(rngCFA2)*(INDEX(budA2BP4,0,1))*(INDEX(budA2SF,0,1)="Salary")*(rngCFA2=A40))),SUMPRODUCT(--ISNUMBER(rngCFA2)*(INDEX(budA2BP4,0,1))*(INDEX(budA2SF,0,1)="Salary")*(rngCFA2=A40)),0) -> 0 | Q40: =IF(ISNUMBER(SUMPRODUCT(--ISNUMBER(rngCFA2)*(INDEX(budA2BP5,0,1))*(INDEX(budA2SF,0,1)="Salary")*(rngCFA2=A40))),SUMPRODUCT(--ISNUMBER(rngCFA2)*(INDEX(budA2BP5,0,1))*(INDEX(budA2SF,0,1)="Salary")*(rngCFA2=A40)),0) -> 0 | T40: =IF(ISNUMBER(SUMPRODUCT(--ISNUMBER(rngCFA2)*(INDEX(budA2BP6,0,1))*(INDEX(budA2SF,0,1)="Salary")*(rngCFA2=A40))),SUMPRODUCT(--ISNUMBER(rngCFA2)*(INDEX(budA2BP6,0,1))*(INDEX(budA2SF,0,1)="Salary")*(rngCFA2=A40)),0) -> 0 | W40: =IF(ISNUMBER(SUMPRODUCT(--ISNUMBER(rngCFA2)*(INDEX(budA2BP7,0,1))*(INDEX(budA2SF,0,1)="Salary")*(rngCFA2=A40))),SUMPRODUCT(--ISNUMBER(rngCFA2)*(INDEX(budA2BP7,0,1))*(INDEX(budA2SF,0,1)="Salary")*(rngCFA2=A40)),0) -> 0 | Z40: =IF(ISNUMBER(SUMPRODUCT(--ISNUMBER(rngCFA2)*(INDEX(budA2BP8,0,1))*(INDEX(budA2SF,0,1)="Salary")*(rngCFA2=A40))),SUMPRODUCT(--ISNUMBER(rngCFA2)*(INDEX(budA2BP8,0,1))*(INDEX(budA2SF,0,1)="Salary")*(rngCFA2=A40)),0) -> 0 | AC40: =IF(ISNUMBER(SUMPRODUCT(--ISNUMBER(rngCFA2)*(INDEX(budA2BP9,0,1))*(INDEX(budA2SF,0,1)="Salary")*(rngCFA2=A40))),SUMPRODUCT(--ISNUMBER(rngCFA2)*(INDEX(budA2BP9,0,1))*(INDEX(budA2SF,0,1)="Salary")*(rngCFA2=A40)),0) -> 0 | AF40: =IF(ISNUMBER(SUMPRODUCT(--ISNUMBER(rngCFA2)*(INDEX(budA2BP10,0,1))*(INDEX(budA2SF,0,1)="Salary")*(rngCFA2=A40))),SUMPRODUCT(--ISNUMBER(rngCFA2)*(INDEX(budA2BP10,0,1))*(INDEX(budA2SF,0,1)="Salary")*(rngCFA2=A40)),0) -> 0 | AI40: =SUM(E40:AH40) -> 0
A41: =_xlfn.XLOOKUP(B41,MTDC[Description],MTDC[VALUE],"N/A",0) -> 50030 | B41: S&W Tenure Track Faculty | D41: =IF(AND(B41="Make a Selection",OR(sFABC=1,sFABC=2,sFABC=3)),"",IF(sFABC=2,"Included",IF(sFABC=3,"Custom F&A Amt",IF(_xlfn.XLOOKUP(B41,MTDC[Description],MTDC[Include in MTDC],"N/A",0)="MTDC","Included","Excluded")))) -> Included | E41: =IF(ISNUMBER(SUMPRODUCT(--ISNUMBER(rngCFA2)*(INDEX(budA2BP1,0,1))*(INDEX(budA2SF,0,1)="Salary")*(rngCFA2=A41))),SUMPRODUCT(--ISNUMBER(rngCFA2)*(INDEX(budA2BP1,0,1))*(INDEX(budA2SF,0,1)="Salary")*(rngCFA2=A41)),0) -> 0 | H41: =IF(ISNUMBER(SUMPRODUCT(--ISNUMBER(rngCFA2)*(INDEX(budA2BP2,0,1))*(INDEX(budA2SF,0,1)="Salary")*(rngCFA2=A41))),SUMPRODUCT(--ISNUMBER(rngCFA2)*(INDEX(budA2BP2,0,1))*(INDEX(budA2SF,0,1)="Salary")*(rngCFA2=A41)),0) -> 0 | K41: =IF(ISNUMBER(SUMPRODUCT(--ISNUMBER(rngCFA2)*(INDEX(budA2BP3,0,1))*(INDEX(budA2SF,0,1)="Salary")*(rngCFA2=A41))),SUMPRODUCT(--ISNUMBER(rngCFA2)*(INDEX(budA2BP3,0,1))*(INDEX(budA2SF,0,1)="Salary")*(rngCFA2=A41)),0) -> 0 | N41: =IF(ISNUMBER(SUMPRODUCT(--ISNUMBER(rngCFA2)*(INDEX(budA2BP4,0,1))*(INDEX(budA2SF,0,1)="Salary")*(rngCFA2=A41))),SUMPRODUCT(--ISNUMBER(rngCFA2)*(INDEX(budA2BP4,0,1))*(INDEX(budA2SF,0,1)="Salary")*(rngCFA2=A41)),0) -> 0 | Q41: =IF(ISNUMBER(SUMPRODUCT(--ISNUMBER(rngCFA2)*(INDEX(budA2BP5,0,1))*(INDEX(budA2SF,0,1)="Salary")*(rngCFA2=A41))),SUMPRODUCT(--ISNUMBER(rngCFA2)*(INDEX(budA2BP5,0,1))*(INDEX(budA2SF,0,1)="Salary")*(rngCFA2=A41)),0) -> 0 | T41: =IF(ISNUMBER(SUMPRODUCT(--ISNUMBER(rngCFA2)*(INDEX(budA2BP6,0,1))*(INDEX(budA2SF,0,1)="Salary")*(rngCFA2=A41))),SUMPRODUCT(--ISNUMBER(rngCFA2)*(INDEX(budA2BP6,0,1))*(INDEX(budA2SF,0,1)="Salary")*(rngCFA2=A41)),0) -> 0 | W41: =IF(ISNUMBER(SUMPRODUCT(--ISNUMBER(rngCFA2)*(INDEX(budA2BP7,0,1))*(INDEX(budA2SF,0,1)="Salary")*(rngCFA2=A41))),SUMPRODUCT(--ISNUMBER(rngCFA2)*(INDEX(budA2BP7,0,1))*(INDEX(budA2SF,0,1)="Salary")*(rngCFA2=A41)),0) -> 0 | Z41: =IF(ISNUMBER(SUMPRODUCT(--ISNUMBER(rngCFA2)*(INDEX(budA2BP8,0,1))*(INDEX(budA2SF,0,1)="Salary")*(rngCFA2=A41))),SUMPRODUCT(--ISNUMBER(rngCFA2)*(INDEX(budA2BP8,0,1))*(INDEX(budA2SF,0,1)="Salary")*(rngCFA2=A41)),0) -> 0 | AC41: =IF(ISNUMBER(SUMPRODUCT(--ISNUMBER(rngCFA2)*(INDEX(budA2BP9,0,1))*(INDEX(budA2SF,0,1)="Salary")*(rngCFA2=A41))),SUMPRODUCT(--ISNUMBER(rngCFA2)*(INDEX(budA2BP9,0,1))*(INDEX(budA2SF,0,1)="Salary")*(rngCFA2=A41)),0) -> 0 | AF41: =IF(ISNUMBER(SUMPRODUCT(--ISNUMBER(rngCFA2)*(INDEX(budA2BP10,0,1))*(INDEX(budA2SF,0,1)="Salary")*(rngCFA2=A41))),SUMPRODUCT(--ISNUMBER(rngCFA2)*(INDEX(budA2BP10,0,1))*(INDEX(budA2SF,0,1)="Salary")*(rngCFA2=A41)),0) -> 0 | AI41: 0
A42: =_xlfn.XLOOKUP(B42,MTDC[Description],MTDC[VALUE],"N/A",0) -> 50040 | B42: S&W NonTenured Faculty | D42: =IF(AND(B42="Make a Selection",OR(sFABC=1,sFABC=2,sFABC=3)),"",IF(sFABC=2,"Included",IF(sFABC=3,"Custom F&A Amt",IF(_xlfn.XLOOKUP(B42,MTDC[Description],MTDC[Include in MTDC],"N/A",0)="MTDC","Included","Excluded")))) -> Included | E42: =IF(ISNUMBER(SUMPRODUCT(--ISNUMBER(rngCFA2)*(INDEX(budA2BP1,0,1))*(INDEX(budA2SF,0,1)="Salary")*(rngCFA2=A42))),SUMPRODUCT(--ISNUMBER(rngCFA2)*(INDEX(budA2BP1,0,1))*(INDEX(budA2SF,0,1)="Salary")*(rngCFA2=A42)),0) -> 0 | H42: =IF(ISNUMBER(SUMPRODUCT(--ISNUMBER(rngCFA2)*(INDEX(budA2BP2,0,1))*(INDEX(budA2SF,0,1)="Salary")*(rngCFA2=A42))),SUMPRODUCT(--ISNUMBER(rngCFA2)*(INDEX(budA2BP2,0,1))*(INDEX(budA2SF,0,1)="Salary")*(rngCFA2=A42)),0) -> 0 | K42: =IF(ISNUMBER(SUMPRODUCT(--ISNUMBER(rngCFA2)*(INDEX(budA2BP3,0,1))*(INDEX(budA2SF,0,1)="Salary")*(rngCFA2=A42))),SUMPRODUCT(--ISNUMBER(rngCFA2)*(INDEX(budA2BP3,0,1))*(INDEX(budA2SF,0,1)="Salary")*(rngCFA2=A42)),0) -> 0 | N42: =IF(ISNUMBER(SUMPRODUCT(--ISNUMBER(rngCFA2)*(INDEX(budA2BP4,0,1))*(INDEX(budA2SF,0,1)="Salary")*(rngCFA2=A42))),SUMPRODUCT(--ISNUMBER(rngCFA2)*(INDEX(budA2BP4,0,1))*(INDEX(budA2SF,0,1)="Salary")*(rngCFA2=A42)),0) -> 0 | Q42: =IF(ISNUMBER(SUMPRODUCT(--ISNUMBER(rngCFA2)*(INDEX(budA2BP5,0,1))*(INDEX(budA2SF,0,1)="Salary")*(rngCFA2=A42))),SUMPRODUCT(--ISNUMBER(rngCFA2)*(INDEX(budA2BP5,0,1))*(INDEX(budA2SF,0,1)="Salary")*(rngCFA2=A42)),0) -> 0 | T42: =IF(ISNUMBER(SUMPRODUCT(--ISNUMBER(rngCFA2)*(INDEX(budA2BP6,0,1))*(INDEX(budA2SF,0,1)="Salary")*(rngCFA2=A42))),SUMPRODUCT(--ISNUMBER(rngCFA2)*(INDEX(budA2BP6,0,1))*(INDEX(budA2SF,0,1)="Salary")*(rngCFA2=A42)),0) -> 0 | W42: =IF(ISNUMBER(SUMPRODUCT(--ISNUMBER(rngCFA2)*(INDEX(budA2BP7,0,1))*(INDEX(budA2SF,0,1)="Salary")*(rngCFA2=A42))),SUMPRODUCT(--ISNUMBER(rngCFA2)*(INDEX(budA2BP7,0,1))*(INDEX(budA2SF,0,1)="Salary")*(rngCFA2=A42)),0) -> 0 | Z42: =IF(ISNUMBER(SUMPRODUCT(--ISNUMBER(rngCFA2)*(INDEX(budA2BP8,0,1))*(INDEX(budA2SF,0,1)="Salary")*(rngCFA2=A42))),SUMPRODUCT(--ISNUMBER(rngCFA2)*(INDEX(budA2BP8,0,1))*(INDEX(budA2SF,0,1)="Salary")*(rngCFA2=A42)),0) -> 0 | AC42: =IF(ISNUMBER(SUMPRODUCT(--ISNUMBER(rngCFA2)*(INDEX(budA2BP9,0,1))*(INDEX(budA2SF,0,1)="Salary")*(rngCFA2=A42))),SUMPRODUCT(--ISNUMBER(rngCFA2)*(INDEX(budA2BP9,0,1))*(INDEX(budA2SF,0,1)="Salary")*(rngCFA2=A42)),0) -> 0 | AF42: =IF(ISNUMBER(SUMPRODUCT(--ISNUMBER(rngCFA2)*(INDEX(budA2BP10,0,1))*(INDEX(budA2SF,0,1)="Salary")*(rngCFA2=A42))),SUMPRODUCT(--ISNUMBER(rngCFA2)*(INDEX(budA2BP10,0,1))*(INDEX(budA2SF,0,1)="Salary")*(rngCFA2=A42)),0) -> 0 | AI42: 0
A43: =_xlfn.XLOOKUP(B43,MTDC[Description],MTDC[VALUE],"N/A",0) -> 50050 | B43: S&W TA & GA | D43: =IF(AND(B43="Make a Selection",OR(sFABC=1,sFABC=2,sFABC=3)),"",IF(sFABC=2,"Included",IF(sFABC=3,"Custom F&A Amt",IF(_xlfn.XLOOKUP(B43,MTDC[Description],MTDC[Include in MTDC],"N/A",0)="MTDC","Included","Excluded")))) -> Included | E43: =IF(ISNUMBER(SUMPRODUCT(--ISNUMBER(rngCFA2)*(INDEX(budA2BP1,0,1))*(INDEX(budA2SF,0,1)="Salary")*(rngCFA2=A43))),SUMPRODUCT(--ISNUMBER(rngCFA2)*(INDEX(budA2BP1,0,1))*(INDEX(budA2SF,0,1)="Salary")*(rngCFA2=A43)),0) -> 0 | H43: =IF(ISNUMBER(SUMPRODUCT(--ISNUMBER(rngCFA2)*(INDEX(budA2BP2,0,1))*(INDEX(budA2SF,0,1)="Salary")*(rngCFA2=A43))),SUMPRODUCT(--ISNUMBER(rngCFA2)*(INDEX(budA2BP2,0,1))*(INDEX(budA2SF,0,1)="Salary")*(rngCFA2=A43)),0) -> 0 | K43: =IF(ISNUMBER(SUMPRODUCT(--ISNUMBER(rngCFA2)*(INDEX(budA2BP3,0,1))*(INDEX(budA2SF,0,1)="Salary")*(rngCFA2=A43))),SUMPRODUCT(--ISNUMBER(rngCFA2)*(INDEX(budA2BP3,0,1))*(INDEX(budA2SF,0,1)="Salary")*(rngCFA2=A43)),0) -> 0 | N43: =IF(ISNUMBER(SUMPRODUCT(--ISNUMBER(rngCFA2)*(INDEX(budA2BP4,0,1))*(INDEX(budA2SF,0,1)="Salary")*(rngCFA2=A43))),SUMPRODUCT(--ISNUMBER(rngCFA2)*(INDEX(budA2BP4,0,1))*(INDEX(budA2SF,0,1)="Salary")*(rngCFA2=A43)),0) -> 0 | Q43: =IF(ISNUMBER(SUMPRODUCT(--ISNUMBER(rngCFA2)*(INDEX(budA2BP5,0,1))*(INDEX(budA2SF,0,1)="Salary")*(rngCFA2=A43))),SUMPRODUCT(--ISNUMBER(rngCFA2)*(INDEX(budA2BP5,0,1))*(INDEX(budA2SF,0,1)="Salary")*(rngCFA2=A43)),0) -> 0 | T43: =IF(ISNUMBER(SUMPRODUCT(--ISNUMBER(rngCFA2)*(INDEX(budA2BP6,0,1))*(INDEX(budA2SF,0,1)="Salary")*(rngCFA2=A43))),SUMPRODUCT(--ISNUMBER(rngCFA2)*(INDEX(budA2BP6,0,1))*(INDEX(budA2SF,0,1)="Salary")*(rngCFA2=A43)),0) -> 0 | W43: =IF(ISNUMBER(SUMPRODUCT(--ISNUMBER(rngCFA2)*(INDEX(budA2BP7,0,1))*(INDEX(budA2SF,0,1)="Salary")*(rngCFA2=A43))),SUMPRODUCT(--ISNUMBER(rngCFA2)*(INDEX(budA2BP7,0,1))*(INDEX(budA2SF,0,1)="Salary")*(rngCFA2=A43)),0) -> 0 | Z43: =IF(ISNUMBER(SUMPRODUCT(--ISNUMBER(rngCFA2)*(INDEX(budA2BP8,0,1))*(INDEX(budA2SF,0,1)="Salary")*(rngCFA2=A43))),SUMPRODUCT(--ISNUMBER(rngCFA2)*(INDEX(budA2BP8,0,1))*(INDEX(budA2SF,0,1)="Salary")*(rngCFA2=A43)),0) -> 0 | AC43: =IF(ISNUMBER(SUMPRODUCT(--ISNUMBER(rngCFA2)*(INDEX(budA2BP9,0,1))*(INDEX(budA2SF,0,1)="Salary")*(rngCFA2=A43))),SUMPRODUCT(--ISNUMBER(rngCFA2)*(INDEX(budA2BP9,0,1))*(INDEX(budA2SF,0,1)="Salary")*(rngCFA2=A43)),0) -> 0 | AF43: =IF(ISNUMBER(SUMPRODUCT(--ISNUMBER(rngCFA2)*(INDEX(budA2BP10,0,1))*(INDEX(budA2SF,0,1)="Salary")*(rngCFA2=A43))),SUMPRODUCT(--ISNUMBER(rngCFA2)*(INDEX(budA2BP10,0,1))*(INDEX(budA2SF,0,1)="Salary")*(rngCFA2=A43)),0) -> 0 | AI43: 0
A44: =_xlfn.XLOOKUP(B44,MTDC[Description],MTDC[VALUE],"N/A",0) -> 50060 | B44: S&W Post Doctorate & Associates | D44: =IF(AND(B44="Make a Selection",OR(sFABC=1,sFABC=2,sFABC=3)),"",IF(sFABC=2,"Included",IF(sFABC=3,"Custom F&A Amt",IF(_xlfn.XLOOKUP(B44,MTDC[Description],MTDC[Include in MTDC],"N/A",0)="MTDC","Included","Excluded")))) -> Included | E44: =IF(ISNUMBER(SUMPRODUCT(--ISNUMBER(rngCFA2)*(INDEX(budA2BP1,0,1))*(INDEX(budA2SF,0,1)="Salary")*(rngCFA2=A44))),SUMPRODUCT(--ISNUMBER(rngCFA2)*(INDEX(budA2BP1,0,1))*(INDEX(budA2SF,0,1)="Salary")*(rngCFA2=A44)),0) -> 0 | H44: =IF(ISNUMBER(SUMPRODUCT(--ISNUMBER(rngCFA2)*(INDEX(budA2BP2,0,1))*(INDEX(budA2SF,0,1)="Salary")*(rngCFA2=A44))),SUMPRODUCT(--ISNUMBER(rngCFA2)*(INDEX(budA2BP2,0,1))*(INDEX(budA2SF,0,1)="Salary")*(rngCFA2=A44)),0) -> 0 | K44: =IF(ISNUMBER(SUMPRODUCT(--ISNUMBER(rngCFA2)*(INDEX(budA2BP3,0,1))*(INDEX(budA2SF,0,1)="Salary")*(rngCFA2=A44))),SUMPRODUCT(--ISNUMBER(rngCFA2)*(INDEX(budA2BP3,0,1))*(INDEX(budA2SF,0,1)="Salary")*(rngCFA2=A44)),0) -> 0 | N44: =IF(ISNUMBER(SUMPRODUCT(--ISNUMBER(rngCFA2)*(INDEX(budA2BP4,0,1))*(INDEX(budA2SF,0,1)="Salary")*(rngCFA2=A44))),SUMPRODUCT(--ISNUMBER(rngCFA2)*(INDEX(budA2BP4,0,1))*(INDEX(budA2SF,0,1)="Salary")*(rngCFA2=A44)),0) -> 0 | Q44: =IF(ISNUMBER(SUMPRODUCT(--ISNUMBER(rngCFA2)*(INDEX(budA2BP5,0,1))*(INDEX(budA2SF,0,1)="Salary")*(rngCFA2=A44))),SUMPRODUCT(--ISNUMBER(rngCFA2)*(INDEX(budA2BP5,0,1))*(INDEX(budA2SF,0,1)="Salary")*(rngCFA2=A44)),0) -> 0 | T44: =IF(ISNUMBER(SUMPRODUCT(--ISNUMBER(rngCFA2)*(INDEX(budA2BP6,0,1))*(INDEX(budA2SF,0,1)="Salary")*(rngCFA2=A44))),SUMPRODUCT(--ISNUMBER(rngCFA2)*(INDEX(budA2BP6,0,1))*(INDEX(budA2SF,0,1)="Salary")*(rngCFA2=A44)),0) -> 0 | W44: =IF(ISNUMBER(SUMPRODUCT(--ISNUMBER(rngCFA2)*(INDEX(budA2BP7,0,1))*(INDEX(budA2SF,0,1)="Salary")*(rngCFA2=A44))),SUMPRODUCT(--ISNUMBER(rngCFA2)*(INDEX(budA2BP7,0,1))*(INDEX(budA2SF,0,1)="Salary")*(rngCFA2=A44)),0) -> 0 | Z44: =IF(ISNUMBER(SUMPRODUCT(--ISNUMBER(rngCFA2)*(INDEX(budA2BP8,0,1))*(INDEX(budA2SF,0,1)="Salary")*(rngCFA2=A44))),SUMPRODUCT(--ISNUMBER(rngCFA2)*(INDEX(budA2BP8,0,1))*(INDEX(budA2SF,0,1)="Salary")*(rngCFA2=A44)),0) -> 0 | AC44: =IF(ISNUMBER(SUMPRODUCT(--ISNUMBER(rngCFA2)*(INDEX(budA2BP9,0,1))*(INDEX(budA2SF,0,1)="Salary")*(rngCFA2=A44))),SUMPRODUCT(--ISNUMBER(rngCFA2)*(INDEX(budA2BP9,0,1))*(INDEX(budA2SF,0,1)="Salary")*(rngCFA2=A44)),0) -> 0 | AF44: =IF(ISNUMBER(SUMPRODUCT(--ISNUMBER(rngCFA2)*(INDEX(budA2BP10,0,1))*(INDEX(budA2SF,0,1)="Salary")*(rngCFA2=A44))),SUMPRODUCT(--ISNUMBER(rngCFA2)*(INDEX(budA2BP10,0,1))*(INDEX(budA2SF,0,1)="Salary")*(rngCFA2=A44)),0) -> 0 | AI44: 0
A45: =_xlfn.XLOOKUP(B45,MTDC[Description],MTDC[VALUE],"N/A",0) -> 50070 | B45: S&W Housestaff | D45: =IF(AND(B45="Make a Selection",OR(sFABC=1,sFABC=2,sFABC=3)),"",IF(sFABC=2,"Included",IF(sFABC=3,"Custom F&A Amt",IF(_xlfn.XLOOKUP(B45,MTDC[Description],MTDC[Include in MTDC],"N/A",0)="MTDC","Included","Excluded")))) -> Included | E45: =IF(ISNUMBER(SUMPRODUCT(--ISNUMBER(rngCFA2)*(INDEX(budA2BP1,0,1))*(INDEX(budA2SF,0,1)="Salary")*(rngCFA2=A45))),SUMPRODUCT(--ISNUMBER(rngCFA2)*(INDEX(budA2BP1,0,1))*(INDEX(budA2SF,0,1)="Salary")*(rngCFA2=A45)),0) -> 0 | H45: =IF(ISNUMBER(SUMPRODUCT(--ISNUMBER(rngCFA2)*(INDEX(budA2BP2,0,1))*(INDEX(budA2SF,0,1)="Salary")*(rngCFA2=A45))),SUMPRODUCT(--ISNUMBER(rngCFA2)*(INDEX(budA2BP2,0,1))*(INDEX(budA2SF,0,1)="Salary")*(rngCFA2=A45)),0) -> 0 | K45: =IF(ISNUMBER(SUMPRODUCT(--ISNUMBER(rngCFA2)*(INDEX(budA2BP3,0,1))*(INDEX(budA2SF,0,1)="Salary")*(rngCFA2=A45))),SUMPRODUCT(--ISNUMBER(rngCFA2)*(INDEX(budA2BP3,0,1))*(INDEX(budA2SF,0,1)="Salary")*(rngCFA2=A45)),0) -> 0 | N45: =IF(ISNUMBER(SUMPRODUCT(--ISNUMBER(rngCFA2)*(INDEX(budA2BP4,0,1))*(INDEX(budA2SF,0,1)="Salary")*(rngCFA2=A45))),SUMPRODUCT(--ISNUMBER(rngCFA2)*(INDEX(budA2BP4,0,1))*(INDEX(budA2SF,0,1)="Salary")*(rngCFA2=A45)),0) -> 0 | Q45: =IF(ISNUMBER(SUMPRODUCT(--ISNUMBER(rngCFA2)*(INDEX(budA2BP5,0,1))*(INDEX(budA2SF,0,1)="Salary")*(rngCFA2=A45))),SUMPRODUCT(--ISNUMBER(rngCFA2)*(INDEX(budA2BP5,0,1))*(INDEX(budA2SF,0,1)="Salary")*(rngCFA2=A45)),0) -> 0 | T45: =IF(ISNUMBER(SUMPRODUCT(--ISNUMBER(rngCFA2)*(INDEX(budA2BP6,0,1))*(INDEX(budA2SF,0,1)="Salary")*(rngCFA2=A45))),SUMPRODUCT(--ISNUMBER(rngCFA2)*(INDEX(budA2BP6,0,1))*(INDEX(budA2SF,0,1)="Salary")*(rngCFA2=A45)),0) -> 0 | W45: =IF(ISNUMBER(SUMPRODUCT(--ISNUMBER(rngCFA2)*(INDEX(budA2BP7,0,1))*(INDEX(budA2SF,0,1)="Salary")*(rngCFA2=A45))),SUMPRODUCT(--ISNUMBER(rngCFA2)*(INDEX(budA2BP7,0,1))*(INDEX(budA2SF,0,1)="Salary")*(rngCFA2=A45)),0) -> 0 | Z45: =IF(ISNUMBER(SUMPRODUCT(--ISNUMBER(rngCFA2)*(INDEX(budA2BP8,0,1))*(INDEX(budA2SF,0,1)="Salary")*(rngCFA2=A45))),SUMPRODUCT(--ISNUMBER(rngCFA2)*(INDEX(budA2BP8,0,1))*(INDEX(budA2SF,0,1)="Salary")*(rngCFA2=A45)),0) -> 0 | AC45: =IF(ISNUMBER(SUMPRODUCT(--ISNUMBER(rngCFA2)*(INDEX(budA2BP9,0,1))*(INDEX(budA2SF,0,1)="Salary")*(rngCFA2=A45))),SUMPRODUCT(--ISNUMBER(rngCFA2)*(INDEX(budA2BP9,0,1))*(INDEX(budA2SF,0,1)="Salary")*(rngCFA2=A45)),0) -> 0 | AF45: =IF(ISNUMBER(SUMPRODUCT(--ISNUMBER(rngCFA2)*(INDEX(budA2BP10,0,1))*(INDEX(budA2SF,0,1)="Salary")*(rngCFA2=A45))),SUMPRODUCT(--ISNUMBER(rngCFA2)*(INDEX(budA2BP10,0,1))*(INDEX(budA2SF,0,1)="Salary")*(rngCFA2=A45)),0) -> 0 | AI45: 0
A46: =_xlfn.XLOOKUP(B46,MTDC[Description],MTDC[VALUE],"N/A",0) -> 50080 | B46: S&W Coadjutant NonInstructional (Summer Salary) | D46: =IF(AND(B46="Make a Selection",OR(sFABC=1,sFABC=2,sFABC=3)),"",IF(sFABC=2,"Included",IF(sFABC=3,"Custom F&A Amt",IF(_xlfn.XLOOKUP(B46,MTDC[Description],MTDC[Include in MTDC],"N/A",0)="MTDC","Included","Excluded")))) -> Included | E46: =IF(ISNUMBER(SUMPRODUCT(--ISNUMBER(rngCFA2)*(INDEX(budA2BP1,0,1))*(INDEX(budA2SF,0,1)="Salary")*(rngCFA2=A46))),SUMPRODUCT(--ISNUMBER(rngCFA2)*(INDEX(budA2BP1,0,1))*(INDEX(budA2SF,0,1)="Salary")*(rngCFA2=A46)),0) -> 0 | H46: =IF(ISNUMBER(SUMPRODUCT(--ISNUMBER(rngCFA2)*(INDEX(budA2BP2,0,1))*(INDEX(budA2SF,0,1)="Salary")*(rngCFA2=A46))),SUMPRODUCT(--ISNUMBER(rngCFA2)*(INDEX(budA2BP2,0,1))*(INDEX(budA2SF,0,1)="Salary")*(rngCFA2=A46)),0) -> 0 | K46: =IF(ISNUMBER(SUMPRODUCT(--ISNUMBER(rngCFA2)*(INDEX(budA2BP3,0,1))*(INDEX(budA2SF,0,1)="Salary")*(rngCFA2=A46))),SUMPRODUCT(--ISNUMBER(rngCFA2)*(INDEX(budA2BP3,0,1))*(INDEX(budA2SF,0,1)="Salary")*(rngCFA2=A46)),0) -> 0 | N46: =IF(ISNUMBER(SUMPRODUCT(--ISNUMBER(rngCFA2)*(INDEX(budA2BP4,0,1))*(INDEX(budA2SF,0,1)="Salary")*(rngCFA2=A46))),SUMPRODUCT(--ISNUMBER(rngCFA2)*(INDEX(budA2BP4,0,1))*(INDEX(budA2SF,0,1)="Salary")*(rngCFA2=A46)),0) -> 0 | Q46: =IF(ISNUMBER(SUMPRODUCT(--ISNUMBER(rngCFA2)*(INDEX(budA2BP5,0,1))*(INDEX(budA2SF,0,1)="Salary")*(rngCFA2=A46))),SUMPRODUCT(--ISNUMBER(rngCFA2)*(INDEX(budA2BP5,0,1))*(INDEX(budA2SF,0,1)="Salary")*(rngCFA2=A46)),0) -> 0 | T46: =IF(ISNUMBER(SUMPRODUCT(--ISNUMBER(rngCFA2)*(INDEX(budA2BP6,0,1))*(INDEX(budA2SF,0,1)="Salary")*(rngCFA2=A46))),SUMPRODUCT(--ISNUMBER(rngCFA2)*(INDEX(budA2BP6,0,1))*(INDEX(budA2SF,0,1)="Salary")*(rngCFA2=A46)),0) -> 0 | W46: =IF(ISNUMBER(SUMPRODUCT(--ISNUMBER(rngCFA2)*(INDEX(budA2BP7,0,1))*(INDEX(budA2SF,0,1)="Salary")*(rngCFA2=A46))),SUMPRODUCT(--ISNUMBER(rngCFA2)*(INDEX(budA2BP7,0,1))*(INDEX(budA2SF,0,1)="Salary")*(rngCFA2=A46)),0) -> 0 | Z46: =IF(ISNUMBER(SUMPRODUCT(--ISNUMBER(rngCFA2)*(INDEX(budA2BP8,0,1))*(INDEX(budA2SF,0,1)="Salary")*(rngCFA2=A46))),SUMPRODUCT(--ISNUMBER(rngCFA2)*(INDEX(budA2BP8,0,1))*(INDEX(budA2SF,0,1)="Salary")*(rngCFA2=A46)),0) -> 0 | AC46: =IF(ISNUMBER(SUMPRODUCT(--ISNUMBER(rngCFA2)*(INDEX(budA2BP9,0,1))*(INDEX(budA2SF,0,1)="Salary")*(rngCFA2=A46))),SUMPRODUCT(--ISNUMBER(rngCFA2)*(INDEX(budA2BP9,0,1))*(INDEX(budA2SF,0,1)="Salary")*(rngCFA2=A46)),0) -> 0 | AF46: =IF(ISNUMBER(SUMPRODUCT(--ISNUMBER(rngCFA2)*(INDEX(budA2BP10,0,1))*(INDEX(budA2SF,0,1)="Salary")*(rngCFA2=A46))),SUMPRODUCT(--ISNUMBER(rngCFA2)*(INDEX(budA2BP10,0,1))*(INDEX(budA2SF,0,1)="Salary")*(rngCFA2=A46)),0) -> 0 | AI46: 0
A47: =_xlfn.XLOOKUP(B47,MTDC[Description],MTDC[VALUE],"N/A",0) -> 50081 | B47: S&W Coadjutant PTL Instructional | D47: =IF(AND(B47="Make a Selection",OR(sFABC=1,sFABC=2,sFABC=3)),"",IF(sFABC=2,"Included",IF(sFABC=3,"Custom F&A Amt",IF(_xlfn.XLOOKUP(B47,MTDC[Description],MTDC[Include in MTDC],"N/A",0)="MTDC","Included","Excluded")))) -> Included | E47: =IF(ISNUMBER(SUMPRODUCT(--ISNUMBER(rngCFA2)*(INDEX(budA2BP1,0,1))*(INDEX(budA2SF,0,1)="Salary")*(rngCFA2=A47))),SUMPRODUCT(--ISNUMBER(rngCFA2)*(INDEX(budA2BP1,0,1))*(INDEX(budA2SF,0,1)="Salary")*(rngCFA2=A47)),0) -> 0 | H47: =IF(ISNUMBER(SUMPRODUCT(--ISNUMBER(rngCFA2)*(INDEX(budA2BP2,0,1))*(INDEX(budA2SF,0,1)="Salary")*(rngCFA2=A47))),SUMPRODUCT(--ISNUMBER(rngCFA2)*(INDEX(budA2BP2,0,1))*(INDEX(budA2SF,0,1)="Salary")*(rngCFA2=A47)),0) -> 0 | K47: =IF(ISNUMBER(SUMPRODUCT(--ISNUMBER(rngCFA2)*(INDEX(budA2BP3,0,1))*(INDEX(budA2SF,0,1)="Salary")*(rngCFA2=A47))),SUMPRODUCT(--ISNUMBER(rngCFA2)*(INDEX(budA2BP3,0,1))*(INDEX(budA2SF,0,1)="Salary")*(rngCFA2=A47)),0) -> 0 | N47: =IF(ISNUMBER(SUMPRODUCT(--ISNUMBER(rngCFA2)*(INDEX(budA2BP4,0,1))*(INDEX(budA2SF,0,1)="Salary")*(rngCFA2=A47))),SUMPRODUCT(--ISNUMBER(rngCFA2)*(INDEX(budA2BP4,0,1))*(INDEX(budA2SF,0,1)="Salary")*(rngCFA2=A47)),0) -> 0 | Q47: =IF(ISNUMBER(SUMPRODUCT(--ISNUMBER(rngCFA2)*(INDEX(budA2BP5,0,1))*(INDEX(budA2SF,0,1)="Salary")*(rngCFA2=A47))),SUMPRODUCT(--ISNUMBER(rngCFA2)*(INDEX(budA2BP5,0,1))*(INDEX(budA2SF,0,1)="Salary")*(rngCFA2=A47)),0) -> 0 | T47: =IF(ISNUMBER(SUMPRODUCT(--ISNUMBER(rngCFA2)*(INDEX(budA2BP6,0,1))*(INDEX(budA2SF,0,1)="Salary")*(rngCFA2=A47))),SUMPRODUCT(--ISNUMBER(rngCFA2)*(INDEX(budA2BP6,0,1))*(INDEX(budA2SF,0,1)="Salary")*(rngCFA2=A47)),0) -> 0 | W47: =IF(ISNUMBER(SUMPRODUCT(--ISNUMBER(rngCFA2)*(INDEX(budA2BP7,0,1))*(INDEX(budA2SF,0,1)="Salary")*(rngCFA2=A47))),SUMPRODUCT(--ISNUMBER(rngCFA2)*(INDEX(budA2BP7,0,1))*(INDEX(budA2SF,0,1)="Salary")*(rngCFA2=A47)),0) -> 0 | Z47: =IF(ISNUMBER(SUMPRODUCT(--ISNUMBER(rngCFA2)*(INDEX(budA2BP8,0,1))*(INDEX(budA2SF,0,1)="Salary")*(rngCFA2=A47))),SUMPRODUCT(--ISNUMBER(rngCFA2)*(INDEX(budA2BP8,0,1))*(INDEX(budA2SF,0,1)="Salary")*(rngCFA2=A47)),0) -> 0 | AC47: =IF(ISNUMBER(SUMPRODUCT(--ISNUMBER(rngCFA2)*(INDEX(budA2BP9,0,1))*(INDEX(budA2SF,0,1)="Salary")*(rngCFA2=A47))),SUMPRODUCT(--ISNUMBER(rngCFA2)*(INDEX(budA2BP9,0,1))*(INDEX(budA2SF,0,1)="Salary")*(rngCFA2=A47)),0) -> 0 | AF47: =IF(ISNUMBER(SUMPRODUCT(--ISNUMBER(rngCFA2)*(INDEX(budA2BP10,0,1))*(INDEX(budA2SF,0,1)="Salary")*(rngCFA2=A47))),SUMPRODUCT(--ISNUMBER(rngCFA2)*(INDEX(budA2BP10,0,1))*(INDEX(budA2SF,0,1)="Salary")*(rngCFA2=A47)),0) -> 0 | AI47: 0
A48: =_xlfn.XLOOKUP(B48,MTDC[Description],MTDC[VALUE],"N/A",0) -> 50090 | B48: S&W Student Employment | D48: =IF(AND(B48="Make a Selection",OR(sFABC=1,sFABC=2,sFABC=3)),"",IF(sFABC=2,"Included",IF(sFABC=3,"Custom F&A Amt",IF(_xlfn.XLOOKUP(B48,MTDC[Description],MTDC[Include in MTDC],"N/A",0)="MTDC","Included","Excluded")))) -> Included | E48: =IF(ISNUMBER(SUMPRODUCT(--ISNUMBER(rngCFA2)*(INDEX(budA2BP1,0,1))*(INDEX(budA2SF,0,1)="Salary")*(rngCFA2=A48))),SUMPRODUCT(--ISNUMBER(rngCFA2)*(INDEX(budA2BP1,0,1))*(INDEX(budA2SF,0,1)="Salary")*(rngCFA2=A48)),0) -> 0 | H48: =IF(ISNUMBER(SUMPRODUCT(--ISNUMBER(rngCFA2)*(INDEX(budA2BP2,0,1))*(INDEX(budA2SF,0,1)="Salary")*(rngCFA2=A48))),SUMPRODUCT(--ISNUMBER(rngCFA2)*(INDEX(budA2BP2,0,1))*(INDEX(budA2SF,0,1)="Salary")*(rngCFA2=A48)),0) -> 0 | K48: =IF(ISNUMBER(SUMPRODUCT(--ISNUMBER(rngCFA2)*(INDEX(budA2BP3,0,1))*(INDEX(budA2SF,0,1)="Salary")*(rngCFA2=A48))),SUMPRODUCT(--ISNUMBER(rngCFA2)*(INDEX(budA2BP3,0,1))*(INDEX(budA2SF,0,1)="Salary")*(rngCFA2=A48)),0) -> 0 | N48: =IF(ISNUMBER(SUMPRODUCT(--ISNUMBER(rngCFA2)*(INDEX(budA2BP4,0,1))*(INDEX(budA2SF,0,1)="Salary")*(rngCFA2=A48))),SUMPRODUCT(--ISNUMBER(rngCFA2)*(INDEX(budA2BP4,0,1))*(INDEX(budA2SF,0,1)="Salary")*(rngCFA2=A48)),0) -> 0 | Q48: =IF(ISNUMBER(SUMPRODUCT(--ISNUMBER(rngCFA2)*(INDEX(budA2BP5,0,1))*(INDEX(budA2SF,0,1)="Salary")*(rngCFA2=A48))),SUMPRODUCT(--ISNUMBER(rngCFA2)*(INDEX(budA2BP5,0,1))*(INDEX(budA2SF,0,1)="Salary")*(rngCFA2=A48)),0) -> 0 | T48: =IF(ISNUMBER(SUMPRODUCT(--ISNUMBER(rngCFA2)*(INDEX(budA2BP6,0,1))*(INDEX(budA2SF,0,1)="Salary")*(rngCFA2=A48))),SUMPRODUCT(--ISNUMBER(rngCFA2)*(INDEX(budA2BP6,0,1))*(INDEX(budA2SF,0,1)="Salary")*(rngCFA2=A48)),0) -> 0 | W48: =IF(ISNUMBER(SUMPRODUCT(--ISNUMBER(rngCFA2)*(INDEX(budA2BP7,0,1))*(INDEX(budA2SF,0,1)="Salary")*(rngCFA2=A48))),SUMPRODUCT(--ISNUMBER(rngCFA2)*(INDEX(budA2BP7,0,1))*(INDEX(budA2SF,0,1)="Salary")*(rngCFA2=A48)),0) -> 0 | Z48: =IF(ISNUMBER(SUMPRODUCT(--ISNUMBER(rngCFA2)*(INDEX(budA2BP8,0,1))*(INDEX(budA2SF,0,1)="Salary")*(rngCFA2=A48))),SUMPRODUCT(--ISNUMBER(rngCFA2)*(INDEX(budA2BP8,0,1))*(INDEX(budA2SF,0,1)="Salary")*(rngCFA2=A48)),0) -> 0 | AC48: =IF(ISNUMBER(SUMPRODUCT(--ISNUMBER(rngCFA2)*(INDEX(budA2BP9,0,1))*(INDEX(budA2SF,0,1)="Salary")*(rngCFA2=A48))),SUMPRODUCT(--ISNUMBER(rngCFA2)*(INDEX(budA2BP9,0,1))*(INDEX(budA2SF,0,1)="Salary")*(rngCFA2=A48)),0) -> 0 | AF48: =IF(ISNUMBER(SUMPRODUCT(--ISNUMBER(rngCFA2)*(INDEX(budA2BP10,0,1))*(INDEX(budA2SF,0,1)="Salary")*(rngCFA2=A48))),SUMPRODUCT(--ISNUMBER(rngCFA2)*(INDEX(budA2BP10,0,1))*(INDEX(budA2SF,0,1)="Salary")*(rngCFA2=A48)),0) -> 0 | AI48: 0
A49: =_xlfn.XLOOKUP(B49,MTDC[Description],MTDC[VALUE],"N/A",0) -> 50100 | B49: S&W Contracted | D49: =IF(AND(B49="Make a Selection",OR(sFABC=1,sFABC=2,sFABC=3)),"",IF(sFABC=2,"Included",IF(sFABC=3,"Custom F&A Amt",IF(_xlfn.XLOOKUP(B49,MTDC[Description],MTDC[Include in MTDC],"N/A",0)="MTDC","Included","Excluded")))) -> Included | E49: =IF(ISNUMBER(SUMPRODUCT(--ISNUMBER(rngCFA2)*(INDEX(budA2BP1,0,1))*(INDEX(budA2SF,0,1)="Salary")*(rngCFA2=A49))),SUMPRODUCT(--ISNUMBER(rngCFA2)*(INDEX(budA2BP1,0,1))*(INDEX(budA2SF,0,1)="Salary")*(rngCFA2=A49)),0) -> 0 | H49: =IF(ISNUMBER(SUMPRODUCT(--ISNUMBER(rngCFA2)*(INDEX(budA2BP2,0,1))*(INDEX(budA2SF,0,1)="Salary")*(rngCFA2=A49))),SUMPRODUCT(--ISNUMBER(rngCFA2)*(INDEX(budA2BP2,0,1))*(INDEX(budA2SF,0,1)="Salary")*(rngCFA2=A49)),0) -> 0 | K49: =IF(ISNUMBER(SUMPRODUCT(--ISNUMBER(rngCFA2)*(INDEX(budA2BP3,0,1))*(INDEX(budA2SF,0,1)="Salary")*(rngCFA2=A49))),SUMPRODUCT(--ISNUMBER(rngCFA2)*(INDEX(budA2BP3,0,1))*(INDEX(budA2SF,0,1)="Salary")*(rngCFA2=A49)),0) -> 0 | N49: =IF(ISNUMBER(SUMPRODUCT(--ISNUMBER(rngCFA2)*(INDEX(budA2BP4,0,1))*(INDEX(budA2SF,0,1)="Salary")*(rngCFA2=A49))),SUMPRODUCT(--ISNUMBER(rngCFA2)*(INDEX(budA2BP4,0,1))*(INDEX(budA2SF,0,1)="Salary")*(rngCFA2=A49)),0) -> 0 | Q49: =IF(ISNUMBER(SUMPRODUCT(--ISNUMBER(rngCFA2)*(INDEX(budA2BP5,0,1))*(INDEX(budA2SF,0,1)="Salary")*(rngCFA2=A49))),SUMPRODUCT(--ISNUMBER(rngCFA2)*(INDEX(budA2BP5,0,1))*(INDEX(budA2SF,0,1)="Salary")*(rngCFA2=A49)),0) -> 0 | T49: =IF(ISNUMBER(SUMPRODUCT(--ISNUMBER(rngCFA2)*(INDEX(budA2BP6,0,1))*(INDEX(budA2SF,0,1)="Salary")*(rngCFA2=A49))),SUMPRODUCT(--ISNUMBER(rngCFA2)*(INDEX(budA2BP6,0,1))*(INDEX(budA2SF,0,1)="Salary")*(rngCFA2=A49)),0) -> 0 | W49: =IF(ISNUMBER(SUMPRODUCT(--ISNUMBER(rngCFA2)*(INDEX(budA2BP7,0,1))*(INDEX(budA2SF,0,1)="Salary")*(rngCFA2=A49))),SUMPRODUCT(--ISNUMBER(rngCFA2)*(INDEX(budA2BP7,0,1))*(INDEX(budA2SF,0,1)="Salary")*(rngCFA2=A49)),0) -> 0 | Z49: =IF(ISNUMBER(SUMPRODUCT(--ISNUMBER(rngCFA2)*(INDEX(budA2BP8,0,1))*(INDEX(budA2SF,0,1)="Salary")*(rngCFA2=A49))),SUMPRODUCT(--ISNUMBER(rngCFA2)*(INDEX(budA2BP8,0,1))*(INDEX(budA2SF,0,1)="Salary")*(rngCFA2=A49)),0) -> 0 | AC49: =IF(ISNUMBER(SUMPRODUCT(--ISNUMBER(rngCFA2)*(INDEX(budA2BP9,0,1))*(INDEX(budA2SF,0,1)="Salary")*(rngCFA2=A49))),SUMPRODUCT(--ISNUMBER(rngCFA2)*(INDEX(budA2BP9,0,1))*(INDEX(budA2SF,0,1)="Salary")*(rngCFA2=A49)),0) -> 0 | AF49: =IF(ISNUMBER(SUMPRODUCT(--ISNUMBER(rngCFA2)*(INDEX(budA2BP10,0,1))*(INDEX(budA2SF,0,1)="Salary")*(rngCFA2=A49))),SUMPRODUCT(--ISNUMBER(rngCFA2)*(INDEX(budA2BP10,0,1))*(INDEX(budA2SF,0,1)="Salary")*(rngCFA2=A49)),0) -> 0 | AI49: 0
A50: =_xlfn.XLOOKUP(B50,MTDC[Description],MTDC[VALUE],"N/A",0) -> 50110 | B50: Student Aid Student Researcher Stipend | D50: =IF(AND(B50="Make a Selection",OR(sFABC=1,sFABC=2,sFABC=3)),"",IF(sFABC=2,"Included",IF(sFABC=3,"Custom F&A Amt",IF(_xlfn.XLOOKUP(B50,MTDC[Description],MTDC[Include in MTDC],"N/A",0)="MTDC","Included","Excluded")))) -> Included | E50: =IF(ISNUMBER(SUMPRODUCT(--ISNUMBER(rngCFA2)*(INDEX(budA2BP1,0,1))*(INDEX(budA2SF,0,1)="Salary")*(rngCFA2=A50))),SUMPRODUCT(--ISNUMBER(rngCFA2)*(INDEX(budA2BP1,0,1))*(INDEX(budA2SF,0,1)="Salary")*(rngCFA2=A50)),0) -> 0 | H50: =IF(ISNUMBER(SUMPRODUCT(--ISNUMBER(rngCFA2)*(INDEX(budA2BP2,0,1))*(INDEX(budA2SF,0,1)="Salary")*(rngCFA2=A50))),SUMPRODUCT(--ISNUMBER(rngCFA2)*(INDEX(budA2BP2,0,1))*(INDEX(budA2SF,0,1)="Salary")*(rngCFA2=A50)),0) -> 0 | K50: =IF(ISNUMBER(SUMPRODUCT(--ISNUMBER(rngCFA2)*(INDEX(budA2BP3,0,1))*(INDEX(budA2SF,0,1)="Salary")*(rngCFA2=A50))),SUMPRODUCT(--ISNUMBER(rngCFA2)*(INDEX(budA2BP3,0,1))*(INDEX(budA2SF,0,1)="Salary")*(rngCFA2=A50)),0) -> 0 | N50: =IF(ISNUMBER(SUMPRODUCT(--ISNUMBER(rngCFA2)*(INDEX(budA2BP4,0,1))*(INDEX(budA2SF,0,1)="Salary")*(rngCFA2=A50))),SUMPRODUCT(--ISNUMBER(rngCFA2)*(INDEX(budA2BP4,0,1))*(INDEX(budA2SF,0,1)="Salary")*(rngCFA2=A50)),0) -> 0 | Q50: =IF(ISNUMBER(SUMPRODUCT(--ISNUMBER(rngCFA2)*(INDEX(budA2BP5,0,1))*(INDEX(budA2SF,0,1)="Salary")*(rngCFA2=A50))),SUMPRODUCT(--ISNUMBER(rngCFA2)*(INDEX(budA2BP5,0,1))*(INDEX(budA2SF,0,1)="Salary")*(rngCFA2=A50)),0) -> 0 | T50: =IF(ISNUMBER(SUMPRODUCT(--ISNUMBER(rngCFA2)*(INDEX(budA2BP6,0,1))*(INDEX(budA2SF,0,1)="Salary")*(rngCFA2=A50))),SUMPRODUCT(--ISNUMBER(rngCFA2)*(INDEX(budA2BP6,0,1))*(INDEX(budA2SF,0,1)="Salary")*(rngCFA2=A50)),0) -> 0 | W50: =IF(ISNUMBER(SUMPRODUCT(--ISNUMBER(rngCFA2)*(INDEX(budA2BP7,0,1))*(INDEX(budA2SF,0,1)="Salary")*(rngCFA2=A50))),SUMPRODUCT(--ISNUMBER(rngCFA2)*(INDEX(budA2BP7,0,1))*(INDEX(budA2SF,0,1)="Salary")*(rngCFA2=A50)),0) -> 0 | Z50: =IF(ISNUMBER(SUMPRODUCT(--ISNUMBER(rngCFA2)*(INDEX(budA2BP8,0,1))*(INDEX(budA2SF,0,1)="Salary")*(rngCFA2=A50))),SUMPRODUCT(--ISNUMBER(rngCFA2)*(INDEX(budA2BP8,0,1))*(INDEX(budA2SF,0,1)="Salary")*(rngCFA2=A50)),0) -> 0 | AC50: =IF(ISNUMBER(SUMPRODUCT(--ISNUMBER(rngCFA2)*(INDEX(budA2BP9,0,1))*(INDEX(budA2SF,0,1)="Salary")*(rngCFA2=A50))),SUMPRODUCT(--ISNUMBER(rngCFA2)*(INDEX(budA2BP9,0,1))*(INDEX(budA2SF,0,1)="Salary")*(rngCFA2=A50)),0) -> 0 | AF50: =IF(ISNUMBER(SUMPRODUCT(--ISNUMBER(rngCFA2)*(INDEX(budA2BP10,0,1))*(INDEX(budA2SF,0,1)="Salary")*(rngCFA2=A50))),SUMPRODUCT(--ISNUMBER(rngCFA2)*(INDEX(budA2BP10,0,1))*(INDEX(budA2SF,0,1)="Salary")*(rngCFA2=A50)),0) -> 0 | AI50: 0
A51: =_xlfn.XLOOKUP(B51,MTDC[Description],MTDC[VALUE],"N/A",0) -> 50115 | B51: Student Aid Pre & Post Fellowship | D51: =IF(AND(B51="Make a Selection",OR(sFABC=1,sFABC=2,sFABC=3)),"",IF(sFABC=2,"Included",IF(sFABC=3,"Custom F&A Amt",IF(_xlfn.XLOOKUP(B51,MTDC[Description],MTDC[Include in MTDC],"N/A",0)="MTDC","Included","Excluded")))) -> Included | E51: =IF(ISNUMBER(SUMPRODUCT(--ISNUMBER(rngCFA2)*(INDEX(budA2BP1,0,1))*(INDEX(budA2SF,0,1)="Salary")*(rngCFA2=A51))),SUMPRODUCT(--ISNUMBER(rngCFA2)*(INDEX(budA2BP1,0,1))*(INDEX(budA2SF,0,1)="Salary")*(rngCFA2=A51)),0) -> 0 | H51: =IF(ISNUMBER(SUMPRODUCT(--ISNUMBER(rngCFA2)*(INDEX(budA2BP2,0,1))*(INDEX(budA2SF,0,1)="Salary")*(rngCFA2=A51))),SUMPRODUCT(--ISNUMBER(rngCFA2)*(INDEX(budA2BP2,0,1))*(INDEX(budA2SF,0,1)="Salary")*(rngCFA2=A51)),0) -> 0 | K51: =IF(ISNUMBER(SUMPRODUCT(--ISNUMBER(rngCFA2)*(INDEX(budA2BP3,0,1))*(INDEX(budA2SF,0,1)="Salary")*(rngCFA2=A51))),SUMPRODUCT(--ISNUMBER(rngCFA2)*(INDEX(budA2BP3,0,1))*(INDEX(budA2SF,0,1)="Salary")*(rngCFA2=A51)),0) -> 0 | N51: =IF(ISNUMBER(SUMPRODUCT(--ISNUMBER(rngCFA2)*(INDEX(budA2BP4,0,1))*(INDEX(budA2SF,0,1)="Salary")*(rngCFA2=A51))),SUMPRODUCT(--ISNUMBER(rngCFA2)*(INDEX(budA2BP4,0,1))*(INDEX(budA2SF,0,1)="Salary")*(rngCFA2=A51)),0) -> 0 | Q51: =IF(ISNUMBER(SUMPRODUCT(--ISNUMBER(rngCFA2)*(INDEX(budA2BP5,0,1))*(INDEX(budA2SF,0,1)="Salary")*(rngCFA2=A51))),SUMPRODUCT(--ISNUMBER(rngCFA2)*(INDEX(budA2BP5,0,1))*(INDEX(budA2SF,0,1)="Salary")*(rngCFA2=A51)),0) -> 0 | T51: =IF(ISNUMBER(SUMPRODUCT(--ISNUMBER(rngCFA2)*(INDEX(budA2BP6,0,1))*(INDEX(budA2SF,0,1)="Salary")*(rngCFA2=A51))),SUMPRODUCT(--ISNUMBER(rngCFA2)*(INDEX(budA2BP6,0,1))*(INDEX(budA2SF,0,1)="Salary")*(rngCFA2=A51)),0) -> 0 | W51: =IF(ISNUMBER(SUMPRODUCT(--ISNUMBER(rngCFA2)*(INDEX(budA2BP7,0,1))*(INDEX(budA2SF,0,1)="Salary")*(rngCFA2=A51))),SUMPRODUCT(--ISNUMBER(rngCFA2)*(INDEX(budA2BP7,0,1))*(INDEX(budA2SF,0,1)="Salary")*(rngCFA2=A51)),0) -> 0 | Z51: =IF(ISNUMBER(SUMPRODUCT(--ISNUMBER(rngCFA2)*(INDEX(budA2BP8,0,1))*(INDEX(budA2SF,0,1)="Salary")*(rngCFA2=A51))),SUMPRODUCT(--ISNUMBER(rngCFA2)*(INDEX(budA2BP8,0,1))*(INDEX(budA2SF,0,1)="Salary")*(rngCFA2=A51)),0) -> 0 | AC51: =IF(ISNUMBER(SUMPRODUCT(--ISNUMBER(rngCFA2)*(INDEX(budA2BP9,0,1))*(INDEX(budA2SF,0,1)="Salary")*(rngCFA2=A51))),SUMPRODUCT(--ISNUMBER(rngCFA2)*(INDEX(budA2BP9,0,1))*(INDEX(budA2SF,0,1)="Salary")*(rngCFA2=A51)),0) -> 0 | AF51: =IF(ISNUMBER(SUMPRODUCT(--ISNUMBER(rngCFA2)*(INDEX(budA2BP10,0,1))*(INDEX(budA2SF,0,1)="Salary")*(rngCFA2=A51))),SUMPRODUCT(--ISNUMBER(rngCFA2)*(INDEX(budA2BP10,0,1))*(INDEX(budA2SF,0,1)="Salary")*(rngCFA2=A51)),0) -> 0 | AI51: 0
A52: =_xlfn.XLOOKUP(B52,MTDC[Description],MTDC[VALUE],"N/A",0) -> 50120 | B52: S&W Hourly Employees | D52: =IF(AND(B52="Make a Selection",OR(sFABC=1,sFABC=2,sFABC=3)),"",IF(sFABC=2,"Included",IF(sFABC=3,"Custom F&A Amt",IF(_xlfn.XLOOKUP(B52,MTDC[Description],MTDC[Include in MTDC],"N/A",0)="MTDC","Included","Excluded")))) -> Included | E52: =IF(ISNUMBER(SUMPRODUCT(--ISNUMBER(rngCFA2)*(INDEX(budA2BP1,0,1))*(INDEX(budA2SF,0,1)="Salary")*(rngCFA2=A52))),SUMPRODUCT(--ISNUMBER(rngCFA2)*(INDEX(budA2BP1,0,1))*(INDEX(budA2SF,0,1)="Salary")*(rngCFA2=A52)),0) -> 0 | H52: =IF(ISNUMBER(SUMPRODUCT(--ISNUMBER(rngCFA2)*(INDEX(budA2BP2,0,1))*(INDEX(budA2SF,0,1)="Salary")*(rngCFA2=A52))),SUMPRODUCT(--ISNUMBER(rngCFA2)*(INDEX(budA2BP2,0,1))*(INDEX(budA2SF,0,1)="Salary")*(rngCFA2=A52)),0) -> 0 | K52: =IF(ISNUMBER(SUMPRODUCT(--ISNUMBER(rngCFA2)*(INDEX(budA2BP3,0,1))*(INDEX(budA2SF,0,1)="Salary")*(rngCFA2=A52))),SUMPRODUCT(--ISNUMBER(rngCFA2)*(INDEX(budA2BP3,0,1))*(INDEX(budA2SF,0,1)="Salary")*(rngCFA2=A52)),0) -> 0 | N52: =IF(ISNUMBER(SUMPRODUCT(--ISNUMBER(rngCFA2)*(INDEX(budA2BP4,0,1))*(INDEX(budA2SF,0,1)="Salary")*(rngCFA2=A52))),SUMPRODUCT(--ISNUMBER(rngCFA2)*(INDEX(budA2BP4,0,1))*(INDEX(budA2SF,0,1)="Salary")*(rngCFA2=A52)),0) -> 0 | Q52: =IF(ISNUMBER(SUMPRODUCT(--ISNUMBER(rngCFA2)*(INDEX(budA2BP5,0,1))*(INDEX(budA2SF,0,1)="Salary")*(rngCFA2=A52))),SUMPRODUCT(--ISNUMBER(rngCFA2)*(INDEX(budA2BP5,0,1))*(INDEX(budA2SF,0,1)="Salary")*(rngCFA2=A52)),0) -> 0 | T52: =IF(ISNUMBER(SUMPRODUCT(--ISNUMBER(rngCFA2)*(INDEX(budA2BP6,0,1))*(INDEX(budA2SF,0,1)="Salary")*(rngCFA2=A52))),SUMPRODUCT(--ISNUMBER(rngCFA2)*(INDEX(budA2BP6,0,1))*(INDEX(budA2SF,0,1)="Salary")*(rngCFA2=A52)),0) -> 0 | W52: =IF(ISNUMBER(SUMPRODUCT(--ISNUMBER(rngCFA2)*(INDEX(budA2BP7,0,1))*(INDEX(budA2SF,0,1)="Salary")*(rngCFA2=A52))),SUMPRODUCT(--ISNUMBER(rngCFA2)*(INDEX(budA2BP7,0,1))*(INDEX(budA2SF,0,1)="Salary")*(rngCFA2=A52)),0) -> 0 | Z52: =IF(ISNUMBER(SUMPRODUCT(--ISNUMBER(rngCFA2)*(INDEX(budA2BP8,0,1))*(INDEX(budA2SF,0,1)="Salary")*(rngCFA2=A52))),SUMPRODUCT(--ISNUMBER(rngCFA2)*(INDEX(budA2BP8,0,1))*(INDEX(budA2SF,0,1)="Salary")*(rngCFA2=A52)),0) -> 0 | AC52: =IF(ISNUMBER(SUMPRODUCT(--ISNUMBER(rngCFA2)*(INDEX(budA2BP9,0,1))*(INDEX(budA2SF,0,1)="Salary")*(rngCFA2=A52))),SUMPRODUCT(--ISNUMBER(rngCFA2)*(INDEX(budA2BP9,0,1))*(INDEX(budA2SF,0,1)="Salary")*(rngCFA2=A52)),0) -> 0 | AF52: =IF(ISNUMBER(SUMPRODUCT(--ISNUMBER(rngCFA2)*(INDEX(budA2BP10,0,1))*(INDEX(budA2SF,0,1)="Salary")*(rngCFA2=A52))),SUMPRODUCT(--ISNUMBER(rngCFA2)*(INDEX(budA2BP10,0,1))*(INDEX(budA2SF,0,1)="Salary")*(rngCFA2=A52)),0) -> 0 | AI52: 0
A53: =_xlfn.XLOOKUP(B53,MTDC[Description],MTDC[VALUE],"N/A",0) -> 51110 | B53: FB Staff Employees | D53: =IF(sFABC=2,"Included",IF(sFABC=3,"Custom F&A Amt",IF(_xlfn.XLOOKUP(B53,MTDC[Description],MTDC[Include in MTDC],"N/A",0)="MTDC","Included","Excluded"))) -> Included | E53: =SUMPRODUCT((INDEX(budA2SF,0,1)="Fringe")*INDEX(budA2BP1,0,1)) -> 0 | H53: =SUMPRODUCT((INDEX(budA2SF,0,1)="Fringe")*INDEX(budA2BP2,0,1)) -> 0 | K53: =SUMPRODUCT((INDEX(budA2SF,0,1)="Fringe")*INDEX(budA2BP3,0,1)) -> 0 | N53: =SUMPRODUCT((INDEX(budA2SF,0,1)="Fringe")*INDEX(budA2BP4,0,1)) -> 0 | Q53: =SUMPRODUCT((INDEX(budA2SF,0,1)="Fringe")*INDEX(budA2BP5,0,1)) -> 0 | T53: =SUMPRODUCT((INDEX(budA2SF,0,1)="Fringe")*INDEX(budA2BP6,0,1)) -> 0 | W53: =SUMPRODUCT((INDEX(budA2SF,0,1)="Fringe")*INDEX(budA2BP7,0,1)) -> 0 | Z53: =SUMPRODUCT((INDEX(budA2SF,0,1)="Fringe")*INDEX(budA2BP8,0,1)) -> 0 | AC53: =SUMPRODUCT((INDEX(budA2SF,0,1)="Fringe")*INDEX(budA2BP9,0,1)) -> 0 | AF53: =SUMPRODUCT((INDEX(budA2SF,0,1)="Fringe")*INDEX(budA2BP10,0,1)) -> 0 | AI53: =SUM(E53:AH53) -> 0
B55: Salary & Wages (Basic) | E55: =SUM(E39:G52) -> 0 | H55: =SUM(H39:J52) -> 0 | K55: =SUM(K39:M52) -> 0 | N55: =SUM(N39:P52) -> 0 | Q55: =SUM(Q39:S52) -> 0 | T55: =SUM(T39:V52) -> 0 | W55: =SUM(W39:Y52) -> 0 | Z55: =SUM(Z39:AB52) -> 0 | AC55: =SUM(AC39:AE52) -> 0 | AF55: =SUM(AF39:AH52) -> 0 | AI55: =SUM(E55:AH55) -> 0
B56: Fringe (Basic) | E56: =SUMPRODUCT((INDEX(budA2SF,0,1)="Fringe")*INDEX(budA2BP1,0,1)) -> 0 | H56: =SUMPRODUCT((INDEX(budA2SF,0,1)="Fringe")*INDEX(budA2BP2,0,1)) -> 0 | K56: =SUMPRODUCT((INDEX(budA2SF,0,1)="Fringe")*INDEX(budA2BP3,0,1)) -> 0 | N56: =SUMPRODUCT((INDEX(budA2SF,0,1)="Fringe")*INDEX(budA2BP4,0,1)) -> 0 | Q56: =SUMPRODUCT((INDEX(budA2SF,0,1)="Fringe")*INDEX(budA2BP5,0,1)) -> 0 | T56: =SUMPRODUCT((INDEX(budA2SF,0,1)="Fringe")*INDEX(budA2BP6,0,1)) -> 0 | W56: =SUMPRODUCT((INDEX(budA2SF,0,1)="Fringe")*INDEX(budA2BP7,0,1)) -> 0 | Z56: =SUMPRODUCT((INDEX(budA2SF,0,1)="Fringe")*INDEX(budA2BP8,0,1)) -> 0 | AC56: =SUMPRODUCT((INDEX(budA2SF,0,1)="Fringe")*INDEX(budA2BP9,0,1)) -> 0 | AF56: =SUMPRODUCT((INDEX(budA2SF,0,1)="Fringe")*INDEX(budA2BP10,0,1)) -> 0 | AI56: =SUM(E56:AH56) -> 0
B57: Total Salary & Wages (Basic) | E57: =SUM(E55:G56) -> 0 | H57: =SUM(H55:J56) -> 0 | K57: =SUM(K55:M56) -> 0 | N57: =SUM(N55:P56) -> 0 | Q57: =SUM(Q55:S56) -> 0 | T57: =SUM(T55:V56) -> 0 | W57: =SUM(W55:Y56) -> 0 | Z57: =SUM(Z55:AB56) -> 0 | AC57: =SUM(AC55:AE56) -> 0 | AF57: =SUM(AF55:AH56) -> 0 | AI57: =SUM(E57:AH57) -> 0
A59: A3. TOTAL SALARY & WAGES
AO60: A3. SALARIES & WAGES
A61: =_xlfn.XLOOKUP(B61,MTDC[Description],MTDC[VALUE],"N/A",0) -> 50010 | B61: S&W Staff | D61: =IF(AND(B61="Make a Selection",OR(sFABC=1,sFABC=2,sFABC=3)),"",IF(sFABC=2,"Included",IF(sFABC=3,"Custom F&A Amt",IF(_xlfn.XLOOKUP(B61,MTDC[Description],MTDC[Include in MTDC],"N/A",0)="MTDC","Included","Excluded")))) -> Included | E61: =SUM(E14,E39) -> 0 | H61: =SUM(H14,H39) -> 0 | K61: =SUM(K14,K39) -> 0 | N61: =SUM(N14,N39) -> 0 | Q61: =SUM(Q14,Q39) -> 0 | T61: =SUM(T14,T39) -> 0 | W61: =SUM(W14,W39) -> 0 | Z61: =SUM(Z14,Z39) -> 0 | AC61: =SUM(AC14,AC39) -> 0 | AF61: =SUM(AF14,AF39) -> 0 | AI61: =SUM(E61:AH61) -> 0 | AM61: Included | AO61: =A61 -> 50010 | AP61: =B61 -> S&W Staff | AQ61: =IF(D61="Included","Inc.",IF(D61="Excluded","Exc.","")) -> Inc. | AR61: =E61 -> 0 | AS61: =H61 -> 0 | AT61: =K61 -> 0 | AU61: =N61 -> 0 | AV61: =Q61 -> 0 | AW61: =T61 -> 0 | AX61: =W61 -> 0 | AY61: =Z61 -> 0 | AZ61: =AC61 -> 0 | BA61: =AF61 -> 0 | BB61: =AI61 -> 0 | BC61: =IF(AL61="","",AL61) -> 
A62: =_xlfn.XLOOKUP(B62,MTDC[Description],MTDC[VALUE],"N/A",0) -> 50020 | B62: S&W Tenured Faculty | D62: =IF(AND(B62="Make a Selection",OR(sFABC=1,sFABC=2,sFABC=3)),"",IF(sFABC=2,"Included",IF(sFABC=3,"Custom F&A Amt",IF(_xlfn.XLOOKUP(B62,MTDC[Description],MTDC[Include in MTDC],"N/A",0)="MTDC","Included","Excluded")))) -> Included | E62: 0 | H62: 0 | K62: 0 | N62: 0 | Q62: 0 | T62: 0 | W62: 0 | Z62: 0 | AC62: 0 | AF62: 0 | AI62: =SUM(E62:AH62) -> 0 | AM62: Included | AO62: 50020 | AP62: S&W Tenured Faculty | AQ62: Inc. | AR62: 0 | AS62: 0 | AT62: 0 | AU62: 0 | AV62: 0 | AW62: 0 | AX62: 0 | AY62: 0 | AZ62: 0 | BA62: 0 | BB62: 0
A63: =_xlfn.XLOOKUP(B63,MTDC[Description],MTDC[VALUE],"N/A",0) -> 50030 | B63: S&W Tenure Track Faculty | D63: =IF(AND(B63="Make a Selection",OR(sFABC=1,sFABC=2,sFABC=3)),"",IF(sFABC=2,"Included",IF(sFABC=3,"Custom F&A Amt",IF(_xlfn.XLOOKUP(B63,MTDC[Description],MTDC[Include in MTDC],"N/A",0)="MTDC","Included","Excluded")))) -> Included | E63: 0 | H63: 0 | K63: 0 | N63: 0 | Q63: 0 | T63: 0 | W63: 0 | Z63: 0 | AC63: 0 | AF63: 0 | AI63: 0 | AM63: Included | AO63: 50030 | AP63: S&W Tenure Track Faculty | AQ63: Inc. | AR63: 0 | AS63: 0 | AT63: 0 | AU63: 0 | AV63: 0 | AW63: 0 | AX63: 0 | AY63: 0 | AZ63: 0 | BA63: 0 | BB63: 0
A64: =_xlfn.XLOOKUP(B64,MTDC[Description],MTDC[VALUE],"N/A",0) -> 50040 | B64: S&W NonTenured Faculty | D64: =IF(AND(B64="Make a Selection",OR(sFABC=1,sFABC=2,sFABC=3)),"",IF(sFABC=2,"Included",IF(sFABC=3,"Custom F&A Amt",IF(_xlfn.XLOOKUP(B64,MTDC[Description],MTDC[Include in MTDC],"N/A",0)="MTDC","Included","Excluded")))) -> Included | E64: 0 | H64: 0 | K64: 0 | N64: 0 | Q64: 0 | T64: 0 | W64: 0 | Z64: 0 | AC64: 0 | AF64: 0 | AI64: 0 | AM64: Included | AO64: 50040 | AP64: S&W NonTenured Faculty | AQ64: Inc. | AR64: 0 | AS64: 0 | AT64: 0 | AU64: 0 | AV64: 0 | AW64: 0 | AX64: 0 | AY64: 0 | AZ64: 0 | BA64: 0 | BB64: 0
A65: =_xlfn.XLOOKUP(B65,MTDC[Description],MTDC[VALUE],"N/A",0) -> 50050 | B65: S&W TA & GA | D65: =IF(AND(B65="Make a Selection",OR(sFABC=1,sFABC=2,sFABC=3)),"",IF(sFABC=2,"Included",IF(sFABC=3,"Custom F&A Amt",IF(_xlfn.XLOOKUP(B65,MTDC[Description],MTDC[Include in MTDC],"N/A",0)="MTDC","Included","Excluded")))) -> Included | E65: 0 | H65: 0 | K65: 0 | N65: 0 | Q65: 0 | T65: 0 | W65: 0 | Z65: 0 | AC65: 0 | AF65: 0 | AI65: 0 | AM65: Included | AO65: 50050 | AP65: S&W TA & GA | AQ65: Inc. | AR65: 0 | AS65: 0 | AT65: 0 | AU65: 0 | AV65: 0 | AW65: 0 | AX65: 0 | AY65: 0 | AZ65: 0 | BA65: 0 | BB65: 0
A66: =_xlfn.XLOOKUP(B66,MTDC[Description],MTDC[VALUE],"N/A",0) -> 50060 | B66: S&W Post Doctorate & Associates | D66: =IF(AND(B66="Make a Selection",OR(sFABC=1,sFABC=2,sFABC=3)),"",IF(sFABC=2,"Included",IF(sFABC=3,"Custom F&A Amt",IF(_xlfn.XLOOKUP(B66,MTDC[Description],MTDC[Include in MTDC],"N/A",0)="MTDC","Included","Excluded")))) -> Included | E66: 0 | H66: 0 | K66: 0 | N66: 0 | Q66: 0 | T66: 0 | W66: 0 | Z66: 0 | AC66: 0 | AF66: 0 | AI66: 0 | AM66: Included | AO66: 50060 | AP66: S&W Post Doctorate & Associates | AQ66: Inc. | AR66: 0 | AS66: 0 | AT66: 0 | AU66: 0 | AV66: 0 | AW66: 0 | AX66: 0 | AY66: 0 | AZ66: 0 | BA66: 0 | BB66: 0
A67: =_xlfn.XLOOKUP(B67,MTDC[Description],MTDC[VALUE],"N/A",0) -> 50070 | B67: S&W Housestaff | D67: =IF(AND(B67="Make a Selection",OR(sFABC=1,sFABC=2,sFABC=3)),"",IF(sFABC=2,"Included",IF(sFABC=3,"Custom F&A Amt",IF(_xlfn.XLOOKUP(B67,MTDC[Description],MTDC[Include in MTDC],"N/A",0)="MTDC","Included","Excluded")))) -> Included | E67: 0 | H67: 0 | K67: 0 | N67: 0 | Q67: 0 | T67: 0 | W67: 0 | Z67: 0 | AC67: 0 | AF67: 0 | AI67: 0 | AM67: Included | AO67: 50070 | AP67: S&W Housestaff | AQ67: Inc. | AR67: 0 | AS67: 0 | AT67: 0 | AU67: 0 | AV67: 0 | AW67: 0 | AX67: 0 | AY67: 0 | AZ67: 0 | BA67: 0 | BB67: 0
A68: =_xlfn.XLOOKUP(B68,MTDC[Description],MTDC[VALUE],"N/A",0) -> 50080 | B68: S&W Coadjutant NonInstructional (Summer Salary) | D68: =IF(AND(B68="Make a Selection",OR(sFABC=1,sFABC=2,sFABC=3)),"",IF(sFABC=2,"Included",IF(sFABC=3,"Custom F&A Amt",IF(_xlfn.XLOOKUP(B68,MTDC[Description],MTDC[Include in MTDC],"N/A",0)="MTDC","Included","Excluded")))) -> Included | E68: 0 | H68: 0 | K68: 0 | N68: 0 | Q68: 0 | T68: 0 | W68: 0 | Z68: 0 | AC68: 0 | AF68: 0 | AI68: 0 | AM68: Included | AO68: 50080 | AP68: S&W Coadjutant NonInstructional (Summer Salary) | AQ68: Inc. | AR68: 0 | AS68: 0 | AT68: 0 | AU68: 0 | AV68: 0 | AW68: 0 | AX68: 0 | AY68: 0 | AZ68: 0 | BA68: 0 | BB68: 0
A69: =_xlfn.XLOOKUP(B69,MTDC[Description],MTDC[VALUE],"N/A",0) -> 50081 | B69: S&W Coadjutant PTL Instructional | D69: =IF(AND(B69="Make a Selection",OR(sFABC=1,sFABC=2,sFABC=3)),"",IF(sFABC=2,"Included",IF(sFABC=3,"Custom F&A Amt",IF(_xlfn.XLOOKUP(B69,MTDC[Description],MTDC[Include in MTDC],"N/A",0)="MTDC","Included","Excluded")))) -> Included | E69: 0 | H69: 0 | K69: 0 | N69: 0 | Q69: 0 | T69: 0 | W69: 0 | Z69: 0 | AC69: 0 | AF69: 0 | AI69: 0 | AM69: Included | AO69: 50081 | AP69: S&W Coadjutant PTL Instructional | AQ69: Inc. | AR69: 0 | AS69: 0 | AT69: 0 | AU69: 0 | AV69: 0 | AW69: 0 | AX69: 0 | AY69: 0 | AZ69: 0 | BA69: 0 | BB69: 0
A70: =_xlfn.XLOOKUP(B70,MTDC[Description],MTDC[VALUE],"N/A",0) -> 50090 | B70: S&W Student Employment | D70: =IF(AND(B70="Make a Selection",OR(sFABC=1,sFABC=2,sFABC=3)),"",IF(sFABC=2,"Included",IF(sFABC=3,"Custom F&A Amt",IF(_xlfn.XLOOKUP(B70,MTDC[Description],MTDC[Include in MTDC],"N/A",0)="MTDC","Included","Excluded")))) -> Included | E70: 0 | H70: 0 | K70: 0 | N70: 0 | Q70: 0 | T70: 0 | W70: 0 | Z70: 0 | AC70: 0 | AF70: 0 | AI70: 0 | AM70: Included | AO70: 50090 | AP70: S&W Student Employment | AQ70: Inc. | AR70: 0 | AS70: 0 | AT70: 0 | AU70: 0 | AV70: 0 | AW70: 0 | AX70: 0 | AY70: 0 | AZ70: 0 | BA70: 0 | BB70: 0
A71: =_xlfn.XLOOKUP(B71,MTDC[Description],MTDC[VALUE],"N/A",0) -> 50100 | B71: S&W Contracted | D71: =IF(AND(B71="Make a Selection",OR(sFABC=1,sFABC=2,sFABC=3)),"",IF(sFABC=2,"Included",IF(sFABC=3,"Custom F&A Amt",IF(_xlfn.XLOOKUP(B71,MTDC[Description],MTDC[Include in MTDC],"N/A",0)="MTDC","Included","Excluded")))) -> Included | E71: 0 | H71: 0 | K71: 0 | N71: 0 | Q71: 0 | T71: 0 | W71: 0 | Z71: 0 | AC71: 0 | AF71: 0 | AI71: 0 | AM71: Included | AO71: 50100 | AP71: S&W Contracted | AQ71: Inc. | AR71: 0 | AS71: 0 | AT71: 0 | AU71: 0 | AV71: 0 | AW71: 0 | AX71: 0 | AY71: 0 | AZ71: 0 | BA71: 0 | BB71: 0
A72: =_xlfn.XLOOKUP(B72,MTDC[Description],MTDC[VALUE],"N/A",0) -> 50110 | B72: Student Aid Student Researcher Stipend | D72: =IF(AND(B72="Make a Selection",OR(sFABC=1,sFABC=2,sFABC=3)),"",IF(sFABC=2,"Included",IF(sFABC=3,"Custom F&A Amt",IF(_xlfn.XLOOKUP(B72,MTDC[Description],MTDC[Include in MTDC],"N/A",0)="MTDC","Included","Excluded")))) -> Included | E72: 0 | H72: 0 | K72: 0 | N72: 0 | Q72: 0 | T72: 0 | W72: 0 | Z72: 0 | AC72: 0 | AF72: 0 | AI72: 0 | AM72: Included | AO72: 50110 | AP72: Student Aid Student Researcher Stipend | AQ72: Inc. | AR72: 0 | AS72: 0 | AT72: 0 | AU72: 0 | AV72: 0 | AW72: 0 | AX72: 0 | AY72: 0 | AZ72: 0 | BA72: 0 | BB72: 0
A73: =_xlfn.XLOOKUP(B73,MTDC[Description],MTDC[VALUE],"N/A",0) -> 50115 | B73: Student Aid Pre & Post Fellowship | D73: =IF(AND(B73="Make a Selection",OR(sFABC=1,sFABC=2,sFABC=3)),"",IF(sFABC=2,"Included",IF(sFABC=3,"Custom F&A Amt",IF(_xlfn.XLOOKUP(B73,MTDC[Description],MTDC[Include in MTDC],"N/A",0)="MTDC","Included","Excluded")))) -> Included | E73: 0 | H73: 0 | K73: 0 | N73: 0 | Q73: 0 | T73: 0 | W73: 0 | Z73: 0 | AC73: 0 | AF73: 0 | AI73: 0 | AM73: Included | AO73: 50115 | AP73: Student Aid Pre & Post Fellowship | AQ73: Inc. | AR73: 0 | AS73: 0 | AT73: 0 | AU73: 0 | AV73: 0 | AW73: 0 | AX73: 0 | AY73: 0 | AZ73: 0 | BA73: 0 | BB73: 0
A74: =_xlfn.XLOOKUP(B74,MTDC[Description],MTDC[VALUE],"N/A",0) -> 50120 | B74: S&W Hourly Employees | D74: =IF(AND(B74="Make a Selection",OR(sFABC=1,sFABC=2,sFABC=3)),"",IF(sFABC=2,"Included",IF(sFABC=3,"Custom F&A Amt",IF(_xlfn.XLOOKUP(B74,MTDC[Description],MTDC[Include in MTDC],"N/A",0)="MTDC","Included","Excluded")))) -> Included | E74: 0 | H74: 0 | K74: 0 | N74: 0 | Q74: 0 | T74: 0 | W74: 0 | Z74: 0 | AC74: 0 | AF74: 0 | AI74: 0 | AM74: Included | AO74: 50120 | AP74: S&W Hourly Employees | AQ74: Inc. | AR74: 0 | AS74: 0 | AT74: 0 | AU74: 0 | AV74: 0 | AW74: 0 | AX74: 0 | AY74: 0 | AZ74: 0 | BA74: 0 | BB74: 0
A75: =_xlfn.XLOOKUP(B75,MTDC[Description],MTDC[VALUE],"N/A",0) -> 51110 | B75: FB Staff Employees | D75: =IF(sFABC=2,"Included",IF(sFABC=3,"Custom F&A Amt",IF(_xlfn.XLOOKUP(B75,MTDC[Description],MTDC[Include in MTDC],"N/A",0)="MTDC","Included","Excluded"))) -> Included | E75: 0 | H75: 0 | K75: 0 | N75: 0 | Q75: 0 | T75: 0 | W75: 0 | Z75: 0 | AC75: 0 | AF75: 0 | AI75: 0 | AM75: Included | AP75: Fringe Benefits (Total) | AQ75: Inc. | AR75: 0 | AS75: 0 | AT75: 0 | AU75: 0 | AV75: 0 | AW75: 0 | AX75: 0 | AY75: 0 | AZ75: 0 | BA75: 0 | BB75: 0
C77: Salary & Wages (Total) | E77: =SUM(E30,E55) -> 0 | H77: =SUM(H30,H55) -> 0 | K77: =SUM(K30,K55) -> 0 | N77: =SUM(N30,N55) -> 0 | Q77: =SUM(Q30,Q55) -> 0 | T77: =SUM(T30,T55) -> 0 | W77: =SUM(W30,W55) -> 0 | Z77: =SUM(Z30,Z55) -> 0 | AC77: =SUM(AC30,AC55) -> 0 | AF77: =SUM(AF30,AF55) -> 0 | AI77: =SUM(E77:AH77) -> 0
C78: Fringe (Total) | E78: =SUM(E31,E56) -> 0 | H78: =SUM(H31,H56) -> 0 | K78: =SUM(K31,K56) -> 0 | N78: =SUM(N31,N56) -> 0 | Q78: =SUM(Q31,Q56) -> 0 | T78: =SUM(T31,T56) -> 0 | W78: =SUM(W31,W56) -> 0 | Z78: =SUM(Z31,Z56) -> 0 | AC78: =SUM(AC31,AC56) -> 0 | AF78: =SUM(AF31,AF56) -> 0 | AI78: =SUM(E78:AH78) -> 0
C79: Salary & Wages (Total) | E79: =SUM(E77:G78) -> 0 | H79: =SUM(H77:J78) -> 0 | K79: =SUM(K77:M78) -> 0 | N79: =SUM(N77:P78) -> 0 | Q79: =SUM(Q77:S78) -> 0 | T79: =SUM(T77:V78) -> 0 | W79: =SUM(W77:Y78) -> 0 | Z79: =SUM(Z77:AB78) -> 0 | AC79: =SUM(AC77:AE78) -> 0 | AF79: =SUM(AF77:AH78) -> 0 | AI79: =SUM(E79:AH79) -> 0 | AM79: Included
A81: CONSULTANTS WORKSHEET
A82: Enter Consultant's Name | E82: 0 | H82: 0 | K82: 0 | N82: 0 | Q82: 0 | T82: 0 | W82: 0 | Z82: 0 | AC82: 0 | AF82: 0 | AI82: =SUM(E82:AH82) -> 0
A84: (Appears in Section F of the template) | C84: Total Consultants | E84: =SUM(E82:G83) -> 0 | H84: =SUM(H82:J83) -> 0 | K84: =SUM(K82:M83) -> 0 | N84: =SUM(N82:P83) -> 0 | Q84: =SUM(Q82:S83) -> 0 | T84: =SUM(T82:V83) -> 0 | W84: =SUM(W82:Y83) -> 0 | Z84: =SUM(Z82:AB83) -> 0 | AC84: =SUM(AC82:AE83) -> 0 | AF84: =SUM(AF82:AH83) -> 0 | AI84: =SUM(E84:AH84) -> 0
A86: SUBCONTRACTS WORKSHEET
A87: Enter Subcontractor's Name | D87: Direct | E87: 0 | H87: 0 | K87: 0 | N87: 0 | Q87: 0 | T87: 0 | W87: 0 | Z87: 0 | AC87: 0 | AF87: 0 | AI87: =SUM(E87:AH87) -> 0
A88: Yes | B88: Apply Indirect Costs on First $25K | D88: Indirect | E88: 0 | H88: 0 | K88: 0 | N88: 0 | Q88: 0 | T88: 0 | W88: 0 | Z88: 0 | AC88: 0 | AF88: 0 | AI88: =SUM(E88:AH88) -> 0
D89: Subtotal | E89: =SUM(E87:G88) -> 0 | H89: =SUM(H87:J88) -> 0 | K89: =SUM(K87:M88) -> 0 | N89: =SUM(N87:P88) -> 0 | Q89: =SUM(Q87:S88) -> 0 | T89: =SUM(T87:V88) -> 0 | W89: =SUM(W87:Y88) -> 0 | Z89: =SUM(Z87:AB88) -> 0 | AC89: =SUM(AC87:AE88) -> 0 | AF89: =SUM(AF87:AH88) -> 0 | AI89: 0
D90: LTE25K | E90: =IF(A88="No",0,IF(SUM(E89)<25001,E89,25000)) -> 0 | H90: =IF(A88="No",0,IF(SUM(E89:J89)<25001,H89,25000-SUM(E90))) -> 0 | K90: =IF(A88="No",0,IF(SUM(E89:M89)<25001,K89,25000-SUM(E90:J90))) -> 0 | N90: =IF(A88="No",0,IF(SUM(E89:P89)<25001,N89,25000-SUM(E90:M90))) -> 0 | Q90: =IF(A88="No",0,IF(SUM(E89:S89)<25001,Q89,25000-SUM(E90:P90))) -> 0 | T90: =IF(A88="No",0,IF(SUM(E89:V89)<25001,T89,25000-SUM(E90:S90))) -> 0 | W90: =IF(A88="No",0,IF(SUM(E89:Y89)<25001,W89,25000-SUM(E90:V90))) -> 0 | Z90: =IF(A88="No",0,IF(SUM(E89:AB89)<25001,Z89,25000-SUM(E90:Y90))) -> 0 | AC90: =IF(A88="No",0,IF(SUM(E89:AE89)<25001,AC89,25000-SUM(E90:AB90))) -> 0 | AF90: =IF(A88="No",0,IF(SUM(E89:AH89)<25001,AF89,25000-SUM(E90:AE90))) -> 0 | AI90: =SUM(E90:AH90) -> 0
D91: GT25K | E91: =IF(A88="No",E89,IF(SUM(E89)<25001,0,E89-E90)) -> 0 | H91: =IF(A88="No",H89,IF(SUM(E89:J89)<25001,0,H89-H90)) -> 0 | K91: =IF(A88="No",K89,IF(SUM(E89:M89)<25001,0,K89-K90)) -> 0 | N91: =IF(A88="No",N89,IF(SUM(E89:P89)<25001,0,N89-N90)) -> 0 | Q91: =IF(A88="No",Q89,IF(SUM(E89:S89)<25001,0,Q89-Q90)) -> 0 | T91: =IF(A88="No",T89,IF(SUM(E89:V89)<25001,0,T89-T90)) -> 0 | W91: =IF(A88="No",W89,IF(SUM(B89:Y89)<25001,0,W89-W90)) -> 0 | Z91: =IF(A88="No",Z89,IF(SUM(E89:AB89)<25001,0,Z89-Z90)) -> 0 | AC91: =IF(A88="No",AC89,IF(SUM(E89:AE89)<25001,0,AC89-AC90)) -> 0 | AF91: =IF(SUM(E89:AH89)<25001,0,AF89-AF90) -> 0 | AI91: =SUM(E91:AH91) -> 0
C93: Total Subcontracts <= to 25,000 | E93: =SUMPRODUCT((rngSUBCat="LTE25K")*rngSUBBP1) -> 0 | H93: =SUMPRODUCT((rngSUBCat="LTE25K")*rngSUBBP2) -> 0 | K93: =SUMPRODUCT((rngSUBCat="LTE25K")*rngSUBBP3) -> 0 | N93: =SUMPRODUCT((rngSUBCat="LTE25K")*rngSUBBP4) -> 0 | Q93: =SUMPRODUCT((rngSUBCat="LTE25K")*rngSUBBP5) -> 0 | T93: =SUMPRODUCT((rngSUBCat="LTE25K")*rngSUBBP6) -> 0 | W93: =SUMPRODUCT((rngSUBCat="LTE25K")*rngSUBBP7) -> 0 | Z93: =SUMPRODUCT((rngSUBCat="LTE25K")*rngSUBBP8) -> 0 | AC93: =SUMPRODUCT((rngSUBCat="LTE25K")*rngSUBBP9) -> 0 | AF93: =SUMPRODUCT((rngSUBCat="LTE25K")*rngSUBBP10) -> 0 | AI93: =SUM(E93:AH93) -> 0
A94: (Appears in Section F of the template) | C94: Total Subcontracts > 25,000 | E94: =SUMPRODUCT((rngSUBCat="GT25K")*rngSUBBP1) -> 0 | H94: =SUMPRODUCT((rngSUBCat="GT25K")*rngSUBBP2) -> 0 | K94: =SUMPRODUCT((rngSUBCat="GT25K")*rngSUBBP3) -> 0 | N94: =SUMPRODUCT((rngSUBCat="GT25K")*rngSUBBP4) -> 0 | Q94: =SUMPRODUCT((rngSUBCat="GT25K")*rngSUBBP5) -> 0 | T94: =SUMPRODUCT((rngSUBCat="GT25K")*rngSUBBP6) -> 0 | W94: =SUMPRODUCT((rngSUBCat="GT25K")*rngSUBBP7) -> 0 | Z94: =SUMPRODUCT((rngSUBCat="GT25K")*rngSUBBP8) -> 0 | AC94: =SUMPRODUCT((rngSUBCat="GT25K")*rngSUBBP9) -> 0 | AF94: =SUMPRODUCT((rngSUBCat="GT25K")*rngSUBBP10) -> 0 | AI94: 0
C95: Total Subcontracts | E95: =SUM(E93:G94) -> 0 | H95: =SUM(H93:J94) -> 0 | K95: =SUM(K93:M94) -> 0 | N95: =SUM(N93:P94) -> 0 | Q95: =SUM(Q93:S94) -> 0 | T95: =SUM(T93:V94) -> 0 | W95: =SUM(W93:Y94) -> 0 | Z95: =SUM(Z93:AB94) -> 0 | AC95: =SUM(AC93:AE94) -> 0 | AF95: =SUM(AF93:AH94) -> 0 | AI95: =SUM(E95:AH95) -> 0
A97: B. FRINGE BENEFITS (NON-SALARY) | AO97: =bOLB -> B. FRINGE BENEFITS (NON-SALARY) | AQ97: =IF(D99="Included","Inc.",IF(D99="Excluded","Exc.","")) -> Exc. | BC97: =IF(AL99="","",AL99) -> 
A98: =_xlfn.XLOOKUP(B98,MTDC[Description],MTDC[VALUE],"N/A",0) -> 61030 | B98: Tuition Remission TA & GA Fees | D98: =IF(AND(B98="Make a Selection",OR(sFABC=1,sFABC=2,sFABC=3)),"",IF(sFABC=2,"Included",IF(sFABC=3,"Custom F&A Amt",IF(_xlfn.XLOOKUP(B98,MTDC[Description],MTDC[Include in MTDC],"N/A",0)="MTDC","Included","Excluded")))) -> Included | E98: 0 | H98: 0 | K98: 0 | N98: 0 | Q98: 0 | T98: 0 | W98: 0 | Z98: 0 | AC98: 0 | AF98: 0 | AI98: =SUM(E98:AH98) -> 0 | AM98: =D98 -> Included | AO98: =A98 -> 61030 | AP98: Tuition Remission TA & GA Fees | AQ98: =IF(D98="Included","Inc.",IF(D98="Excluded","Exc.","")) -> Inc. | AR98: =E98 -> 0 | AS98: =H98 -> 0 | AT98: =K98 -> 0 | AU98: =N98 -> 0 | AV98: =Q98 -> 0 | AW98: =T98 -> 0 | AX98: =W98 -> 0 | AY98: =Z98 -> 0 | AZ98: =AC98 -> 0 | BA98: =AF98 -> 0 | BB98: =AI98 -> 0 | BC98: =IF(AL98="","",AL98) -> 
A99: =_xlfn.XLOOKUP(B99,MTDC[Description],MTDC[VALUE],"N/A",0) -> 61060 | B99: Tuition Remission Other | D99: =IF(AND(B99="Make a Selection",OR(sFABC=1,sFABC=2,sFABC=3)),"",IF(sFABC=2,"Included",IF(sFABC=3,"Custom F&A Amt",IF(_xlfn.XLOOKUP(B99,MTDC[Description],MTDC[Include in MTDC],"N/A",0)="MTDC","Included","Excluded")))) -> Excluded | E99: 0 | H99: 0 | K99: 0 | N99: 0 | Q99: 0 | T99: 0 | W99: 0 | Z99: 0 | AC99: 0 | AF99: 0 | AI99: =SUM(E99:AH99) -> 0 | AM99: =D99 -> Excluded | AO99: 61060 | AP99: Tuition Remission Other | AQ99: =IF(D99="Included","Inc.",IF(D99="Excluded","Exc.","")) -> Exc. | AR99: =E99 -> 0 | AS99: =H99 -> 0 | AT99: =K99 -> 0 | AU99: =N99 -> 0 | AV99: =Q99 -> 0 | AW99: =T99 -> 0 | AX99: =W99 -> 0 | AY99: =Z99 -> 0 | AZ99: =AC99 -> 0 | BA99: =AF99 -> 0 | BB99: =AI99 -> 0 | BC99: =IF(AL99="","",AL99) -> 
A100: =_xlfn.XLOOKUP(B100,MTDC[Description],MTDC[VALUE],"N/A",0) -> N/A | B100: Make a selection | D100: =IF(AND(B100="Make a Selection",OR(sFABC=1,sFABC=2,sFABC=3)),"",IF(sFABC=2,"Included",IF(sFABC=3,"Custom F&A Amt",IF(_xlfn.XLOOKUP(B100,MTDC[Description],MTDC[Include in MTDC],"N/A",0)="MTDC","Included","Excluded")))) ->  | E100: 0 | H100: 0 | K100: 0 | N100: 0 | Q100: 0 | T100: 0 | W100: 0 | Z100: 0 | AC100: 0 | AF100: 0 | AI100: =SUM(E100:AH100) -> 0 | AO100: N/A | AP100: Make a selection | AQ100: =IF(D100="Included","Inc.",IF(D100="Excluded","Exc.","")) ->  | AR100: =E100 -> 0 | AS100: =H100 -> 0 | AT100: =K100 -> 0 | AU100: =N100 -> 0 | AV100: =Q100 -> 0 | AW100: =T100 -> 0 | AX100: =W100 -> 0 | AY100: =Z100 -> 0 | AZ100: =AC100 -> 0 | BA100: =AF100 -> 0 | BB100: =AI100 -> 0 | BC100: =IF(AL100="","",AL100) -> 
AQ101: =IF(D102="Included","Inc.",IF(D102="Excluded","Exc.","")) ->  | BC101: =IF(AL101="","",AL101) -> 
B102: Total Fringe Benefits (Non Salary) | E102: =SUM(E98:G101) -> 0 | H102: =SUM(H98:J101) -> 0 | K102: =SUM(K98:M101) -> 0 | N102: =SUM(N98:P101) -> 0 | Q102: =SUM(Q98:S101) -> 0 | T102: =SUM(T98:V101) -> 0 | W102: =SUM(W98:Y101) -> 0 | Z102: =SUM(Z98:AB101) -> 0 | AC102: =SUM(AC98:AE101) -> 0 | AF102: =SUM(AF98:AH101) -> 0 | AI102: =SUM(E102:AH102) -> 0 | AM102: Sec B
A104: C. OTHER POST-EMPLOYMENT BENEFITS | AO104: =bOLC -> C. OTHER POST-EMPLOYMENT BENEFITS | AQ104: =IF(D106="Included","Inc.",IF(D106="Excluded","Exc.","")) ->  | BC104: =IF(AL103="","",AL103) -> 
A105: =_xlfn.XLOOKUP(B105,MTDC[Description],MTDC[VALUE],"N/A",0) -> N/A | B105: Make a selection | D105: =IF(AND(B105="Make a Selection",OR(sFABC=1,sFABC=2,sFABC=3)),"",IF(sFABC=2,"Included",IF(sFABC=3,"Custom F&A Amt",IF(_xlfn.XLOOKUP(B105,MTDC[Description],MTDC[Include in MTDC],"N/A",0)="MTDC","Included","Excluded")))) ->  | E105: 0 | H105: 0 | K105: 0 | N105: 0 | Q105: 0 | T105: 0 | W105: 0 | Z105: 0 | AC105: 0 | AF105: 0 | AI105: =SUM(E105:AH105) -> 0 | AM105: =D105 ->  | AO105: =A105 -> N/A | AP105: =B105 -> Make a selection | AQ105: =IF(D105="Included","Inc.",IF(D105="Excluded","Exc.","")) ->  | AR105: =E105 -> 0 | AS105: =H105 -> 0 | AT105: =K105 -> 0 | AU105: =N105 -> 0 | AV105: =Q105 -> 0 | AW105: =T105 -> 0 | AX105: =W105 -> 0 | AY105: =Z105 -> 0 | AZ105: =AC105 -> 0 | BA105: =AF105 -> 0 | BB105: =AI105 -> 0 | BC105: =IF(AL105="","",AL105) -> 
AQ106: =IF(D107="Included","Inc.",IF(D107="Excluded","Exc.","")) ->  | BC106: =IF(AL107="","",AL107) -> 
B107: Total Other Post Employment Benefits | E107: =SUM(E105:G106) -> 0 | H107: =SUM(H105:J106) -> 0 | K107: =SUM(K105:M106) -> 0 | N107: =SUM(N105:P106) -> 0 | Q107: =SUM(Q105:S106) -> 0 | T107: =SUM(T105:V106) -> 0 | W107: =SUM(W105:Y106) -> 0 | Z107: =SUM(Z105:AB106) -> 0 | AC107: =SUM(AC105:AE106) -> 0 | AF107: =SUM(AF105:AH106) -> 0 | AI107: =SUM(E107:AH107) -> 0 | AM107: Sec C
A109: D. SUPPLIES & MATERIALS | AO109: =bOLD -> D. SUPPLIES & MATERIALS | AQ109: =IF(D111="Included","Inc.",IF(D111="Excluded","Exc.","")) -> Inc. | BC109: =IF(AL111="","",AL111) -> 
A110: =_xlfn.XLOOKUP(B110,MTDC[Description],MTDC[VALUE],"N/A",0) -> 52610 | B110: Medical Supplies Laboratory | D110: =IF(AND(B110="Make a Selection",OR(sFABC=1,sFABC=2,sFABC=3)),"",IF(sFABC=2,"Included",IF(sFABC=3,"Custom F&A Amt",IF(_xlfn.XLOOKUP(B110,MTDC[Description],MTDC[Include in MTDC],"N/A",0)="MTDC","Included","Excluded")))) -> Included | E110: 0 | H110: 0 | K110: 0 | N110: 0 | Q110: 0 | T110: 0 | W110: 0 | Z110: 0 | AC110: 0 | AF110: 0 | AI110: =SUM(E110:AH110) -> 0 | AM110: =D110 -> Included | AO110: =A110 -> 52610 | AP110: Medical Supplies Laboratory | AQ110: =IF(D110="Included","Inc.",IF(D110="Excluded","Exc.","")) -> Inc. | AR110: =E110 -> 0 | AS110: =H110 -> 0 | AT110: =K110 -> 0 | AU110: =N110 -> 0 | AV110: =Q110 -> 0 | AW110: =T110 -> 0 | AX110: =W110 -> 0 | AY110: =Z110 -> 0 | AZ110: =AC110 -> 0 | BA110: =AF110 -> 0 | BB110: =AI110 -> 0 | BC110: =IF(AL110="","",AL110) -> 
A111: =_xlfn.XLOOKUP(B111,MTDC[Description],MTDC[VALUE],"N/A",0) -> 52950 | B111: Office Supplies General | D111: =IF(AND(B111="Make a Selection",OR(sFABC=1,sFABC=2,sFABC=3)),"",IF(sFABC=2,"Included",IF(sFABC=3,"Custom F&A Amt",IF(_xlfn.XLOOKUP(B111,MTDC[Description],MTDC[Include in MTDC],"N/A",0)="MTDC","Included","Excluded")))) -> Included | E111: 0 | H111: 0 | K111: 0 | N111: 0 | Q111: 0 | T111: 0 | W111: 0 | Z111: 0 | AC111: 0 | AF111: 0 | AI111: 0 | AM111: Included | AO111: 52950 | AP111: Office Supplies General | AQ111: Inc. | AR111: 0 | AS111: 0 | AT111: 0 | AU111: 0 | AV111: 0 | AW111: 0 | AX111: 0 | AY111: 0 | AZ111: 0 | BA111: 0 | BB111: 0
A112: =_xlfn.XLOOKUP(B112,MTDC[Description],MTDC[VALUE],"N/A",0) -> 52970 | B112: Office Supplies Postage & Shipping | D112: =IF(AND(B112="Make a Selection",OR(sFABC=1,sFABC=2,sFABC=3)),"",IF(sFABC=2,"Included",IF(sFABC=3,"Custom F&A Amt",IF(_xlfn.XLOOKUP(B112,MTDC[Description],MTDC[Include in MTDC],"N/A",0)="MTDC","Included","Excluded")))) -> Included | E112: 0 | H112: 0 | K112: 0 | N112: 0 | Q112: 0 | T112: 0 | W112: 0 | Z112: 0 | AC112: 0 | AF112: 0 | AI112: =SUM(E112:AH112) -> 0 | AM112: Included | AO112: 52970 | AP112: Office Supplies Postage & Shipping | AQ112: Inc. | AR112: 0 | AS112: 0 | AT112: 0 | AU112: 0 | AV112: 0 | AW112: 0 | AX112: 0 | AY112: 0 | AZ112: 0 | BA112: 0 | BB112: 0
A113: =_xlfn.XLOOKUP(B113,MTDC[Description],MTDC[VALUE],"N/A",0) -> 53050 | B113: Other Supplies General | D113: =IF(AND(B113="Make a Selection",OR(sFABC=1,sFABC=2,sFABC=3)),"",IF(sFABC=2,"Included",IF(sFABC=3,"Custom F&A Amt",IF(_xlfn.XLOOKUP(B113,MTDC[Description],MTDC[Include in MTDC],"N/A",0)="MTDC","Included","Excluded")))) -> Included | E113: 0 | H113: 0 | K113: 0 | N113: 0 | Q113: 0 | T113: 0 | W113: 0 | Z113: 0 | AC113: 0 | AF113: 0 | AI113: 0 | AM113: Included | AO113: 53050 | AP113: Other Supplies General | AQ113: Inc. | AR113: 0 | AS113: 0 | AT113: 0 | AU113: 0 | AV113: 0 | AW113: 0 | AX113: 0 | AY113: 0 | AZ113: 0 | BA113: 0 | BB113: 0
A114: =_xlfn.XLOOKUP(B114,MTDC[Description],MTDC[VALUE],"N/A",0) -> 53077 | B114: Other Supplies Labs & Research Animals | D114: =IF(AND(B114="Make a Selection",OR(sFABC=1,sFABC=2,sFABC=3)),"",IF(sFABC=2,"Included",IF(sFABC=3,"Custom F&A Amt",IF(_xlfn.XLOOKUP(B114,MTDC[Description],MTDC[Include in MTDC],"N/A",0)="MTDC","Included","Excluded")))) -> Included | E114: 0 | H114: 0 | K114: 0 | N114: 0 | Q114: 0 | T114: 0 | W114: 0 | Z114: 0 | AC114: 0 | AF114: 0 | AI114: 0 | AM114: Included | AO114: 53077 | AP114: Other Supplies Labs & Research Animals | AQ114: Inc. | AR114: 0 | AS114: 0 | AT114: 0 | AU114: 0 | AV114: 0 | AW114: 0 | AX114: 0 | AY114: 0 | AZ114: 0 | BA114: 0 | BB114: 0
A115: =_xlfn.XLOOKUP(B115,MTDC[Description],MTDC[VALUE],"N/A",0) -> 53102 | B115: Other Supplies Research Chemicals | D115: =IF(AND(B115="Make a Selection",OR(sFABC=1,sFABC=2,sFABC=3)),"",IF(sFABC=2,"Included",IF(sFABC=3,"Custom F&A Amt",IF(_xlfn.XLOOKUP(B115,MTDC[Description],MTDC[Include in MTDC],"N/A",0)="MTDC","Included","Excluded")))) -> Included | E115: 0 | H115: 0 | K115: 0 | N115: 0 | Q115: 0 | T115: 0 | W115: 0 | Z115: 0 | AC115: 0 | AF115: 0 | AI115: 0 | AM115: Included | AO115: 53102 | AP115: Other Supplies Research Chemicals | AQ115: Inc. | AR115: 0 | AS115: 0 | AT115: 0 | AU115: 0 | AV115: 0 | AW115: 0 | AX115: 0 | AY115: 0 | AZ115: 0 | BA115: 0 | BB115: 0
A116: =_xlfn.XLOOKUP(B116,MTDC[Description],MTDC[VALUE],"N/A",0) -> N/A | B116: Make a selection | D116: =IF(AND(B116="Make a Selection",OR(sFABC=1,sFABC=2,sFABC=3)),"",IF(sFABC=2,"Included",IF(sFABC=3,"Custom F&A Amt",IF(_xlfn.XLOOKUP(B116,MTDC[Description],MTDC[Include in MTDC],"N/A",0)="MTDC","Included","Excluded")))) ->  | E116: 0 | H116: 0 | K116: 0 | N116: 0 | Q116: 0 | T116: 0 | W116: 0 | Z116: 0 | AC116: 0 | AF116: 0 | AI116: 0 | AO116: N/A | AP116: Make a selection | AR116: 0 | AS116: 0 | AT116: 0 | AU116: 0 | AV116: 0 | AW116: 0 | AX116: 0 | AY116: 0 | AZ116: 0 | BA116: 0 | BB116: 0
AQ117: =IF(D118="Included","Inc.",IF(D118="Excluded","Exc.","")) ->  | BC117: =IF(AL117="","",AL117) -> 
B118: Total Supplies and Materials | E118: =SUM(E110:G117) -> 0 | H118: =SUM(H110:J117) -> 0 | K118: =SUM(K110:M117) -> 0 | N118: =SUM(N110:P117) -> 0 | Q118: =SUM(Q110:S117) -> 0 | T118: =SUM(T110:V117) -> 0 | W118: =SUM(W110:Y117) -> 0 | Z118: =SUM(Z110:AB117) -> 0 | AC118: =SUM(AC110:AE117) -> 0 | AF118: =SUM(AF110:AH117) -> 0 | AI118: =SUM(E118:AH118) -> 0 | AM118: Sec D
A120: E. SERVICES | AO120: =bOLE -> E. SERVICES | AQ120: =IF(D122="Included","Inc.",IF(D122="Excluded","Exc.","")) -> Inc. | BC120: =IF(AL121="","",AL121) -> 
A121: =_xlfn.XLOOKUP(B121,MTDC[Description],MTDC[VALUE],"N/A",0) -> 54300 | B121: Services Shared Equipment | D121: =IF(AND(B121="Make a Selection",OR(sFABC=1,sFABC=2,sFABC=3)),"",IF(sFABC=2,"Included",IF(sFABC=3,"Custom F&A Amt",IF(_xlfn.XLOOKUP(B121,MTDC[Description],MTDC[Include in MTDC],"N/A",0)="MTDC","Included","Excluded")))) -> Included | E121: 0 | H121: 0 | K121: 0 | N121: 0 | Q121: 0 | T121: 0 | W121: 0 | Z121: 0 | AC121: 0 | AF121: 0 | AI121: =SUM(E121:AH121) -> 0 | AM121: =D121 -> Included | AO121: =A121 -> 54300 | AP121: Services Shared Equipment | AQ121: =IF(D121="Included","Inc.",IF(D121="Excluded","Exc.","")) -> Inc. | AR121: =E121 -> 0 | AS121: =H121 -> 0 | AT121: =K121 -> 0 | AU121: =N121 -> 0 | AV121: =Q121 -> 0 | AW121: =T121 -> 0 | AX121: =W121 -> 0 | AY121: =Z121 -> 0 | AZ121: =AC121 -> 0 | BA121: =AF121 -> 0 | BB121: =AI121 -> 0 | BC121: =IF(AL121="","",AL121) -> 
A122: =_xlfn.XLOOKUP(B122,MTDC[Description],MTDC[VALUE],"N/A",0) -> 54160 | B122: Services Human Subjects | D122: =IF(AND(B122="Make a Selection",OR(sFABC=1,sFABC=2,sFABC=3)),"",IF(sFABC=2,"Included",IF(sFABC=3,"Custom F&A Amt",IF(_xlfn.XLOOKUP(B122,MTDC[Description],MTDC[Include in MTDC],"N/A",0)="MTDC","Included","Excluded")))) -> Included | E122: 0 | H122: 0 | K122: 0 | N122: 0 | Q122: 0 | T122: 0 | W122: 0 | Z122: 0 | AC122: 0 | AF122: 0 | AI122: =SUM(E122:AH122) -> 0 | AM122: Included | AO122: 54160 | AP122: Services Human Subjects | AQ122: Inc. | AR122: 0 | AS122: 0 | AT122: 0 | AU122: 0 | AV122: 0 | AW122: 0 | AX122: 0 | AY122: 0 | AZ122: 0 | BA122: 0 | BB122: 0
A123: =_xlfn.XLOOKUP(B123,MTDC[Description],MTDC[VALUE],"N/A",0) -> 54180 | B123: Services Laboratory External | D123: =IF(AND(B123="Make a Selection",OR(sFABC=1,sFABC=2,sFABC=3)),"",IF(sFABC=2,"Included",IF(sFABC=3,"Custom F&A Amt",IF(_xlfn.XLOOKUP(B123,MTDC[Description],MTDC[Include in MTDC],"N/A",0)="MTDC","Included","Excluded")))) -> Included | E123: 0 | H123: 0 | K123: 0 | N123: 0 | Q123: 0 | T123: 0 | W123: 0 | Z123: 0 | AC123: 0 | AF123: 0 | AI123: 0 | AM123: Included | AO123: 54180 | AP123: Services Laboratory External | AQ123: Inc. | AR123: 0 | AS123: 0 | AT123: 0 | AU123: 0 | AV123: 0 | AW123: 0 | AX123: 0 | AY123: 0 | AZ123: 0 | BA123: 0 | BB123: 0
A124: =_xlfn.XLOOKUP(B124,MTDC[Description],MTDC[VALUE],"N/A",0) -> 54205 | B124: Services CMR Animal Care Per Diem Fees | D124: =IF(AND(B124="Make a Selection",OR(sFABC=1,sFABC=2,sFABC=3)),"",IF(sFABC=2,"Included",IF(sFABC=3,"Custom F&A Amt",IF(_xlfn.XLOOKUP(B124,MTDC[Description],MTDC[Include in MTDC],"N/A",0)="MTDC","Included","Excluded")))) -> Included | E124: 0 | H124: 0 | K124: 0 | N124: 0 | Q124: 0 | T124: 0 | W124: 0 | Z124: 0 | AC124: 0 | AF124: 0 | AI124: 0 | AM124: Included | AO124: 54205 | AP124: Services CMR Animal Care Per Diem Fees | AQ124: Inc. | AR124: 0 | AS124: 0 | AT124: 0 | AU124: 0 | AV124: 0 | AW124: 0 | AX124: 0 | AY124: 0 | AZ124: 0 | BA124: 0 | BB124: 0
A125: =_xlfn.XLOOKUP(B125,MTDC[Description],MTDC[VALUE],"N/A",0) -> 54230 | B125: Services Medical | D125: =IF(AND(B125="Make a Selection",OR(sFABC=1,sFABC=2,sFABC=3)),"",IF(sFABC=2,"Included",IF(sFABC=3,"Custom F&A Amt",IF(_xlfn.XLOOKUP(B125,MTDC[Description],MTDC[Include in MTDC],"N/A",0)="MTDC","Included","Excluded")))) -> Excluded | E125: 0 | H125: 0 | K125: 0 | N125: 0 | Q125: 0 | T125: 0 | W125: 0 | Z125: 0 | AC125: 0 | AF125: 0 | AI125: 0 | AM125: Excluded | AO125: 54230 | AP125: Services Medical | AQ125: Exc. | AR125: 0 | AS125: 0 | AT125: 0 | AU125: 0 | AV125: 0 | AW125: 0 | AX125: 0 | AY125: 0 | AZ125: 0 | BA125: 0 | BB125: 0
A126: =_xlfn.XLOOKUP(B126,MTDC[Description],MTDC[VALUE],"N/A",0) -> 54490 | B126: Services Other | D126: =IF(AND(B126="Make a Selection",OR(sFABC=1,sFABC=2,sFABC=3)),"",IF(sFABC=2,"Included",IF(sFABC=3,"Custom F&A Amt",IF(_xlfn.XLOOKUP(B126,MTDC[Description],MTDC[Include in MTDC],"N/A",0)="MTDC","Included","Excluded")))) -> Included | E126: 0 | H126: 0 | K126: 0 | N126: 0 | Q126: 0 | T126: 0 | W126: 0 | Z126: 0 | AC126: 0 | AF126: 0 | AI126: 0 | AM126: Included | AO126: 54490 | AP126: Services Other | AQ126: Inc. | AR126: 0 | AS126: 0 | AT126: 0 | AU126: 0 | AV126: 0 | AW126: 0 | AX126: 0 | AY126: 0 | AZ126: 0 | BA126: 0 | BB126: 0
A127: =_xlfn.XLOOKUP(B127,MTDC[Description],MTDC[VALUE],"N/A",0) -> N/A | B127: Make a selection | D127: =IF(AND(B127="Make a Selection",OR(sFABC=1,sFABC=2,sFABC=3)),"",IF(sFABC=2,"Included",IF(sFABC=3,"Custom F&A Amt",IF(_xlfn.XLOOKUP(B127,MTDC[Description],MTDC[Include in MTDC],"N/A",0)="MTDC","Included","Excluded")))) ->  | E127: 0 | H127: 0 | K127: 0 | N127: 0 | Q127: 0 | T127: 0 | W127: 0 | Z127: 0 | AC127: 0 | AF127: 0 | AI127: =SUM(E127:AH127) -> 0 | AM127: =D127 ->  | AO127: =A127 -> N/A | AP127: =B127 -> Make a selection | AQ127: =IF(D127="Included","Inc.",IF(D127="Excluded","Exc.","")) ->  | AR127: =E127 -> 0 | AS127: =H127 -> 0 | AT127: =K127 -> 0 | AU127: =N127 -> 0 | AV127: =Q127 -> 0 | AW127: =T127 -> 0 | AX127: =W127 -> 0 | AY127: =Z127 -> 0 | AZ127: =AC127 -> 0 | BA127: =AF127 -> 0 | BB127: =AI127 -> 0 | BC127: =IF(AL127="","",AL127) -> 
AQ128: =IF(D129="Included","Inc.",IF(D129="Excluded","Exc.","")) ->  | BC128: =IF(AL129="","",AL129) -> 
B129: Total Services | E129: =SUM(E121:G128) -> 0 | H129: =SUM(H121:J128) -> 0 | K129: =SUM(K121:M128) -> 0 | N129: =SUM(N121:P128) -> 0 | Q129: =SUM(Q121:S128) -> 0 | T129: =SUM(T121:V128) -> 0 | W129: =SUM(W121:Y128) -> 0 | Z129: =SUM(Z121:AB128) -> 0 | AC129: =SUM(AC121:AE128) -> 0 | AF129: =SUM(AF121:AH128) -> 0 | AI129: =SUM(E129:AH129) -> 0 | AM129: Sec E
A131: F. PROFESSIONAL SERVICES | AO131: =bOLF -> F. PROFESSIONAL SERVICES | AQ131: =IF(D133="Included","Inc.",IF(D133="Excluded","Exc.","")) -> Inc. | BC131: =IF(AL133="","",AL133) -> 
A132: =_xlfn.XLOOKUP(B132,MTDC[Description],MTDC[VALUE],"N/A",0) -> 55080 | B132: Professional Service Consultants | D132: =IF(AND(B132="Make a Selection",OR(sFABC=1,sFABC=2,sFABC=3)),"",IF(sFABC=2,"Included",IF(sFABC=3,"Custom F&A Amt",IF(_xlfn.XLOOKUP(B132,MTDC[Description],MTDC[Include in MTDC],"N/A",0)="MTDC","Included","Excluded")))) -> Included | E132: =budCONBP1 -> 0 | H132: =budCONBP2 -> 0 | K132: =budCONBP3 -> 0 | N132: =budCONBP4 -> 0 | Q132: =budCONBP5 -> 0 | T132: =budCONBP6 -> 0 | W132: =budCONBP7 -> 0 | Z132: =budCONBP8 -> 0 | AC132: =budCONBP9 -> 0 | AF132: =budCONBP10 -> 0 | AI132: =budCONTOT -> 0 | AM132: =D132 -> Included | AO132: =A132 -> 55080 | AP132: Professional Service Consultants | AQ132: =IF(D132="Included","Inc.",IF(D132="Excluded","Exc.","")) -> Inc. | AR132: =E132 -> 0 | AS132: =H132 -> 0 | AT132: =K132 -> 0 | AU132: =N132 -> 0 | AV132: =Q132 -> 0 | AW132: =T132 -> 0 | AX132: =W132 -> 0 | AY132: =Z132 -> 0 | AZ132: =AC132 -> 0 | BA132: =AF132 -> 0 | BB132: =AI132 -> 0 | BC132: =IF(AL132="","",AL132) -> 
A133: =_xlfn.XLOOKUP(B133,MTDC[Description],MTDC[VALUE],"N/A",0) -> 55250 | B133: Professional Service Publication | D133: =IF(AND(B133="Make a Selection",OR(sFABC=1,sFABC=2,sFABC=3)),"",IF(sFABC=2,"Included",IF(sFABC=3,"Custom F&A Amt",IF(_xlfn.XLOOKUP(B133,MTDC[Description],MTDC[Include in MTDC],"N/A",0)="MTDC","Included","Excluded")))) -> Included | E133: 0 | H133: 0 | K133: 0 | N133: 0 | Q133: 0 | T133: 0 | W133: 0 | Z133: 0 | AC133: 0 | AF133: 0 | AI133: =SUM(E133:AH133) -> 0 | AM133: Included | AO133: 55250 | AP133: Professional Service Publication | AQ133: =IF(D133="Included","Inc.",IF(D133="Excluded","Exc.","")) -> Inc. | AR133: =E133 -> 0 | AS133: =H133 -> 0 | AT133: =K133 -> 0 | AU133: =N133 -> 0 | AV133: =Q133 -> 0 | AW133: =T133 -> 0 | AX133: =W133 -> 0 | AY133: =Z133 -> 0 | AZ133: =AC133 -> 0 | BA133: =AF133 -> 0 | BB133: =AI133 -> 0 | BC133: =IF(AL133="","",AL133) -> 
A134: =_xlfn.XLOOKUP(B134,MTDC[Description],MTDC[VALUE],"N/A",0) -> 55270 | B134: Professional Service Subaward Expenditures | D134: =IF(AND(B134="Make a Selection",OR(sFABC=1,sFABC=2,sFABC=3)),"",IF(sFABC=2,"Included",IF(sFABC=3,"Custom F&A Amt",IF(_xlfn.XLOOKUP(B134,MTDC[Description],MTDC[Include in MTDC],"N/A",0)="MTDC","Included","Excluded")))) -> Included | E134: =budLTE25KBP1 -> 0 | H134: =budLTE25KBP2 -> 0 | K134: =budLTE25KBP3 -> 0 | N134: =budLTE25KBP4 -> 0 | Q134: =budLTE25KBP5 -> 0 | T134: =budLTE25KBP6 -> 0 | W134: =budLTE25KBP7 -> 0 | Z134: =budLTE25KBP8 -> 0 | AC134: =budLTE25KBP9 -> 0 | AF134: =budLTE25KBP10 -> 0 | AI134: =budLTE25KTOT -> 0 | AM134: Included | AO134: 55270 | AP134: Professional Service Subaward Expenditures | AQ134: =IF(D134="Included","Inc.",IF(D134="Excluded","Exc.","")) -> Inc. | AR134: =E134 -> 0 | AS134: =H134 -> 0 | AT134: =K134 -> 0 | AU134: =N134 -> 0 | AV134: =Q134 -> 0 | AW134: =T134 -> 0 | AX134: =W134 -> 0 | AY134: =Z134 -> 0 | AZ134: =AC134 -> 0 | BA134: =AF134 -> 0 | BB134: =AI134 -> 0 | BC134: =IF(AL134="","",AL134) -> 
A135: =_xlfn.XLOOKUP(B135,MTDC[Description],MTDC[VALUE],"N/A",0) -> 55280 | B135: Professional Service Subaward Expenditures $25K+ | D135: =IF(AND(B135="Make a Selection",OR(sFABC=1,sFABC=2,sFABC=3)),"",IF(sFABC=2,"Included",IF(sFABC=3,"Custom F&A Amt",IF(_xlfn.XLOOKUP(B135,MTDC[Description],MTDC[Include in MTDC],"N/A",0)="MTDC","Included","Excluded")))) -> Excluded | E135: =budGT25KBP1 -> 0 | H135: =budGT25KBP2 -> 0 | K135: =budGT25KBP3 -> 0 | N135: =budGT25KBP4 -> 0 | Q135: =budGT25KBP5 -> 0 | T135: =budGT25KBP6 -> 0 | W135: =budGT25KBP7 -> 0 | Z135: =budGT25KBP8 -> 0 | AC135: =budGT25KBP9 -> 0 | AF135: =budGT25KBP10 -> 0 | AI135: =budGT25KTOT -> 0 | AM135: Excluded | AO135: 55280 | AP135: Professional Service Subaward Expenditures $25K+ | AQ135: =IF(D135="Included","Inc.",IF(D135="Excluded","Exc.","")) -> Exc. | AR135: =E135 -> 0 | AS135: =H135 -> 0 | AT135: =K135 -> 0 | AU135: =N135 -> 0 | AV135: =Q135 -> 0 | AW135: =T135 -> 0 | AX135: =W135 -> 0 | AY135: =Z135 -> 0 | AZ135: =AC135 -> 0 | BA135: =AF135 -> 0 | BB135: =AI135 -> 0 | BC135: =IF(AL135="","",AL135) -> 
A136: =_xlfn.XLOOKUP(B136,MTDC[Description],MTDC[VALUE],"N/A",0) -> N/A | B136: Make a selection | D136: =IF(AND(B136="Make a Selection",OR(sFABC=1,sFABC=2,sFABC=3)),"",IF(sFABC=2,"Included",IF(sFABC=3,"Custom F&A Amt",IF(_xlfn.XLOOKUP(B136,MTDC[Description],MTDC[Include in MTDC],"N/A",0)="MTDC","Included","Excluded")))) ->  | E136: 0 | H136: 0 | K136: 0 | N136: 0 | Q136: 0 | T136: 0 | W136: 0 | Z136: 0 | AC136: 0 | AF136: 0 | AI136: =SUM(E136:AH136) -> 0 | AO136: N/A | AP136: Make a selection | AQ136: =IF(D136="Included","Inc.",IF(D136="Excluded","Exc.","")) ->  | AR136: =E136 -> 0 | AS136: =H136 -> 0 | AT136: =K136 -> 0 | AU136: =N136 -> 0 | AV136: =Q136 -> 0 | AW136: =T136 -> 0 | AX136: =W136 -> 0 | AY136: =Z136 -> 0 | AZ136: =AC136 -> 0 | BA136: =AF136 -> 0 | BB136: =AI136 -> 0 | BC136: =IF(AL136="","",AL136) -> 
AQ137: =IF(D138="Included","Inc.",IF(D138="Excluded","Exc.","")) ->  | BC137: =IF(AL138="","",AL138) -> 
B138: Total Professional Services | E138: =SUM(E132:G137) -> 0 | H138: =SUM(H132:J137) -> 0 | K138: =SUM(K132:M137) -> 0 | N138: =SUM(N132:P137) -> 0 | Q138: =SUM(Q132:S137) -> 0 | T138: =SUM(T132:V137) -> 0 | W138: =SUM(W132:Y137) -> 0 | Z138: =SUM(Z132:AB137) -> 0 | AC138: =SUM(AC132:AE137) -> 0 | AF138: =SUM(AF132:AH137) -> 0 | AI138: =SUM(E138:AH138) -> 0 | AM138: Sec F
A140: G. TRAVEL & BUSINESS EXPENSES | AO140: =bOLG -> G. TRAVEL & BUSINESS EXPENSES | AQ140: =IF(D142="Included","Inc.",IF(D142="Excluded","Exc.","")) -> Inc. | BC140: =IF(AL142="","",AL142) -> 
A141: =_xlfn.XLOOKUP(B141,MTDC[Description],MTDC[VALUE],"N/A",0) -> 57050 | B141: Other Travel Domestic | D141: =IF(AND(B141="Make a Selection",OR(sFABC=1,sFABC=2,sFABC=3)),"",IF(sFABC=2,"Included",IF(sFABC=3,"Custom F&A Amt",IF(_xlfn.XLOOKUP(B141,MTDC[Description],MTDC[Include in MTDC],"N/A",0)="MTDC","Included","Excluded")))) -> Included | E141: 0 | H141: 0 | K141: 0 | N141: 0 | Q141: 0 | T141: 0 | W141: 0 | Z141: 0 | AC141: 0 | AF141: 0 | AI141: =SUM(E141:AH141) -> 0 | AM141: =D141 -> Included | AO141: =A141 -> 57050 | AP141: Other Travel Domestic | AQ141: =IF(D141="Included","Inc.",IF(D141="Excluded","Exc.","")) -> Inc. | AR141: =E141 -> 0 | AS141: =H141 -> 0 | AT141: =K141 -> 0 | AU141: =N141 -> 0 | AV141: =Q141 -> 0 | AW141: =T141 -> 0 | AX141: =W141 -> 0 | AY141: =Z141 -> 0 | AZ141: =AC141 -> 0 | BA141: =AF141 -> 0 | BB141: =AI141 -> 0 | BC141: =IF(AL141="","",AL141) -> 
A142: =_xlfn.XLOOKUP(B142,MTDC[Description],MTDC[VALUE],"N/A",0) -> 57060 | B142: Other Travel Foreign | D142: =IF(AND(B142="Make a Selection",OR(sFABC=1,sFABC=2,sFABC=3)),"",IF(sFABC=2,"Included",IF(sFABC=3,"Custom F&A Amt",IF(_xlfn.XLOOKUP(B142,MTDC[Description],MTDC[Include in MTDC],"N/A",0)="MTDC","Included","Excluded")))) -> Included | E142: 0 | H142: 0 | K142: 0 | N142: 0 | Q142: 0 | T142: 0 | W142: 0 | Z142: 0 | AC142: 0 | AF142: 0 | AI142: 0 | AM142: Included | AO142: 57060 | AP142: Other Travel Foreign | AQ142: =IF(D142="Included","Inc.",IF(D142="Excluded","Exc.","")) -> Inc. | AR142: =E142 -> 0 | AS142: =H142 -> 0 | AT142: =K142 -> 0 | AU142: =N142 -> 0 | AV142: =Q142 -> 0 | AW142: =T142 -> 0 | AX142: =W142 -> 0 | AY142: =Z142 -> 0 | AZ142: =AC142 -> 0 | BA142: =AF142 -> 0 | BB142: =AI142 -> 0 | BC142: =IF(AL142="","",AL142) -> 
A143: =_xlfn.XLOOKUP(B143,MTDC[Description],MTDC[VALUE],"N/A",0) -> N/A | B143: Make a selection | D143: =IF(AND(B143="Make a Selection",OR(sFABC=1,sFABC=2,sFABC=3)),"",IF(sFABC=2,"Included",IF(sFABC=3,"Custom F&A Amt",IF(_xlfn.XLOOKUP(B143,MTDC[Description],MTDC[Include in MTDC],"N/A",0)="MTDC","Included","Excluded")))) ->  | E143: 0 | H143: 0 | K143: 0 | N143: 0 | Q143: 0 | T143: 0 | W143: 0 | Z143: 0 | AC143: 0 | AF143: 0 | AI143: =SUM(E143:AH143) -> 0 | AO143: N/A | AP143: Make a selection | AQ143: =IF(D143="Included","Inc.",IF(D143="Excluded","Exc.","")) ->  | AR143: =E143 -> 0 | AS143: =H143 -> 0 | AT143: =K143 -> 0 | AU143: =N143 -> 0 | AV143: =Q143 -> 0 | AW143: =T143 -> 0 | AX143: =W143 -> 0 | AY143: =Z143 -> 0 | AZ143: =AC143 -> 0 | BA143: =AF143 -> 0 | BB143: =AI143 -> 0 | BC143: =IF(AL143="","",AL143) -> 
AQ144: =IF(D145="Included","Inc.",IF(D145="Excluded","Exc.","")) ->  | BC144: =IF(AL145="","",AL145) -> 
B145: Total Travel and Business Expense | E145: =SUM(E141:G144) -> 0 | H145: =SUM(H141:J144) -> 0 | K145: =SUM(K141:M144) -> 0 | N145: =SUM(N141:P144) -> 0 | Q145: =SUM(Q141:S144) -> 0 | T145: =SUM(T141:V144) -> 0 | W145: =SUM(W141:Y144) -> 0 | Z145: =SUM(Z141:AB144) -> 0 | AC145: =SUM(AC141:AE144) -> 0 | AF145: =SUM(AF141:AH144) -> 0 | AI145: =SUM(E145:AH145) -> 0 | AM145: Sec G
A147: H. SCHOLARSHIPS & FELLOWSHIPS | AO147: =bOLH -> H. SCHOLARSHIPS & FELLOWSHIPS | AQ147: =IF(D149="Included","Inc.",IF(D149="Excluded","Exc.","")) ->  | BC147: =IF(AL149="","",AL149) -> 
A148: =_xlfn.XLOOKUP(B148,MTDC[Description],MTDC[VALUE],"N/A",0) -> 57520 | B148: Student Aid General | D148: =IF(AND(B148="Make a Selection",OR(sFABC=1,sFABC=2,sFABC=3)),"",IF(sFABC=2,"Included",IF(sFABC=3,"Custom F&A Amt",IF(_xlfn.XLOOKUP(B148,MTDC[Description],MTDC[Include in MTDC],"N/A",0)="MTDC","Included","Excluded")))) -> Excluded | E148: 0 | H148: 0 | K148: 0 | N148: 0 | Q148: 0 | T148: 0 | W148: 0 | Z148: 0 | AC148: 0 | AF148: 0 | AI148: =SUM(E148:AH148) -> 0 | AM148: =D148 -> Excluded | AO148: =A148 -> 57520 | AP148: =B148 -> Student Aid General | AQ148: =IF(D148="Included","Inc.",IF(D148="Excluded","Exc.","")) -> Exc. | AR148: =E148 -> 0 | AS148: =H148 -> 0 | AT148: =K148 -> 0 | AU148: =N148 -> 0 | AV148: =Q148 -> 0 | AW148: =T148 -> 0 | AX148: =W148 -> 0 | AY148: =Z148 -> 0 | AZ148: =AC148 -> 0 | BA148: =AF148 -> 0 | BB148: =AI148 -> 0 | BC148: =IF(AL148="","",AL148) -> 
A149: =_xlfn.XLOOKUP(B149,MTDC[Description],MTDC[VALUE],"N/A",0) -> N/A | B149: Make a selection | D149: =IF(AND(B149="Make a Selection",OR(sFABC=1,sFABC=2,sFABC=3)),"",IF(sFABC=2,"Included",IF(sFABC=3,"Custom F&A Amt",IF(_xlfn.XLOOKUP(B149,MTDC[Description],MTDC[Include in MTDC],"N/A",0)="MTDC","Included","Excluded")))) ->  | E149: 0 | H149: 0 | K149: 0 | N149: 0 | Q149: 0 | T149: 0 | W149: 0 | Z149: 0 | AC149: 0 | AF149: 0 | AI149: =SUM(E149:AH149) -> 0 | AO149: =A149 -> N/A | AP149: =B149 -> Make a selection | AQ149: =IF(D149="Included","Inc.",IF(D149="Excluded","Exc.","")) ->  | AR149: =E149 -> 0 | AS149: =H149 -> 0 | AT149: =K149 -> 0 | AU149: =N149 -> 0 | AV149: =Q149 -> 0 | AW149: =T149 -> 0 | AX149: =W149 -> 0 | AY149: =Z149 -> 0 | AZ149: =AC149 -> 0 | BA149: =AF149 -> 0 | BB149: =AI149 -> 0 | BC149: =IF(AL149="","",AL149) -> 
AQ150: =IF(D151="Included","Inc.",IF(D151="Excluded","Exc.","")) ->  | BC150: =IF(AL151="","",AL151) -> 
B151: Total Scholarships & Fellowships | E151: =SUM(E148:G150) -> 0 | H151: =SUM(H148:J150) -> 0 | K151: =SUM(K148:M150) -> 0 | N151: =SUM(N148:P150) -> 0 | Q151: =SUM(Q148:S150) -> 0 | T151: =SUM(T148:V150) -> 0 | W151: =SUM(W148:Y150) -> 0 | Z151: =SUM(Z148:AB150) -> 0 | AC151: =SUM(AC148:AE150) -> 0 | AF151: =SUM(AF148:AH150) -> 0 | AI151: =SUM(E151:AH151) -> 0 | AM151: Sec H
A153: I. COMPUTERS & EQUIPMENT | AO153: =bOLI -> I. COMPUTERS & EQUIPMENT | AQ153: =IF(D155="Included","Inc.",IF(D155="Excluded","Exc.","")) -> Exc. | BC153: =IF(AL155="","",AL155) -> 
A154: =_xlfn.XLOOKUP(B154,MTDC[Description],MTDC[VALUE],"N/A",0) -> 58020 | B154: Computer Software | D154: =IF(AND(B154="Make a Selection",OR(sFABC=1,sFABC=2,sFABC=3)),"",IF(sFABC=2,"Included",IF(sFABC=3,"Custom F&A Amt",IF(_xlfn.XLOOKUP(B154,MTDC[Description],MTDC[Include in MTDC],"N/A",0)="MTDC","Included","Excluded")))) -> Included | E154: 0 | H154: 0 | K154: 0 | N154: 0 | Q154: 0 | T154: 0 | W154: 0 | Z154: 0 | AC154: 0 | AF154: 0 | AI154: =SUM(E154:AH154) -> 0 | AM154: =D154 -> Included | AO154: =A154 -> 58020 | AP154: Computer Software | AQ154: =IF(D154="Included","Inc.",IF(D154="Excluded","Exc.","")) -> Inc. | AR154: =E154 -> 0 | AS154: =H154 -> 0 | AT154: =K154 -> 0 | AU154: =N154 -> 0 | AV154: =Q154 -> 0 | AW154: =T154 -> 0 | AX154: =W154 -> 0 | AY154: =Z154 -> 0 | AZ154: =AC154 -> 0 | BA154: =AF154 -> 0 | BB154: =AI154 -> 0 | BC154: =IF(AL154="","",AL154) -> 
A155: =_xlfn.XLOOKUP(B155,MTDC[Description],MTDC[VALUE],"N/A",0) -> 58060 | B155: Equipment Grant Related | D155: =IF(AND(B155="Make a Selection",OR(sFABC=1,sFABC=2,sFABC=3)),"",IF(sFABC=2,"Included",IF(sFABC=3,"Custom F&A Amt",IF(_xlfn.XLOOKUP(B155,MTDC[Description],MTDC[Include in MTDC],"N/A",0)="MTDC","Included","Excluded")))) -> Excluded | E155: 0 | H155: 0 | K155: 0 | N155: 0 | Q155: 0 | T155: 0 | W155: 0 | Z155: 0 | AC155: 0 | AF155: 0 | AI155: 0 | AM155: Excluded | AO155: 58060 | AP155: Equipment Grant Related | AQ155: =IF(D155="Included","Inc.",IF(D155="Excluded","Exc.","")) -> Exc. | AR155: =E155 -> 0 | AS155: =H155 -> 0 | AT155: =K155 -> 0 | AU155: =N155 -> 0 | AV155: =Q155 -> 0 | AW155: =T155 -> 0 | AX155: =W155 -> 0 | AY155: =Z155 -> 0 | AZ155: =AC155 -> 0 | BA155: =AF155 -> 0 | BB155: =AI155 -> 0 | BC155: =IF(AL155="","",AL155) -> 
A156: =_xlfn.XLOOKUP(B156,MTDC[Description],MTDC[VALUE],"N/A",0) -> N/A | B156: Make a selection | D156: =IF(AND(B156="Make a Selection",OR(sFABC=1,sFABC=2,sFABC=3)),"",IF(sFABC=2,"Included",IF(sFABC=3,"Custom F&A Amt",IF(_xlfn.XLOOKUP(B156,MTDC[Description],MTDC[Include in MTDC],"N/A",0)="MTDC","Included","Excluded")))) ->  | E156: 0 | H156: 0 | K156: 0 | N156: 0 | Q156: 0 | T156: 0 | W156: 0 | Z156: 0 | AC156: 0 | AF156: 0 | AI156: =SUM(E156:AH156) -> 0 | AO156: N/A | AP156: Make a selection | AQ156: =IF(D156="Included","Inc.",IF(D156="Excluded","Exc.","")) ->  | AR156: =E156 -> 0 | AS156: =H156 -> 0 | AT156: =K156 -> 0 | AU156: =N156 -> 0 | AV156: =Q156 -> 0 | AW156: =T156 -> 0 | AX156: =W156 -> 0 | AY156: =Z156 -> 0 | AZ156: =AC156 -> 0 | BA156: =AF156 -> 0 | BB156: =AI156 -> 0 | BC156: =IF(AL156="","",AL156) -> 
AQ157: =IF(D158="Included","Inc.",IF(D158="Excluded","Exc.","")) ->  | BC157: =IF(AL158="","",AL158) -> 
B158: Total Computers and Equipment | E158: =SUM(E154:G157) -> 0 | H158: =SUM(H154:J157) -> 0 | K158: =SUM(K154:M157) -> 0 | N158: =SUM(N154:P157) -> 0 | Q158: =SUM(Q154:S157) -> 0 | T158: =SUM(T154:V157) -> 0 | W158: =SUM(W154:Y157) -> 0 | Z158: =SUM(Z154:AB157) -> 0 | AC158: =SUM(AC154:AE157) -> 0 | AF158: =SUM(AF154:AH157) -> 0 | AI158: =SUM(E158:AH158) -> 0 | AM158: Sec I
A160: J. UTILITIES | AO160: =bOLJ -> J. UTILITIES | AQ160: =IF(D163="Included","Inc.",IF(D163="Excluded","Exc.","")) ->  | BC160: =IF(AL163="","",AL163) -> 
A161: =_xlfn.XLOOKUP(B161,MTDC[Description],MTDC[VALUE],"N/A",0) -> 59010 | B161: Utilites Natural Gas | D161: =IF(AND(B161="Make a Selection",OR(sFABC=1,sFABC=2,sFABC=3)),"",IF(sFABC=2,"Included",IF(sFABC=3,"Custom F&A Amt",IF(_xlfn.XLOOKUP(B161,MTDC[Description],MTDC[Include in MTDC],"N/A",0)="MTDC","Included","Excluded")))) -> Excluded | E161: 0 | H161: 0 | K161: 0 | N161: 0 | Q161: 0 | T161: 0 | W161: 0 | Z161: 0 | AC161: 0 | AF161: 0 | AI161: =SUM(E161:AH161) -> 0 | AM161: =D161 -> Excluded | AO161: =A161 -> 59010 | AP161: =B161 -> Utilites Natural Gas | AQ161: =IF(D161="Included","Inc.",IF(D161="Excluded","Exc.","")) -> Exc. | AR161: =E161 -> 0 | AS161: =H161 -> 0 | AT161: =K161 -> 0 | AU161: =N161 -> 0 | AV161: =Q161 -> 0 | AW161: =T161 -> 0 | AX161: =W161 -> 0 | AY161: =Z161 -> 0 | AZ161: =AC161 -> 0 | BA161: =AF161 -> 0 | BB161: =AI161 -> 0 | BC161: =IF(AL161="","",AL161) -> 
A162: =_xlfn.XLOOKUP(B162,MTDC[Description],MTDC[VALUE],"N/A",0) -> 59020 | B162: Utilities Electric | D162: =IF(AND(B162="Make a Selection",OR(sFABC=1,sFABC=2,sFABC=3)),"",IF(sFABC=2,"Included",IF(sFABC=3,"Custom F&A Amt",IF(_xlfn.XLOOKUP(B162,MTDC[Description],MTDC[Include in MTDC],"N/A",0)="MTDC","Included","Excluded")))) -> Excluded | E162: 0 | H162: 0 | K162: 0 | N162: 0 | Q162: 0 | T162: 0 | W162: 0 | Z162: 0 | AC162: 0 | AF162: 0 | AI162: =SUM(E162:AH162) -> 0 | AM162: =D162 -> Excluded | AO162: =A162 -> 59020 | AP162: =B162 -> Utilities Electric | AQ162: =IF(D162="Included","Inc.",IF(D162="Excluded","Exc.","")) -> Exc. | AR162: =E162 -> 0 | AS162: =H162 -> 0 | AT162: =K162 -> 0 | AU162: =N162 -> 0 | AV162: =Q162 -> 0 | AW162: =T162 -> 0 | AX162: =W162 -> 0 | AY162: =Z162 -> 0 | AZ162: =AC162 -> 0 | BA162: =AF162 -> 0 | BB162: =AI162 -> 0 | BC162: =IF(AL162="","",AL162) -> 
AQ163: =IF(D164="Included","Inc.",IF(D164="Excluded","Exc.","")) ->  | BC163: =IF(AL164="","",AL164) -> 
B164: Total Utilities | E164: =SUM(E161:G163) -> 0 | H164: =SUM(H161:J163) -> 0 | K164: =SUM(K161:M163) -> 0 | N164: =SUM(N161:P163) -> 0 | Q164: =SUM(Q161:S163) -> 0 | T164: =SUM(T161:V163) -> 0 | W164: =SUM(W161:Y163) -> 0 | Z164: =SUM(Z161:AB163) -> 0 | AC164: =SUM(AC161:AE163) -> 0 | AF164: =SUM(AF161:AH163) -> 0 | AI164: =SUM(E164:AH164) -> 0 | AM164: Sec J
A166: K. REPAIRS & MAINTENANCE | AO166: =bOLK -> K. REPAIRS & MAINTENANCE | AQ166: =IF(D167="Included","Inc.",IF(D167="Excluded","Exc.","")) -> Inc. | BC166: =IF(AL167="","",AL167) -> 
A167: =_xlfn.XLOOKUP(B167,MTDC[Description],MTDC[VALUE],"N/A",0) -> 59560 | B167: R&M Equipment | D167: =IF(AND(B167="Make a Selection",OR(sFABC=1,sFABC=2,sFABC=3)),"",IF(sFABC=2,"Included",IF(sFABC=3,"Custom F&A Amt",IF(_xlfn.XLOOKUP(B167,MTDC[Description],MTDC[Include in MTDC],"N/A",0)="MTDC","Included","Excluded")))) -> Included | E167: 0 | H167: 0 | K167: 0 | N167: 0 | Q167: 0 | T167: 0 | W167: 0 | Z167: 0 | AC167: 0 | AF167: 0 | AI167: =SUM(E167:AH167) -> 0 | AM167: =D167 -> Included | AO167: =A167 -> 59560 | AP167: =B167 -> R&M Equipment | AQ167: =IF(D167="Included","Inc.",IF(D167="Excluded","Exc.","")) -> Inc. | AR167: =E167 -> 0 | AS167: =H167 -> 0 | AT167: =K167 -> 0 | AU167: =N167 -> 0 | AV167: =Q167 -> 0 | AW167: =T167 -> 0 | AX167: =W167 -> 0 | AY167: =Z167 -> 0 | AZ167: =AC167 -> 0 | BA167: =AF167 -> 0 | BB167: =AI167 -> 0 | BC167: =IF(AL167="","",AL167) -> 
A168: =_xlfn.XLOOKUP(B168,MTDC[Description],MTDC[VALUE],"N/A",0) -> N/A | B168: Make a selection | D168: =IF(AND(B168="Make a Selection",OR(sFABC=1,sFABC=2,sFABC=3)),"",IF(sFABC=2,"Included",IF(sFABC=3,"Custom F&A Amt",IF(_xlfn.XLOOKUP(B168,MTDC[Description],MTDC[Include in MTDC],"N/A",0)="MTDC","Included","Excluded")))) ->  | E168: 0 | H168: 0 | K168: 0 | N168: 0 | Q168: 0 | T168: 0 | W168: 0 | Z168: 0 | AC168: 0 | AF168: 0 | AI168: =SUM(E168:AH168) -> 0 | AM168: =D168 ->  | AO168: =A168 -> N/A | AP168: =B168 -> Make a selection | AQ168: =IF(D168="Included","Inc.",IF(D168="Excluded","Exc.","")) ->  | AR168: =E168 -> 0 | AS168: =H168 -> 0 | AT168: =K168 -> 0 | AU168: =N168 -> 0 | AV168: =Q168 -> 0 | AW168: =T168 -> 0 | AX168: =W168 -> 0 | AY168: =Z168 -> 0 | AZ168: =AC168 -> 0 | BA168: =AF168 -> 0 | BB168: =AI168 -> 0 | BC168: =IF(AL168="","",AL168) -> 
AQ169: =IF(D170="Included","Inc.",IF(D170="Excluded","Exc.","")) ->  | BC169: =IF(AL170="","",AL170) -> 
B170: Total Repairs and Maintenance | E170: =SUM(E167:G169) -> 0 | H170: =SUM(H167:J169) -> 0 | K170: =SUM(K167:M169) -> 0 | N170: =SUM(N167:P169) -> 0 | Q170: =SUM(Q167:S169) -> 0 | T170: =SUM(T167:V169) -> 0 | W170: =SUM(W167:Y169) -> 0 | Z170: =SUM(Z167:AB169) -> 0 | AC170: =SUM(AC167:AE169) -> 0 | AF170: =SUM(AF167:AH169) -> 0 | AI170: =SUM(E170:AH170) -> 0 | AM170: Sec K
A172: L. OTHER OPERATING EXPENSES | AO172: =bOLL -> L. OTHER OPERATING EXPENSES | AQ172: =IF(D174="Included","Inc.",IF(D174="Excluded","Exc.","")) -> Exc. | BC172: =IF(AL174="","",AL174) -> 
A173: =_xlfn.XLOOKUP(B173,MTDC[Description],MTDC[VALUE],"N/A",0) -> 61510 | B173: Participant Support Travel | D173: =IF(AND(B173="Make a Selection",OR(sFABC=1,sFABC=2,sFABC=3)),"",IF(sFABC=2,"Included",IF(sFABC=3,"Custom F&A Amt",IF(_xlfn.XLOOKUP(B173,MTDC[Description],MTDC[Include in MTDC],"N/A",0)="MTDC","Included","Excluded")))) -> Excluded | E173: 0 | H173: 0 | K173: 0 | N173: 0 | Q173: 0 | T173: 0 | W173: 0 | Z173: 0 | AC173: 0 | AF173: 0 | AI173: =SUM(E173:AH173) -> 0 | AM173: =D173 -> Excluded | AO173: =A173 -> 61510 | AP173: =B173 -> Participant Support Travel | AQ173: =IF(D173="Included","Inc.",IF(D173="Excluded","Exc.","")) -> Exc. | AR173: =E173 -> 0 | AS173: =H173 -> 0 | AT173: =K173 -> 0 | AU173: =N173 -> 0 | AV173: =Q173 -> 0 | AW173: =T173 -> 0 | AX173: =W173 -> 0 | AY173: =Z173 -> 0 | AZ173: =AC173 -> 0 | BA173: =AF173 -> 0 | BB173: =AI173 -> 0 | BC173: =IF(AL173="","",AL173) -> 
A174: =_xlfn.XLOOKUP(B174,MTDC[Description],MTDC[VALUE],"N/A",0) -> 61520 | B174: Participant Support Stipends | D174: =IF(AND(B174="Make a Selection",OR(sFABC=1,sFABC=2,sFABC=3)),"",IF(sFABC=2,"Included",IF(sFABC=3,"Custom F&A Amt",IF(_xlfn.XLOOKUP(B174,MTDC[Description],MTDC[Include in MTDC],"N/A",0)="MTDC","Included","Excluded")))) -> Excluded | E174: 0 | H174: 0 | K174: 0 | N174: 0 | Q174: 0 | T174: 0 | W174: 0 | Z174: 0 | AC174: 0 | AF174: 0 | AI174: =SUM(E174:AH174) -> 0 | AM174: Excluded | AO174: 61520 | AP174: Participant Support Stipends | AQ174: Exc. | AR174: 0 | AS174: 0 | AT174: 0 | AU174: 0 | AV174: 0 | AW174: 0 | AX174: 0 | AY174: 0 | AZ174: 0 | BA174: 0 | BB174: 0
A175: =_xlfn.XLOOKUP(B175,MTDC[Description],MTDC[VALUE],"N/A",0) -> 61530 | B175: Participant Support Tuition & Fee | D175: =IF(AND(B175="Make a Selection",OR(sFABC=1,sFABC=2,sFABC=3)),"",IF(sFABC=2,"Included",IF(sFABC=3,"Custom F&A Amt",IF(_xlfn.XLOOKUP(B175,MTDC[Description],MTDC[Include in MTDC],"N/A",0)="MTDC","Included","Excluded")))) -> Excluded | E175: 0 | H175: 0 | K175: 0 | N175: 0 | Q175: 0 | T175: 0 | W175: 0 | Z175: 0 | AC175: 0 | AF175: 0 | AI175: =SUM(E175:AH175) -> 0 | AM175: Excluded | AO175: 61530 | AP175: Participant Support Tuition & Fee | AQ175: Exc. | AR175: 0 | AS175: 0 | AT175: 0 | AU175: 0 | AV175: 0 | AW175: 0 | AX175: 0 | AY175: 0 | AZ175: 0 | BA175: 0 | BB175: 0
A176: =_xlfn.XLOOKUP(B176,MTDC[Description],MTDC[VALUE],"N/A",0) -> 61550 | B176: Participant Support Housing | D176: =IF(AND(B176="Make a Selection",OR(sFABC=1,sFABC=2,sFABC=3)),"",IF(sFABC=2,"Included",IF(sFABC=3,"Custom F&A Amt",IF(_xlfn.XLOOKUP(B176,MTDC[Description],MTDC[Include in MTDC],"N/A",0)="MTDC","Included","Excluded")))) -> Excluded | E176: 0 | H176: 0 | K176: 0 | N176: 0 | Q176: 0 | T176: 0 | W176: 0 | Z176: 0 | AC176: 0 | AF176: 0 | AI176: 0 | AM176: Excluded | AO176: 61550 | AP176: Participant Support Housing | AQ176: Exc. | AR176: 0 | AS176: 0 | AT176: 0 | AU176: 0 | AV176: 0 | AW176: 0 | AX176: 0 | AY176: 0 | AZ176: 0 | BA176: 0 | BB176: 0
A177: =_xlfn.XLOOKUP(B177,MTDC[Description],MTDC[VALUE],"N/A",0) -> 61570 | B177: Participant Support Other | D177: =IF(AND(B177="Make a Selection",OR(sFABC=1,sFABC=2,sFABC=3)),"",IF(sFABC=2,"Included",IF(sFABC=3,"Custom F&A Amt",IF(_xlfn.XLOOKUP(B177,MTDC[Description],MTDC[Include in MTDC],"N/A",0)="MTDC","Included","Excluded")))) -> Excluded | E177: 0 | H177: 0 | K177: 0 | N177: 0 | Q177: 0 | T177: 0 | W177: 0 | Z177: 0 | AC177: 0 | AF177: 0 | AI177: 0 | AM177: Excluded | AO177: 61570 | AP177: Participant Support Other | AQ177: Exc. | AR177: 0 | AS177: 0 | AT177: 0 | AU177: 0 | AV177: 0 | AW177: 0 | AX177: 0 | AY177: 0 | AZ177: 0 | BA177: 0 | BB177: 0
A178: =_xlfn.XLOOKUP(B178,MTDC[Description],MTDC[VALUE],"N/A",0) -> 62020 | B178: Training Grant Stipends | D178: =IF(AND(B178="Make a Selection",OR(sFABC=1,sFABC=2,sFABC=3)),"",IF(sFABC=2,"Included",IF(sFABC=3,"Custom F&A Amt",IF(_xlfn.XLOOKUP(B178,MTDC[Description],MTDC[Include in MTDC],"N/A",0)="MTDC","Included","Excluded")))) -> Included | E178: 0 | H178: 0 | K178: 0 | N178: 0 | Q178: 0 | T178: 0 | W178: 0 | Z178: 0 | AC178: 0 | AF178: 0 | AI178: 0 | AM178: Included | AO178: 62020 | AP178: Training Grant Stipends | AQ178: Inc. | AR178: 0 | AS178: 0 | AT178: 0 | AU178: 0 | AV178: 0 | AW178: 0 | AX178: 0 | AY178: 0 | AZ178: 0 | BA178: 0 | BB178: 0
A179: =_xlfn.XLOOKUP(B179,MTDC[Description],MTDC[VALUE],"N/A",0) -> 62510 | B179: Insurance Other | D179: =IF(AND(B179="Make a Selection",OR(sFABC=1,sFABC=2,sFABC=3)),"",IF(sFABC=2,"Included",IF(sFABC=3,"Custom F&A Amt",IF(_xlfn.XLOOKUP(B179,MTDC[Description],MTDC[Include in MTDC],"N/A",0)="MTDC","Included","Excluded")))) -> Included | E179: 0 | H179: 0 | K179: 0 | N179: 0 | Q179: 0 | T179: 0 | W179: 0 | Z179: 0 | AC179: 0 | AF179: 0 | AI179: 0 | AM179: Included | AO179: 62510 | AP179: Insurance Other | AQ179: Inc. | AR179: 0 | AS179: 0 | AT179: 0 | AU179: 0 | AV179: 0 | AW179: 0 | AX179: 0 | AY179: 0 | AZ179: 0 | BA179: 0 | BB179: 0
A180: =_xlfn.XLOOKUP(B180,MTDC[Description],MTDC[VALUE],"N/A",0) -> 62520 | B180: Insurance Post Doctorate Premiums | D180: =IF(AND(B180="Make a Selection",OR(sFABC=1,sFABC=2,sFABC=3)),"",IF(sFABC=2,"Included",IF(sFABC=3,"Custom F&A Amt",IF(_xlfn.XLOOKUP(B180,MTDC[Description],MTDC[Include in MTDC],"N/A",0)="MTDC","Included","Excluded")))) -> Included | E180: 0 | H180: 0 | K180: 0 | N180: 0 | Q180: 0 | T180: 0 | W180: 0 | Z180: 0 | AC180: 0 | AF180: 0 | AI180: 0 | AM180: Included | AO180: 62520 | AP180: Insurance Post Doctorate Premiums | AQ180: Inc. | AR180: 0 | AS180: 0 | AT180: 0 | AU180: 0 | AV180: 0 | AW180: 0 | AX180: 0 | AY180: 0 | AZ180: 0 | BA180: 0 | BB180: 0
A181: =_xlfn.XLOOKUP(B181,MTDC[Description],MTDC[VALUE],"N/A",0) -> 67045 | B181: Capital Purchase Equipment Laboratory | D181: =IF(AND(B181="Make a Selection",OR(sFABC=1,sFABC=2,sFABC=3)),"",IF(sFABC=2,"Included",IF(sFABC=3,"Custom F&A Amt",IF(_xlfn.XLOOKUP(B181,MTDC[Description],MTDC[Include in MTDC],"N/A",0)="MTDC","Included","Excluded")))) -> Excluded | E181: 0 | H181: 0 | K181: 0 | N181: 0 | Q181: 0 | T181: 0 | W181: 0 | Z181: 0 | AC181: 0 | AF181: 0 | AI181: 0 | AM181: Excluded | AO181: 67045 | AP181: Capital Purchase Equipment Laboratory | AQ181: Exc. | AR181: 0 | AS181: 0 | AT181: 0 | AU181: 0 | AV181: 0 | AW181: 0 | AX181: 0 | AY181: 0 | AZ181: 0 | BA181: 0 | BB181: 0
A182: =_xlfn.XLOOKUP(B182,MTDC[Description],MTDC[VALUE],"N/A",0) -> 69270 | B182: Other Opex IRB Review Fees | D182: =IF(AND(B182="Make a Selection",OR(sFABC=1,sFABC=2,sFABC=3)),"",IF(sFABC=2,"Included",IF(sFABC=3,"Custom F&A Amt",IF(_xlfn.XLOOKUP(B182,MTDC[Description],MTDC[Include in MTDC],"N/A",0)="MTDC","Included","Excluded")))) -> Included | E182: 0 | H182: 0 | K182: 0 | N182: 0 | Q182: 0 | T182: 0 | W182: 0 | Z182: 0 | AC182: 0 | AF182: 0 | AI182: 0 | AM182: Included | AO182: 69270 | AP182: Other Opex IRB Review Fees | AQ182: Inc. | AR182: 0 | AS182: 0 | AT182: 0 | AU182: 0 | AV182: 0 | AW182: 0 | AX182: 0 | AY182: 0 | AZ182: 0 | BA182: 0 | BB182: 0
A183: =_xlfn.XLOOKUP(B183,MTDC[Description],MTDC[VALUE],"N/A",0) -> 69030 | B183: Other Opex Animal Care Per Diem | D183: =IF(AND(B183="Make a Selection",OR(sFABC=1,sFABC=2,sFABC=3)),"",IF(sFABC=2,"Included",IF(sFABC=3,"Custom F&A Amt",IF(_xlfn.XLOOKUP(B183,MTDC[Description],MTDC[Include in MTDC],"N/A",0)="MTDC","Included","Excluded")))) -> Included | E183: 0 | H183: 0 | K183: 0 | N183: 0 | Q183: 0 | T183: 0 | W183: 0 | Z183: 0 | AC183: 0 | AF183: 0 | AI183: 0 | AM183: Included | AO183: 69030 | AP183: Other Opex Animal Care Per Diem | AQ183: Inc. | AR183: 0 | AS183: 0 | AT183: 0 | AU183: 0 | AV183: 0 | AW183: 0 | AX183: 0 | AY183: 0 | AZ183: 0 | BA183: 0 | BB183: 0
A184: =_xlfn.XLOOKUP(B184,MTDC[Description],MTDC[VALUE],"N/A",0) -> 60040 | B184: Telecom Other | D184: =IF(AND(B184="Make a Selection",OR(sFABC=1,sFABC=2,sFABC=3)),"",IF(sFABC=2,"Included",IF(sFABC=3,"Custom F&A Amt",IF(_xlfn.XLOOKUP(B184,MTDC[Description],MTDC[Include in MTDC],"N/A",0)="MTDC","Included","Excluded")))) -> Included | E184: 0 | H184: 0 | K184: 0 | N184: 0 | Q184: 0 | T184: 0 | W184: 0 | Z184: 0 | AC184: 0 | AF184: 0 | AI184: 0 | AM184: Included | AO184: 60040 | AP184: Telecom Other | AQ184: Inc. | AR184: 0 | AS184: 0 | AT184: 0 | AU184: 0 | AV184: 0 | AW184: 0 | AX184: 0 | AY184: 0 | AZ184: 0 | BA184: 0 | BB184: 0
A185: =_xlfn.XLOOKUP(B185,MTDC[Description],MTDC[VALUE],"N/A",0) -> N/A | B185: Make a selection | D185: =IF(AND(B185="Make a Selection",OR(sFABC=1,sFABC=2,sFABC=3)),"",IF(sFABC=2,"Included",IF(sFABC=3,"Custom F&A Amt",IF(_xlfn.XLOOKUP(B185,MTDC[Description],MTDC[Include in MTDC],"N/A",0)="MTDC","Included","Excluded")))) ->  | E185: 0 | H185: 0 | K185: 0 | N185: 0 | Q185: 0 | T185: 0 | W185: 0 | Z185: 0 | AC185: 0 | AF185: 0 | AI185: 0 | AO185: N/A | AP185: Make a selection | AR185: 0 | AS185: 0 | AT185: 0 | AU185: 0 | AV185: 0 | AW185: 0 | AX185: 0 | AY185: 0 | AZ185: 0 | BA185: 0 | BB185: 0
AQ186: =IF(D187="Included","Inc.",IF(D187="Excluded","Exc.","")) ->  | BC186: =IF(AL187="","",AL187) -> 
B187: Total Other Operating Expenses | E187: =SUM(E173:G186) -> 0 | H187: =ROUND(SUM(H173:J186),0) -> 0 | K187: =ROUND(SUM(K173:M186),0) -> 0 | N187: =ROUND(SUM(N173:P186),0) -> 0 | Q187: =ROUND(SUM(Q173:S186),0) -> 0 | T187: =ROUND(SUM(T173:V186),0) -> 0 | W187: =ROUND(SUM(W173:Y186),0) -> 0 | Z187: =ROUND(SUM(Z173:AB186),0) -> 0 | AC187: =ROUND(SUM(AC173:AE186),0) -> 0 | AF187: =ROUND(SUM(AF173:AH186),0) -> 0 | AI187: =SUM(E187:AH187) -> 0 | AM187: Sec L
A189: M. ADDITIONAL PROJECT EXPENSES | AO189: =bOLM -> M. ADDITIONAL PROJECT EXPENSES | AQ189: =IF(D191="Included","Inc.",IF(D191="Excluded","Exc.","")) ->  | BC189: =IF(AL191="","",AL191) -> 
A190: =_xlfn.XLOOKUP(B190,MTDC[Description],MTDC[VALUE],"N/A",0) -> N/A | B190: Enter Description | D190: Excluded | E190: 0 | H190: 0 | K190: 0 | N190: 0 | Q190: 0 | T190: 0 | W190: 0 | Z190: 0 | AC190: 0 | AF190: 0 | AI190: =SUM(E190:AH190) -> 0 | AO190: =A190 -> N/A | AP190: =B190 -> Enter Description | AQ190: =IF(D190="Included","Inc.",IF(D190="Excluded","Exc.","")) -> Exc. | AR190: =E190 -> 0 | AS190: =H190 -> 0 | AT190: =K190 -> 0 | AU190: =N190 -> 0 | AV190: =Q190 -> 0 | AW190: =T190 -> 0 | AX190: =W190 -> 0 | AY190: =Z190 -> 0 | AZ190: =AC190 -> 0 | BA190: =AF190 -> 0 | BB190: =AI190 -> 0 | BC190: =IF(AL190="","",AL190) -> 
AQ191: =IF(D192="Included","Inc.",IF(D192="Excluded","Exc.","")) ->  | BC191: =IF(AL191="","",AL191) -> 
B192: Total Additional Project Expenses | E192: =SUM(E190:G191) -> 0 | H192: =SUM(H190:J191) -> 0 | K192: =SUM(K190:M191) -> 0 | N192: =SUM(N190:P191) -> 0 | Q192: =SUM(Q190:S191) -> 0 | T192: =SUM(T190:V191) -> 0 | W192: =SUM(W190:Y191) -> 0 | Z192: =SUM(Z190:AB191) -> 0 | AC192: =SUM(AC190:AE191) -> 0 | AF192: =SUM(AF190:AH191) -> 0 | AI192: =SUM(E192:AH192) -> 0
AO193: TOTALS | AQ193: =IF(D195="Included","Inc.",IF(D195="Excluded","Exc.","")) ->  | BC193: =IF(AL194="","",AL194) -> 
A194: N. TOTAL DIRECT COSTS (B-L) | E194: =SUM(budSECA3BP1,budSECBBP1,budSECCBP1,budSECDBP1,budSECEBP1,budSECFBP1,budSECGBP1,budSECHBP1,budSECIBP1,budSECJBP1,budSECKBP1,budSECLBP1) -> 0 | H194: =SUM(budSECA3BP2,budSECBBP2,budSECCBP2,budSECDBP2,budSECEBP2,budSECFBP2,budSECGBP2,budSECHBP2,budSECIBP2,budSECJBP2,budSECKBP2,budSECLBP2) -> 0 | K194: =SUM(budSECA3BP3,budSECBBP3,budSECCBP3,budSECDBP3,budSECEBP3,budSECFBP3,budSECGBP3,budSECHBP3,budSECIBP3,budSECJBP3,budSECKBP3,budSECLBP3) -> 0 | N194: =SUM(budSECA3BP4,budSECBBP4,budSECCBP4,budSECDBP4,budSECEBP4,budSECFBP4,budSECGBP4,budSECHBP4,budSECIBP4,budSECJBP4,budSECKBP4,budSECLBP4) -> 0 | Q194: =SUM(budSECA3BP5,budSECBBP5,budSECCBP5,budSECDBP5,budSECEBP5,budSECFBP5,budSECGBP5,budSECHBP5,budSECIBP5,budSECJBP5,budSECKBP5,budSECLBP5) -> 0 | T194: =SUM(budSECA3BP6,budSECBBP6,budSECCBP6,budSECDBP6,budSECEBP6,budSECFBP6,budSECGBP6,budSECHBP6,budSECIBP6,budSECJBP6,budSECKBP6,budSECLBP6) -> 0 | W194: =SUM(budSECA3BP7,budSECBBP7,budSECCBP7,budSECDBP7,budSECEBP7,budSECFBP7,budSECGBP7,budSECHBP7,budSECIBP7,budSECJBP7,budSECKBP7,budSECLBP7) -> 0 | Z194: =SUM(budSECA3BP8,budSECBBP8,budSECCBP8,budSECDBP8,budSECEBP8,budSECFBP8,budSECGBP8,budSECHBP8,budSECIBP8,budSECJBP8,budSECKBP8,budSECLBP8) -> 0 | AC194: =SUM(budSECA3BP9,budSECBBP9,budSECCBP9,budSECDBP9,budSECEBP9,budSECFBP9,budSECGBP9,budSECHBP9,budSECIBP9,budSECJBP9,budSECKBP9,budSECLBP9) -> 0 | AF194: =SUM(budSECA3BP10,budSECBBP10,budSECCBP10,budSECDBP10,budSECEBP10,budSECFBP10,budSECGBP10,budSECHBP10,budSECIBP10,budSECJBP10,budSECKBP10,budSECLBP10) -> 0 | AI194: =SUM(budSECA3TOT,budSECBTOT,budSECCTOT,budSECDTOT,budSECETOT,budSECFTOT,budSECGTOT,budSECHTOT,budSECITOT,budSECJTOT,budSECKTOT,budSECLTOT) -> 0 | AM194: Total | AO194: Total Direct Cost | AR194: =budTOTDCBP1 -> 0 | AS194: =budTOTDCBP2 -> 0 | AT194: =budTOTDCBP3 -> 0 | AU194: =budTOTDCBP4 -> 0 | AV194: =budTOTDCBP5 -> 0 | AW194: =budTOTDCBP6 -> 0 | AX194: =budTOTDCBP7 -> 0 | AY194: =budTOTDCBP8 -> 0 | AZ194: =budTOTDCBP9 -> 0 | BA194: =budTOTDCBP10 -> 0 | BB194: =budTOTDC -> 0
A195: O. TOTAL INDIRECT COSTS (R) | E195: =IF(sFABC=3,budNSFARABP1,SUM(budFAC1BP1,budFAC2BP1)) -> 0 | H195: =IF(sFABC=3,budNSFARABP2,SUM(budFAC1BP2,budFAC2BP2)) -> 0 | K195: =IF(sFABC=3,budNSFARABP3,SUM(budFAC1BP3,budFAC2BP3)) -> 0 | N195: =IF(sFABC=3,budNSFARABP4,SUM(budFAC1BP4,budFAC2BP4)) -> 0 | Q195: =IF(sFABC=3,budNSFARABP5,SUM(budFAC1BP5,budFAC2BP5)) -> 0 | T195: =IF(sFABC=3,budNSFARABP6,SUM(budFAC1BP6,budFAC2BP6)) -> 0 | W195: =IF(sFABC=3,budNSFARABP7,SUM(budFAC1BP7,budFAC2BP7)) -> 0 | Z195: =IF(sFABC=3,budNSFARABP8,SUM(budFAC1BP8,budFAC2BP8)) -> 0 | AC195: =IF(sFABC=3,budNSFARABP9,SUM(budFAC1BP9,budFAC2BP9)) -> 0 | AF195: =IF(sFABC=3,budNSFARABP10,SUM(budFAC1BP10,budFAC2BP10)) -> 0 | AI195: =SUM(E195:AH195) -> 0 | AM195: Total | AO195: Total Indirect Cost | AR195: =budTOTIDCBP1 -> 0 | AS195: =H195 -> 0 | AT195: =K195 -> 0 | AU195: =N195 -> 0 | AV195: =Q195 -> 0 | AW195: =T195 -> 0 | AX195: . | AY195: =Z195 -> 0 | AZ195: =AC195 -> 0 | BA195: =AF195 -> 0 | BB195: =budTOTIDC -> 0
A196: P. TOTAL ADDTIONAL PROJ. EXP. | E196: =budSECMBP1 -> 0 | H196: =budSECMBP2 -> 0 | K196: =budSECMBP3 -> 0 | N196: =budSECMBP4 -> 0 | Q196: =budSECMBP5 -> 0 | T196: =budSECMBP6 -> 0 | W196: =budSECMBP7 -> 0 | Z196: =budSECMBP8 -> 0 | AC196: =budSECMBP9 -> 0 | AF196: =budSECMBP10 -> 0 | AI196: =SUM(E196:AH196) -> 0 | AM196: Total | AO196: Total Addiitonal Project Exp. | AQ196: =IF(D198="Included","Inc.",IF(D198="Excluded","Exc.","")) ->  | AR196: =budTOTAPEBP1 -> 0 | AS196: =budTOTAPEBP2 -> 0 | AT196: =budTOTAPEBP3 -> 0 | AU196: =budTOTAPEBP4 -> 0 | AV196: =budTOTAPEBP5 -> 0 | AW196: =budTOTAPEBP6 -> 0 | AX196: =budTOTAPEBP7 -> 0 | AY196: =budTOTAPEBP8 -> 0 | AZ196: =budTOTAPEBP9 -> 0 | BA196: =budTOTAPEBP10 -> 0 | BB196: =budTOTAPE -> 0
A197: Q. TOTAL PROJECT COSTS (N-P) | E197: =IF(OR(ISNUMBER(budTOTDCBP1)=FALSE,ISNUMBER(budTOTIDCBP1)=FALSE),0,SUM(budTOTDCBP1,budTOTIDCBP1,budTOTAPEBP1)) -> 0 | H197: =IF(OR(ISNUMBER(budTOTDCBP2)=FALSE,ISNUMBER(budTOTIDCBP2)=FALSE),0,SUM(budTOTDCBP2,budTOTIDCBP2,budTOTAPEBP2)) -> 0 | K197: =IF(OR(ISNUMBER(budTOTDCBP3)=FALSE,ISNUMBER(budTOTIDCBP3)=FALSE),0,SUM(budTOTDCBP3,budTOTIDCBP3,budTOTAPEBP3)) -> 0 | N197: =IF(OR(ISNUMBER(budTOTDCBP4)=FALSE,ISNUMBER(budTOTIDCBP4)=FALSE),0,SUM(budTOTDCBP4,budTOTIDCBP4,budTOTAPEBP4)) -> 0 | Q197: =IF(OR(ISNUMBER(budTOTDCBP5)=FALSE,ISNUMBER(budTOTIDCBP5)=FALSE),0,SUM(budTOTDCBP5,budTOTIDCBP5,budTOTAPEBP5)) -> 0 | T197: =IF(OR(ISNUMBER(budTOTDCBP6)=FALSE,ISNUMBER(budTOTIDCBP6)=FALSE),0,SUM(budTOTDCBP6,budTOTIDCBP6,budTOTAPEBP6)) -> 0 | W197: =IF(OR(ISNUMBER(budTOTDCBP7)=FALSE,ISNUMBER(budTOTIDCBP7)=FALSE),0,SUM(budTOTDCBP7,budTOTIDCBP7,budTOTAPEBP7)) -> 0 | Z197: =IF(OR(ISNUMBER(budTOTDCBP8)=FALSE,ISNUMBER(budTOTIDCBP8)=FALSE),0,SUM(budTOTDCBP8,budTOTIDCBP8,budTOTAPEBP8)) -> 0 | AC197: =IF(OR(ISNUMBER(budTOTDCBP9)=FALSE,ISNUMBER(budTOTIDCBP9)=FALSE),0,SUM(budTOTDCBP9,budTOTIDCBP9,budTOTAPEBP9)) -> 0 | AF197: =IF(OR(ISNUMBER(budTOTDCBP10)=FALSE,ISNUMBER(budTOTIDCBP10)=FALSE),0,SUM(budTOTDCBP10,budTOTIDCBP10,budTOTAPEBP10)) -> 0 | AI197: =SUM(E197:AH197) -> 0 | AM197: Total | AO197: Total Cost | AQ197: =IF(D201="Included","Inc.",IF(D201="Excluded","Exc.","")) ->  | AR197: =budTOTCBP1 -> 0 | AS197: =H197 -> 0 | AT197: =K197 -> 0 | AU197: =N197 -> 0 | AV197: =Q197 -> 0 | AW197: =T197 -> 0 | AX197: =W197 -> 0 | AY197: =Z197 -> 0 | AZ197: =AC197 -> 0 | BA197: =AF197 -> 0 | BB197: =budTOTC -> 0 | BC197: =IF(AL198="","",AL198) -> 
AO198: NOTES | AQ198: =IF(D202="Included","Inc.",IF(D202="Excluded","Exc.","")) ->  | BC198: =IF(AL201="","",AL201) -> 
D199: Include subaward IDC?
D200: No
B201: Enter the Direct Cost Cap for each budget period | H201: 0 | K201: 0 | N201: 0 | Q201: 0 | T201: 0 | W201: 0 | Z201: 0 | AC201: 0 | AF201: 0
B202: Remainder allocable to Direct Costs | E202: =IF(rngSubIDC="Yes",E201-budTOTDCBP1,E201-budTOTDCBP1+SUMPRODUCT((rngSUBCat = "Indirect")*(rngSUBBP1))) -> 0 | H202: =IF(rngSubIDC="Yes",H201-budTOTDCBP2,H201-budTOTDCBP2+SUMPRODUCT((rngSUBCat = "Indirect")*(rngSUBBP2))) -> 0 | K202: =IF(rngSubIDC="Yes",K201-budTOTDCBP3,K201-budTOTDCBP3+SUMPRODUCT((rngSUBCat = "Indirect")*(rngSUBBP3))) -> 0 | N202: =IF(rngSubIDC="Yes",N201-budTOTDCBP4,N201-budTOTDCBP4+SUMPRODUCT((rngSUBCat = "Indirect")*(rngSUBBP4))) -> 0 | Q202: =IF(rngSubIDC="Yes",Q201-budTOTDCBP5,Q201-budTOTDCBP5+SUMPRODUCT((rngSUBCat = "Indirect")*(rngSUBBP5))) -> 0 | T202: =IF(rngSubIDC="Yes",T201-budTOTDCBP6,T201-budTOTDCBP6+SUMPRODUCT((rngSUBCat = "Indirect")*(rngSUBBP6))) -> 0 | W202: =IF(rngSubIDC="Yes",W201-budTOTDCBP7,W201-budTOTDCBP7+SUMPRODUCT((rngSUBCat = "Indirect")*(rngSUBBP7))) -> 0 | Z202: =IF(rngSubIDC="Yes",Z201-budTOTDCBP8,Z201-budTOTDCBP8+SUMPRODUCT((rngSUBCat = "Indirect")*(rngSUBBP8))) -> 0 | AC202: =IF(rngSubIDC="Yes",AC201-budTOTDCBP9,AC201-budTOTDCBP9+SUMPRODUCT((rngSUBCat = "Indirect")*(rngSUBBP9))) -> 0 | AF202: =IF(rngSubIDC="Yes",AF201-budTOTDCBP10,AF201-budTOTDCBP10+SUMPRODUCT((rngSUBCat = "Indirect")*(rngSUBBP10))) -> 0 | AI202: =SUM(E202:AH202) -> 0
B203: Enter the Total Cost Cap for each budget period | H203: 0 | K203: 0 | N203: 0 | Q203: 0 | T203: 0 | W203: 0 | Z203: 0 | AC203: 0 | AF203: 0
B204: Remainder allocable to Total Costs | E204: =E203-budTOTCBP1 -> 0 | H204: =H203-budTOTCBP2 -> 0 | K204: =K203-budTOTCBP3 -> 0 | N204: =N203-budTOTCBP4 -> 0 | Q204: =Q203-budTOTCBP5 -> 0 | T204: =T203-budTOTCBP6 -> 0 | W204: =W203-budTOTCBP7 -> 0 | Z204: =Z203-budTOTCBP8 -> 0 | AC204: =AC203-budTOTCBP9 -> 0 | AF204: =AF203-budTOTCBP10 -> 0 | AI204: =SUM(E204:AH204) -> 0
A206: =IF(sFABC=1,"R. FACILITIES & ADMINISTRATIVE (F&A) COST BASE (MTDC)",IF(sFABC=2,"R. FACILITIES & ADMINISTRATIVE (F&A) COST BASE (TDC)","R. FACILITIES & ADMINISTRATIVE (F&A) COST BASE (CUSTOM)")) -> R. FACILITIES & ADMINISTRATIVE (F&A) COST BASE (MTDC)
B207: F&A Cost Base 1 | E207: =IF(OR(sFABC=3,AND(OR(sFABC=1,sFABC=2),ISNUMBER(budDM1BP1)=FALSE,ISNUMBER(budDM2BP1)=FALSE)),"N/A",IF(AND(OR(sFABC=1,sFABC=2),ISNUMBER(budDM1BP1)=FALSE,ISNUMBER(budDM2BP1)=TRUE),SUMPRODUCT((rngIncExc="Included")*(rngIncExcBP1)*(budDM1BP1/SUM(budDM1BP1,budDM2BP1))),IF(AND(OR(sFABC=1,sFABC=2),ISNUMBER(budDM1BP1)=TRUE,ISNUMBER(budDM2BP1)=FALSE),SUMPRODUCT((rngIncExc="Included")*(rngIncExcBP1)*(budDM1BP1/budDM1BP1)),SUMPRODUCT((rngIncExc="Included")*(rngIncExcBP1)*(budDM1BP1/SUM(budDM1BP1,budDM2BP1)))))) -> N/A | H207: =IF(OR(sFABC=3,AND(OR(sFABC=1,sFABC=2),ISNUMBER(budDM1BP2)=FALSE,ISNUMBER(budDM2BP2)=FALSE)),"N/A",IF(AND(OR(sFABC=1,sFABC=2),ISNUMBER(budDM1BP2)=FALSE,ISNUMBER(budDM2BP2)=TRUE),SUMPRODUCT((rngIncExc="Included")*(rngIncExcBP2)*(budDM1BP2/SUM(budDM1BP2,budDM2BP2))),IF(AND(OR(sFABC=1,sFABC=2),ISNUMBER(budDM1BP2)=TRUE,ISNUMBER(budDM2BP2)=FALSE),SUMPRODUCT((rngIncExc="Included")*(rngIncExcBP2)*(budDM1BP2/budDM1BP2)),SUMPRODUCT((rngIncExc="Included")*(rngIncExcBP2)*(budDM1BP2/SUM(budDM1BP2,budDM2BP2)))))) -> N/A | K207: =IF(OR(sFABC=3,AND(OR(sFABC=1,sFABC=2),ISNUMBER(budDM1BP3)=FALSE,ISNUMBER(budDM2BP3)=FALSE)),"N/A",IF(AND(OR(sFABC=1,sFABC=2),ISNUMBER(budDM1BP3)=FALSE,ISNUMBER(budDM2BP3)=TRUE),SUMPRODUCT((rngIncExc="Included")*(rngIncExcBP3)*(budDM1BP3/SUM(budDM1BP3,budDM2BP3))),IF(AND(OR(sFABC=1,sFABC=2),ISNUMBER(budDM1BP3)=TRUE,ISNUMBER(budDM2BP3)=FALSE),SUMPRODUCT((rngIncExc="Included")*(rngIncExcBP3)*(budDM1BP3/budDM1BP3)),SUMPRODUCT((rngIncExc="Included")*(rngIncExcBP3)*(budDM1BP3/SUM(budDM1BP3,budDM2BP3)))))) -> N/A | N207: =IF(OR(sFABC=3,AND(OR(sFABC=1,sFABC=2),ISNUMBER(budDM1BP4)=FALSE,ISNUMBER(budDM2BP4)=FALSE)),"N/A",IF(AND(OR(sFABC=1,sFABC=2),ISNUMBER(budDM1BP4)=FALSE,ISNUMBER(budDM2BP4)=TRUE),SUMPRODUCT((rngIncExc="Included")*(rngIncExcBP4)*(budDM1BP4/SUM(budDM1BP4,budDM2BP4))),IF(AND(OR(sFABC=1,sFABC=2),ISNUMBER(budDM1BP4)=TRUE,ISNUMBER(budDM2BP4)=FALSE),SUMPRODUCT((rngIncExc="Included")*(rngIncExcBP4)*(budDM1BP4/budDM1BP4)),SUMPRODUCT((rngIncExc="Included")*(rngIncExcBP4)*(budDM1BP4/SUM(budDM1BP4,budDM2BP4)))))) -> N/A | Q207: =IF(OR(sFABC=3,AND(OR(sFABC=1,sFABC=2),ISNUMBER(budDM1BP5)=FALSE,ISNUMBER(budDM2BP5)=FALSE)),"N/A",IF(AND(OR(sFABC=1,sFABC=2),ISNUMBER(budDM1BP5)=FALSE,ISNUMBER(budDM2BP5)=TRUE),SUMPRODUCT((rngIncExc="Included")*(rngIncExcBP5)*(budDM1BP5/SUM(budDM1BP5,budDM2BP5))),IF(AND(OR(sFABC=1,sFABC=2),ISNUMBER(budDM1BP5)=TRUE,ISNUMBER(budDM2BP5)=FALSE),SUMPRODUCT((rngIncExc="Included")*(rngIncExcBP5)*(budDM1BP5/budDM1BP5)),SUMPRODUCT((rngIncExc="Included")*(rngIncExcBP5)*(budDM1BP5/SUM(budDM1BP5,budDM2BP5)))))) -> N/A | T207: =IF(OR(sFABC=3,AND(OR(sFABC=1,sFABC=2),ISNUMBER(budDM1BP6)=FALSE,ISNUMBER(budDM2BP6)=FALSE)),"N/A",IF(AND(OR(sFABC=1,sFABC=2),ISNUMBER(budDM1BP6)=FALSE,ISNUMBER(budDM2BP6)=TRUE),SUMPRODUCT((rngIncExc="Included")*(rngIncExcBP6)*(budDM1BP6/SUM(budDM1BP6,budDM2BP6))),IF(AND(OR(sFABC=1,sFABC=2),ISNUMBER(budDM1BP6)=TRUE,ISNUMBER(budDM2BP6)=FALSE),SUMPRODUCT((rngIncExc="Included")*(rngIncExcBP6)*(budDM1BP6/budDM1BP6)),SUMPRODUCT((rngIncExc="Included")*(rngIncExcBP6)*(budDM1BP6/SUM(budDM1BP6,budDM2BP6)))))) -> N/A | W207: =IF(OR(sFABC=3,AND(OR(sFABC=1,sFABC=2),ISNUMBER(budDM1BP7)=FALSE,ISNUMBER(budDM2BP7)=FALSE)),"N/A",IF(AND(OR(sFABC=1,sFABC=2),ISNUMBER(budDM1BP7)=FALSE,ISNUMBER(budDM2BP7)=TRUE),SUMPRODUCT((rngIncExc="Included")*(rngIncExcBP7)*(budDM1BP7/SUM(budDM1BP7,budDM2BP7))),IF(AND(OR(sFABC=1,sFABC=2),ISNUMBER(budDM1BP7)=TRUE,ISNUMBER(budDM2BP7)=FALSE),SUMPRODUCT((rngIncExc="Included")*(rngIncExcBP7)*(budDM1BP7/budDM1BP7)),SUMPRODUCT((rngIncExc="Included")*(rngIncExcBP7)*(budDM1BP7/SUM(budDM1BP7,budDM2BP7)))))) -> N/A | Z207: =IF(OR(sFABC=3,AND(OR(sFABC=1,sFABC=2),ISNUMBER(budDM1BP8)=FALSE,ISNUMBER(budDM2BP8)=FALSE)),"N/A",IF(AND(OR(sFABC=1,sFABC=2),ISNUMBER(budDM1BP8)=FALSE,ISNUMBER(budDM2BP8)=TRUE),SUMPRODUCT((rngIncExc="Included")*(rngIncExcBP8)*(budDM1BP8/SUM(budDM1BP8,budDM2BP8))),IF(AND(OR(sFABC=1,sFABC=2),ISNUMBER(budDM1BP8)=TRUE,ISNUMBER(budDM2BP8)=FALSE),SUMPRODUCT((rngIncExc="Included")*(rngIncExcBP8)*(budDM1BP8/budDM1BP8)),SUMPRODUCT((rngIncExc="Included")*(rngIncExcBP8)*(budDM1BP8/SUM(budDM1BP8,budDM2BP8)))))) -> N/A | AC207: =IF(OR(sFABC=3,AND(OR(sFABC=1,sFABC=2),ISNUMBER(budDM1BP9)=FALSE,ISNUMBER(budDM2BP9)=FALSE)),"N/A",IF(AND(OR(sFABC=1,sFABC=2),ISNUMBER(budDM1BP9)=FALSE,ISNUMBER(budDM2BP9)=TRUE),SUMPRODUCT((rngIncExc="Included")*(rngIncExcBP9)*(budDM1BP9/SUM(budDM1BP9,budDM2BP9))),IF(AND(OR(sFABC=1,sFABC=2),ISNUMBER(budDM1BP9)=TRUE,ISNUMBER(budDM2BP9)=FALSE),SUMPRODUCT((rngIncExc="Included")*(rngIncExcBP9)*(budDM1BP9/budDM1BP9)),SUMPRODUCT((rngIncExc="Included")*(rngIncExcBP9)*(budDM1BP9/SUM(budDM1BP9,budDM2BP9)))))) -> N/A | AF207: =IF(OR(sFABC=3,AND(OR(sFABC=1,sFABC=2),ISNUMBER(budDM1BP10)=FALSE,ISNUMBER(budDM2BP10)=FALSE)),"N/A",IF(AND(OR(sFABC=1,sFABC=2),ISNUMBER(budDM1BP10)=FALSE,ISNUMBER(budDM2BP10)=TRUE),SUMPRODUCT((rngIncExc="Included")*(rngIncExcBP10)*(budDM1BP10/SUM(budDM1BP10,budDM2BP10))),IF(AND(OR(sFABC=1,sFABC=2),ISNUMBER(budDM1BP10)=TRUE,ISNUMBER(budDM2BP10)=FALSE),SUMPRODUCT((rngIncExc="Included")*(rngIncExcBP10)*(budDM1BP10/budDM1BP10)),SUMPRODUCT((rngIncExc="Included")*(rngIncExcBP10)*(budDM1BP10/SUM(budDM1BP10,budDM2BP10)))))) -> N/A | AI207: =SUM(E207:AH207) -> 0
B208: F&A Rate 1 | E208: =IF(OR(ISNUMBER(wsBP1)=FALSE,ISNUMBER(weBP1)=FALSE,ISNUMBER(wsfyBP1)=FALSE,ISNUMBER(wefyBP1)=FALSE,ISNUMBER(wsFA1BP1)=FALSE,sFABC=3),"N/A",wsFA1BP1) -> N/A | H208: =IF(OR(ISNUMBER(wsBP2)=FALSE,ISNUMBER(weBP2)=FALSE,ISNUMBER(wsfyBP2)=FALSE,ISNUMBER(wefyBP2)=FALSE,ISNUMBER(wsFA1BP2)=FALSE,sFABC=3),"N/A",wsFA1BP2) -> N/A | K208: =IF(OR(ISNUMBER(wsBP3)=FALSE,ISNUMBER(weBP3)=FALSE,ISNUMBER(wsfyBP3)=FALSE,ISNUMBER(wefyBP3)=FALSE,ISNUMBER(wsFA1BP3)=FALSE,sFABC=3),"N/A",wsFA1BP3) -> N/A | N208: =IF(OR(ISNUMBER(wsBP4)=FALSE,ISNUMBER(weBP4)=FALSE,ISNUMBER(wsfyBP4)=FALSE,ISNUMBER(wefyBP4)=FALSE,ISNUMBER(wsFA1BP4)=FALSE,sFABC=3),"N/A",wsFA1BP4) -> N/A | Q208: =IF(OR(ISNUMBER(wsBP5)=FALSE,ISNUMBER(weBP5)=FALSE,ISNUMBER(wsfyBP5)=FALSE,ISNUMBER(wefyBP5)=FALSE,ISNUMBER(wsFA1BP5)=FALSE,sFABC=3),"N/A",wsFA1BP5) -> N/A | T208: =IF(OR(ISNUMBER(wsBP6)=FALSE,ISNUMBER(weBP6)=FALSE,ISNUMBER(wsfyBP6)=FALSE,ISNUMBER(wefyBP6)=FALSE,ISNUMBER(wsFA1BP6)=FALSE,sFABC=3),"N/A",wsFA1BP6) -> N/A | W208: =IF(OR(ISNUMBER(wsBP7)=FALSE,ISNUMBER(weBP7)=FALSE,ISNUMBER(wsfyBP7)=FALSE,ISNUMBER(wefyBP7)=FALSE,ISNUMBER(wsFA1BP7)=FALSE,sFABC=3),"N/A",wsFA1BP7) -> N/A | Z208: =IF(OR(ISNUMBER(wsBP8)=FALSE,ISNUMBER(weBP8)=FALSE,ISNUMBER(wsfyBP8)=FALSE,ISNUMBER(wefyBP8)=FALSE,ISNUMBER(wsFA1BP8)=FALSE,sFABC=3),"N/A",wsFA1BP8) -> N/A | AC208: =IF(OR(ISNUMBER(wsBP9)=FALSE,ISNUMBER(weBP9)=FALSE,ISNUMBER(wsfyBP9)=FALSE,ISNUMBER(wefyBP9)=FALSE,ISNUMBER(wsFA1BP9)=FALSE,sFABC=3),"N/A",wsFA1BP9) -> N/A | AF208: =IF(OR(ISNUMBER(wsBP10)=FALSE,ISNUMBER(weBP10)=FALSE,ISNUMBER(wsfyBP10)=FALSE,ISNUMBER(wefyBP10)=FALSE,ISNUMBER(wsFA1BP10)=FALSE,sFABC=3),"N/A",wsFA1BP10) -> N/A
B209: =IF(sDAYMO=1,"Months @ F&A Rate 1","Days @F&A Rate 1") -> Months @ F&A Rate 1 | E209: =IF(OR(ISNUMBER(wsBP1)=FALSE,ISNUMBER(weBP1)=FALSE,ISNUMBER(wsfyBP1)=FALSE,ISNUMBER(wefyBP1)=FALSE,ISNUMBER(wsFA1BP1)=FALSE,ISNUMBER(wsDMFY1BP1)=FALSE,sFABC=3),"N/A",wsDMFY1BP1) -> N/A | H209: =IF(OR(ISNUMBER(wsBP2)=FALSE,ISNUMBER(weBP2)=FALSE,ISNUMBER(wsfyBP2)=FALSE,ISNUMBER(wefyBP2)=FALSE,ISNUMBER(wsFA1BP2)=FALSE,ISNUMBER(wsDMFY1BP2)=FALSE,sFABC=3),"N/A",wsDMFY1BP2) -> N/A | K209: =IF(OR(ISNUMBER(wsBP3)=FALSE,ISNUMBER(weBP3)=FALSE,ISNUMBER(wsfyBP3)=FALSE,ISNUMBER(wefyBP3)=FALSE,ISNUMBER(wsFA1BP3)=FALSE,ISNUMBER(wsDMFY1BP3)=FALSE,sFABC=3),"N/A",wsDMFY1BP3) -> N/A | N209: =IF(OR(ISNUMBER(wsBP4)=FALSE,ISNUMBER(weBP4)=FALSE,ISNUMBER(wsfyBP4)=FALSE,ISNUMBER(wefyBP4)=FALSE,ISNUMBER(wsFA1BP4)=FALSE,ISNUMBER(wsDMFY1BP4)=FALSE,sFABC=3),"N/A",wsDMFY1BP4) -> N/A | Q209: =IF(OR(ISNUMBER(wsBP5)=FALSE,ISNUMBER(weBP5)=FALSE,ISNUMBER(wsfyBP5)=FALSE,ISNUMBER(wefyBP5)=FALSE,ISNUMBER(wsFA1BP5)=FALSE,ISNUMBER(wsDMFY1BP5)=FALSE,sFABC=3),"N/A",wsDMFY1BP5) -> N/A | T209: =IF(OR(ISNUMBER(wsBP6)=FALSE,ISNUMBER(weBP6)=FALSE,ISNUMBER(wsfyBP6)=FALSE,ISNUMBER(wefyBP6)=FALSE,ISNUMBER(wsFA1BP6)=FALSE,ISNUMBER(wsDMFY1BP6)=FALSE,sFABC=3),"N/A",wsDMFY1BP6) -> N/A | W209: =IF(OR(ISNUMBER(wsBP7)=FALSE,ISNUMBER(weBP7)=FALSE,ISNUMBER(wsfyBP7)=FALSE,ISNUMBER(wefyBP7)=FALSE,ISNUMBER(wsFA1BP7)=FALSE,ISNUMBER(wsDMFY1BP7)=FALSE,sFABC=3),"N/A",wsDMFY1BP7) -> N/A | Z209: =IF(OR(ISNUMBER(wsBP8)=FALSE,ISNUMBER(weBP8)=FALSE,ISNUMBER(wsfyBP8)=FALSE,ISNUMBER(wefyBP8)=FALSE,ISNUMBER(wsFA1BP8)=FALSE,ISNUMBER(wsDMFY1BP8)=FALSE,sFABC=3),"N/A",wsDMFY1BP8) -> N/A | AC209: =IF(OR(ISNUMBER(wsBP9)=FALSE,ISNUMBER(weBP9)=FALSE,ISNUMBER(wsfyBP9)=FALSE,ISNUMBER(wefyBP9)=FALSE,ISNUMBER(wsFA1BP9)=FALSE,ISNUMBER(wsDMFY1BP9)=FALSE,sFABC=3),"N/A",wsDMFY1BP9) -> N/A | AF209: =IF(OR(ISNUMBER(wsBP10)=FALSE,ISNUMBER(weBP10)=FALSE,ISNUMBER(wsfyBP10)=FALSE,ISNUMBER(wefyBP10)=FALSE,ISNUMBER(wsFA1BP10)=FALSE,ISNUMBER(wsDMFY1BP10)=FALSE,sFABC=3),"N/A",wsDMFY1BP10) -> N/A
B210: F&A Costs 1 | E210: =IF(OR(ISNUMBER(budFAB1BP1)=FALSE,ISNUMBER(budDM1BP1)=FALSE),0,budFAB1BP1*budFA1BP1) -> 0 | H210: =IF(OR(ISNUMBER(budFAB1BP2)=FALSE,ISNUMBER(budDM1BP2)=FALSE),0,budFAB1BP2*budFA1BP2) -> 0 | K210: =IF(OR(ISNUMBER(budFAB1BP3)=FALSE,ISNUMBER(budDM1BP3)=FALSE),0,budFAB1BP3*budFA1BP3) -> 0 | N210: =IF(OR(ISNUMBER(budFAB1BP4)=FALSE,ISNUMBER(budDM1BP4)=FALSE),0,budFAB1BP4*budFA1BP4) -> 0 | Q210: =IF(OR(ISNUMBER(budFAB1BP5)=FALSE,ISNUMBER(budDM1BP5)=FALSE),0,budFAB1BP5*budFA1BP5) -> 0 | T210: =IF(OR(ISNUMBER(budFAB1BP6)=FALSE,ISNUMBER(budDM1BP6)=FALSE),0,budFAB1BP6*budFA1BP6) -> 0 | W210: =IF(OR(ISNUMBER(budFAB1BP7)=FALSE,ISNUMBER(budDM1BP7)=FALSE),0,budFAB1BP7*budFA1BP7) -> 0 | Z210: =IF(OR(ISNUMBER(budFAB1BP8)=FALSE,ISNUMBER(budDM1BP8)=FALSE),0,budFAB1BP8*budFA1BP8) -> 0 | AC210: =IF(OR(ISNUMBER(budFAB1BP9)=FALSE,ISNUMBER(budDM1BP9)=FALSE),0,budFAB1BP9*budFA1BP9) -> 0 | AF210: =IF(OR(ISNUMBER(budFAB1BP10)=FALSE,ISNUMBER(budDM1BP10)=FALSE),0,budFAB1BP10*budFA1BP10) -> 0 | AI210: =SUM(E210:AH210) -> 0
B212: F&A Cost Base 2 | E212: =IF(OR(sFARC=6,sFABC=3,AND(OR(sFABC=1,sFABC=2),ISNUMBER(budDM1BP1)=FALSE,ISNUMBER(budDM2BP1)=FALSE),AND(OR(sFABC=1,sFABC=2),ISNUMBER(budDM1BP1)=FALSE,ISNUMBER(budDM2BP1)=TRUE)),"N/A",IF(AND(OR(sFABC=1,sFABC=2),ISNUMBER(budDM1BP1)=TRUE,ISNUMBER(budDM2BP1)=FALSE),0,SUMPRODUCT((rngIncExc="Included")*(rngIncExcBP1)*(budDM2BP1/SUM(budDM1BP1,budDM2BP1))))) -> N/A | H212: =IF(OR(sFARC=6,sFABC=3,AND(OR(sFABC=1,sFABC=2),ISNUMBER(budDM1BP2)=FALSE,ISNUMBER(budDM2BP2)=FALSE),AND(OR(sFABC=1,sFABC=2),ISNUMBER(budDM1BP2)=FALSE,ISNUMBER(budDM2BP2)=TRUE)),"N/A",IF(AND(OR(sFABC=1,sFABC=2),ISNUMBER(budDM1BP2)=TRUE,ISNUMBER(budDM2BP2)=FALSE),0,SUMPRODUCT((rngIncExc="Included")*(rngIncExcBP2)*(budDM2BP2/SUM(budDM1BP2,budDM2BP2))))) -> N/A | K212: =IF(OR(sFARC=6,sFABC=3,AND(OR(sFABC=1,sFABC=2),ISNUMBER(budDM1BP3)=FALSE,ISNUMBER(budDM2BP3)=FALSE),AND(OR(sFABC=1,sFABC=2),ISNUMBER(budDM1BP3)=FALSE,ISNUMBER(budDM2BP3)=TRUE)),"N/A",IF(AND(OR(sFABC=1,sFABC=2),ISNUMBER(budDM1BP3)=TRUE,ISNUMBER(budDM2BP3)=FALSE),0,SUMPRODUCT((rngIncExc="Included")*(rngIncExcBP3)*(budDM2BP3/SUM(budDM1BP3,budDM2BP3))))) -> N/A | N212: =IF(OR(sFARC=6,sFABC=3,AND(OR(sFABC=1,sFABC=2),ISNUMBER(budDM1BP4)=FALSE,ISNUMBER(budDM2BP4)=FALSE),AND(OR(sFABC=1,sFABC=2),ISNUMBER(budDM1BP4)=FALSE,ISNUMBER(budDM2BP4)=TRUE)),"N/A",IF(AND(OR(sFABC=1,sFABC=2),ISNUMBER(budDM1BP4)=TRUE,ISNUMBER(budDM2BP4)=FALSE),0,SUMPRODUCT((rngIncExc="Included")*(rngIncExcBP4)*(budDM2BP4/SUM(budDM1BP4,budDM2BP4))))) -> N/A | Q212: =IF(OR(sFARC=6,sFABC=3,AND(OR(sFABC=1,sFABC=2),ISNUMBER(budDM1BP5)=FALSE,ISNUMBER(budDM2BP5)=FALSE),AND(OR(sFABC=1,sFABC=2),ISNUMBER(budDM1BP5)=FALSE,ISNUMBER(budDM2BP5)=TRUE)),"N/A",IF(AND(OR(sFABC=1,sFABC=2),ISNUMBER(budDM1BP5)=TRUE,ISNUMBER(budDM2BP5)=FALSE),0,SUMPRODUCT((rngIncExc="Included")*(rngIncExcBP5)*(budDM2BP5/SUM(budDM1BP5,budDM2BP5))))) -> N/A | T212: =IF(OR(sFARC=6,sFABC=3,AND(OR(sFABC=1,sFABC=2),ISNUMBER(budDM1BP6)=FALSE,ISNUMBER(budDM2BP6)=FALSE),AND(OR(sFABC=1,sFABC=2),ISNUMBER(budDM1BP6)=FALSE,ISNUMBER(budDM2BP6)=TRUE)),"N/A",IF(AND(OR(sFABC=1,sFABC=2),ISNUMBER(budDM1BP6)=TRUE,ISNUMBER(budDM2BP6)=FALSE),0,SUMPRODUCT((rngIncExc="Included")*(rngIncExcBP6)*(budDM2BP6/SUM(budDM1BP6,budDM2BP6))))) -> N/A | W212: =IF(OR(sFARC=6,sFABC=3,AND(OR(sFABC=1,sFABC=2),ISNUMBER(budDM1BP7)=FALSE,ISNUMBER(budDM2BP7)=FALSE),AND(OR(sFABC=1,sFABC=2),ISNUMBER(budDM1BP7)=FALSE,ISNUMBER(budDM2BP7)=TRUE)),"N/A",IF(AND(OR(sFABC=1,sFABC=2),ISNUMBER(budDM1BP7)=TRUE,ISNUMBER(budDM2BP7)=FALSE),0,SUMPRODUCT((rngIncExc="Included")*(rngIncExcBP7)*(budDM2BP7/SUM(budDM1BP7,budDM2BP7))))) -> N/A | Z212: =IF(OR(sFARC=6,sFABC=3,AND(OR(sFABC=1,sFABC=2),ISNUMBER(budDM1BP8)=FALSE,ISNUMBER(budDM2BP8)=FALSE),AND(OR(sFABC=1,sFABC=2),ISNUMBER(budDM1BP8)=FALSE,ISNUMBER(budDM2BP8)=TRUE)),"N/A",IF(AND(OR(sFABC=1,sFABC=2),ISNUMBER(budDM1BP8)=TRUE,ISNUMBER(budDM2BP8)=FALSE),0,SUMPRODUCT((rngIncExc="Included")*(rngIncExcBP8)*(budDM2BP8/SUM(budDM1BP8,budDM2BP8))))) -> N/A | AC212: =IF(OR(sFARC=6,sFABC=3,AND(OR(sFABC=1,sFABC=2),ISNUMBER(budDM1BP9)=FALSE,ISNUMBER(budDM2BP9)=FALSE),AND(OR(sFABC=1,sFABC=2),ISNUMBER(budDM1BP9)=FALSE,ISNUMBER(budDM2BP9)=TRUE)),"N/A",IF(AND(OR(sFABC=1,sFABC=2),ISNUMBER(budDM1BP9)=TRUE,ISNUMBER(budDM2BP9)=FALSE),0,SUMPRODUCT((rngIncExc="Included")*(rngIncExcBP9)*(budDM2BP9/SUM(budDM1BP9,budDM2BP9))))) -> N/A | AF212: =IF(OR(sFARC=6,sFABC=3,AND(OR(sFABC=1,sFABC=2),ISNUMBER(budDM1BP9)=FALSE,ISNUMBER(budDM2BP9)=FALSE),AND(OR(sFABC=1,sFABC=2),ISNUMBER(budDM1BP9)=FALSE,ISNUMBER(budDM2BP9)=TRUE)),"N/A",IF(AND(OR(sFABC=1,sFABC=2),ISNUMBER(budDM1BP9)=TRUE,ISNUMBER(budDM2BP9)=FALSE),0,SUMPRODUCT((rngIncExc="Included")*(rngIncExcBP9)*(budDM2BP9/SUM(budDM1BP9,budDM2BP9))))) -> N/A | AI212: =SUM(E212:AH212) -> 0
B213: F&A Rate 2 (if different than above) | E213: =IF(OR(ISNUMBER(wsBP1)=FALSE,ISNUMBER(weBP1)=FALSE,ISNUMBER(wsfyBP1)=FALSE,ISNUMBER(wefyBP1)=FALSE,ISNUMBER(wsFA1BP1)=FALSE,wsFA2BP1=wsFA1BP1,ISNUMBER(wsFA2BP1)=FALSE,sFARC=3,sFABC=3),"N/A",wsFA2BP1) -> N/A | H213: =IF(OR(ISNUMBER(wsBP2)=FALSE,ISNUMBER(weBP2)=FALSE,ISNUMBER(wsfyBP2)=FALSE,ISNUMBER(wefyBP2)=FALSE,ISNUMBER(wsFA1BP2)=FALSE,wsFA2BP2=wsFA1BP2,ISNUMBER(wsFA2BP2)=FALSE,sFARC=3,sFABC=3),"N/A",wsFA2BP2) -> N/A | K213: =IF(OR(ISNUMBER(wsBP3)=FALSE,ISNUMBER(weBP3)=FALSE,ISNUMBER(wsfyBP3)=FALSE,ISNUMBER(wefyBP3)=FALSE,ISNUMBER(wsFA1BP3)=FALSE,wsFA2BP3=wsFA1BP3,ISNUMBER(wsFA2BP3)=FALSE,sFARC=3,sFABC=3),"N/A",wsFA2BP3) -> N/A | N213: =IF(OR(ISNUMBER(wsBP4)=FALSE,ISNUMBER(weBP4)=FALSE,ISNUMBER(wsfyBP4)=FALSE,ISNUMBER(wefyBP4)=FALSE,ISNUMBER(wsFA1BP4)=FALSE,wsFA2BP4=wsFA1BP4,ISNUMBER(wsFA2BP4)=FALSE,sFARC=3,sFABC=3),"N/A",wsFA2BP4) -> N/A | Q213: =IF(OR(ISNUMBER(wsBP5)=FALSE,ISNUMBER(weBP5)=FALSE,ISNUMBER(wsfyBP5)=FALSE,ISNUMBER(wefyBP5)=FALSE,ISNUMBER(wsFA1BP5)=FALSE,wsFA2BP1=wsFA1BP5,ISNUMBER(wsFA2BP5)=FALSE,sFARC=3,sFABC=3),"N/A",wsFA2BP5) -> N/A | T213: =IF(OR(ISNUMBER(wsBP6)=FALSE,ISNUMBER(weBP6)=FALSE,ISNUMBER(wsfyBP6)=FALSE,ISNUMBER(wefyBP6)=FALSE,ISNUMBER(wsFA1BP6)=FALSE,wsFA2BP6=wsFA1BP6,ISNUMBER(wsFA2BP6)=FALSE,sFARC=3,sFABC=3),"N/A",wsFA2BP6) -> N/A | W213: =IF(OR(ISNUMBER(wsBP7)=FALSE,ISNUMBER(weBP7)=FALSE,ISNUMBER(wsfyBP7)=FALSE,ISNUMBER(wefyBP7)=FALSE,ISNUMBER(wsFA1BP7)=FALSE,wsFA2BP7=wsFA1BP7,ISNUMBER(wsFA2BP7)=FALSE,sFARC=3,sFABC=3),"N/A",wsFA2BP7) -> N/A | Z213: =IF(OR(ISNUMBER(wsBP8)=FALSE,ISNUMBER(weBP8)=FALSE,ISNUMBER(wsfyBP8)=FALSE,ISNUMBER(wefyBP8)=FALSE,ISNUMBER(wsFA1BP8)=FALSE,wsFA2BP8=wsFA1BP8,ISNUMBER(wsFA2BP8)=FALSE,sFARC=3,sFABC=3),"N/A",wsFA2BP8) -> N/A | AC213: =IF(OR(ISNUMBER(wsBP9)=FALSE,ISNUMBER(weBP9)=FALSE,ISNUMBER(wsfyBP9)=FALSE,ISNUMBER(wefyBP9)=FALSE,ISNUMBER(wsFA1BP9)=FALSE,wsFA2BP9=wsFA1BP9,ISNUMBER(wsFA2BP9)=FALSE,sFARC=3,sFABC=3),"N/A",wsFA2BP9) -> N/A | AF213: =IF(OR(ISNUMBER(wsBP10)=FALSE,ISNUMBER(weBP10)=FALSE,ISNUMBER(wsfyBP10)=FALSE,ISNUMBER(wefyBP10)=FALSE,ISNUMBER(wsFA1BP10)=FALSE,wsFA2BP10=wsFA1BP10,ISNUMBER(wsFA2BP10)=FALSE,sFARC=3,sFABC=3),"N/A",wsFA2BP10) -> N/A
B214: =IF(sDAYMO=1,"Months @ F&A Rate 2","Days @F&A Rate 2") -> Months @ F&A Rate 2 | E214: =IF(OR(ISNUMBER(wsBP1)=FALSE,ISNUMBER(weBP1)=FALSE,ISNUMBER(wsfyBP1)=FALSE,ISNUMBER(wefyBP1)=FALSE,ISNUMBER(wsFA1BP1)=FALSE,wsFA2BP1=wsFA1BP1,ISNUMBER(wsFA2BP1)=FALSE,ISNUMBER(wsDMFY2BP1)=FALSE,sFARC=3,sFABC=3),"N/A",wsDMFY2BP1) -> N/A | H214: =IF(OR(ISNUMBER(wsBP2)=FALSE,ISNUMBER(weBP2)=FALSE,ISNUMBER(wsfyBP2)=FALSE,ISNUMBER(wefyBP2)=FALSE,ISNUMBER(wsFA1BP2)=FALSE,wsFA2BP2=wsFA1BP2,ISNUMBER(wsFA2BP2)=FALSE,ISNUMBER(wsDMFY2BP2)=FALSE,sFARC=3,sFABC=3),"N/A",wsDMFY2BP2) -> N/A | K214: =IF(OR(ISNUMBER(wsBP3)=FALSE,ISNUMBER(weBP3)=FALSE,ISNUMBER(wsfyBP3)=FALSE,ISNUMBER(wefyBP3)=FALSE,ISNUMBER(wsFA1BP3)=FALSE,wsFA2BP3=wsFA1BP3,ISNUMBER(wsFA2BP3)=FALSE,ISNUMBER(wsDMFY2BP3)=FALSE,sFARC=3,sFABC=3),"N/A",wsDMFY2BP3) -> N/A | N214: =IF(OR(ISNUMBER(wsBP4)=FALSE,ISNUMBER(weBP4)=FALSE,ISNUMBER(wsfyBP4)=FALSE,ISNUMBER(wefyBP4)=FALSE,ISNUMBER(wsFA1BP4)=FALSE,wsFA2BP4=wsFA1BP4,ISNUMBER(wsFA2BP4)=FALSE,ISNUMBER(wsDMFY2BP4)=FALSE,sFARC=3,sFABC=3),"N/A",wsDMFY2BP4) -> N/A | Q214: =IF(OR(ISNUMBER(wsBP5)=FALSE,ISNUMBER(weBP5)=FALSE,ISNUMBER(wsfyBP5)=FALSE,ISNUMBER(wefyBP5)=FALSE,ISNUMBER(wsFA1BP5)=FALSE,wsFA2BP5=wsFA1BP5,ISNUMBER(wsFA2BP5)=FALSE,ISNUMBER(wsDMFY2BP5)=FALSE,sFARC=3,sFABC=3),"N/A",wsDMFY2BP5) -> N/A | T214: =IF(OR(ISNUMBER(wsBP6)=FALSE,ISNUMBER(weBP6)=FALSE,ISNUMBER(wsfyBP6)=FALSE,ISNUMBER(wefyBP6)=FALSE,ISNUMBER(wsFA1BP6)=FALSE,wsFA2BP6=wsFA1BP6,ISNUMBER(wsFA2BP6)=FALSE,ISNUMBER(wsDMFY2BP6)=FALSE,sFARC=3,sFABC=3),"N/A",wsDMFY2BP6) -> N/A | W214: =IF(OR(ISNUMBER(wsBP7)=FALSE,ISNUMBER(weBP7)=FALSE,ISNUMBER(wsfyBP7)=FALSE,ISNUMBER(wefyBP7)=FALSE,ISNUMBER(wsFA1BP7)=FALSE,wsFA2BP7=wsFA1BP7,ISNUMBER(wsFA2BP7)=FALSE,ISNUMBER(wsDMFY2BP7)=FALSE,sFARC=3,sFABC=3),"N/A",wsDMFY2BP7) -> N/A | Z214: =IF(OR(ISNUMBER(wsBP8)=FALSE,ISNUMBER(weBP8)=FALSE,ISNUMBER(wsfyBP8)=FALSE,ISNUMBER(wefyBP8)=FALSE,ISNUMBER(wsFA1BP8)=FALSE,wsFA2BP8=wsFA1BP8,ISNUMBER(wsFA2BP8)=FALSE,ISNUMBER(wsDMFY2BP8)=FALSE,sFARC=3,sFABC=3),"N/A",wsDMFY2BP8) -> N/A | AC214: =IF(OR(ISNUMBER(wsBP9)=FALSE,ISNUMBER(weBP9)=FALSE,ISNUMBER(wsfyBP9)=FALSE,ISNUMBER(wefyBP9)=FALSE,ISNUMBER(wsFA1BP9)=FALSE,wsFA2BP9=wsFA1BP9,ISNUMBER(wsFA2BP9)=FALSE,ISNUMBER(wsDMFY2BP9)=FALSE,sFARC=3,sFABC=3),"N/A",wsDMFY2BP9) -> N/A | AF214: =IF(OR(ISNUMBER(wsBP2)=FALSE,ISNUMBER(weBP2)=FALSE,ISNUMBER(wsfyBP2)=FALSE,ISNUMBER(wefyBP2)=FALSE,ISNUMBER(wsFA1BP2)=FALSE,wsFA2BP10=wsFA1BP10,ISNUMBER(wsFA2BP10)=FALSE,ISNUMBER(wsDMFY2BP10)=FALSE,sFARC=3,sFABC=3),"N/A",wsDMFY2BP10) -> N/A
B215: F&A Costs 2 | E215: =IF(OR(ISNUMBER(budFA2BP1)=FALSE,ISNUMBER(budDM2BP1)=FALSE),0,budFAB2BP1*budFA2BP1) -> 0 | H215: =IF(OR(ISNUMBER(budFA2BP2)=FALSE,ISNUMBER(budDM2BP2)=FALSE),0,budFAB2BP2*budFA2BP2) -> 0 | K215: =IF(OR(ISNUMBER(budFA2BP3)=FALSE,ISNUMBER(budDM2BP3)=FALSE),0,budFAB2BP3*budFA2BP3) -> 0 | N215: =IF(OR(ISNUMBER(budFA2BP4)=FALSE,ISNUMBER(budDM2BP4)=FALSE),0,budFAB2BP4*budFA2BP4) -> 0 | Q215: =IF(OR(ISNUMBER(budFA2BP5)=FALSE,ISNUMBER(budDM2BP5)=FALSE),0,budFAB2BP5*budFA2BP5) -> 0 | T215: =IF(OR(ISNUMBER(budFA2BP6)=FALSE,ISNUMBER(budDM2BP6)=FALSE),0,budFAB2BP6*budFA2BP6) -> 0 | W215: =IF(OR(ISNUMBER(budFA2BP7)=FALSE,ISNUMBER(budDM2BP7)=FALSE),0,budFAB2BP7*budFA2BP7) -> 0 | Z215: =IF(OR(ISNUMBER(budFA2BP8)=FALSE,ISNUMBER(budDM2BP8)=FALSE),0,budFAB2BP8*budFA2BP8) -> 0 | AC215: =IF(OR(ISNUMBER(budFA2BP9)=FALSE,ISNUMBER(budDM2BP9)=FALSE),0,budFAB2BP9*budFA2BP9) -> 0 | AF215: =IF(OR(ISNUMBER(budFA2BP10)=FALSE,ISNUMBER(budDM2BP10)=FALSE),0,budFAB2BP10*budFA2BP10) -> 0 | AI215: =SUM(E215:AH215) -> 0
A217: S. NOTES

Sheet Budget-Cost Sharing (hidden)
A1: BUDGET - COST SHARING
AO2: =wsFP -> FPxxxxxxxx | AP2: =wsDirectSPon -> Direct Sponsor | AR2: =IF(sFABCCS=3,budNSFARABP1CS,_xlfn.CONCAT(wsFA1BPCS1," | ",wsFA2BP1)) -> N/A | N/A | AS2: =IF(sFABCCS=3,budNSFARABP2CS,_xlfn.CONCAT(wsFA1BPCS2," | ",wsFA2BP2)) -> N/A | N/A | AT2: =IF(sFABCCS=3,budNSFARABP3CS,_xlfn.CONCAT(wsFA1BPCS3," | ",wsFA2BP3)) -> N/A | N/A | AU2: =IF(sFABCCS=3,budNSFARABP4CS,_xlfn.CONCAT(wsFA1BPCS4," | ",wsFA2BP4)) -> N/A | N/A | AV2: =IF(sFABCCS=3,budNSFARABP5CS,_xlfn.CONCAT(wsFA1BPCS5," | ",wsFA2BP5)) -> N/A | N/A | AW2: =IF(sFABCCS=3,budNSFARABP6CS,_xlfn.CONCAT(wsFA1BPCS6," | ",wsFA2BP6)) -> N/A | N/A | AX2: =IF(sFABCCS=3,budNSFARABP7CS,_xlfn.CONCAT(wsFA1BPCS7," | ",wsFA2BP7)) -> N/A | N/A | AY2: =IF(sFABCCS=3,budNSFARABP8CS,_xlfn.CONCAT(wsFA1BPCS8," | ",wsFA2BP8)) -> N/A | N/A | AZ2: =IF(sFABCCS=3,budNSFARABP9CS,_xlfn.CONCAT(wsFA1BPCS9," | ",wsFA2BP9)) -> N/A | N/A | BA2: =IF(sFABCCS=3,budNSFARABP10CS,_xlfn.CONCAT(wsFA1BPCS10," | ",wsFA2BP10)) -> N/A | N/A | BB2: =IF(sFABCCS=3,"F&A Amount","F&A Rate") -> F&A Rate
E3: 0 | H3: 0 | K3: 0 | N3: 0 | Q3: 0 | T3: 0 | W3: 0 | Z3: 0 | AC3: 0 | AF3: 0 | AO3: =_xlfn.CONCAT(wsAWD," | ",wsAMR) -> AWDxxxxxxxx | AMRxxxxxxxx | AP3: =wsPrimeSpon -> Prime Sponsor (if applicable) | AR3: =wsBP1 -> Enter Date | AS3: =wsBP2 -> Enter Date | AT3: =wsBP3 -> Enter Date | AU3: =wsBP4 -> Enter Date | AV3: =wsBP5 -> Enter Date | AW3: =wsBP6 -> Enter Date | AX3: =wsBP7 -> Enter Date | AY3: =wsBP8 -> Enter Date | AZ3: =wsBP9 -> Enter Date | BA3: =wsBP10 -> Enter Date | BB3: Start Date
A4: =IF(COUNTIF(rngCFCSA1,"Yes")+COUNTIF(rngCFCSA2,"Yes")>0,"BUDGET PREPARED USING CUSTOM FRINGE RATES",IF(sFBRCCS=1,"BUDGET PREPARED WITH SPONSORED FB RATES","BUDGET PREPARED WITH NON-SPONSORED FB RATES")) -> BUDGET PREPARED WITH NON-SPONSORED FB RATES | AO4: =_xlfn.CONCAT("Oracle Award: ",wsOracleAward) -> Oracle Award: xxxxxx | AP4: =wsPDPI -> PD/PI Name | AR4: =weBP1 -> Enter Date | AS4: =weBP2 -> Enter Date | AT4: =weBP3 -> Enter Date | AU4: =weBP4 -> Enter Date | AV4: =weBP5 -> Enter Date | AW4: =weBP6 -> Enter Date | AX4: =weBP7 -> Enter Date | AY4: =weBP8 -> Enter Date | AZ4: =weBP9 -> Enter Date | BA4: =weBP10 -> Enter Date | BB4: End Date | BC4: COST SHARING
D5: Included in F&A Base | E5: Budget Period 1 | H5: Budget Period 2 | K5: Budget Period 3 | N5: Budget Period 4 | Q5: Budget Period 5 | T5: Budget Period 6 | W5: Budget Period 7 | Z5: Budget Period 8 | AC5: Budget Period 9 | AF5: Budget Period 10 | AI5: Total | AL5: NOTES | AM5: NOTES | AO5: =_xlfn.CONCAT("Oracle Project: ",wsOracleProject) -> Oracle Project: xxxxxx | AP5: =wsTitle -> Project Title | AR5: =wsfyBP1 -> N/A | AS5: =wsfyBP2 -> N/A | AT5: =wsfyBP3 -> N/A | AU5: =wsfyBP4 -> N/A | AV5: =wsfyBP5 -> N/A | AW5: =wsfyBP6 -> N/A | AX5: =wsfyBP7 -> N/A | AY5: =wsfyBP8 -> N/A | AZ5: =wsfyBP9 -> N/A | BA5: =wsfyBP10 -> N/A | BB5: Begin FY | BC5: BUDGET
E6: =IF(ISNUMBER(wsBP1)=TRUE,wsBP1,"N/A") -> N/A | F6: =IF(ISNUMBER(weBP1)=TRUE,weBP1,"N/A") -> N/A | G6: =IF(OR(ISNUMBER(wsBP1)=TRUE,ISNUMBER(weBP1)=TRUE),wsfyBP1,"N/A") -> N/A | H6: =IF(ISNUMBER(wsBP2)=TRUE,wsBP2,"N/A") -> N/A | I6: =IF(ISNUMBER(weBP2)=TRUE,weBP2,"N/A") -> N/A | J6: =IF(AND(ISNUMBER(wsBP2),ISNUMBER(weBP2))=TRUE,wsfyBP2,"N/A") -> N/A | K6: =IF(ISNUMBER(wsBP3),wsBP3,"N/A") -> N/A | L6: =IF(ISNUMBER(weBP3),weBP3,"N/A") -> N/A | M6: =IF(AND(ISNUMBER(wsBP3),ISNUMBER(weBP3))=TRUE,wsfyBP3,"N/A") -> N/A | N6: =IF(ISNUMBER(wsBP4),wsBP4,"N/A") -> N/A | O6: =IF(ISNUMBER(weBP4),weBP4,"N/A") -> N/A | P6: =IF(AND(ISNUMBER(wsBP4),ISNUMBER(weBP4))=TRUE,wsfyBP4,"N/A") -> N/A | Q6: =IF(ISNUMBER(wsBP5),wsBP5,"N/A") -> N/A | R6: =IF(ISNUMBER(weBP5),weBP5,"N/A") -> N/A | S6: =IF(AND(ISNUMBER(wsBP5),ISNUMBER(weBP5))=TRUE,wsfyBP5,"N/A") -> N/A | T6: =IF(ISNUMBER(wsBP6),wsBP6,"N/A") -> N/A | U6: =IF(ISNUMBER(weBP6),weBP6,"N/A") -> N/A | V6: =IF(AND(ISNUMBER(wsBP6),ISNUMBER(weBP6))=TRUE,wsfyBP6,"N/A") -> N/A | W6: =IF(ISNUMBER(wsBP7),wsBP7,"N/A") -> N/A | X6: =IF(ISNUMBER(weBP7),weBP7,"N/A") -> N/A | Y6: =IF(AND(ISNUMBER(wsBP7),ISNUMBER(weBP7))=TRUE,wsfyBP7,"N/A") -> N/A | Z6: =IF(ISNUMBER(wsBP8),wsBP8,"N/A") -> N/A | AA6: =IF(ISNUMBER(weBP8),weBP8,"N/A") -> N/A | AB6: =IF(AND(ISNUMBER(wsBP8),ISNUMBER(weBP8))=TRUE,wsfyBP8,"N/A") -> N/A | AC6: =IF(ISNUMBER(wsBP9),wsBP9,"N/A") -> N/A | AD6: =IF(ISNUMBER(weBP9),weBP9,"N/A") -> N/A | AE6: =IF(AND(ISNUMBER(wsBP9),ISNUMBER(weBP9))=TRUE,wsfyBP9,"N/A") -> N/A | AF6: =IF(ISNUMBER(wsBP10),wsBP10,"N/A") -> N/A | AG6: =IF(ISNUMBER(weBP10),weBP10,"N/A") -> N/A | AH6: =IF(AND(ISNUMBER(wsBP10),ISNUMBER(weBP10))=TRUE,wsfyBP10,"N/A") -> N/A | AO6: =_xlfn.CONCAT(IF(sOOCCS=1,"On Campus", "Off Campus")," | ",IF(sFABCCS=1,"MTDC",IF(sFABCCS=2,"TDC","Cust. F&A Amt."))) -> On Campus | MTDC | AP6: =IF(sFARCCS=1,"Research",IF(sFARCCS=2,"Instruction",IF(sFARCCS=3,"Other Sponsored Programs",IF(sFARCCS=4,"Special Instruction (Off-Campus only)",IF(sFARCCS=5,"Industry Sponsored Clinical Trials","Custom F&A Rate"))))) -> Research
A7: A1. SALARIES & WAGES (ADVANCED) | AO7: Account Code | AP7: Description | AQ7: F&A Base | AR7: Budget Period 1 | AS7: Budget Period 2 | AT7: Budget Period 3 | AU7: Budget Period 4 | AV7: Budget Period 5 | AW7: Budget Period 6 | AX7: Budget Period 7 | AY7: Budget Period 8 | AZ7: Budget Period 9 | BA7: Budget Period 10 | BB7: Total | BC7: Notes
D8: Base Salary | E8: % Effort | F8: PM | G8: COLA | H8: % Effort | I8: PM | J8: COLA | K8: % Effort | L8: PM | M8: COLA | N8: % Effort | O8: PM | P8: COLA | Q8: % Effort | R8: PM | S8: COLA | T8: % Effort | U8: PM | V8: COLA | W8: % Effort | X8: PM | Y8: COLA | Z8: % Effort | AA8: PM | AB8: COLA | AC8: % Effort | AD8: PM | AE8: COLA | AF8: % Effort | AG8: PM | AH8: COLA
A9: =_xlfn.XLOOKUP(B9,MTDC[Description],MTDC[VALUE],"N/A",0) -> N/A | B9: Make a selection | D9: 0 | E9: 0 | F9: =_xlfn.LET(_xlpm.months,IF(sDAYMO=1,DATEDIF(wsBP1,weBP1,"m")+1,YEARFRAC(wsBP1,weBP1,1)*12),_xlpm.factor,_xlfn.XLOOKUP(B12,rngecAT,rngecMonths)/_xlfn.XLOOKUP(B12,rngecAT,rngecTerm),IFERROR(_xlpm.months*E9*_xlpm.factor,"N/A")) -> N/A | G9: 0 | H9: 0 | I9: =_xlfn.LET(_xlpm.months,IF(sDAYMO=1,DATEDIF(wsBP2,weBP2,"m")+1,YEARFRAC(wsBP2,weBP2,1)*12),_xlpm.factor,_xlfn.XLOOKUP(B12,rngecAT,rngecMonths)/_xlfn.XLOOKUP(B12,rngecAT,rngecTerm),IFERROR(_xlpm.months*H9*_xlpm.factor,"N/A")) -> N/A | J9: 0 | K9: 0 | L9: =_xlfn.LET(_xlpm.months,IF(sDAYMO=1,DATEDIF(wsBP3,weBP3,"m")+1,YEARFRAC(wsBP3,weBP3,1)*12),_xlpm.factor,_xlfn.XLOOKUP(B12,rngecAT,rngecMonths)/_xlfn.XLOOKUP(B12,rngecAT,rngecTerm),IFERROR(_xlpm.months*K9*_xlpm.factor,"N/A")) -> N/A | M9: 0 | N9: 0 | O9: =_xlfn.LET(_xlpm.months,IF(sDAYMO=1,DATEDIF(wsBP4,weBP4,"m")+1,YEARFRAC(wsBP4,weBP4,1)*12),_xlpm.factor,_xlfn.XLOOKUP(B12,rngecAT,rngecMonths)/_xlfn.XLOOKUP(B12,rngecAT,rngecTerm),IFERROR(_xlpm.months*N9*_xlpm.factor,"N/A")) -> N/A | P9: 0 | Q9: 0 | R9: =_xlfn.LET(_xlpm.months,IF(sDAYMO=1,DATEDIF(wsBP5,weBP5,"m")+1,YEARFRAC(wsBP5,weBP5,1)*12),_xlpm.factor,_xlfn.XLOOKUP(B12,rngecAT,rngecMonths)/_xlfn.XLOOKUP(B12,rngecAT,rngecTerm),IFERROR(_xlpm.months*Q9*_xlpm.factor,"N/A")) -> N/A | S9: 0 | T9: 0 | U9: =_xlfn.LET(_xlpm.months,IF(sDAYMO=1,DATEDIF(wsBP6,weBP6,"m")+1,YEARFRAC(wsBP6,weBP6,1)*12),_xlpm.factor,_xlfn.XLOOKUP(B12,rngecAT,rngecMonths)/_xlfn.XLOOKUP(B12,rngecAT,rngecTerm),IFERROR(_xlpm.months*T9*_xlpm.factor,"N/A")) -> N/A | V9: 0 | W9: 0 | X9: =_xlfn.LET(_xlpm.months,IF(sDAYMO=1,DATEDIF(wsBP7,weBP7,"m")+1,YEARFRAC(wsBP7,weBP7,1)*12),_xlpm.factor,_xlfn.XLOOKUP(B12,rngecAT,rngecMonths)/_xlfn.XLOOKUP(B12,rngecAT,rngecTerm),IFERROR(_xlpm.months*W9*_xlpm.factor,"N/A")) -> N/A | Y9: 0 | Z9: 0 | AA9: =_xlfn.LET(_xlpm.months,IF(sDAYMO=1,DATEDIF(wsBP8,weBP8,"m")+1,YEARFRAC(wsBP8,weBP8,1)*12),_xlpm.factor,_xlfn.XLOOKUP(B12,rngecAT,rngecMonths)/_xlfn.XLOOKUP(B12,rngecAT,rngecTerm),IFERROR(_xlpm.months*Z9*_xlpm.factor,"N/A")) -> N/A | AB9: 0 | AC9: 0 | AD9: =_xlfn.LET(_xlpm.months,IF(sDAYMO=1,DATEDIF(wsBP9,weBP9,"m")+1,YEARFRAC(wsBP9,weBP9,1)*12),_xlpm.factor,_xlfn.XLOOKUP(B12,rngecAT,rngecMonths)/_xlfn.XLOOKUP(B12,rngecAT,rngecTerm),IFERROR(_xlpm.months*AC9*_xlpm.factor,"N/A")) -> N/A | AE9: 0 | AF9: 0 | AG9: =_xlfn.LET(_xlpm.months,IF(sDAYMO=1,DATEDIF(wsBP10,weBP10,"m")+1,YEARFRAC(wsBP10,weBP10,1)*12),_xlpm.factor,_xlfn.XLOOKUP(B12,rngecAT,rngecMonths)/_xlfn.XLOOKUP(B12,rngecAT,rngecTerm),IFERROR(_xlpm.months*AF9*_xlpm.factor,"N/A")) -> N/A | AH9: 0
A10: =A9 -> N/A | B10: Enter Staff Name | D10: Salary | E10: =IF(OR(COUNT(D9,E9,G9,wsBP1,weBP1,wsfyBP1)<6,B9="Make a Selection",B12="Make a Selection"),0,D9*F9/_xlfn.XLOOKUP(B12,rngecAT,rngecTerm,"N/A",0)*(1+G9)) -> 0 | H10: =IF(OR(COUNT(D9,E9,G9,H9,J9,wsBP2,weBP2,wsfyBP2)<8,B9="Make a Selection",B12="Make a Selection"),0,D9*I9/_xlfn.XLOOKUP(B12,rngecAT,rngecTerm,"N/A",0)*(1+G9)*(1+J9)) -> 0 | K10: =IF(OR(COUNT(D9,E9,G9,H9,J9,K9,M9,wsBP3,weBP3,wsfyBP3)<10,B9="Make a Selection",B12="Make a Selection"),0,D9*L9/_xlfn.XLOOKUP(B12,rngecAT,rngecTerm,"N/A",0)*(1+G9)*(1+J9)*(1+M9)) -> 0 | N10: =IF(OR(COUNT(D9,E9,G9,H9,J9,K9,M9,N9,P9,wsBP4,weBP4,wsfyBP4)<12,B9="Make a Selection",B12="Make a Selection"),0,D9*O9/_xlfn.XLOOKUP(B12,rngecAT,rngecTerm,"N/A",0)*(1+G9)*(1+J9)*(1+M9)*(1+P9)) -> 0 | Q10: =IF(OR(COUNT(D9,E9,G9,H9,J9,K9,M9,N9,P9,Q9,S9,wsBP5,weBP5,wsfyBP5)<14,B9="Make a Selection",B12="Make a Selection"),0,D9*R9/_xlfn.XLOOKUP(B12,rngecAT,rngecTerm,"N/A",0)*(1+G9)*(1+J9)*(1+M9)*(1+P9)*(1+S9)) -> 0 | T10: =IF(OR(COUNT(D9,E9,G9,H9,J9,K9,M9,N9,P9,Q9,S9,T9,V9,wsBP6,weBP6,wsfyBP6)<16,B9="Make a Selection",B12="Make a Selection"),0,D9*U9/_xlfn.XLOOKUP(B12,rngecAT,rngecTerm,"N/A",0)*(1+G9)*(1+J9)*(1+M9)*(1+P9)*(1+S9)*(1+V9)) -> 0 | W10: =IF(OR(COUNT(D9,E9,G9,H9,J9,K9,M9,N9,P9,Q9,S9,T9,V9,W9,Y9,wsBP7,weBP7,wsfyBP7)<18,B9="Make a Selection",B12="Make a Selection"),0,D9*X9/_xlfn.XLOOKUP(B12,rngecAT,rngecTerm,"N/A",0)*(1+G9)*(1+J9)*(1+M9)*(1+P9)*(1+S9)*(1+V9)*(1+Y9)) -> 0 | Z10: =IF(OR(COUNT(D9,E9,G9,H9,J9,K9,M9,N9,P9,Q9,S9,T9,V9,W9,Y9,Z9,AB9,wsBP8,weBP8,wsfyBP8)<20,B9="Make a Selection",B12="Make a Selection"),0,D9*AA9/_xlfn.XLOOKUP(B12,rngecAT,rngecTerm,"N/A",0)*(1+G9)*(1+J9)*(1+M9)*(1+P9)*(1+S9)*(1+V9)*(1+Y9)*(1+AB9)) -> 0 | AC10: =IF(OR(COUNT(D9,E9,G9,H9,J9,K9,M9,N9,P9,Q9,S9,T9,V9,W9,Y9,Z9,AB9,AC9,wsBP9,weBP9,wsfyBP9)<21,B9="Make a Selection",B12="Make a Selection"),0,D9*AD9/_xlfn.XLOOKUP(B12,rngecAT,rngecTerm,"N/A",0)*(1+G9)*(1+J9)*(1+M9)*(1+P9)*(1+S9)*(1+V9)*(1+Y9)*(1+AB9)*(1+AE9)) -> 0 | AF10: =IF(OR(COUNT(D9,E9,G9,H9,J9,K9,M9,N9,P9,Q9,S9,T9,V9,W9,Y9,Z9,AB9,AC9,AF9,AH9,wsBP10,weBP10,wsfyBP10)<23,B9="Make a Selection",B12="Make a Selection"),0,D9*AG9/_xlfn.XLOOKUP(B12,rngecAT,rngecTerm,"N/A",0)*(1+G9)*(1+J9)*(1+M9)*(1+P9)*(1+S9)*(1+V9)*(1+Y9)*(1+AB9)*(1+AE9)*(1+AH9)) -> 0 | AI10: =SUM(E10:AH10) -> 0
A11: No | B11: Custom Fringe @ | C11: 0 | D11: Fringe | E11: =IF(OR(COUNT(E10,C11,wsBP1,weBP1,wsfyBP1)<5,B9="Make a Selection",B12="Make a Selection"),0,IF(A11="Yes",E10*C11,IF(sFBRCCS=1,E10*_xlfn.XLOOKUP(bpFYCS1,rngFFRfy,_xlfn.XLOOKUP(A10,rngFFRc,rngFFR,"N/A",0),"N/A",0),E10*_xlfn.XLOOKUP(bpFYCS1,rngnFFRfy,_xlfn.XLOOKUP(A10,rngnFFRc,rngnFFR,"N/A",0),"N/A",0)))) -> 0 | H11: =IF(OR(COUNT(H10,C11,wsBP2,weBP2,wsfyBP2)<5,B9="Make a Selection",B12="Make a Selection"),0,IF(A11="Yes",H10*C11,IF(sFBRCCS=1,H10*_xlfn.XLOOKUP(bpFYCS2,rngFFRfy,_xlfn.XLOOKUP(A10,rngFFRc,rngFFR,"N/A",0),"N/A",0),H10*_xlfn.XLOOKUP(bpFYCS2,rngnFFRfy,_xlfn.XLOOKUP(A10,rngnFFRc,rngnFFR,"N/A",0),"N/A",0)))) -> 0 | K11: =IF(OR(COUNT(K10,C11,wsBP3,weBP3,wsfyBP3)<5,B9="Make a Selection",B12="Make a Selection"),0,IF(A11="Yes",K10*C11,IF(sFBRCCS=1,K10*_xlfn.XLOOKUP(bpFYCS3,rngFFRfy,_xlfn.XLOOKUP(A10,rngFFRc,rngFFR,"N/A",0),"N/A",0),K10*_xlfn.XLOOKUP(bpFYCS3,rngnFFRfy,_xlfn.XLOOKUP(A10,rngnFFRc,rngnFFR,"N/A",0),"N/A",0)))) -> 0 | N11: =IF(OR(COUNT(N10,C11,wsBP4,weBP4,wsfyBP4)<5,B9="Make a Selection",B12="Make a Selection"),0,IF(A11="Yes",N10*C11,IF(sFBRCCS=1,N10*_xlfn.XLOOKUP(bpFYCS4,rngFFRfy,_xlfn.XLOOKUP(A10,rngFFRc,rngFFR,"N/A",0),"N/A",0),N10*_xlfn.XLOOKUP(bpFYCS4,rngnFFRfy,_xlfn.XLOOKUP(A10,rngnFFRc,rngnFFR,"N/A",0),"N/A",0)))) -> 0 | Q11: =IF(OR(COUNT(Q10,C11,wsBP5,weBP5,wsfyBP5)<5,B9="Make a Selection",B12="Make a Selection"),0,IF(A11="Yes",Q10*C11,IF(sFBRCCS=1,Q10*_xlfn.XLOOKUP(bpFYCS5,rngFFRfy,_xlfn.XLOOKUP(A10,rngFFRc,rngFFR,"N/A",0),"N/A",0),Q10*_xlfn.XLOOKUP(bpFYCS5,rngnFFRfy,_xlfn.XLOOKUP(A10,rngnFFRc,rngnFFR,"N/A",0),"N/A",0)))) -> 0 | T11: =IF(OR(COUNT(T10,C11,wsBP6,weBP6,wsfyBP6)<5,B9="Make a Selection",B12="Make a Selection"),0,IF(A11="Yes",T10*C11,IF(sFBRCCS=1,T10*_xlfn.XLOOKUP(bpFYCS6,rngFFRfy,_xlfn.XLOOKUP(A10,rngFFRc,rngFFR,"N/A",0),"N/A",0),T10*_xlfn.XLOOKUP(bpFYCS6,rngnFFRfy,_xlfn.XLOOKUP(A10,rngnFFRc,rngnFFR,"N/A",0),"N/A",0)))) -> 0 | W11: =IF(OR(COUNT(W10,C11,wsBP7,weBP7,wsfyBP7)<5,B9="Make a Selection",B12="Make a Selection"),0,IF(A11="Yes",W10*C11,IF(sFBRCCS=1,W10*_xlfn.XLOOKUP(bpFYCS7,rngFFRfy,_xlfn.XLOOKUP(A10,rngFFRc,rngFFR,"N/A",0),"N/A",0),W10*_xlfn.XLOOKUP(bpFYCS7,rngnFFRfy,_xlfn.XLOOKUP(A10,rngnFFRc,rngnFFR,"N/A",0),"N/A",0)))) -> 0 | Z11: =IF(OR(COUNT(Z10,C11,wsBP8,weBP8,wsfyBP8)<5,B9="Make a Selection",B12="Make a Selection"),0,IF(A11="Yes",Z10*C11,IF(sFBRCCS=1,Z10*_xlfn.XLOOKUP(bpFYCS8,rngFFRfy,_xlfn.XLOOKUP(A10,rngFFRc,rngFFR,"N/A",0),"N/A",0),Z10*_xlfn.XLOOKUP(bpFYCS8,rngnFFRfy,_xlfn.XLOOKUP(A10,rngnFFRc,rngnFFR,"N/A",0),"N/A",0)))) -> 0 | AC11: =IF(OR(COUNT(AC10,C11,wsBP9,weBP9,wsfyBP9)<5,B9="Make a Selection",B12="Make a Selection"),0,IF(A11="Yes",AC10*C11,IF(sFBRCCS=1,AC10*_xlfn.XLOOKUP(bpFYCS9,rngFFRfy,_xlfn.XLOOKUP(A10,rngFFRc,rngFFR,"N/A",0),"N/A",0),AC10*_xlfn.XLOOKUP(bpFYCS9,rngnFFRfy,_xlfn.XLOOKUP(A10,rngnFFRc,rngnFFR,"N/A",0),"N/A",0)))) -> 0 | AF11: =IF(OR(COUNT(AF10,C11,wsBP10,weBP10,wsfyBP10)<5,B9="Make a Selection",B12="Make a Selection"),0,IF(A11="Yes",AF10*C11,IF(sFBRCCS=1,AF10*_xlfn.XLOOKUP(bpFYCS10,rngFFRfy,_xlfn.XLOOKUP(A10,rngFFRc,rngFFR,"N/A",0),"N/A",0),AF10*_xlfn.XLOOKUP(bpFYCS10,rngnFFRfy,_xlfn.XLOOKUP(A10,rngnFFRc,rngnFFR,"N/A",0),"N/A",0)))) -> 0 | AI11: =SUM(E11:AH11) -> 0
B12: Make a Selection | D12: Subtotal | E12: =IF(OR(NOT(ISNUMBER(E10)),NOT(ISNUMBER(E11))),0,SUM(E10:E11)) -> 0 | H12: =IF(OR(NOT(ISNUMBER(H10)),NOT(ISNUMBER(H11))),0,SUM(H10:H11)) -> 0 | K12: =IF(OR(NOT(ISNUMBER(K10)),NOT(ISNUMBER(K11))),0,SUM(K10:K11)) -> 0 | N12: =IF(OR(NOT(ISNUMBER(N10)),NOT(ISNUMBER(N11))),0,SUM(N10:N11)) -> 0 | Q12: =IF(OR(NOT(ISNUMBER(Q10)),NOT(ISNUMBER(Q11))),0,SUM(Q10:Q11)) -> 0 | T12: =IF(OR(NOT(ISNUMBER(T10)),NOT(ISNUMBER(T11))),0,SUM(T10:T11)) -> 0 | W12: =IF(OR(NOT(ISNUMBER(W10)),NOT(ISNUMBER(W11))),0,SUM(W10:W11)) -> 0 | Z12: =IF(OR(NOT(ISNUMBER(Z10)),NOT(ISNUMBER(Z11))),0,SUM(Z10:Z11)) -> 0 | AC12: =IF(OR(NOT(ISNUMBER(AC10)),NOT(ISNUMBER(AC11))),0,SUM(AC10:AC11)) -> 0 | AF12: =IF(OR(NOT(ISNUMBER(AF10)),NOT(ISNUMBER(AF11))),0,SUM(AF10:AF11)) -> 0 | AI12: 0
A14: =_xlfn.XLOOKUP(B14,MTDC[Description],MTDC[VALUE],"N/A",0) -> 50010 | B14: S&W Staff | D14: =IF(AND(B14="Make a Selection",OR(sFABCCS=1,sFABCCS=2,sFABCCS=3)),"",IF(sFABCCS=2,"Included",IF(sFABCCS=3,"Custom F&A Amt",IF(_xlfn.XLOOKUP(B14,MTDC[Description],MTDC[Include in MTDC],"N/A",0)="MTDC","Included","Excluded")))) -> Included | E14: =IF(ISNUMBER(SUMPRODUCT(--ISNUMBER(rngCFCSA1)*(INDEX(budA1CSBP1,0,1))*(INDEX(budA1CSSF,0,1)="Salary")*(rngCFCSA1=A14))),SUMPRODUCT(--ISNUMBER(rngCFCSA1)*(INDEX(budA1CSBP1,0,1))*(INDEX(budA1CSSF,0,1)="Salary")*(rngCFCSA1=A14)),0) -> 0 | H14: =IF(ISNUMBER(SUMPRODUCT(--ISNUMBER(rngCFCSA1)*(INDEX(budA1CSBP2,0,1))*(INDEX(budA1CSSF,0,1)="Salary")*(rngCFCSA1=A14))),SUMPRODUCT(--ISNUMBER(rngCFCSA1)*(INDEX(budA1CSBP2,0,1))*(INDEX(budA1CSSF,0,1)="Salary")*(rngCFCSA1=A14)),0) -> 0 | K14: =IF(ISNUMBER(SUMPRODUCT(--ISNUMBER(rngCFCSA1)*(INDEX(budA1CSBP3,0,1))*(INDEX(budA1CSSF,0,1)="Salary")*(rngCFCSA1=A14))),SUMPRODUCT(--ISNUMBER(rngCFCSA1)*(INDEX(budA1CSBP3,0,1))*(INDEX(budA1CSSF,0,1)="Salary")*(rngCFCSA1=A14)),0) -> 0 | N14: =IF(ISNUMBER(SUMPRODUCT(--ISNUMBER(rngCFCSA1)*(INDEX(budA1CSBP4,0,1))*(INDEX(budA1CSSF,0,1)="Salary")*(rngCFCSA1=A14))),SUMPRODUCT(--ISNUMBER(rngCFCSA1)*(INDEX(budA1CSBP4,0,1))*(INDEX(budA1CSSF,0,1)="Salary")*(rngCFCSA1=A14)),0) -> 0 | Q14: =IF(ISNUMBER(SUMPRODUCT(--ISNUMBER(rngCFCSA1)*(INDEX(budA1CSBP5,0,1))*(INDEX(budA1CSSF,0,1)="Salary")*(rngCFCSA1=A14))),SUMPRODUCT(--ISNUMBER(rngCFCSA1)*(INDEX(budA1CSBP5,0,1))*(INDEX(budA1CSSF,0,1)="Salary")*(rngCFCSA1=A14)),0) -> 0 | T14: =IF(ISNUMBER(SUMPRODUCT(--ISNUMBER(rngCFCSA1)*(INDEX(budA1CSBP6,0,1))*(INDEX(budA1CSSF,0,1)="Salary")*(rngCFCSA1=A14))),SUMPRODUCT(--ISNUMBER(rngCFCSA1)*(INDEX(budA1CSBP6,0,1))*(INDEX(budA1CSSF,0,1)="Salary")*(rngCFCSA1=A14)),0) -> 0 | W14: =IF(ISNUMBER(SUMPRODUCT(--ISNUMBER(rngCFCSA1)*(INDEX(budA1CSBP7,0,1))*(INDEX(budA1CSSF,0,1)="Salary")*(rngCFCSA1=A14))),SUMPRODUCT(--ISNUMBER(rngCFCSA1)*(INDEX(budA1CSBP7,0,1))*(INDEX(budA1CSSF,0,1)="Salary")*(rngCFCSA1=A14)),0) -> 0 | Z14: =IF(ISNUMBER(SUMPRODUCT(--ISNUMBER(rngCFCSA1)*(INDEX(budA1CSBP8,0,1))*(INDEX(budA1CSSF,0,1)="Salary")*(rngCFCSA1=A14))),SUMPRODUCT(--ISNUMBER(rngCFCSA1)*(INDEX(budA1CSBP8,0,1))*(INDEX(budA1CSSF,0,1)="Salary")*(rngCFCSA1=A14)),0) -> 0 | AC14: =IF(ISNUMBER(SUMPRODUCT(--ISNUMBER(rngCFCSA1)*(INDEX(budA1CSBP9,0,1))*(INDEX(budA1CSSF,0,1)="Salary")*(rngCFCSA1=A14))),SUMPRODUCT(--ISNUMBER(rngCFCSA1)*(INDEX(budA1CSBP9,0,1))*(INDEX(budA1CSSF,0,1)="Salary")*(rngCFCSA1=A14)),0) -> 0 | AF14: =IF(ISNUMBER(SUMPRODUCT(--ISNUMBER(rngCFCSA1)*(INDEX(budA1CSBP10,0,1))*(INDEX(budA1CSSF,0,1)="Salary")*(rngCFCSA1=A14))),SUMPRODUCT(--ISNUMBER(rngCFCSA1)*(INDEX(budA1CSBP10,0,1))*(INDEX(budA1CSSF,0,1)="Salary")*(rngCFCSA1=A14)),0) -> 0 | AI14: =SUM(E14:AH14) -> 0
A15: =_xlfn.XLOOKUP(B15,MTDC[Description],MTDC[VALUE],"N/A",0) -> 50020 | B15: S&W Tenured Faculty | D15: =IF(AND(B15="Make a Selection",OR(sFABCCS=1,sFABCCS=2,sFABCCS=3)),"",IF(sFABCCS=2,"Included",IF(sFABCCS=3,"Custom F&A Amt",IF(_xlfn.XLOOKUP(B15,MTDC[Description],MTDC[Include in MTDC],"N/A",0)="MTDC","Included","Excluded")))) -> Included | E15: =IF(ISNUMBER(SUMPRODUCT(--ISNUMBER(rngCFCSA1)*(INDEX(budA1CSBP1,0,1))*(INDEX(budA1CSSF,0,1)="Salary")*(rngCFCSA1=A15))),SUMPRODUCT(--ISNUMBER(rngCFCSA1)*(INDEX(budA1CSBP1,0,1))*(INDEX(budA1CSSF,0,1)="Salary")*(rngCFCSA1=A15)),0) -> 0 | H15: =IF(ISNUMBER(SUMPRODUCT(--ISNUMBER(rngCFCSA1)*(INDEX(budA1CSBP2,0,1))*(INDEX(budA1CSSF,0,1)="Salary")*(rngCFCSA1=A15))),SUMPRODUCT(--ISNUMBER(rngCFCSA1)*(INDEX(budA1CSBP2,0,1))*(INDEX(budA1CSSF,0,1)="Salary")*(rngCFCSA1=A15)),0) -> 0 | K15: =IF(ISNUMBER(SUMPRODUCT(--ISNUMBER(rngCFCSA1)*(INDEX(budA1CSBP3,0,1))*(INDEX(budA1CSSF,0,1)="Salary")*(rngCFCSA1=A15))),SUMPRODUCT(--ISNUMBER(rngCFCSA1)*(INDEX(budA1CSBP3,0,1))*(INDEX(budA1CSSF,0,1)="Salary")*(rngCFCSA1=A15)),0) -> 0 | N15: =IF(ISNUMBER(SUMPRODUCT(--ISNUMBER(rngCFCSA1)*(INDEX(budA1CSBP4,0,1))*(INDEX(budA1CSSF,0,1)="Salary")*(rngCFCSA1=A15))),SUMPRODUCT(--ISNUMBER(rngCFCSA1)*(INDEX(budA1CSBP4,0,1))*(INDEX(budA1CSSF,0,1)="Salary")*(rngCFCSA1=A15)),0) -> 0 | Q15: =IF(ISNUMBER(SUMPRODUCT(--ISNUMBER(rngCFCSA1)*(INDEX(budA1CSBP5,0,1))*(INDEX(budA1CSSF,0,1)="Salary")*(rngCFCSA1=A15))),SUMPRODUCT(--ISNUMBER(rngCFCSA1)*(INDEX(budA1CSBP5,0,1))*(INDEX(budA1CSSF,0,1)="Salary")*(rngCFCSA1=A15)),0) -> 0 | T15: =IF(ISNUMBER(SUMPRODUCT(--ISNUMBER(rngCFCSA1)*(INDEX(budA1CSBP6,0,1))*(INDEX(budA1CSSF,0,1)="Salary")*(rngCFCSA1=A15))),SUMPRODUCT(--ISNUMBER(rngCFCSA1)*(INDEX(budA1CSBP6,0,1))*(INDEX(budA1CSSF,0,1)="Salary")*(rngCFCSA1=A15)),0) -> 0 | W15: =IF(ISNUMBER(SUMPRODUCT(--ISNUMBER(rngCFCSA1)*(INDEX(budA1CSBP7,0,1))*(INDEX(budA1CSSF,0,1)="Salary")*(rngCFCSA1=A15))),SUMPRODUCT(--ISNUMBER(rngCFCSA1)*(INDEX(budA1CSBP7,0,1))*(INDEX(budA1CSSF,0,1)="Salary")*(rngCFCSA1=A15)),0) -> 0 | Z15: =IF(ISNUMBER(SUMPRODUCT(--ISNUMBER(rngCFCSA1)*(INDEX(budA1CSBP8,0,1))*(INDEX(budA1CSSF,0,1)="Salary")*(rngCFCSA1=A15))),SUMPRODUCT(--ISNUMBER(rngCFCSA1)*(INDEX(budA1CSBP8,0,1))*(INDEX(budA1CSSF,0,1)="Salary")*(rngCFCSA1=A15)),0) -> 0 | AC15: =IF(ISNUMBER(SUMPRODUCT(--ISNUMBER(rngCFCSA1)*(INDEX(budA1CSBP9,0,1))*(INDEX(budA1CSSF,0,1)="Salary")*(rngCFCSA1=A15))),SUMPRODUCT(--ISNUMBER(rngCFCSA1)*(INDEX(budA1CSBP9,0,1))*(INDEX(budA1CSSF,0,1)="Salary")*(rngCFCSA1=A15)),0) -> 0 | AF15: =IF(ISNUMBER(SUMPRODUCT(--ISNUMBER(rngCFCSA1)*(INDEX(budA1CSBP10,0,1))*(INDEX(budA1CSSF,0,1)="Salary")*(rngCFCSA1=A15))),SUMPRODUCT(--ISNUMBER(rngCFCSA1)*(INDEX(budA1CSBP10,0,1))*(INDEX(budA1CSSF,0,1)="Salary")*(rngCFCSA1=A15)),0) -> 0 | AI15: =SUM(E15:AH15) -> 0
A16: =_xlfn.XLOOKUP(B16,MTDC[Description],MTDC[VALUE],"N/A",0) -> 50030 | B16: S&W Tenure Track Faculty | D16: =IF(AND(B16="Make a Selection",OR(sFABCCS=1,sFABCCS=2,sFABCCS=3)),"",IF(sFABCCS=2,"Included",IF(sFABCCS=3,"Custom F&A Amt",IF(_xlfn.XLOOKUP(B16,MTDC[Description],MTDC[Include in MTDC],"N/A",0)="MTDC","Included","Excluded")))) -> Included | E16: =IF(ISNUMBER(SUMPRODUCT(--ISNUMBER(rngCFCSA1)*(INDEX(budA1CSBP1,0,1))*(INDEX(budA1CSSF,0,1)="Salary")*(rngCFCSA1=A16))),SUMPRODUCT(--ISNUMBER(rngCFCSA1)*(INDEX(budA1CSBP1,0,1))*(INDEX(budA1CSSF,0,1)="Salary")*(rngCFCSA1=A16)),0) -> 0 | H16: =IF(ISNUMBER(SUMPRODUCT(--ISNUMBER(rngCFCSA1)*(INDEX(budA1CSBP2,0,1))*(INDEX(budA1CSSF,0,1)="Salary")*(rngCFCSA1=A16))),SUMPRODUCT(--ISNUMBER(rngCFCSA1)*(INDEX(budA1CSBP2,0,1))*(INDEX(budA1CSSF,0,1)="Salary")*(rngCFCSA1=A16)),0) -> 0 | K16: =IF(ISNUMBER(SUMPRODUCT(--ISNUMBER(rngCFCSA1)*(INDEX(budA1CSBP3,0,1))*(INDEX(budA1CSSF,0,1)="Salary")*(rngCFCSA1=A16))),SUMPRODUCT(--ISNUMBER(rngCFCSA1)*(INDEX(budA1CSBP3,0,1))*(INDEX(budA1CSSF,0,1)="Salary")*(rngCFCSA1=A16)),0) -> 0 | N16: =IF(ISNUMBER(SUMPRODUCT(--ISNUMBER(rngCFCSA1)*(INDEX(budA1CSBP4,0,1))*(INDEX(budA1CSSF,0,1)="Salary")*(rngCFCSA1=A16))),SUMPRODUCT(--ISNUMBER(rngCFCSA1)*(INDEX(budA1CSBP4,0,1))*(INDEX(budA1CSSF,0,1)="Salary")*(rngCFCSA1=A16)),0) -> 0 | Q16: =IF(ISNUMBER(SUMPRODUCT(--ISNUMBER(rngCFCSA1)*(INDEX(budA1CSBP5,0,1))*(INDEX(budA1CSSF,0,1)="Salary")*(rngCFCSA1=A16))),SUMPRODUCT(--ISNUMBER(rngCFCSA1)*(INDEX(budA1CSBP5,0,1))*(INDEX(budA1CSSF,0,1)="Salary")*(rngCFCSA1=A16)),0) -> 0 | T16: =IF(ISNUMBER(SUMPRODUCT(--ISNUMBER(rngCFCSA1)*(INDEX(budA1CSBP6,0,1))*(INDEX(budA1CSSF,0,1)="Salary")*(rngCFCSA1=A16))),SUMPRODUCT(--ISNUMBER(rngCFCSA1)*(INDEX(budA1CSBP6,0,1))*(INDEX(budA1CSSF,0,1)="Salary")*(rngCFCSA1=A16)),0) -> 0 | W16: =IF(ISNUMBER(SUMPRODUCT(--ISNUMBER(rngCFCSA1)*(INDEX(budA1CSBP7,0,1))*(INDEX(budA1CSSF,0,1)="Salary")*(rngCFCSA1=A16))),SUMPRODUCT(--ISNUMBER(rngCFCSA1)*(INDEX(budA1CSBP7,0,1))*(INDEX(budA1CSSF,0,1)="Salary")*(rngCFCSA1=A16)),0) -> 0 | Z16: =IF(ISNUMBER(SUMPRODUCT(--ISNUMBER(rngCFCSA1)*(INDEX(budA1CSBP8,0,1))*(INDEX(budA1CSSF,0,1)="Salary")*(rngCFCSA1=A16))),SUMPRODUCT(--ISNUMBER(rngCFCSA1)*(INDEX(budA1CSBP8,0,1))*(INDEX(budA1CSSF,0,1)="Salary")*(rngCFCSA1=A16)),0) -> 0 | AC16: =IF(ISNUMBER(SUMPRODUCT(--ISNUMBER(rngCFCSA1)*(INDEX(budA1CSBP9,0,1))*(INDEX(budA1CSSF,0,1)="Salary")*(rngCFCSA1=A16))),SUMPRODUCT(--ISNUMBER(rngCFCSA1)*(INDEX(budA1CSBP9,0,1))*(INDEX(budA1CSSF,0,1)="Salary")*(rngCFCSA1=A16)),0) -> 0 | AF16: =IF(ISNUMBER(SUMPRODUCT(--ISNUMBER(rngCFCSA1)*(INDEX(budA1CSBP10,0,1))*(INDEX(budA1CSSF,0,1)="Salary")*(rngCFCSA1=A16))),SUMPRODUCT(--ISNUMBER(rngCFCSA1)*(INDEX(budA1CSBP10,0,1))*(INDEX(budA1CSSF,0,1)="Salary")*(rngCFCSA1=A16)),0) -> 0 | AI16: 0
A17: =_xlfn.XLOOKUP(B17,MTDC[Description],MTDC[VALUE],"N/A",0) -> 50040 | B17: S&W NonTenured Faculty | D17: =IF(AND(B17="Make a Selection",OR(sFABCCS=1,sFABCCS=2,sFABCCS=3)),"",IF(sFABCCS=2,"Included",IF(sFABCCS=3,"Custom F&A Amt",IF(_xlfn.XLOOKUP(B17,MTDC[Description],MTDC[Include in MTDC],"N/A",0)="MTDC","Included","Excluded")))) -> Included | E17: =IF(ISNUMBER(SUMPRODUCT(--ISNUMBER(rngCFCSA1)*(INDEX(budA1CSBP1,0,1))*(INDEX(budA1CSSF,0,1)="Salary")*(rngCFCSA1=A17))),SUMPRODUCT(--ISNUMBER(rngCFCSA1)*(INDEX(budA1CSBP1,0,1))*(INDEX(budA1CSSF,0,1)="Salary")*(rngCFCSA1=A17)),0) -> 0 | H17: =IF(ISNUMBER(SUMPRODUCT(--ISNUMBER(rngCFCSA1)*(INDEX(budA1CSBP2,0,1))*(INDEX(budA1CSSF,0,1)="Salary")*(rngCFCSA1=A17))),SUMPRODUCT(--ISNUMBER(rngCFCSA1)*(INDEX(budA1CSBP2,0,1))*(INDEX(budA1CSSF,0,1)="Salary")*(rngCFCSA1=A17)),0) -> 0 | K17: =IF(ISNUMBER(SUMPRODUCT(--ISNUMBER(rngCFCSA1)*(INDEX(budA1CSBP3,0,1))*(INDEX(budA1CSSF,0,1)="Salary")*(rngCFCSA1=A17))),SUMPRODUCT(--ISNUMBER(rngCFCSA1)*(INDEX(budA1CSBP3,0,1))*(INDEX(budA1CSSF,0,1)="Salary")*(rngCFCSA1=A17)),0) -> 0 | N17: =IF(ISNUMBER(SUMPRODUCT(--ISNUMBER(rngCFCSA1)*(INDEX(budA1CSBP4,0,1))*(INDEX(budA1CSSF,0,1)="Salary")*(rngCFCSA1=A17))),SUMPRODUCT(--ISNUMBER(rngCFCSA1)*(INDEX(budA1CSBP4,0,1))*(INDEX(budA1CSSF,0,1)="Salary")*(rngCFCSA1=A17)),0) -> 0 | Q17: =IF(ISNUMBER(SUMPRODUCT(--ISNUMBER(rngCFCSA1)*(INDEX(budA1CSBP5,0,1))*(INDEX(budA1CSSF,0,1)="Salary")*(rngCFCSA1=A17))),SUMPRODUCT(--ISNUMBER(rngCFCSA1)*(INDEX(budA1CSBP5,0,1))*(INDEX(budA1CSSF,0,1)="Salary")*(rngCFCSA1=A17)),0) -> 0 | T17: =IF(ISNUMBER(SUMPRODUCT(--ISNUMBER(rngCFCSA1)*(INDEX(budA1CSBP6,0,1))*(INDEX(budA1CSSF,0,1)="Salary")*(rngCFCSA1=A17))),SUMPRODUCT(--ISNUMBER(rngCFCSA1)*(INDEX(budA1CSBP6,0,1))*(INDEX(budA1CSSF,0,1)="Salary")*(rngCFCSA1=A17)),0) -> 0 | W17: =IF(ISNUMBER(SUMPRODUCT(--ISNUMBER(rngCFCSA1)*(INDEX(budA1CSBP7,0,1))*(INDEX(budA1CSSF,0,1)="Salary")*(rngCFCSA1=A17))),SUMPRODUCT(--ISNUMBER(rngCFCSA1)*(INDEX(budA1CSBP7,0,1))*(INDEX(budA1CSSF,0,1)="Salary")*(rngCFCSA1=A17)),0) -> 0 | Z17: =IF(ISNUMBER(SUMPRODUCT(--ISNUMBER(rngCFCSA1)*(INDEX(budA1CSBP8,0,1))*(INDEX(budA1CSSF,0,1)="Salary")*(rngCFCSA1=A17))),SUMPRODUCT(--ISNUMBER(rngCFCSA1)*(INDEX(budA1CSBP8,0,1))*(INDEX(budA1CSSF,0,1)="Salary")*(rngCFCSA1=A17)),0) -> 0 | AC17: =IF(ISNUMBER(SUMPRODUCT(--ISNUMBER(rngCFCSA1)*(INDEX(budA1CSBP9,0,1))*(INDEX(budA1CSSF,0,1)="Salary")*(rngCFCSA1=A17))),SUMPRODUCT(--ISNUMBER(rngCFCSA1)*(INDEX(budA1CSBP9,0,1))*(INDEX(budA1CSSF,0,1)="Salary")*(rngCFCSA1=A17)),0) -> 0 | AF17: =IF(ISNUMBER(SUMPRODUCT(--ISNUMBER(rngCFCSA1)*(INDEX(budA1CSBP10,0,1))*(INDEX(budA1CSSF,0,1)="Salary")*(rngCFCSA1=A17))),SUMPRODUCT(--ISNUMBER(rngCFCSA1)*(INDEX(budA1CSBP10,0,1))*(INDEX(budA1CSSF,0,1)="Salary")*(rngCFCSA1=A17)),0) -> 0 | AI17: 0
A18: =_xlfn.XLOOKUP(B18,MTDC[Description],MTDC[VALUE],"N/A",0) -> 50050 | B18: S&W TA & GA | D18: =IF(AND(B18="Make a Selection",OR(sFABCCS=1,sFABCCS=2,sFABCCS=3)),"",IF(sFABCCS=2,"Included",IF(sFABCCS=3,"Custom F&A Amt",IF(_xlfn.XLOOKUP(B18,MTDC[Description],MTDC[Include in MTDC],"N/A",0)="MTDC","Included","Excluded")))) -> Included | E18: =IF(ISNUMBER(SUMPRODUCT(--ISNUMBER(rngCFCSA1)*(INDEX(budA1CSBP1,0,1))*(INDEX(budA1CSSF,0,1)="Salary")*(rngCFCSA1=A18))),SUMPRODUCT(--ISNUMBER(rngCFCSA1)*(INDEX(budA1CSBP1,0,1))*(INDEX(budA1CSSF,0,1)="Salary")*(rngCFCSA1=A18)),0) -> 0 | H18: =IF(ISNUMBER(SUMPRODUCT(--ISNUMBER(rngCFCSA1)*(INDEX(budA1CSBP2,0,1))*(INDEX(budA1CSSF,0,1)="Salary")*(rngCFCSA1=A18))),SUMPRODUCT(--ISNUMBER(rngCFCSA1)*(INDEX(budA1CSBP2,0,1))*(INDEX(budA1CSSF,0,1)="Salary")*(rngCFCSA1=A18)),0) -> 0 | K18: =IF(ISNUMBER(SUMPRODUCT(--ISNUMBER(rngCFCSA1)*(INDEX(budA1CSBP3,0,1))*(INDEX(budA1CSSF,0,1)="Salary")*(rngCFCSA1=A18))),SUMPRODUCT(--ISNUMBER(rngCFCSA1)*(INDEX(budA1CSBP3,0,1))*(INDEX(budA1CSSF,0,1)="Salary")*(rngCFCSA1=A18)),0) -> 0 | N18: =IF(ISNUMBER(SUMPRODUCT(--ISNUMBER(rngCFCSA1)*(INDEX(budA1CSBP4,0,1))*(INDEX(budA1CSSF,0,1)="Salary")*(rngCFCSA1=A18))),SUMPRODUCT(--ISNUMBER(rngCFCSA1)*(INDEX(budA1CSBP4,0,1))*(INDEX(budA1CSSF,0,1)="Salary")*(rngCFCSA1=A18)),0) -> 0 | Q18: =IF(ISNUMBER(SUMPRODUCT(--ISNUMBER(rngCFCSA1)*(INDEX(budA1CSBP5,0,1))*(INDEX(budA1CSSF,0,1)="Salary")*(rngCFCSA1=A18))),SUMPRODUCT(--ISNUMBER(rngCFCSA1)*(INDEX(budA1CSBP5,0,1))*(INDEX(budA1CSSF,0,1)="Salary")*(rngCFCSA1=A18)),0) -> 0 | T18: =IF(ISNUMBER(SUMPRODUCT(--ISNUMBER(rngCFCSA1)*(INDEX(budA1CSBP6,0,1))*(INDEX(budA1CSSF,0,1)="Salary")*(rngCFCSA1=A18))),SUMPRODUCT(--ISNUMBER(rngCFCSA1)*(INDEX(budA1CSBP6,0,1))*(INDEX(budA1CSSF,0,1)="Salary")*(rngCFCSA1=A18)),0) -> 0 | W18: =IF(ISNUMBER(SUMPRODUCT(--ISNUMBER(rngCFCSA1)*(INDEX(budA1CSBP7,0,1))*(INDEX(budA1CSSF,0,1)="Salary")*(rngCFCSA1=A18))),SUMPRODUCT(--ISNUMBER(rngCFCSA1)*(INDEX(budA1CSBP7,0,1))*(INDEX(budA1CSSF,0,1)="Salary")*(rngCFCSA1=A18)),0) -> 0 | Z18: =IF(ISNUMBER(SUMPRODUCT(--ISNUMBER(rngCFCSA1)*(INDEX(budA1CSBP8,0,1))*(INDEX(budA1CSSF,0,1)="Salary")*(rngCFCSA1=A18))),SUMPRODUCT(--ISNUMBER(rngCFCSA1)*(INDEX(budA1CSBP8,0,1))*(INDEX(budA1CSSF,0,1)="Salary")*(rngCFCSA1=A18)),0) -> 0 | AC18: =IF(ISNUMBER(SUMPRODUCT(--ISNUMBER(rngCFCSA1)*(INDEX(budA1CSBP9,0,1))*(INDEX(budA1CSSF,0,1)="Salary")*(rngCFCSA1=A18))),SUMPRODUCT(--ISNUMBER(rngCFCSA1)*(INDEX(budA1CSBP9,0,1))*(INDEX(budA1CSSF,0,1)="Salary")*(rngCFCSA1=A18)),0) -> 0 | AF18: =IF(ISNUMBER(SUMPRODUCT(--ISNUMBER(rngCFCSA1)*(INDEX(budA1CSBP10,0,1))*(INDEX(budA1CSSF,0,1)="Salary")*(rngCFCSA1=A18))),SUMPRODUCT(--ISNUMBER(rngCFCSA1)*(INDEX(budA1CSBP10,0,1))*(INDEX(budA1CSSF,0,1)="Salary")*(rngCFCSA1=A18)),0) -> 0 | AI18: 0
A19: =_xlfn.XLOOKUP(B19,MTDC[Description],MTDC[VALUE],"N/A",0) -> 50060 | B19: S&W Post Doctorate & Associates | D19: =IF(AND(B19="Make a Selection",OR(sFABCCS=1,sFABCCS=2,sFABCCS=3)),"",IF(sFABCCS=2,"Included",IF(sFABCCS=3,"Custom F&A Amt",IF(_xlfn.XLOOKUP(B19,MTDC[Description],MTDC[Include in MTDC],"N/A",0)="MTDC","Included","Excluded")))) -> Included | E19: =IF(ISNUMBER(SUMPRODUCT(--ISNUMBER(rngCFCSA1)*(INDEX(budA1CSBP1,0,1))*(INDEX(budA1CSSF,0,1)="Salary")*(rngCFCSA1=A19))),SUMPRODUCT(--ISNUMBER(rngCFCSA1)*(INDEX(budA1CSBP1,0,1))*(INDEX(budA1CSSF,0,1)="Salary")*(rngCFCSA1=A19)),0) -> 0 | H19: =IF(ISNUMBER(SUMPRODUCT(--ISNUMBER(rngCFCSA1)*(INDEX(budA1CSBP2,0,1))*(INDEX(budA1CSSF,0,1)="Salary")*(rngCFCSA1=A19))),SUMPRODUCT(--ISNUMBER(rngCFCSA1)*(INDEX(budA1CSBP2,0,1))*(INDEX(budA1CSSF,0,1)="Salary")*(rngCFCSA1=A19)),0) -> 0 | K19: =IF(ISNUMBER(SUMPRODUCT(--ISNUMBER(rngCFCSA1)*(INDEX(budA1CSBP3,0,1))*(INDEX(budA1CSSF,0,1)="Salary")*(rngCFCSA1=A19))),SUMPRODUCT(--ISNUMBER(rngCFCSA1)*(INDEX(budA1CSBP3,0,1))*(INDEX(budA1CSSF,0,1)="Salary")*(rngCFCSA1=A19)),0) -> 0 | N19: =IF(ISNUMBER(SUMPRODUCT(--ISNUMBER(rngCFCSA1)*(INDEX(budA1CSBP4,0,1))*(INDEX(budA1CSSF,0,1)="Salary")*(rngCFCSA1=A19))),SUMPRODUCT(--ISNUMBER(rngCFCSA1)*(INDEX(budA1CSBP4,0,1))*(INDEX(budA1CSSF,0,1)="Salary")*(rngCFCSA1=A19)),0) -> 0 | Q19: =IF(ISNUMBER(SUMPRODUCT(--ISNUMBER(rngCFCSA1)*(INDEX(budA1CSBP5,0,1))*(INDEX(budA1CSSF,0,1)="Salary")*(rngCFCSA1=A19))),SUMPRODUCT(--ISNUMBER(rngCFCSA1)*(INDEX(budA1CSBP5,0,1))*(INDEX(budA1CSSF,0,1)="Salary")*(rngCFCSA1=A19)),0) -> 0 | T19: =IF(ISNUMBER(SUMPRODUCT(--ISNUMBER(rngCFCSA1)*(INDEX(budA1CSBP6,0,1))*(INDEX(budA1CSSF,0,1)="Salary")*(rngCFCSA1=A19))),SUMPRODUCT(--ISNUMBER(rngCFCSA1)*(INDEX(budA1CSBP6,0,1))*(INDEX(budA1CSSF,0,1)="Salary")*(rngCFCSA1=A19)),0) -> 0 | W19: =IF(ISNUMBER(SUMPRODUCT(--ISNUMBER(rngCFCSA1)*(INDEX(budA1CSBP7,0,1))*(INDEX(budA1CSSF,0,1)="Salary")*(rngCFCSA1=A19))),SUMPRODUCT(--ISNUMBER(rngCFCSA1)*(INDEX(budA1CSBP7,0,1))*(INDEX(budA1CSSF,0,1)="Salary")*(rngCFCSA1=A19)),0) -> 0 | Z19: =IF(ISNUMBER(SUMPRODUCT(--ISNUMBER(rngCFCSA1)*(INDEX(budA1CSBP8,0,1))*(INDEX(budA1CSSF,0,1)="Salary")*(rngCFCSA1=A19))),SUMPRODUCT(--ISNUMBER(rngCFCSA1)*(INDEX(budA1CSBP8,0,1))*(INDEX(budA1CSSF,0,1)="Salary")*(rngCFCSA1=A19)),0) -> 0 | AC19: =IF(ISNUMBER(SUMPRODUCT(--ISNUMBER(rngCFCSA1)*(INDEX(budA1CSBP9,0,1))*(INDEX(budA1CSSF,0,1)="Salary")*(rngCFCSA1=A19))),SUMPRODUCT(--ISNUMBER(rngCFCSA1)*(INDEX(budA1CSBP9,0,1))*(INDEX(budA1CSSF,0,1)="Salary")*(rngCFCSA1=A19)),0) -> 0 | AF19: =IF(ISNUMBER(SUMPRODUCT(--ISNUMBER(rngCFCSA1)*(INDEX(budA1CSBP10,0,1))*(INDEX(budA1CSSF,0,1)="Salary")*(rngCFCSA1=A19))),SUMPRODUCT(--ISNUMBER(rngCFCSA1)*(INDEX(budA1CSBP10,0,1))*(INDEX(budA1CSSF,0,1)="Salary")*(rngCFCSA1=A19)),0) -> 0 | AI19: 0
A20: =_xlfn.XLOOKUP(B20,MTDC[Description],MTDC[VALUE],"N/A",0) -> 50070 | B20: S&W Housestaff | D20: =IF(AND(B20="Make a Selection",OR(sFABCCS=1,sFABCCS=2,sFABCCS=3)),"",IF(sFABCCS=2,"Included",IF(sFABCCS=3,"Custom F&A Amt",IF(_xlfn.XLOOKUP(B20,MTDC[Description],MTDC[Include in MTDC],"N/A",0)="MTDC","Included","Excluded")))) -> Included | E20: =IF(ISNUMBER(SUMPRODUCT(--ISNUMBER(rngCFCSA1)*(INDEX(budA1CSBP1,0,1))*(INDEX(budA1CSSF,0,1)="Salary")*(rngCFCSA1=A20))),SUMPRODUCT(--ISNUMBER(rngCFCSA1)*(INDEX(budA1CSBP1,0,1))*(INDEX(budA1CSSF,0,1)="Salary")*(rngCFCSA1=A20)),0) -> 0 | H20: =IF(ISNUMBER(SUMPRODUCT(--ISNUMBER(rngCFCSA1)*(INDEX(budA1CSBP2,0,1))*(INDEX(budA1CSSF,0,1)="Salary")*(rngCFCSA1=A20))),SUMPRODUCT(--ISNUMBER(rngCFCSA1)*(INDEX(budA1CSBP2,0,1))*(INDEX(budA1CSSF,0,1)="Salary")*(rngCFCSA1=A20)),0) -> 0 | K20: =IF(ISNUMBER(SUMPRODUCT(--ISNUMBER(rngCFCSA1)*(INDEX(budA1CSBP3,0,1))*(INDEX(budA1CSSF,0,1)="Salary")*(rngCFCSA1=A20))),SUMPRODUCT(--ISNUMBER(rngCFCSA1)*(INDEX(budA1CSBP3,0,1))*(INDEX(budA1CSSF,0,1)="Salary")*(rngCFCSA1=A20)),0) -> 0 | N20: =IF(ISNUMBER(SUMPRODUCT(--ISNUMBER(rngCFCSA1)*(INDEX(budA1CSBP4,0,1))*(INDEX(budA1CSSF,0,1)="Salary")*(rngCFCSA1=A20))),SUMPRODUCT(--ISNUMBER(rngCFCSA1)*(INDEX(budA1CSBP4,0,1))*(INDEX(budA1CSSF,0,1)="Salary")*(rngCFCSA1=A20)),0) -> 0 | Q20: =IF(ISNUMBER(SUMPRODUCT(--ISNUMBER(rngCFCSA1)*(INDEX(budA1CSBP5,0,1))*(INDEX(budA1CSSF,0,1)="Salary")*(rngCFCSA1=A20))),SUMPRODUCT(--ISNUMBER(rngCFCSA1)*(INDEX(budA1CSBP5,0,1))*(INDEX(budA1CSSF,0,1)="Salary")*(rngCFCSA1=A20)),0) -> 0 | T20: =IF(ISNUMBER(SUMPRODUCT(--ISNUMBER(rngCFCSA1)*(INDEX(budA1CSBP6,0,1))*(INDEX(budA1CSSF,0,1)="Salary")*(rngCFCSA1=A20))),SUMPRODUCT(--ISNUMBER(rngCFCSA1)*(INDEX(budA1CSBP6,0,1))*(INDEX(budA1CSSF,0,1)="Salary")*(rngCFCSA1=A20)),0) -> 0 | W20: =IF(ISNUMBER(SUMPRODUCT(--ISNUMBER(rngCFCSA1)*(INDEX(budA1CSBP7,0,1))*(INDEX(budA1CSSF,0,1)="Salary")*(rngCFCSA1=A20))),SUMPRODUCT(--ISNUMBER(rngCFCSA1)*(INDEX(budA1CSBP7,0,1))*(INDEX(budA1CSSF,0,1)="Salary")*(rngCFCSA1=A20)),0) -> 0 | Z20: =IF(ISNUMBER(SUMPRODUCT(--ISNUMBER(rngCFCSA1)*(INDEX(budA1CSBP8,0,1))*(INDEX(budA1CSSF,0,1)="Salary")*(rngCFCSA1=A20))),SUMPRODUCT(--ISNUMBER(rngCFCSA1)*(INDEX(budA1CSBP8,0,1))*(INDEX(budA1CSSF,0,1)="Salary")*(rngCFCSA1=A20)),0) -> 0 | AC20: =IF(ISNUMBER(SUMPRODUCT(--ISNUMBER(rngCFCSA1)*(INDEX(budA1CSBP9,0,1))*(INDEX(budA1CSSF,0,1)="Salary")*(rngCFCSA1=A20))),SUMPRODUCT(--ISNUMBER(rngCFCSA1)*(INDEX(budA1CSBP9,0,1))*(INDEX(budA1CSSF,0,1)="Salary")*(rngCFCSA1=A20)),0) -> 0 | AF20: =IF(ISNUMBER(SUMPRODUCT(--ISNUMBER(rngCFCSA1)*(INDEX(budA1CSBP10,0,1))*(INDEX(budA1CSSF,0,1)="Salary")*(rngCFCSA1=A20))),SUMPRODUCT(--ISNUMBER(rngCFCSA1)*(INDEX(budA1CSBP10,0,1))*(INDEX(budA1CSSF,0,1)="Salary")*(rngCFCSA1=A20)),0) -> 0 | AI20: 0
A21: =_xlfn.XLOOKUP(B21,MTDC[Description],MTDC[VALUE],"N/A",0) -> 50080 | B21: S&W Coadjutant NonInstructional (Summer Salary) | D21: =IF(AND(B21="Make a Selection",OR(sFABCCS=1,sFABCCS=2,sFABCCS=3)),"",IF(sFABCCS=2,"Included",IF(sFABCCS=3,"Custom F&A Amt",IF(_xlfn.XLOOKUP(B21,MTDC[Description],MTDC[Include in MTDC],"N/A",0)="MTDC","Included","Excluded")))) -> Included | E21: =IF(ISNUMBER(SUMPRODUCT(--ISNUMBER(rngCFCSA1)*(INDEX(budA1CSBP1,0,1))*(INDEX(budA1CSSF,0,1)="Salary")*(rngCFCSA1=A21))),SUMPRODUCT(--ISNUMBER(rngCFCSA1)*(INDEX(budA1CSBP1,0,1))*(INDEX(budA1CSSF,0,1)="Salary")*(rngCFCSA1=A21)),0) -> 0 | H21: =IF(ISNUMBER(SUMPRODUCT(--ISNUMBER(rngCFCSA1)*(INDEX(budA1CSBP2,0,1))*(INDEX(budA1CSSF,0,1)="Salary")*(rngCFCSA1=A21))),SUMPRODUCT(--ISNUMBER(rngCFCSA1)*(INDEX(budA1CSBP2,0,1))*(INDEX(budA1CSSF,0,1)="Salary")*(rngCFCSA1=A21)),0) -> 0 | K21: =IF(ISNUMBER(SUMPRODUCT(--ISNUMBER(rngCFCSA1)*(INDEX(budA1CSBP3,0,1))*(INDEX(budA1CSSF,0,1)="Salary")*(rngCFCSA1=A21))),SUMPRODUCT(--ISNUMBER(rngCFCSA1)*(INDEX(budA1CSBP3,0,1))*(INDEX(budA1CSSF,0,1)="Salary")*(rngCFCSA1=A21)),0) -> 0 | N21: =IF(ISNUMBER(SUMPRODUCT(--ISNUMBER(rngCFCSA1)*(INDEX(budA1CSBP4,0,1))*(INDEX(budA1CSSF,0,1)="Salary")*(rngCFCSA1=A21))),SUMPRODUCT(--ISNUMBER(rngCFCSA1)*(INDEX(budA1CSBP4,0,1))*(INDEX(budA1CSSF,0,1)="Salary")*(rngCFCSA1=A21)),0) -> 0 | Q21: =IF(ISNUMBER(SUMPRODUCT(--ISNUMBER(rngCFCSA1)*(INDEX(budA1CSBP5,0,1))*(INDEX(budA1CSSF,0,1)="Salary")*(rngCFCSA1=A21))),SUMPRODUCT(--ISNUMBER(rngCFCSA1)*(INDEX(budA1CSBP5,0,1))*(INDEX(budA1CSSF,0,1)="Salary")*(rngCFCSA1=A21)),0) -> 0 | T21: =IF(ISNUMBER(SUMPRODUCT(--ISNUMBER(rngCFCSA1)*(INDEX(budA1CSBP6,0,1))*(INDEX(budA1CSSF,0,1)="Salary")*(rngCFCSA1=A21))),SUMPRODUCT(--ISNUMBER(rngCFCSA1)*(INDEX(budA1CSBP6,0,1))*(INDEX(budA1CSSF,0,1)="Salary")*(rngCFCSA1=A21)),0) -> 0 | W21: =IF(ISNUMBER(SUMPRODUCT(--ISNUMBER(rngCFCSA1)*(INDEX(budA1CSBP7,0,1))*(INDEX(budA1CSSF,0,1)="Salary")*(rngCFCSA1=A21))),SUMPRODUCT(--ISNUMBER(rngCFCSA1)*(INDEX(budA1CSBP7,0,1))*(INDEX(budA1CSSF,0,1)="Salary")*(rngCFCSA1=A21)),0) -> 0 | Z21: =IF(ISNUMBER(SUMPRODUCT(--ISNUMBER(rngCFCSA1)*(INDEX(budA1CSBP8,0,1))*(INDEX(budA1CSSF,0,1)="Salary")*(rngCFCSA1=A21))),SUMPRODUCT(--ISNUMBER(rngCFCSA1)*(INDEX(budA1CSBP8,0,1))*(INDEX(budA1CSSF,0,1)="Salary")*(rngCFCSA1=A21)),0) -> 0 | AC21: =IF(ISNUMBER(SUMPRODUCT(--ISNUMBER(rngCFCSA1)*(INDEX(budA1CSBP9,0,1))*(INDEX(budA1CSSF,0,1)="Salary")*(rngCFCSA1=A21))),SUMPRODUCT(--ISNUMBER(rngCFCSA1)*(INDEX(budA1CSBP9,0,1))*(INDEX(budA1CSSF,0,1)="Salary")*(rngCFCSA1=A21)),0) -> 0 | AF21: =IF(ISNUMBER(SUMPRODUCT(--ISNUMBER(rngCFCSA1)*(INDEX(budA1CSBP10,0,1))*(INDEX(budA1CSSF,0,1)="Salary")*(rngCFCSA1=A21))),SUMPRODUCT(--ISNUMBER(rngCFCSA1)*(INDEX(budA1CSBP10,0,1))*(INDEX(budA1CSSF,0,1)="Salary")*(rngCFCSA1=A21)),0) -> 0 | AI21: 0
A22: =_xlfn.XLOOKUP(B22,MTDC[Description],MTDC[VALUE],"N/A",0) -> 50081 | B22: S&W Coadjutant PTL Instructional | D22: =IF(AND(B22="Make a Selection",OR(sFABCCS=1,sFABCCS=2,sFABCCS=3)),"",IF(sFABCCS=2,"Included",IF(sFABCCS=3,"Custom F&A Amt",IF(_xlfn.XLOOKUP(B22,MTDC[Description],MTDC[Include in MTDC],"N/A",0)="MTDC","Included","Excluded")))) -> Included | E22: =IF(ISNUMBER(SUMPRODUCT(--ISNUMBER(rngCFCSA1)*(INDEX(budA1CSBP1,0,1))*(INDEX(budA1CSSF,0,1)="Salary")*(rngCFCSA1=A22))),SUMPRODUCT(--ISNUMBER(rngCFCSA1)*(INDEX(budA1CSBP1,0,1))*(INDEX(budA1CSSF,0,1)="Salary")*(rngCFCSA1=A22)),0) -> 0 | H22: =IF(ISNUMBER(SUMPRODUCT(--ISNUMBER(rngCFCSA1)*(INDEX(budA1CSBP2,0,1))*(INDEX(budA1CSSF,0,1)="Salary")*(rngCFCSA1=A22))),SUMPRODUCT(--ISNUMBER(rngCFCSA1)*(INDEX(budA1CSBP2,0,1))*(INDEX(budA1CSSF,0,1)="Salary")*(rngCFCSA1=A22)),0) -> 0 | K22: =IF(ISNUMBER(SUMPRODUCT(--ISNUMBER(rngCFCSA1)*(INDEX(budA1CSBP3,0,1))*(INDEX(budA1CSSF,0,1)="Salary")*(rngCFCSA1=A22))),SUMPRODUCT(--ISNUMBER(rngCFCSA1)*(INDEX(budA1CSBP3,0,1))*(INDEX(budA1CSSF,0,1)="Salary")*(rngCFCSA1=A22)),0) -> 0 | N22: =IF(ISNUMBER(SUMPRODUCT(--ISNUMBER(rngCFCSA1)*(INDEX(budA1CSBP4,0,1))*(INDEX(budA1CSSF,0,1)="Salary")*(rngCFCSA1=A22))),SUMPRODUCT(--ISNUMBER(rngCFCSA1)*(INDEX(budA1CSBP4,0,1))*(INDEX(budA1CSSF,0,1)="Salary")*(rngCFCSA1=A22)),0) -> 0 | Q22: =IF(ISNUMBER(SUMPRODUCT(--ISNUMBER(rngCFCSA1)*(INDEX(budA1CSBP5,0,1))*(INDEX(budA1CSSF,0,1)="Salary")*(rngCFCSA1=A22))),SUMPRODUCT(--ISNUMBER(rngCFCSA1)*(INDEX(budA1CSBP5,0,1))*(INDEX(budA1CSSF,0,1)="Salary")*(rngCFCSA1=A22)),0) -> 0 | T22: =IF(ISNUMBER(SUMPRODUCT(--ISNUMBER(rngCFCSA1)*(INDEX(budA1CSBP6,0,1))*(INDEX(budA1CSSF,0,1)="Salary")*(rngCFCSA1=A22))),SUMPRODUCT(--ISNUMBER(rngCFCSA1)*(INDEX(budA1CSBP6,0,1))*(INDEX(budA1CSSF,0,1)="Salary")*(rngCFCSA1=A22)),0) -> 0 | W22: =IF(ISNUMBER(SUMPRODUCT(--ISNUMBER(rngCFCSA1)*(INDEX(budA1CSBP7,0,1))*(INDEX(budA1CSSF,0,1)="Salary")*(rngCFCSA1=A22))),SUMPRODUCT(--ISNUMBER(rngCFCSA1)*(INDEX(budA1CSBP7,0,1))*(INDEX(budA1CSSF,0,1)="Salary")*(rngCFCSA1=A22)),0) -> 0 | Z22: =IF(ISNUMBER(SUMPRODUCT(--ISNUMBER(rngCFCSA1)*(INDEX(budA1CSBP8,0,1))*(INDEX(budA1CSSF,0,1)="Salary")*(rngCFCSA1=A22))),SUMPRODUCT(--ISNUMBER(rngCFCSA1)*(INDEX(budA1CSBP8,0,1))*(INDEX(budA1CSSF,0,1)="Salary")*(rngCFCSA1=A22)),0) -> 0 | AC22: =IF(ISNUMBER(SUMPRODUCT(--ISNUMBER(rngCFCSA1)*(INDEX(budA1CSBP9,0,1))*(INDEX(budA1CSSF,0,1)="Salary")*(rngCFCSA1=A22))),SUMPRODUCT(--ISNUMBER(rngCFCSA1)*(INDEX(budA1CSBP9,0,1))*(INDEX(budA1CSSF,0,1)="Salary")*(rngCFCSA1=A22)),0) -> 0 | AF22: =IF(ISNUMBER(SUMPRODUCT(--ISNUMBER(rngCFCSA1)*(INDEX(budA1CSBP10,0,1))*(INDEX(budA1CSSF,0,1)="Salary")*(rngCFCSA1=A22))),SUMPRODUCT(--ISNUMBER(rngCFCSA1)*(INDEX(budA1CSBP10,0,1))*(INDEX(budA1CSSF,0,1)="Salary")*(rngCFCSA1=A22)),0) -> 0 | AI22: 0
A23: =_xlfn.XLOOKUP(B23,MTDC[Description],MTDC[VALUE],"N/A",0) -> 50090 | B23: S&W Student Employment | D23: =IF(AND(B23="Make a Selection",OR(sFABCCS=1,sFABCCS=2,sFABCCS=3)),"",IF(sFABCCS=2,"Included",IF(sFABCCS=3,"Custom F&A Amt",IF(_xlfn.XLOOKUP(B23,MTDC[Description],MTDC[Include in MTDC],"N/A",0)="MTDC","Included","Excluded")))) -> Included | E23: =IF(ISNUMBER(SUMPRODUCT(--ISNUMBER(rngCFCSA1)*(INDEX(budA1CSBP1,0,1))*(INDEX(budA1CSSF,0,1)="Salary")*(rngCFCSA1=A23))),SUMPRODUCT(--ISNUMBER(rngCFCSA1)*(INDEX(budA1CSBP1,0,1))*(INDEX(budA1CSSF,0,1)="Salary")*(rngCFCSA1=A23)),0) -> 0 | H23: =IF(ISNUMBER(SUMPRODUCT(--ISNUMBER(rngCFCSA1)*(INDEX(budA1CSBP2,0,1))*(INDEX(budA1CSSF,0,1)="Salary")*(rngCFCSA1=A23))),SUMPRODUCT(--ISNUMBER(rngCFCSA1)*(INDEX(budA1CSBP2,0,1))*(INDEX(budA1CSSF,0,1)="Salary")*(rngCFCSA1=A23)),0) -> 0 | K23: =IF(ISNUMBER(SUMPRODUCT(--ISNUMBER(rngCFCSA1)*(INDEX(budA1CSBP3,0,1))*(INDEX(budA1CSSF,0,1)="Salary")*(rngCFCSA1=A23))),SUMPRODUCT(--ISNUMBER(rngCFCSA1)*(INDEX(budA1CSBP3,0,1))*(INDEX(budA1CSSF,0,1)="Salary")*(rngCFCSA1=A23)),0) -> 0 | N23: =IF(ISNUMBER(SUMPRODUCT(--ISNUMBER(rngCFCSA1)*(INDEX(budA1CSBP4,0,1))*(INDEX(budA1CSSF,0,1)="Salary")*(rngCFCSA1=A23))),SUMPRODUCT(--ISNUMBER(rngCFCSA1)*(INDEX(budA1CSBP4,0,1))*(INDEX(budA1CSSF,0,1)="Salary")*(rngCFCSA1=A23)),0) -> 0 | Q23: =IF(ISNUMBER(SUMPRODUCT(--ISNUMBER(rngCFCSA1)*(INDEX(budA1CSBP5,0,1))*(INDEX(budA1CSSF,0,1)="Salary")*(rngCFCSA1=A23))),SUMPRODUCT(--ISNUMBER(rngCFCSA1)*(INDEX(budA1CSBP5,0,1))*(INDEX(budA1CSSF,0,1)="Salary")*(rngCFCSA1=A23)),0) -> 0 | T23: =IF(ISNUMBER(SUMPRODUCT(--ISNUMBER(rngCFCSA1)*(INDEX(budA1CSBP6,0,1))*(INDEX(budA1CSSF,0,1)="Salary")*(rngCFCSA1=A23))),SUMPRODUCT(--ISNUMBER(rngCFCSA1)*(INDEX(budA1CSBP6,0,1))*(INDEX(budA1CSSF,0,1)="Salary")*(rngCFCSA1=A23)),0) -> 0 | W23: =IF(ISNUMBER(SUMPRODUCT(--ISNUMBER(rngCFCSA1)*(INDEX(budA1CSBP7,0,1))*(INDEX(budA1CSSF,0,1)="Salary")*(rngCFCSA1=A23))),SUMPRODUCT(--ISNUMBER(rngCFCSA1)*(INDEX(budA1CSBP7,0,1))*(INDEX(budA1CSSF,0,1)="Salary")*(rngCFCSA1=A23)),0) -> 0 | Z23: =IF(ISNUMBER(SUMPRODUCT(--ISNUMBER(rngCFCSA1)*(INDEX(budA1CSBP8,0,1))*(INDEX(budA1CSSF,0,1)="Salary")*(rngCFCSA1=A23))),SUMPRODUCT(--ISNUMBER(rngCFCSA1)*(INDEX(budA1CSBP8,0,1))*(INDEX(budA1CSSF,0,1)="Salary")*(rngCFCSA1=A23)),0) -> 0 | AC23: =IF(ISNUMBER(SUMPRODUCT(--ISNUMBER(rngCFCSA1)*(INDEX(budA1CSBP9,0,1))*(INDEX(budA1CSSF,0,1)="Salary")*(rngCFCSA1=A23))),SUMPRODUCT(--ISNUMBER(rngCFCSA1)*(INDEX(budA1CSBP9,0,1))*(INDEX(budA1CSSF,0,1)="Salary")*(rngCFCSA1=A23)),0) -> 0 | AF23: =IF(ISNUMBER(SUMPRODUCT(--ISNUMBER(rngCFCSA1)*(INDEX(budA1CSBP10,0,1))*(INDEX(budA1CSSF,0,1)="Salary")*(rngCFCSA1=A23))),SUMPRODUCT(--ISNUMBER(rngCFCSA1)*(INDEX(budA1CSBP10,0,1))*(INDEX(budA1CSSF,0,1)="Salary")*(rngCFCSA1=A23)),0) -> 0 | AI23: 0
A24: =_xlfn.XLOOKUP(B24,MTDC[Description],MTDC[VALUE],"N/A",0) -> 50100 | B24: S&W Contracted | D24: =IF(AND(B24="Make a Selection",OR(sFABCCS=1,sFABCCS=2,sFABCCS=3)),"",IF(sFABCCS=2,"Included",IF(sFABCCS=3,"Custom F&A Amt",IF(_xlfn.XLOOKUP(B24,MTDC[Description],MTDC[Include in MTDC],"N/A",0)="MTDC","Included","Excluded")))) -> Included | E24: =IF(ISNUMBER(SUMPRODUCT(--ISNUMBER(rngCFCSA1)*(INDEX(budA1CSBP1,0,1))*(INDEX(budA1CSSF,0,1)="Salary")*(rngCFCSA1=A24))),SUMPRODUCT(--ISNUMBER(rngCFCSA1)*(INDEX(budA1CSBP1,0,1))*(INDEX(budA1CSSF,0,1)="Salary")*(rngCFCSA1=A24)),0) -> 0 | H24: =IF(ISNUMBER(SUMPRODUCT(--ISNUMBER(rngCFCSA1)*(INDEX(budA1CSBP2,0,1))*(INDEX(budA1CSSF,0,1)="Salary")*(rngCFCSA1=A24))),SUMPRODUCT(--ISNUMBER(rngCFCSA1)*(INDEX(budA1CSBP2,0,1))*(INDEX(budA1CSSF,0,1)="Salary")*(rngCFCSA1=A24)),0) -> 0 | K24: =IF(ISNUMBER(SUMPRODUCT(--ISNUMBER(rngCFCSA1)*(INDEX(budA1CSBP3,0,1))*(INDEX(budA1CSSF,0,1)="Salary")*(rngCFCSA1=A24))),SUMPRODUCT(--ISNUMBER(rngCFCSA1)*(INDEX(budA1CSBP3,0,1))*(INDEX(budA1CSSF,0,1)="Salary")*(rngCFCSA1=A24)),0) -> 0 | N24: =IF(ISNUMBER(SUMPRODUCT(--ISNUMBER(rngCFCSA1)*(INDEX(budA1CSBP4,0,1))*(INDEX(budA1CSSF,0,1)="Salary")*(rngCFCSA1=A24))),SUMPRODUCT(--ISNUMBER(rngCFCSA1)*(INDEX(budA1CSBP4,0,1))*(INDEX(budA1CSSF,0,1)="Salary")*(rngCFCSA1=A24)),0) -> 0 | Q24: =IF(ISNUMBER(SUMPRODUCT(--ISNUMBER(rngCFCSA1)*(INDEX(budA1CSBP5,0,1))*(INDEX(budA1CSSF,0,1)="Salary")*(rngCFCSA1=A24))),SUMPRODUCT(--ISNUMBER(rngCFCSA1)*(INDEX(budA1CSBP5,0,1))*(INDEX(budA1CSSF,0,1)="Salary")*(rngCFCSA1=A24)),0) -> 0 | T24: =IF(ISNUMBER(SUMPRODUCT(--ISNUMBER(rngCFCSA1)*(INDEX(budA1CSBP6,0,1))*(INDEX(budA1CSSF,0,1)="Salary")*(rngCFCSA1=A24))),SUMPRODUCT(--ISNUMBER(rngCFCSA1)*(INDEX(budA1CSBP6,0,1))*(INDEX(budA1CSSF,0,1)="Salary")*(rngCFCSA1=A24)),0) -> 0 | W24: =IF(ISNUMBER(SUMPRODUCT(--ISNUMBER(rngCFCSA1)*(INDEX(budA1CSBP7,0,1))*(INDEX(budA1CSSF,0,1)="Salary")*(rngCFCSA1=A24))),SUMPRODUCT(--ISNUMBER(rngCFCSA1)*(INDEX(budA1CSBP7,0,1))*(INDEX(budA1CSSF,0,1)="Salary")*(rngCFCSA1=A24)),0) -> 0 | Z24: =IF(ISNUMBER(SUMPRODUCT(--ISNUMBER(rngCFCSA1)*(INDEX(budA1CSBP8,0,1))*(INDEX(budA1CSSF,0,1)="Salary")*(rngCFCSA1=A24))),SUMPRODUCT(--ISNUMBER(rngCFCSA1)*(INDEX(budA1CSBP8,0,1))*(INDEX(budA1CSSF,0,1)="Salary")*(rngCFCSA1=A24)),0) -> 0 | AC24: =IF(ISNUMBER(SUMPRODUCT(--ISNUMBER(rngCFCSA1)*(INDEX(budA1CSBP9,0,1))*(INDEX(budA1CSSF,0,1)="Salary")*(rngCFCSA1=A24))),SUMPRODUCT(--ISNUMBER(rngCFCSA1)*(INDEX(budA1CSBP9,0,1))*(INDEX(budA1CSSF,0,1)="Salary")*(rngCFCSA1=A24)),0) -> 0 | AF24: =IF(ISNUMBER(SUMPRODUCT(--ISNUMBER(rngCFCSA1)*(INDEX(budA1CSBP10,0,1))*(INDEX(budA1CSSF,0,1)="Salary")*(rngCFCSA1=A24))),SUMPRODUCT(--ISNUMBER(rngCFCSA1)*(INDEX(budA1CSBP10,0,1))*(INDEX(budA1CSSF,0,1)="Salary")*(rngCFCSA1=A24)),0) -> 0 | AI24: 0
A25: =_xlfn.XLOOKUP(B25,MTDC[Description],MTDC[VALUE],"N/A",0) -> 50110 | B25: Student Aid Student Researcher Stipend | D25: =IF(AND(B25="Make a Selection",OR(sFABCCS=1,sFABCCS=2,sFABCCS=3)),"",IF(sFABCCS=2,"Included",IF(sFABCCS=3,"Custom F&A Amt",IF(_xlfn.XLOOKUP(B25,MTDC[Description],MTDC[Include in MTDC],"N/A",0)="MTDC","Included","Excluded")))) -> Included | E25: =IF(ISNUMBER(SUMPRODUCT(--ISNUMBER(rngCFCSA1)*(INDEX(budA1CSBP1,0,1))*(INDEX(budA1CSSF,0,1)="Salary")*(rngCFCSA1=A25))),SUMPRODUCT(--ISNUMBER(rngCFCSA1)*(INDEX(budA1CSBP1,0,1))*(INDEX(budA1CSSF,0,1)="Salary")*(rngCFCSA1=A25)),0) -> 0 | H25: =IF(ISNUMBER(SUMPRODUCT(--ISNUMBER(rngCFCSA1)*(INDEX(budA1CSBP2,0,1))*(INDEX(budA1CSSF,0,1)="Salary")*(rngCFCSA1=A25))),SUMPRODUCT(--ISNUMBER(rngCFCSA1)*(INDEX(budA1CSBP2,0,1))*(INDEX(budA1CSSF,0,1)="Salary")*(rngCFCSA1=A25)),0) -> 0 | K25: =IF(ISNUMBER(SUMPRODUCT(--ISNUMBER(rngCFCSA1)*(INDEX(budA1CSBP3,0,1))*(INDEX(budA1CSSF,0,1)="Salary")*(rngCFCSA1=A25))),SUMPRODUCT(--ISNUMBER(rngCFCSA1)*(INDEX(budA1CSBP3,0,1))*(INDEX(budA1CSSF,0,1)="Salary")*(rngCFCSA1=A25)),0) -> 0 | N25: =IF(ISNUMBER(SUMPRODUCT(--ISNUMBER(rngCFCSA1)*(INDEX(budA1CSBP4,0,1))*(INDEX(budA1CSSF,0,1)="Salary")*(rngCFCSA1=A25))),SUMPRODUCT(--ISNUMBER(rngCFCSA1)*(INDEX(budA1CSBP4,0,1))*(INDEX(budA1CSSF,0,1)="Salary")*(rngCFCSA1=A25)),0) -> 0 | Q25: =IF(ISNUMBER(SUMPRODUCT(--ISNUMBER(rngCFCSA1)*(INDEX(budA1CSBP5,0,1))*(INDEX(budA1CSSF,0,1)="Salary")*(rngCFCSA1=A25))),SUMPRODUCT(--ISNUMBER(rngCFCSA1)*(INDEX(budA1CSBP5,0,1))*(INDEX(budA1CSSF,0,1)="Salary")*(rngCFCSA1=A25)),0) -> 0 | T25: =IF(ISNUMBER(SUMPRODUCT(--ISNUMBER(rngCFCSA1)*(INDEX(budA1CSBP6,0,1))*(INDEX(budA1CSSF,0,1)="Salary")*(rngCFCSA1=A25))),SUMPRODUCT(--ISNUMBER(rngCFCSA1)*(INDEX(budA1CSBP6,0,1))*(INDEX(budA1CSSF,0,1)="Salary")*(rngCFCSA1=A25)),0) -> 0 | W25: =IF(ISNUMBER(SUMPRODUCT(--ISNUMBER(rngCFCSA1)*(INDEX(budA1CSBP7,0,1))*(INDEX(budA1CSSF,0,1)="Salary")*(rngCFCSA1=A25))),SUMPRODUCT(--ISNUMBER(rngCFCSA1)*(INDEX(budA1CSBP7,0,1))*(INDEX(budA1CSSF,0,1)="Salary")*(rngCFCSA1=A25)),0) -> 0 | Z25: =IF(ISNUMBER(SUMPRODUCT(--ISNUMBER(rngCFCSA1)*(INDEX(budA1CSBP8,0,1))*(INDEX(budA1CSSF,0,1)="Salary")*(rngCFCSA1=A25))),SUMPRODUCT(--ISNUMBER(rngCFCSA1)*(INDEX(budA1CSBP8,0,1))*(INDEX(budA1CSSF,0,1)="Salary")*(rngCFCSA1=A25)),0) -> 0 | AC25: =IF(ISNUMBER(SUMPRODUCT(--ISNUMBER(rngCFCSA1)*(INDEX(budA1CSBP9,0,1))*(INDEX(budA1CSSF,0,1)="Salary")*(rngCFCSA1=A25))),SUMPRODUCT(--ISNUMBER(rngCFCSA1)*(INDEX(budA1CSBP9,0,1))*(INDEX(budA1CSSF,0,1)="Salary")*(rngCFCSA1=A25)),0) -> 0 | AF25: =IF(ISNUMBER(SUMPRODUCT(--ISNUMBER(rngCFCSA1)*(INDEX(budA1CSBP10,0,1))*(INDEX(budA1CSSF,0,1)="Salary")*(rngCFCSA1=A25))),SUMPRODUCT(--ISNUMBER(rngCFCSA1)*(INDEX(budA1CSBP10,0,1))*(INDEX(budA1CSSF,0,1)="Salary")*(rngCFCSA1=A25)),0) -> 0 | AI25: 0
A26: =_xlfn.XLOOKUP(B26,MTDC[Description],MTDC[VALUE],"N/A",0) -> 50115 | B26: Student Aid Pre & Post Fellowship | D26: =IF(AND(B26="Make a Selection",OR(sFABCCS=1,sFABCCS=2,sFABCCS=3)),"",IF(sFABCCS=2,"Included",IF(sFABCCS=3,"Custom F&A Amt",IF(_xlfn.XLOOKUP(B26,MTDC[Description],MTDC[Include in MTDC],"N/A",0)="MTDC","Included","Excluded")))) -> Included | E26: =IF(ISNUMBER(SUMPRODUCT(--ISNUMBER(rngCFCSA1)*(INDEX(budA1CSBP1,0,1))*(INDEX(budA1CSSF,0,1)="Salary")*(rngCFCSA1=A26))),SUMPRODUCT(--ISNUMBER(rngCFCSA1)*(INDEX(budA1CSBP1,0,1))*(INDEX(budA1CSSF,0,1)="Salary")*(rngCFCSA1=A26)),0) -> 0 | H26: =IF(ISNUMBER(SUMPRODUCT(--ISNUMBER(rngCFCSA1)*(INDEX(budA1CSBP2,0,1))*(INDEX(budA1CSSF,0,1)="Salary")*(rngCFCSA1=A26))),SUMPRODUCT(--ISNUMBER(rngCFCSA1)*(INDEX(budA1CSBP2,0,1))*(INDEX(budA1CSSF,0,1)="Salary")*(rngCFCSA1=A26)),0) -> 0 | K26: =IF(ISNUMBER(SUMPRODUCT(--ISNUMBER(rngCFCSA1)*(INDEX(budA1CSBP3,0,1))*(INDEX(budA1CSSF,0,1)="Salary")*(rngCFCSA1=A26))),SUMPRODUCT(--ISNUMBER(rngCFCSA1)*(INDEX(budA1CSBP3,0,1))*(INDEX(budA1CSSF,0,1)="Salary")*(rngCFCSA1=A26)),0) -> 0 | N26: =IF(ISNUMBER(SUMPRODUCT(--ISNUMBER(rngCFCSA1)*(INDEX(budA1CSBP4,0,1))*(INDEX(budA1CSSF,0,1)="Salary")*(rngCFCSA1=A26))),SUMPRODUCT(--ISNUMBER(rngCFCSA1)*(INDEX(budA1CSBP4,0,1))*(INDEX(budA1CSSF,0,1)="Salary")*(rngCFCSA1=A26)),0) -> 0 | Q26: =IF(ISNUMBER(SUMPRODUCT(--ISNUMBER(rngCFCSA1)*(INDEX(budA1CSBP5,0,1))*(INDEX(budA1CSSF,0,1)="Salary")*(rngCFCSA1=A26))),SUMPRODUCT(--ISNUMBER(rngCFCSA1)*(INDEX(budA1CSBP5,0,1))*(INDEX(budA1CSSF,0,1)="Salary")*(rngCFCSA1=A26)),0) -> 0 | T26: =IF(ISNUMBER(SUMPRODUCT(--ISNUMBER(rngCFCSA1)*(INDEX(budA1CSBP6,0,1))*(INDEX(budA1CSSF,0,1)="Salary")*(rngCFCSA1=A26))),SUMPRODUCT(--ISNUMBER(rngCFCSA1)*(INDEX(budA1CSBP6,0,1))*(INDEX(budA1CSSF,0,1)="Salary")*(rngCFCSA1=A26)),0) -> 0 | W26: =IF(ISNUMBER(SUMPRODUCT(--ISNUMBER(rngCFCSA1)*(INDEX(budA1CSBP7,0,1))*(INDEX(budA1CSSF,0,1)="Salary")*(rngCFCSA1=A26))),SUMPRODUCT(--ISNUMBER(rngCFCSA1)*(INDEX(budA1CSBP7,0,1))*(INDEX(budA1CSSF,0,1)="Salary")*(rngCFCSA1=A26)),0) -> 0 | Z26: =IF(ISNUMBER(SUMPRODUCT(--ISNUMBER(rngCFCSA1)*(INDEX(budA1CSBP8,0,1))*(INDEX(budA1CSSF,0,1)="Salary")*(rngCFCSA1=A26))),SUMPRODUCT(--ISNUMBER(rngCFCSA1)*(INDEX(budA1CSBP8,0,1))*(INDEX(budA1CSSF,0,1)="Salary")*(rngCFCSA1=A26)),0) -> 0 | AC26: =IF(ISNUMBER(SUMPRODUCT(--ISNUMBER(rngCFCSA1)*(INDEX(budA1CSBP9,0,1))*(INDEX(budA1CSSF,0,1)="Salary")*(rngCFCSA1=A26))),SUMPRODUCT(--ISNUMBER(rngCFCSA1)*(INDEX(budA1CSBP9,0,1))*(INDEX(budA1CSSF,0,1)="Salary")*(rngCFCSA1=A26)),0) -> 0 | AF26: =IF(ISNUMBER(SUMPRODUCT(--ISNUMBER(rngCFCSA1)*(INDEX(budA1CSBP10,0,1))*(INDEX(budA1CSSF,0,1)="Salary")*(rngCFCSA1=A26))),SUMPRODUCT(--ISNUMBER(rngCFCSA1)*(INDEX(budA1CSBP10,0,1))*(INDEX(budA1CSSF,0,1)="Salary")*(rngCFCSA1=A26)),0) -> 0 | AI26: 0
A27: =_xlfn.XLOOKUP(B27,MTDC[Description],MTDC[VALUE],"N/A",0) -> 50120 | B27: S&W Hourly Employees | D27: =IF(AND(B27="Make a Selection",OR(sFABCCS=1,sFABCCS=2,sFABCCS=3)),"",IF(sFABCCS=2,"Included",IF(sFABCCS=3,"Custom F&A Amt",IF(_xlfn.XLOOKUP(B27,MTDC[Description],MTDC[Include in MTDC],"N/A",0)="MTDC","Included","Excluded")))) -> Included | E27: =IF(ISNUMBER(SUMPRODUCT(--ISNUMBER(rngCFCSA1)*(INDEX(budA1CSBP1,0,1))*(INDEX(budA1CSSF,0,1)="Salary")*(rngCFCSA1=A27))),SUMPRODUCT(--ISNUMBER(rngCFCSA1)*(INDEX(budA1CSBP1,0,1))*(INDEX(budA1CSSF,0,1)="Salary")*(rngCFCSA1=A27)),0) -> 0 | H27: =IF(ISNUMBER(SUMPRODUCT(--ISNUMBER(rngCFCSA1)*(INDEX(budA1CSBP2,0,1))*(INDEX(budA1CSSF,0,1)="Salary")*(rngCFCSA1=A27))),SUMPRODUCT(--ISNUMBER(rngCFCSA1)*(INDEX(budA1CSBP2,0,1))*(INDEX(budA1CSSF,0,1)="Salary")*(rngCFCSA1=A27)),0) -> 0 | K27: =IF(ISNUMBER(SUMPRODUCT(--ISNUMBER(rngCFCSA1)*(INDEX(budA1CSBP3,0,1))*(INDEX(budA1CSSF,0,1)="Salary")*(rngCFCSA1=A27))),SUMPRODUCT(--ISNUMBER(rngCFCSA1)*(INDEX(budA1CSBP3,0,1))*(INDEX(budA1CSSF,0,1)="Salary")*(rngCFCSA1=A27)),0) -> 0 | N27: =IF(ISNUMBER(SUMPRODUCT(--ISNUMBER(rngCFCSA1)*(INDEX(budA1CSBP4,0,1))*(INDEX(budA1CSSF,0,1)="Salary")*(rngCFCSA1=A27))),SUMPRODUCT(--ISNUMBER(rngCFCSA1)*(INDEX(budA1CSBP4,0,1))*(INDEX(budA1CSSF,0,1)="Salary")*(rngCFCSA1=A27)),0) -> 0 | Q27: =IF(ISNUMBER(SUMPRODUCT(--ISNUMBER(rngCFCSA1)*(INDEX(budA1CSBP5,0,1))*(INDEX(budA1CSSF,0,1)="Salary")*(rngCFCSA1=A27))),SUMPRODUCT(--ISNUMBER(rngCFCSA1)*(INDEX(budA1CSBP5,0,1))*(INDEX(budA1CSSF,0,1)="Salary")*(rngCFCSA1=A27)),0) -> 0 | T27: =IF(ISNUMBER(SUMPRODUCT(--ISNUMBER(rngCFCSA1)*(INDEX(budA1CSBP6,0,1))*(INDEX(budA1CSSF,0,1)="Salary")*(rngCFCSA1=A27))),SUMPRODUCT(--ISNUMBER(rngCFCSA1)*(INDEX(budA1CSBP6,0,1))*(INDEX(budA1CSSF,0,1)="Salary")*(rngCFCSA1=A27)),0) -> 0 | W27: =IF(ISNUMBER(SUMPRODUCT(--ISNUMBER(rngCFCSA1)*(INDEX(budA1CSBP7,0,1))*(INDEX(budA1CSSF,0,1)="Salary")*(rngCFCSA1=A27))),SUMPRODUCT(--ISNUMBER(rngCFCSA1)*(INDEX(budA1CSBP7,0,1))*(INDEX(budA1CSSF,0,1)="Salary")*(rngCFCSA1=A27)),0) -> 0 | Z27: =IF(ISNUMBER(SUMPRODUCT(--ISNUMBER(rngCFCSA1)*(INDEX(budA1CSBP8,0,1))*(INDEX(budA1CSSF,0,1)="Salary")*(rngCFCSA1=A27))),SUMPRODUCT(--ISNUMBER(rngCFCSA1)*(INDEX(budA1CSBP8,0,1))*(INDEX(budA1CSSF,0,1)="Salary")*(rngCFCSA1=A27)),0) -> 0 | AC27: =IF(ISNUMBER(SUMPRODUCT(--ISNUMBER(rngCFCSA1)*(INDEX(budA1CSBP9,0,1))*(INDEX(budA1CSSF,0,1)="Salary")*(rngCFCSA1=A27))),SUMPRODUCT(--ISNUMBER(rngCFCSA1)*(INDEX(budA1CSBP9,0,1))*(INDEX(budA1CSSF,0,1)="Salary")*(rngCFCSA1=A27)),0) -> 0 | AF27: =IF(ISNUMBER(SUMPRODUCT(--ISNUMBER(rngCFCSA1)*(INDEX(budA1CSBP10,0,1))*(INDEX(budA1CSSF,0,1)="Salary")*(rngCFCSA1=A27))),SUMPRODUCT(--ISNUMBER(rngCFCSA1)*(INDEX(budA1CSBP10,0,1))*(INDEX(budA1CSSF,0,1)="Salary")*(rngCFCSA1=A27)),0) -> 0 | AI27: 0
A28: =_xlfn.XLOOKUP(B28,MTDC[Description],MTDC[VALUE],"N/A",0) -> 51110 | B28: FB Staff Employees | D28: =IF(sFABCCS=2,"Included",IF(sFABCCS=3,"Custom F&A Amt",IF(_xlfn.XLOOKUP(B28,MTDC[Description],MTDC[Include in MTDC],"N/A",0)="MTDC","Included","Excluded"))) -> Included | E28: =SUMPRODUCT((INDEX(budA1CSSF,0,1)="Fringe")*INDEX(budA1CSBP1,0,1)) -> 0 | H28: =SUMPRODUCT((INDEX(budA1CSSF,0,1)="Fringe")*INDEX(budA1CSBP2,0,1)) -> 0 | K28: =SUMPRODUCT((INDEX(budA1CSSF,0,1)="Fringe")*INDEX(budA1CSBP3,0,1)) -> 0 | N28: =SUMPRODUCT((INDEX(budA1CSSF,0,1)="Fringe")*INDEX(budA1CSBP4,0,1)) -> 0 | Q28: =SUMPRODUCT((INDEX(budA1CSSF,0,1)="Fringe")*INDEX(budA1CSBP5,0,1)) -> 0 | T28: =SUMPRODUCT((INDEX(budA1CSSF,0,1)="Fringe")*INDEX(budA1CSBP6,0,1)) -> 0 | W28: =SUMPRODUCT((INDEX(budA1CSSF,0,1)="Fringe")*INDEX(budA1CSBP7,0,1)) -> 0 | Z28: =SUMPRODUCT((INDEX(budA1CSSF,0,1)="Fringe")*INDEX(budA1CSBP8,0,1)) -> 0 | AC28: =SUMPRODUCT((INDEX(budA1CSSF,0,1)="Fringe")*INDEX(budA1CSBP9,0,1)) -> 0 | AF28: =SUMPRODUCT((INDEX(budA1CSSF,0,1)="Fringe")*INDEX(budA1CSBP10,0,1)) -> 0 | AI28: =SUM(E28:AH28) -> 0
B30: Salary & Wages (Advanced) | E30: =SUM(E14:G27) -> 0 | H30: =SUM(H14:J27) -> 0 | K30: =SUM(K14:M27) -> 0 | N30: =SUM(N14:P27) -> 0 | Q30: =SUM(Q14:S27) -> 0 | T30: =SUM(T14:V27) -> 0 | W30: =SUM(W14:Y27) -> 0 | Z30: =SUM(Z14:AB27) -> 0 | AC30: =SUM(AC14:AE27) -> 0 | AF30: =SUM(AF14:AH27) -> 0 | AI30: =SUM(E30:AH30) -> 0
B31: Fringe (Advanced) | E31: =SUMPRODUCT((INDEX(budA1CSSF,0,1)="Fringe")*INDEX(budA1CSBP1,0,1)) -> 0 | H31: =SUMPRODUCT((INDEX(budA1CSSF,0,1)="Fringe")*INDEX(budA1CSBP2,0,1)) -> 0 | K31: =SUMPRODUCT((INDEX(budA1CSSF,0,1)="Fringe")*INDEX(budA1CSBP3,0,1)) -> 0 | N31: =SUMPRODUCT((INDEX(budA1CSSF,0,1)="Fringe")*INDEX(budA1CSBP4,0,1)) -> 0 | Q31: =SUMPRODUCT((INDEX(budA1CSSF,0,1)="Fringe")*INDEX(budA1CSBP5,0,1)) -> 0 | T31: =SUMPRODUCT((INDEX(budA1CSSF,0,1)="Fringe")*INDEX(budA1CSBP6,0,1)) -> 0 | W31: =SUMPRODUCT((INDEX(budA1CSSF,0,1)="Fringe")*INDEX(budA1CSBP7,0,1)) -> 0 | Z31: =SUMPRODUCT((INDEX(budA1CSSF,0,1)="Fringe")*INDEX(budA1CSBP8,0,1)) -> 0 | AC31: =SUMPRODUCT((INDEX(budA1CSSF,0,1)="Fringe")*INDEX(budA1CSBP8,0,1)) -> 0 | AF31: =SUMPRODUCT((INDEX(budA1CSSF,0,1)="Fringe")*INDEX(budA1CSBP10,0,1)) -> 0 | AI31: =SUM(E31:AH31) -> 0
B32: Total Salary & Wages (Advanced) | E32: =SUM(E30:G31) -> 0 | H32: =SUM(H30:J31) -> 0 | K32: =SUM(K30:M31) -> 0 | N32: =SUM(N30:P31) -> 0 | Q32: =SUM(Q30:S31) -> 0 | T32: =SUM(T30:V31) -> 0 | W32: =SUM(W30:Y31) -> 0 | Z32: =SUM(Z30:AB31) -> 0 | AC32: =SUM(AC30:AE31) -> 0 | AF32: =SUM(AF30:AH31) -> 0 | AI32: =SUM(E32:AH32) -> 0
A34: A2. SALARIES & WAGES (BASIC)
A35: =_xlfn.XLOOKUP(B35,MTDC[Description],MTDC[VALUE],"N/A",0) -> N/A | B35: Make a selection | D35: Salary | E35: 0 | H35: 0 | K35: 0 | N35: 0 | Q35: 0 | T35: 0 | W35: 0 | Z35: 0 | AC35: 0 | AF35: 0 | AI35: =SUM(E35:AH35) -> 0
B36: Enter Staff Name | D36: Fringe | E36: =IF(OR(B35="Make a Selection",COUNT(E35,C37,wsBP1,weBP1,wsfyBP1)<5),0,E35*IF(A37="Yes",C37,IF(sFBRCCS=1,_xlfn.XLOOKUP(bpFYCS1,rngFFRfy,_xlfn.XLOOKUP(A35,rngFFRc,rngFFR,"N/A",0),"N/A",0),_xlfn.XLOOKUP(bpFYCS1,rngnFFRfy,_xlfn.XLOOKUP(A35,rngnFFRc,rngnFFR,"N/A",0),"N/A",0)))) -> 0 | H36: =IF(OR(B35="Make a Selection",COUNT(H35,C37,wsBP2,weBP2,wsfyBP2)<5),0,H35*IF(A37="Yes",C37,IF(sFBRCCS=1,_xlfn.XLOOKUP(bpFYCS2,rngFFRfy,_xlfn.XLOOKUP(A35,rngFFRc,rngFFR,"N/A",0),"N/A",0),_xlfn.XLOOKUP(bpFYCS2,rngnFFRfy,_xlfn.XLOOKUP(A35,rngnFFRc,rngnFFR,"N/A",0),"N/A",0)))) -> 0 | K36: =IF(OR(B35="Make a Selection",COUNT(K35,C37,wsBP3,weBP3,wsfyBP3)<5),0,K35*IF(A37="Yes",C37,IF(sFBRCCS=1,_xlfn.XLOOKUP(bpFYCS3,rngFFRfy,_xlfn.XLOOKUP(A35,rngFFRc,rngFFR,"N/A",0),"N/A",0),_xlfn.XLOOKUP(bpFYCS3,rngnFFRfy,_xlfn.XLOOKUP(A35,rngnFFRc,rngnFFR,"N/A",0),"N/A",0)))) -> 0 | N36: =IF(OR(B35="Make a Selection",COUNT(N35,C37,wsBP4,weBP4,wsfyBP4)<5),0,N35*IF(A37="Yes",C37,IF(sFBRCCS=1,_xlfn.XLOOKUP(bpFYCS4,rngFFRfy,_xlfn.XLOOKUP(A35,rngFFRc,rngFFR,"N/A",0),"N/A",0),_xlfn.XLOOKUP(bpFYCS4,rngnFFRfy,_xlfn.XLOOKUP(A35,rngnFFRc,rngnFFR,"N/A",0),"N/A",0)))) -> 0 | Q36: =IF(OR(B35="Make a Selection",COUNT(Q35,C37,wsBP5,weBP5,wsfyBP5)<5),0,Q35*IF(A37="Yes",C37,IF(sFBRCCS=1,_xlfn.XLOOKUP(bpFYCS5,rngFFRfy,_xlfn.XLOOKUP(A35,rngFFRc,rngFFR,"N/A",0),"N/A",0),_xlfn.XLOOKUP(bpFYCS5,rngnFFRfy,_xlfn.XLOOKUP(A35,rngnFFRc,rngnFFR,"N/A",0),"N/A",0)))) -> 0 | T36: =IF(OR(B35="Make a Selection",COUNT(T35,C37,wsBP6,weBP6,wsfyBP6)<5),0,T35*IF(A37="Yes",C37,IF(sFBRCCS=1,_xlfn.XLOOKUP(bpFYCS6,rngFFRfy,_xlfn.XLOOKUP(A35,rngFFRc,rngFFR,"N/A",0),"N/A",0),_xlfn.XLOOKUP(bpFYCS6,rngnFFRfy,_xlfn.XLOOKUP(A35,rngnFFRc,rngnFFR,"N/A",0),"N/A",0)))) -> 0 | W36: =IF(OR(B35="Make a Selection",COUNT(W35,C37,wsBP7,weBP7,wsfyBP7)<5),0,W35*IF(A37="Yes",C37,IF(sFBRCCS=1,_xlfn.XLOOKUP(bpFYCS7,rngFFRfy,_xlfn.XLOOKUP(A35,rngFFRc,rngFFR,"N/A",0),"N/A",0),_xlfn.XLOOKUP(bpFYCS7,rngnFFRfy,_xlfn.XLOOKUP(A35,rngnFFRc,rngnFFR,"N/A",0),"N/A",0)))) -> 0 | Z36: =IF(OR(B35="Make a Selection",COUNT(Z35,C37,wsBP8,weBP8,wsfyBP8)<5),0,Z35*IF(A37="Yes",C37,IF(sFBRCCS=1,_xlfn.XLOOKUP(bpFYCS8,rngFFRfy,_xlfn.XLOOKUP(A35,rngFFRc,rngFFR,"N/A",0),"N/A",0),_xlfn.XLOOKUP(bpFYCS8,rngnFFRfy,_xlfn.XLOOKUP(A35,rngnFFRc,rngnFFR,"N/A",0),"N/A",0)))) -> 0 | AC36: =IF(OR(B35="Make a Selection",COUNT(AC35,C37,wsBP9,weBP9,wsfyBP9)<5),0,AC35*IF(A37="Yes",C37,IF(sFBRCCS=1,_xlfn.XLOOKUP(bpFYCS9,rngFFRfy,_xlfn.XLOOKUP(A35,rngFFRc,rngFFR,"N/A",0),"N/A",0),_xlfn.XLOOKUP(bpFYCS9,rngnFFRfy,_xlfn.XLOOKUP(A35,rngnFFRc,rngnFFR,"N/A",0),"N/A",0)))) -> 0 | AF36: =IF(OR(B35="Make a Selection",COUNT(AF35,C37,wsBP10,weBP10,wsfyBP10)<5),0,AF35*IF(A37="Yes",C37,IF(sFBRCCS=1,_xlfn.XLOOKUP(bpFYCS10,rngFFRfy,_xlfn.XLOOKUP(A35,rngFFRc,rngFFR,"N/A",0),"N/A",0),_xlfn.XLOOKUP(bpFYCS10,rngnFFRfy,_xlfn.XLOOKUP(A35,rngnFFRc,rngnFFR,"N/A",0),"N/A",0)))) -> 0 | AI36: 0
A37: No | B37: Custom Fringe @ | C37: 0 | D37: Subtotal | E37: =IF(ISNUMBER(E35)=FALSE,0,SUM(E35:G36)) -> 0 | H37: =IF(ISNUMBER(H35)=FALSE,0,SUM(H35:J36)) -> 0 | K37: =IF(ISNUMBER(K35)=FALSE,0,SUM(K35:M36)) -> 0 | N37: =IF(ISNUMBER(N35)=FALSE,0,SUM(N35:P36)) -> 0 | Q37: =IF(ISNUMBER(Q35)=FALSE,0,SUM(Q35:S36)) -> 0 | T37: =IF(ISNUMBER(T35)=FALSE,0,SUM(T35:V36)) -> 0 | W37: =IF(ISNUMBER(W35)=FALSE,0,SUM(W35:Y36)) -> 0 | Z37: =IF(ISNUMBER(Z35)=FALSE,0,SUM(Z35:AB36)) -> 0 | AC37: =IF(ISNUMBER(AC35)=FALSE,0,SUM(AC35:AE36)) -> 0 | AF37: =IF(ISNUMBER(AF35)=FALSE,0,SUM(AF35:AH36)) -> 0 | AI37: 0
A39: =_xlfn.XLOOKUP(B39,MTDC[Description],MTDC[VALUE],"N/A",0) -> 50010 | B39: S&W Staff | D39: =IF(AND(B39="Make a Selection",OR(sFABCCS=1,sFABCCS=2,sFABCCS=3)),"",IF(sFABCCS=2,"Included",IF(sFABCCS=3,"Custom F&A Amt",IF(_xlfn.XLOOKUP(B39,MTDC[Description],MTDC[Include in MTDC],"N/A",0)="MTDC","Included","Excluded")))) -> Included | E39: =IF(ISNUMBER(SUMPRODUCT(--ISNUMBER(rngCFCSA2)*(INDEX(budA2CSBP1,0,1))*(INDEX(budA2CSSF,0,1)="Salary")*(rngCFCSA2=A39))),SUMPRODUCT(--ISNUMBER(rngCFCSA2)*(INDEX(budA2CSBP1,0,1))*(INDEX(budA2CSSF,0,1)="Salary")*(rngCFCSA2=A39)),0) -> 0 | H39: =IF(ISNUMBER(SUMPRODUCT(--ISNUMBER(rngCFCSA2)*(INDEX(budA2CSBP2,0,1))*(INDEX(budA2CSSF,0,1)="Salary")*(rngCFCSA2=A39))),SUMPRODUCT(--ISNUMBER(rngCFCSA2)*(INDEX(budA2CSBP2,0,1))*(INDEX(budA2CSSF,0,1)="Salary")*(rngCFCSA2=A39)),0) -> 0 | K39: =IF(ISNUMBER(SUMPRODUCT(--ISNUMBER(rngCFCSA2)*(INDEX(budA2CSBP3,0,1))*(INDEX(budA2CSSF,0,1)="Salary")*(rngCFCSA2=A39))),SUMPRODUCT(--ISNUMBER(rngCFCSA2)*(INDEX(budA2CSBP3,0,1))*(INDEX(budA2CSSF,0,1)="Salary")*(rngCFCSA2=A39)),0) -> 0 | N39: =IF(ISNUMBER(SUMPRODUCT(--ISNUMBER(rngCFCSA2)*(INDEX(budA2CSBP4,0,1))*(INDEX(budA2CSSF,0,1)="Salary")*(rngCFCSA2=A39))),SUMPRODUCT(--ISNUMBER(rngCFCSA2)*(INDEX(budA2CSBP4,0,1))*(INDEX(budA2CSSF,0,1)="Salary")*(rngCFCSA2=A39)),0) -> 0 | Q39: =IF(ISNUMBER(SUMPRODUCT(--ISNUMBER(rngCFCSA2)*(INDEX(budA2CSBP5,0,1))*(INDEX(budA2CSSF,0,1)="Salary")*(rngCFCSA2=A39))),SUMPRODUCT(--ISNUMBER(rngCFCSA2)*(INDEX(budA2CSBP5,0,1))*(INDEX(budA2CSSF,0,1)="Salary")*(rngCFCSA2=A39)),0) -> 0 | T39: =IF(ISNUMBER(SUMPRODUCT(--ISNUMBER(rngCFCSA2)*(INDEX(budA2CSBP6,0,1))*(INDEX(budA2CSSF,0,1)="Salary")*(rngCFCSA2=A39))),SUMPRODUCT(--ISNUMBER(rngCFCSA2)*(INDEX(budA2CSBP6,0,1))*(INDEX(budA2CSSF,0,1)="Salary")*(rngCFCSA2=A39)),0) -> 0 | W39: =IF(ISNUMBER(SUMPRODUCT(--ISNUMBER(rngCFCSA2)*(INDEX(budA2CSBP7,0,1))*(INDEX(budA2CSSF,0,1)="Salary")*(rngCFCSA2=A39))),SUMPRODUCT(--ISNUMBER(rngCFCSA2)*(INDEX(budA2CSBP7,0,1))*(INDEX(budA2CSSF,0,1)="Salary")*(rngCFCSA2=A39)),0) -> 0 | Z39: =IF(ISNUMBER(SUMPRODUCT(--ISNUMBER(rngCFCSA2)*(INDEX(budA2CSBP8,0,1))*(INDEX(budA2CSSF,0,1)="Salary")*(rngCFCSA2=A39))),SUMPRODUCT(--ISNUMBER(rngCFCSA2)*(INDEX(budA2CSBP8,0,1))*(INDEX(budA2CSSF,0,1)="Salary")*(rngCFCSA2=A39)),0) -> 0 | AC39: =IF(ISNUMBER(SUMPRODUCT(--ISNUMBER(rngCFCSA2)*(INDEX(budA2CSBP9,0,1))*(INDEX(budA2CSSF,0,1)="Salary")*(rngCFCSA2=A39))),SUMPRODUCT(--ISNUMBER(rngCFCSA2)*(INDEX(budA2CSBP9,0,1))*(INDEX(budA2CSSF,0,1)="Salary")*(rngCFCSA2=A39)),0) -> 0 | AF39: =IF(ISNUMBER(SUMPRODUCT(--ISNUMBER(rngCFCSA2)*(INDEX(budA2CSBP10,0,1))*(INDEX(budA2CSSF,0,1)="Salary")*(rngCFCSA2=A39))),SUMPRODUCT(--ISNUMBER(rngCFCSA2)*(INDEX(budA2CSBP10,0,1))*(INDEX(budA2CSSF,0,1)="Salary")*(rngCFCSA2=A39)),0) -> 0 | AI39: =SUM(E39:AH39) -> 0
A40: =_xlfn.XLOOKUP(B40,MTDC[Description],MTDC[VALUE],"N/A",0) -> 50020 | B40: S&W Tenured Faculty | D40: =IF(AND(B40="Make a Selection",OR(sFABCCS=1,sFABCCS=2,sFABCCS=3)),"",IF(sFABCCS=2,"Included",IF(sFABCCS=3,"Custom F&A Amt",IF(_xlfn.XLOOKUP(B40,MTDC[Description],MTDC[Include in MTDC],"N/A",0)="MTDC","Included","Excluded")))) -> Included | E40: =IF(ISNUMBER(SUMPRODUCT(--ISNUMBER(rngCFCSA2)*(INDEX(budA2CSBP1,0,1))*(INDEX(budA2CSSF,0,1)="Salary")*(rngCFCSA2=A40))),SUMPRODUCT(--ISNUMBER(rngCFCSA2)*(INDEX(budA2CSBP1,0,1))*(INDEX(budA2CSSF,0,1)="Salary")*(rngCFCSA2=A40)),0) -> 0 | H40: =IF(ISNUMBER(SUMPRODUCT(--ISNUMBER(rngCFCSA2)*(INDEX(budA2CSBP2,0,1))*(INDEX(budA2CSSF,0,1)="Salary")*(rngCFCSA2=A40))),SUMPRODUCT(--ISNUMBER(rngCFCSA2)*(INDEX(budA2CSBP2,0,1))*(INDEX(budA2CSSF,0,1)="Salary")*(rngCFCSA2=A40)),0) -> 0 | K40: =IF(ISNUMBER(SUMPRODUCT(--ISNUMBER(rngCFCSA2)*(INDEX(budA2CSBP3,0,1))*(INDEX(budA2CSSF,0,1)="Salary")*(rngCFCSA2=A40))),SUMPRODUCT(--ISNUMBER(rngCFCSA2)*(INDEX(budA2CSBP3,0,1))*(INDEX(budA2CSSF,0,1)="Salary")*(rngCFCSA2=A40)),0) -> 0 | N40: =IF(ISNUMBER(SUMPRODUCT(--ISNUMBER(rngCFCSA2)*(INDEX(budA2CSBP4,0,1))*(INDEX(budA2CSSF,0,1)="Salary")*(rngCFCSA2=A40))),SUMPRODUCT(--ISNUMBER(rngCFCSA2)*(INDEX(budA2CSBP4,0,1))*(INDEX(budA2CSSF,0,1)="Salary")*(rngCFCSA2=A40)),0) -> 0 | Q40: =IF(ISNUMBER(SUMPRODUCT(--ISNUMBER(rngCFCSA2)*(INDEX(budA2CSBP5,0,1))*(INDEX(budA2CSSF,0,1)="Salary")*(rngCFCSA2=A40))),SUMPRODUCT(--ISNUMBER(rngCFCSA2)*(INDEX(budA2CSBP5,0,1))*(INDEX(budA2CSSF,0,1)="Salary")*(rngCFCSA2=A40)),0) -> 0 | T40: =IF(ISNUMBER(SUMPRODUCT(--ISNUMBER(rngCFCSA2)*(INDEX(budA2CSBP6,0,1))*(INDEX(budA2CSSF,0,1)="Salary")*(rngCFCSA2=A40))),SUMPRODUCT(--ISNUMBER(rngCFCSA2)*(INDEX(budA2CSBP6,0,1))*(INDEX(budA2CSSF,0,1)="Salary")*(rngCFCSA2=A40)),0) -> 0 | W40: =IF(ISNUMBER(SUMPRODUCT(--ISNUMBER(rngCFCSA2)*(INDEX(budA2CSBP7,0,1))*(INDEX(budA2CSSF,0,1)="Salary")*(rngCFCSA2=A40))),SUMPRODUCT(--ISNUMBER(rngCFCSA2)*(INDEX(budA2CSBP7,0,1))*(INDEX(budA2CSSF,0,1)="Salary")*(rngCFCSA2=A40)),0) -> 0 | Z40: =IF(ISNUMBER(SUMPRODUCT(--ISNUMBER(rngCFCSA2)*(INDEX(budA2CSBP8,0,1))*(INDEX(budA2CSSF,0,1)="Salary")*(rngCFCSA2=A40))),SUMPRODUCT(--ISNUMBER(rngCFCSA2)*(INDEX(budA2CSBP8,0,1))*(INDEX(budA2CSSF,0,1)="Salary")*(rngCFCSA2=A40)),0) -> 0 | AC40: =IF(ISNUMBER(SUMPRODUCT(--ISNUMBER(rngCFCSA2)*(INDEX(budA2CSBP9,0,1))*(INDEX(budA2CSSF,0,1)="Salary")*(rngCFCSA2=A40))),SUMPRODUCT(--ISNUMBER(rngCFCSA2)*(INDEX(budA2CSBP9,0,1))*(INDEX(budA2CSSF,0,1)="Salary")*(rngCFCSA2=A40)),0) -> 0 | AF40: =IF(ISNUMBER(SUMPRODUCT(--ISNUMBER(rngCFCSA2)*(INDEX(budA2CSBP10,0,1))*(INDEX(budA2CSSF,0,1)="Salary")*(rngCFCSA2=A40))),SUMPRODUCT(--ISNUMBER(rngCFCSA2)*(INDEX(budA2CSBP10,0,1))*(INDEX(budA2CSSF,0,1)="Salary")*(rngCFCSA2=A40)),0) -> 0 | AI40: 0
A41: =_xlfn.XLOOKUP(B41,MTDC[Description],MTDC[VALUE],"N/A",0) -> 50030 | B41: S&W Tenure Track Faculty | D41: =IF(AND(B41="Make a Selection",OR(sFABCCS=1,sFABCCS=2,sFABCCS=3)),"",IF(sFABCCS=2,"Included",IF(sFABCCS=3,"Custom F&A Amt",IF(_xlfn.XLOOKUP(B41,MTDC[Description],MTDC[Include in MTDC],"N/A",0)="MTDC","Included","Excluded")))) -> Included | E41: =IF(ISNUMBER(SUMPRODUCT(--ISNUMBER(rngCFCSA2)*(INDEX(budA2CSBP1,0,1))*(INDEX(budA2CSSF,0,1)="Salary")*(rngCFCSA2=A41))),SUMPRODUCT(--ISNUMBER(rngCFCSA2)*(INDEX(budA2CSBP1,0,1))*(INDEX(budA2CSSF,0,1)="Salary")*(rngCFCSA2=A41)),0) -> 0 | H41: =IF(ISNUMBER(SUMPRODUCT(--ISNUMBER(rngCFCSA2)*(INDEX(budA2CSBP2,0,1))*(INDEX(budA2CSSF,0,1)="Salary")*(rngCFCSA2=A41))),SUMPRODUCT(--ISNUMBER(rngCFCSA2)*(INDEX(budA2CSBP2,0,1))*(INDEX(budA2CSSF,0,1)="Salary")*(rngCFCSA2=A41)),0) -> 0 | K41: =IF(ISNUMBER(SUMPRODUCT(--ISNUMBER(rngCFCSA2)*(INDEX(budA2CSBP3,0,1))*(INDEX(budA2CSSF,0,1)="Salary")*(rngCFCSA2=A41))),SUMPRODUCT(--ISNUMBER(rngCFCSA2)*(INDEX(budA2CSBP3,0,1))*(INDEX(budA2CSSF,0,1)="Salary")*(rngCFCSA2=A41)),0) -> 0 | N41: =IF(ISNUMBER(SUMPRODUCT(--ISNUMBER(rngCFCSA2)*(INDEX(budA2CSBP4,0,1))*(INDEX(budA2CSSF,0,1)="Salary")*(rngCFCSA2=A41))),SUMPRODUCT(--ISNUMBER(rngCFCSA2)*(INDEX(budA2CSBP4,0,1))*(INDEX(budA2CSSF,0,1)="Salary")*(rngCFCSA2=A41)),0) -> 0 | Q41: =IF(ISNUMBER(SUMPRODUCT(--ISNUMBER(rngCFCSA2)*(INDEX(budA2CSBP5,0,1))*(INDEX(budA2CSSF,0,1)="Salary")*(rngCFCSA2=A41))),SUMPRODUCT(--ISNUMBER(rngCFCSA2)*(INDEX(budA2CSBP5,0,1))*(INDEX(budA2CSSF,0,1)="Salary")*(rngCFCSA2=A41)),0) -> 0 | T41: =IF(ISNUMBER(SUMPRODUCT(--ISNUMBER(rngCFCSA2)*(INDEX(budA2CSBP6,0,1))*(INDEX(budA2CSSF,0,1)="Salary")*(rngCFCSA2=A41))),SUMPRODUCT(--ISNUMBER(rngCFCSA2)*(INDEX(budA2CSBP6,0,1))*(INDEX(budA2CSSF,0,1)="Salary")*(rngCFCSA2=A41)),0) -> 0 | W41: =IF(ISNUMBER(SUMPRODUCT(--ISNUMBER(rngCFCSA2)*(INDEX(budA2CSBP7,0,1))*(INDEX(budA2CSSF,0,1)="Salary")*(rngCFCSA2=A41))),SUMPRODUCT(--ISNUMBER(rngCFCSA2)*(INDEX(budA2CSBP7,0,1))*(INDEX(budA2CSSF,0,1)="Salary")*(rngCFCSA2=A41)),0) -> 0 | Z41: =IF(ISNUMBER(SUMPRODUCT(--ISNUMBER(rngCFCSA2)*(INDEX(budA2CSBP8,0,1))*(INDEX(budA2CSSF,0,1)="Salary")*(rngCFCSA2=A41))),SUMPRODUCT(--ISNUMBER(rngCFCSA2)*(INDEX(budA2CSBP8,0,1))*(INDEX(budA2CSSF,0,1)="Salary")*(rngCFCSA2=A41)),0) -> 0 | AC41: =IF(ISNUMBER(SUMPRODUCT(--ISNUMBER(rngCFCSA2)*(INDEX(budA2CSBP9,0,1))*(INDEX(budA2CSSF,0,1)="Salary")*(rngCFCSA2=A41))),SUMPRODUCT(--ISNUMBER(rngCFCSA2)*(INDEX(budA2CSBP9,0,1))*(INDEX(budA2CSSF,0,1)="Salary")*(rngCFCSA2=A41)),0) -> 0 | AF41: =IF(ISNUMBER(SUMPRODUCT(--ISNUMBER(rngCFCSA2)*(INDEX(budA2CSBP10,0,1))*(INDEX(budA2CSSF,0,1)="Salary")*(rngCFCSA2=A41))),SUMPRODUCT(--ISNUMBER(rngCFCSA2)*(INDEX(budA2CSBP10,0,1))*(INDEX(budA2CSSF,0,1)="Salary")*(rngCFCSA2=A41)),0) -> 0 | AI41: 0
A42: =_xlfn.XLOOKUP(B42,MTDC[Description],MTDC[VALUE],"N/A",0) -> 50040 | B42: S&W NonTenured Faculty | D42: =IF(AND(B42="Make a Selection",OR(sFABCCS=1,sFABCCS=2,sFABCCS=3)),"",IF(sFABCCS=2,"Included",IF(sFABCCS=3,"Custom F&A Amt",IF(_xlfn.XLOOKUP(B42,MTDC[Description],MTDC[Include in MTDC],"N/A",0)="MTDC","Included","Excluded")))) -> Included | E42: =IF(ISNUMBER(SUMPRODUCT(--ISNUMBER(rngCFCSA2)*(INDEX(budA2CSBP1,0,1))*(INDEX(budA2CSSF,0,1)="Salary")*(rngCFCSA2=A42))),SUMPRODUCT(--ISNUMBER(rngCFCSA2)*(INDEX(budA2CSBP1,0,1))*(INDEX(budA2CSSF,0,1)="Salary")*(rngCFCSA2=A42)),0) -> 0 | H42: =IF(ISNUMBER(SUMPRODUCT(--ISNUMBER(rngCFCSA2)*(INDEX(budA2CSBP2,0,1))*(INDEX(budA2CSSF,0,1)="Salary")*(rngCFCSA2=A42))),SUMPRODUCT(--ISNUMBER(rngCFCSA2)*(INDEX(budA2CSBP2,0,1))*(INDEX(budA2CSSF,0,1)="Salary")*(rngCFCSA2=A42)),0) -> 0 | K42: =IF(ISNUMBER(SUMPRODUCT(--ISNUMBER(rngCFCSA2)*(INDEX(budA2CSBP3,0,1))*(INDEX(budA2CSSF,0,1)="Salary")*(rngCFCSA2=A42))),SUMPRODUCT(--ISNUMBER(rngCFCSA2)*(INDEX(budA2CSBP3,0,1))*(INDEX(budA2CSSF,0,1)="Salary")*(rngCFCSA2=A42)),0) -> 0 | N42: =IF(ISNUMBER(SUMPRODUCT(--ISNUMBER(rngCFCSA2)*(INDEX(budA2CSBP4,0,1))*(INDEX(budA2CSSF,0,1)="Salary")*(rngCFCSA2=A42))),SUMPRODUCT(--ISNUMBER(rngCFCSA2)*(INDEX(budA2CSBP4,0,1))*(INDEX(budA2CSSF,0,1)="Salary")*(rngCFCSA2=A42)),0) -> 0 | Q42: =IF(ISNUMBER(SUMPRODUCT(--ISNUMBER(rngCFCSA2)*(INDEX(budA2CSBP5,0,1))*(INDEX(budA2CSSF,0,1)="Salary")*(rngCFCSA2=A42))),SUMPRODUCT(--ISNUMBER(rngCFCSA2)*(INDEX(budA2CSBP5,0,1))*(INDEX(budA2CSSF,0,1)="Salary")*(rngCFCSA2=A42)),0) -> 0 | T42: =IF(ISNUMBER(SUMPRODUCT(--ISNUMBER(rngCFCSA2)*(INDEX(budA2CSBP6,0,1))*(INDEX(budA2CSSF,0,1)="Salary")*(rngCFCSA2=A42))),SUMPRODUCT(--ISNUMBER(rngCFCSA2)*(INDEX(budA2CSBP6,0,1))*(INDEX(budA2CSSF,0,1)="Salary")*(rngCFCSA2=A42)),0) -> 0 | W42: =IF(ISNUMBER(SUMPRODUCT(--ISNUMBER(rngCFCSA2)*(INDEX(budA2CSBP7,0,1))*(INDEX(budA2CSSF,0,1)="Salary")*(rngCFCSA2=A42))),SUMPRODUCT(--ISNUMBER(rngCFCSA2)*(INDEX(budA2CSBP7,0,1))*(INDEX(budA2CSSF,0,1)="Salary")*(rngCFCSA2=A42)),0) -> 0 | Z42: =IF(ISNUMBER(SUMPRODUCT(--ISNUMBER(rngCFCSA2)*(INDEX(budA2CSBP8,0,1))*(INDEX(budA2CSSF,0,1)="Salary")*(rngCFCSA2=A42))),SUMPRODUCT(--ISNUMBER(rngCFCSA2)*(INDEX(budA2CSBP8,0,1))*(INDEX(budA2CSSF,0,1)="Salary")*(rngCFCSA2=A42)),0) -> 0 | AC42: =IF(ISNUMBER(SUMPRODUCT(--ISNUMBER(rngCFCSA2)*(INDEX(budA2CSBP9,0,1))*(INDEX(budA2CSSF,0,1)="Salary")*(rngCFCSA2=A42))),SUMPRODUCT(--ISNUMBER(rngCFCSA2)*(INDEX(budA2CSBP9,0,1))*(INDEX(budA2CSSF,0,1)="Salary")*(rngCFCSA2=A42)),0) -> 0 | AF42: =IF(ISNUMBER(SUMPRODUCT(--ISNUMBER(rngCFCSA2)*(INDEX(budA2CSBP10,0,1))*(INDEX(budA2CSSF,0,1)="Salary")*(rngCFCSA2=A42))),SUMPRODUCT(--ISNUMBER(rngCFCSA2)*(INDEX(budA2CSBP10,0,1))*(INDEX(budA2CSSF,0,1)="Salary")*(rngCFCSA2=A42)),0) -> 0 | AI42: 0
A43: =_xlfn.XLOOKUP(B43,MTDC[Description],MTDC[VALUE],"N/A",0) -> 50050 | B43: S&W TA & GA | D43: =IF(AND(B43="Make a Selection",OR(sFABCCS=1,sFABCCS=2,sFABCCS=3)),"",IF(sFABCCS=2,"Included",IF(sFABCCS=3,"Custom F&A Amt",IF(_xlfn.XLOOKUP(B43,MTDC[Description],MTDC[Include in MTDC],"N/A",0)="MTDC","Included","Excluded")))) -> Included | E43: =IF(ISNUMBER(SUMPRODUCT(--ISNUMBER(rngCFCSA2)*(INDEX(budA2CSBP1,0,1))*(INDEX(budA2CSSF,0,1)="Salary")*(rngCFCSA2=A43))),SUMPRODUCT(--ISNUMBER(rngCFCSA2)*(INDEX(budA2CSBP1,0,1))*(INDEX(budA2CSSF,0,1)="Salary")*(rngCFCSA2=A43)),0) -> 0 | H43: =IF(ISNUMBER(SUMPRODUCT(--ISNUMBER(rngCFCSA2)*(INDEX(budA2CSBP2,0,1))*(INDEX(budA2CSSF,0,1)="Salary")*(rngCFCSA2=A43))),SUMPRODUCT(--ISNUMBER(rngCFCSA2)*(INDEX(budA2CSBP2,0,1))*(INDEX(budA2CSSF,0,1)="Salary")*(rngCFCSA2=A43)),0) -> 0 | K43: =IF(ISNUMBER(SUMPRODUCT(--ISNUMBER(rngCFCSA2)*(INDEX(budA2CSBP3,0,1))*(INDEX(budA2CSSF,0,1)="Salary")*(rngCFCSA2=A43))),SUMPRODUCT(--ISNUMBER(rngCFCSA2)*(INDEX(budA2CSBP3,0,1))*(INDEX(budA2CSSF,0,1)="Salary")*(rngCFCSA2=A43)),0) -> 0 | N43: =IF(ISNUMBER(SUMPRODUCT(--ISNUMBER(rngCFCSA2)*(INDEX(budA2CSBP4,0,1))*(INDEX(budA2CSSF,0,1)="Salary")*(rngCFCSA2=A43))),SUMPRODUCT(--ISNUMBER(rngCFCSA2)*(INDEX(budA2CSBP4,0,1))*(INDEX(budA2CSSF,0,1)="Salary")*(rngCFCSA2=A43)),0) -> 0 | Q43: =IF(ISNUMBER(SUMPRODUCT(--ISNUMBER(rngCFCSA2)*(INDEX(budA2CSBP5,0,1))*(INDEX(budA2CSSF,0,1)="Salary")*(rngCFCSA2=A43))),SUMPRODUCT(--ISNUMBER(rngCFCSA2)*(INDEX(budA2CSBP5,0,1))*(INDEX(budA2CSSF,0,1)="Salary")*(rngCFCSA2=A43)),0) -> 0 | T43: =IF(ISNUMBER(SUMPRODUCT(--ISNUMBER(rngCFCSA2)*(INDEX(budA2CSBP6,0,1))*(INDEX(budA2CSSF,0,1)="Salary")*(rngCFCSA2=A43))),SUMPRODUCT(--ISNUMBER(rngCFCSA2)*(INDEX(budA2CSBP6,0,1))*(INDEX(budA2CSSF,0,1)="Salary")*(rngCFCSA2=A43)),0) -> 0 | W43: =IF(ISNUMBER(SUMPRODUCT(--ISNUMBER(rngCFCSA2)*(INDEX(budA2CSBP7,0,1))*(INDEX(budA2CSSF,0,1)="Salary")*(rngCFCSA2=A43))),SUMPRODUCT(--ISNUMBER(rngCFCSA2)*(INDEX(budA2CSBP7,0,1))*(INDEX(budA2CSSF,0,1)="Salary")*(rngCFCSA2=A43)),0) -> 0 | Z43: =IF(ISNUMBER(SUMPRODUCT(--ISNUMBER(rngCFCSA2)*(INDEX(budA2CSBP8,0,1))*(INDEX(budA2CSSF,0,1)="Salary")*(rngCFCSA2=A43))),SUMPRODUCT(--ISNUMBER(rngCFCSA2)*(INDEX(budA2CSBP8,0,1))*(INDEX(budA2CSSF,0,1)="Salary")*(rngCFCSA2=A43)),0) -> 0 | AC43: =IF(ISNUMBER(SUMPRODUCT(--ISNUMBER(rngCFCSA2)*(INDEX(budA2CSBP9,0,1))*(INDEX(budA2CSSF,0,1)="Salary")*(rngCFCSA2=A43))),SUMPRODUCT(--ISNUMBER(rngCFCSA2)*(INDEX(budA2CSBP9,0,1))*(INDEX(budA2CSSF,0,1)="Salary")*(rngCFCSA2=A43)),0) -> 0 | AF43: =IF(ISNUMBER(SUMPRODUCT(--ISNUMBER(rngCFCSA2)*(INDEX(budA2CSBP10,0,1))*(INDEX(budA2CSSF,0,1)="Salary")*(rngCFCSA2=A43))),SUMPRODUCT(--ISNUMBER(rngCFCSA2)*(INDEX(budA2CSBP10,0,1))*(INDEX(budA2CSSF,0,1)="Salary")*(rngCFCSA2=A43)),0) -> 0 | AI43: 0
A44: =_xlfn.XLOOKUP(B44,MTDC[Description],MTDC[VALUE],"N/A",0) -> 50060 | B44: S&W Post Doctorate & Associates | D44: =IF(AND(B44="Make a Selection",OR(sFABCCS=1,sFABCCS=2,sFABCCS=3)),"",IF(sFABCCS=2,"Included",IF(sFABCCS=3,"Custom F&A Amt",IF(_xlfn.XLOOKUP(B44,MTDC[Description],MTDC[Include in MTDC],"N/A",0)="MTDC","Included","Excluded")))) -> Included | E44: =IF(ISNUMBER(SUMPRODUCT(--ISNUMBER(rngCFCSA2)*(INDEX(budA2CSBP1,0,1))*(INDEX(budA2CSSF,0,1)="Salary")*(rngCFCSA2=A44))),SUMPRODUCT(--ISNUMBER(rngCFCSA2)*(INDEX(budA2CSBP1,0,1))*(INDEX(budA2CSSF,0,1)="Salary")*(rngCFCSA2=A44)),0) -> 0 | H44: =IF(ISNUMBER(SUMPRODUCT(--ISNUMBER(rngCFCSA2)*(INDEX(budA2CSBP2,0,1))*(INDEX(budA2CSSF,0,1)="Salary")*(rngCFCSA2=A44))),SUMPRODUCT(--ISNUMBER(rngCFCSA2)*(INDEX(budA2CSBP2,0,1))*(INDEX(budA2CSSF,0,1)="Salary")*(rngCFCSA2=A44)),0) -> 0 | K44: =IF(ISNUMBER(SUMPRODUCT(--ISNUMBER(rngCFCSA2)*(INDEX(budA2CSBP3,0,1))*(INDEX(budA2CSSF,0,1)="Salary")*(rngCFCSA2=A44))),SUMPRODUCT(--ISNUMBER(rngCFCSA2)*(INDEX(budA2CSBP3,0,1))*(INDEX(budA2CSSF,0,1)="Salary")*(rngCFCSA2=A44)),0) -> 0 | N44: =IF(ISNUMBER(SUMPRODUCT(--ISNUMBER(rngCFCSA2)*(INDEX(budA2CSBP4,0,1))*(INDEX(budA2CSSF,0,1)="Salary")*(rngCFCSA2=A44))),SUMPRODUCT(--ISNUMBER(rngCFCSA2)*(INDEX(budA2CSBP4,0,1))*(INDEX(budA2CSSF,0,1)="Salary")*(rngCFCSA2=A44)),0) -> 0 | Q44: =IF(ISNUMBER(SUMPRODUCT(--ISNUMBER(rngCFCSA2)*(INDEX(budA2CSBP5,0,1))*(INDEX(budA2CSSF,0,1)="Salary")*(rngCFCSA2=A44))),SUMPRODUCT(--ISNUMBER(rngCFCSA2)*(INDEX(budA2CSBP5,0,1))*(INDEX(budA2CSSF,0,1)="Salary")*(rngCFCSA2=A44)),0) -> 0 | T44: =IF(ISNUMBER(SUMPRODUCT(--ISNUMBER(rngCFCSA2)*(INDEX(budA2CSBP6,0,1))*(INDEX(budA2CSSF,0,1)="Salary")*(rngCFCSA2=A44))),SUMPRODUCT(--ISNUMBER(rngCFCSA2)*(INDEX(budA2CSBP6,0,1))*(INDEX(budA2CSSF,0,1)="Salary")*(rngCFCSA2=A44)),0) -> 0 | W44: =IF(ISNUMBER(SUMPRODUCT(--ISNUMBER(rngCFCSA2)*(INDEX(budA2CSBP7,0,1))*(INDEX(budA2CSSF,0,1)="Salary")*(rngCFCSA2=A44))),SUMPRODUCT(--ISNUMBER(rngCFCSA2)*(INDEX(budA2CSBP7,0,1))*(INDEX(budA2CSSF,0,1)="Salary")*(rngCFCSA2=A44)),0) -> 0 | Z44: =IF(ISNUMBER(SUMPRODUCT(--ISNUMBER(rngCFCSA2)*(INDEX(budA2CSBP8,0,1))*(INDEX(budA2CSSF,0,1)="Salary")*(rngCFCSA2=A44))),SUMPRODUCT(--ISNUMBER(rngCFCSA2)*(INDEX(budA2CSBP8,0,1))*(INDEX(budA2CSSF,0,1)="Salary")*(rngCFCSA2=A44)),0) -> 0 | AC44: =IF(ISNUMBER(SUMPRODUCT(--ISNUMBER(rngCFCSA2)*(INDEX(budA2CSBP9,0,1))*(INDEX(budA2CSSF,0,1)="Salary")*(rngCFCSA2=A44))),SUMPRODUCT(--ISNUMBER(rngCFCSA2)*(INDEX(budA2CSBP9,0,1))*(INDEX(budA2CSSF,0,1)="Salary")*(rngCFCSA2=A44)),0) -> 0 | AF44: =IF(ISNUMBER(SUMPRODUCT(--ISNUMBER(rngCFCSA2)*(INDEX(budA2CSBP10,0,1))*(INDEX(budA2CSSF,0,1)="Salary")*(rngCFCSA2=A44))),SUMPRODUCT(--ISNUMBER(rngCFCSA2)*(INDEX(budA2CSBP10,0,1))*(INDEX(budA2CSSF,0,1)="Salary")*(rngCFCSA2=A44)),0) -> 0 | AI44: 0
A45: =_xlfn.XLOOKUP(B45,MTDC[Description],MTDC[VALUE],"N/A",0) -> 50070 | B45: S&W Housestaff | D45: =IF(AND(B45="Make a Selection",OR(sFABCCS=1,sFABCCS=2,sFABCCS=3)),"",IF(sFABCCS=2,"Included",IF(sFABCCS=3,"Custom F&A Amt",IF(_xlfn.XLOOKUP(B45,MTDC[Description],MTDC[Include in MTDC],"N/A",0)="MTDC","Included","Excluded")))) -> Included | E45: =IF(ISNUMBER(SUMPRODUCT(--ISNUMBER(rngCFCSA2)*(INDEX(budA2CSBP1,0,1))*(INDEX(budA2CSSF,0,1)="Salary")*(rngCFCSA2=A45))),SUMPRODUCT(--ISNUMBER(rngCFCSA2)*(INDEX(budA2CSBP1,0,1))*(INDEX(budA2CSSF,0,1)="Salary")*(rngCFCSA2=A45)),0) -> 0 | H45: =IF(ISNUMBER(SUMPRODUCT(--ISNUMBER(rngCFCSA2)*(INDEX(budA2CSBP2,0,1))*(INDEX(budA2CSSF,0,1)="Salary")*(rngCFCSA2=A45))),SUMPRODUCT(--ISNUMBER(rngCFCSA2)*(INDEX(budA2CSBP2,0,1))*(INDEX(budA2CSSF,0,1)="Salary")*(rngCFCSA2=A45)),0) -> 0 | K45: =IF(ISNUMBER(SUMPRODUCT(--ISNUMBER(rngCFCSA2)*(INDEX(budA2CSBP3,0,1))*(INDEX(budA2CSSF,0,1)="Salary")*(rngCFCSA2=A45))),SUMPRODUCT(--ISNUMBER(rngCFCSA2)*(INDEX(budA2CSBP3,0,1))*(INDEX(budA2CSSF,0,1)="Salary")*(rngCFCSA2=A45)),0) -> 0 | N45: =IF(ISNUMBER(SUMPRODUCT(--ISNUMBER(rngCFCSA2)*(INDEX(budA2CSBP4,0,1))*(INDEX(budA2CSSF,0,1)="Salary")*(rngCFCSA2=A45))),SUMPRODUCT(--ISNUMBER(rngCFCSA2)*(INDEX(budA2CSBP4,0,1))*(INDEX(budA2CSSF,0,1)="Salary")*(rngCFCSA2=A45)),0) -> 0 | Q45: =IF(ISNUMBER(SUMPRODUCT(--ISNUMBER(rngCFCSA2)*(INDEX(budA2CSBP5,0,1))*(INDEX(budA2CSSF,0,1)="Salary")*(rngCFCSA2=A45))),SUMPRODUCT(--ISNUMBER(rngCFCSA2)*(INDEX(budA2CSBP5,0,1))*(INDEX(budA2CSSF,0,1)="Salary")*(rngCFCSA2=A45)),0) -> 0 | T45: =IF(ISNUMBER(SUMPRODUCT(--ISNUMBER(rngCFCSA2)*(INDEX(budA2CSBP6,0,1))*(INDEX(budA2CSSF,0,1)="Salary")*(rngCFCSA2=A45))),SUMPRODUCT(--ISNUMBER(rngCFCSA2)*(INDEX(budA2CSBP6,0,1))*(INDEX(budA2CSSF,0,1)="Salary")*(rngCFCSA2=A45)),0) -> 0 | W45: =IF(ISNUMBER(SUMPRODUCT(--ISNUMBER(rngCFCSA2)*(INDEX(budA2CSBP7,0,1))*(INDEX(budA2CSSF,0,1)="Salary")*(rngCFCSA2=A45))),SUMPRODUCT(--ISNUMBER(rngCFCSA2)*(INDEX(budA2CSBP7,0,1))*(INDEX(budA2CSSF,0,1)="Salary")*(rngCFCSA2=A45)),0) -> 0 | Z45: =IF(ISNUMBER(SUMPRODUCT(--ISNUMBER(rngCFCSA2)*(INDEX(budA2CSBP8,0,1))*(INDEX(budA2CSSF,0,1)="Salary")*(rngCFCSA2=A45))),SUMPRODUCT(--ISNUMBER(rngCFCSA2)*(INDEX(budA2CSBP8,0,1))*(INDEX(budA2CSSF,0,1)="Salary")*(rngCFCSA2=A45)),0) -> 0 | AC45: =IF(ISNUMBER(SUMPRODUCT(--ISNUMBER(rngCFCSA2)*(INDEX(budA2CSBP9,0,1))*(INDEX(budA2CSSF,0,1)="Salary")*(rngCFCSA2=A45))),SUMPRODUCT(--ISNUMBER(rngCFCSA2)*(INDEX(budA2CSBP9,0,1))*(INDEX(budA2CSSF,0,1)="Salary")*(rngCFCSA2=A45)),0) -> 0 | AF45: =IF(ISNUMBER(SUMPRODUCT(--ISNUMBER(rngCFCSA2)*(INDEX(budA2CSBP10,0,1))*(INDEX(budA2CSSF,0,1)="Salary")*(rngCFCSA2=A45))),SUMPRODUCT(--ISNUMBER(rngCFCSA2)*(INDEX(budA2CSBP10,0,1))*(INDEX(budA2CSSF,0,1)="Salary")*(rngCFCSA2=A45)),0) -> 0 | AI45: 0
A46: =_xlfn.XLOOKUP(B46,MTDC[Description],MTDC[VALUE],"N/A",0) -> 50080 | B46: S&W Coadjutant NonInstructional (Summer Salary) | D46: =IF(AND(B46="Make a Selection",OR(sFABCCS=1,sFABCCS=2,sFABCCS=3)),"",IF(sFABCCS=2,"Included",IF(sFABCCS=3,"Custom F&A Amt",IF(_xlfn.XLOOKUP(B46,MTDC[Description],MTDC[Include in MTDC],"N/A",0)="MTDC","Included","Excluded")))) -> Included | E46: =IF(ISNUMBER(SUMPRODUCT(--ISNUMBER(rngCFCSA2)*(INDEX(budA2CSBP1,0,1))*(INDEX(budA2CSSF,0,1)="Salary")*(rngCFCSA2=A46))),SUMPRODUCT(--ISNUMBER(rngCFCSA2)*(INDEX(budA2CSBP1,0,1))*(INDEX(budA2CSSF,0,1)="Salary")*(rngCFCSA2=A46)),0) -> 0 | H46: =IF(ISNUMBER(SUMPRODUCT(--ISNUMBER(rngCFCSA2)*(INDEX(budA2CSBP2,0,1))*(INDEX(budA2CSSF,0,1)="Salary")*(rngCFCSA2=A46))),SUMPRODUCT(--ISNUMBER(rngCFCSA2)*(INDEX(budA2CSBP2,0,1))*(INDEX(budA2CSSF,0,1)="Salary")*(rngCFCSA2=A46)),0) -> 0 | K46: =IF(ISNUMBER(SUMPRODUCT(--ISNUMBER(rngCFCSA2)*(INDEX(budA2CSBP3,0,1))*(INDEX(budA2CSSF,0,1)="Salary")*(rngCFCSA2=A46))),SUMPRODUCT(--ISNUMBER(rngCFCSA2)*(INDEX(budA2CSBP3,0,1))*(INDEX(budA2CSSF,0,1)="Salary")*(rngCFCSA2=A46)),0) -> 0 | N46: =IF(ISNUMBER(SUMPRODUCT(--ISNUMBER(rngCFCSA2)*(INDEX(budA2CSBP4,0,1))*(INDEX(budA2CSSF,0,1)="Salary")*(rngCFCSA2=A46))),SUMPRODUCT(--ISNUMBER(rngCFCSA2)*(INDEX(budA2CSBP4,0,1))*(INDEX(budA2CSSF,0,1)="Salary")*(rngCFCSA2=A46)),0) -> 0 | Q46: =IF(ISNUMBER(SUMPRODUCT(--ISNUMBER(rngCFCSA2)*(INDEX(budA2CSBP5,0,1))*(INDEX(budA2CSSF,0,1)="Salary")*(rngCFCSA2=A46))),SUMPRODUCT(--ISNUMBER(rngCFCSA2)*(INDEX(budA2CSBP5,0,1))*(INDEX(budA2CSSF,0,1)="Salary")*(rngCFCSA2=A46)),0) -> 0 | T46: =IF(ISNUMBER(SUMPRODUCT(--ISNUMBER(rngCFCSA2)*(INDEX(budA2CSBP6,0,1))*(INDEX(budA2CSSF,0,1)="Salary")*(rngCFCSA2=A46))),SUMPRODUCT(--ISNUMBER(rngCFCSA2)*(INDEX(budA2CSBP6,0,1))*(INDEX(budA2CSSF,0,1)="Salary")*(rngCFCSA2=A46)),0) -> 0 | W46: =IF(ISNUMBER(SUMPRODUCT(--ISNUMBER(rngCFCSA2)*(INDEX(budA2CSBP7,0,1))*(INDEX(budA2CSSF,0,1)="Salary")*(rngCFCSA2=A46))),SUMPRODUCT(--ISNUMBER(rngCFCSA2)*(INDEX(budA2CSBP7,0,1))*(INDEX(budA2CSSF,0,1)="Salary")*(rngCFCSA2=A46)),0) -> 0 | Z46: =IF(ISNUMBER(SUMPRODUCT(--ISNUMBER(rngCFCSA2)*(INDEX(budA2CSBP8,0,1))*(INDEX(budA2CSSF,0,1)="Salary")*(rngCFCSA2=A46))),SUMPRODUCT(--ISNUMBER(rngCFCSA2)*(INDEX(budA2CSBP8,0,1))*(INDEX(budA2CSSF,0,1)="Salary")*(rngCFCSA2=A46)),0) -> 0 | AC46: =IF(ISNUMBER(SUMPRODUCT(--ISNUMBER(rngCFCSA2)*(INDEX(budA2CSBP9,0,1))*(INDEX(budA2CSSF,0,1)="Salary")*(rngCFCSA2=A46))),SUMPRODUCT(--ISNUMBER(rngCFCSA2)*(INDEX(budA2CSBP9,0,1))*(INDEX(budA2CSSF,0,1)="Salary")*(rngCFCSA2=A46)),0) -> 0 | AF46: =IF(ISNUMBER(SUMPRODUCT(--ISNUMBER(rngCFCSA2)*(INDEX(budA2CSBP10,0,1))*(INDEX(budA2CSSF,0,1)="Salary")*(rngCFCSA2=A46))),SUMPRODUCT(--ISNUMBER(rngCFCSA2)*(INDEX(budA2CSBP10,0,1))*(INDEX(budA2CSSF,0,1)="Salary")*(rngCFCSA2=A46)),0) -> 0 | AI46: 0
A47: =_xlfn.XLOOKUP(B47,MTDC[Description],MTDC[VALUE],"N/A",0) -> 50081 | B47: S&W Coadjutant PTL Instructional | D47: =IF(AND(B47="Make a Selection",OR(sFABCCS=1,sFABCCS=2,sFABCCS=3)),"",IF(sFABCCS=2,"Included",IF(sFABCCS=3,"Custom F&A Amt",IF(_xlfn.XLOOKUP(B47,MTDC[Description],MTDC[Include in MTDC],"N/A",0)="MTDC","Included","Excluded")))) -> Included | E47: =IF(ISNUMBER(SUMPRODUCT(--ISNUMBER(rngCFCSA2)*(INDEX(budA2CSBP1,0,1))*(INDEX(budA2CSSF,0,1)="Salary")*(rngCFCSA2=A47))),SUMPRODUCT(--ISNUMBER(rngCFCSA2)*(INDEX(budA2CSBP1,0,1))*(INDEX(budA2CSSF,0,1)="Salary")*(rngCFCSA2=A47)),0) -> 0 | H47: =IF(ISNUMBER(SUMPRODUCT(--ISNUMBER(rngCFCSA2)*(INDEX(budA2CSBP2,0,1))*(INDEX(budA2CSSF,0,1)="Salary")*(rngCFCSA2=A47))),SUMPRODUCT(--ISNUMBER(rngCFCSA2)*(INDEX(budA2CSBP2,0,1))*(INDEX(budA2CSSF,0,1)="Salary")*(rngCFCSA2=A47)),0) -> 0 | K47: =IF(ISNUMBER(SUMPRODUCT(--ISNUMBER(rngCFCSA2)*(INDEX(budA2CSBP3,0,1))*(INDEX(budA2CSSF,0,1)="Salary")*(rngCFCSA2=A47))),SUMPRODUCT(--ISNUMBER(rngCFCSA2)*(INDEX(budA2CSBP3,0,1))*(INDEX(budA2CSSF,0,1)="Salary")*(rngCFCSA2=A47)),0) -> 0 | N47: =IF(ISNUMBER(SUMPRODUCT(--ISNUMBER(rngCFCSA2)*(INDEX(budA2CSBP4,0,1))*(INDEX(budA2CSSF,0,1)="Salary")*(rngCFCSA2=A47))),SUMPRODUCT(--ISNUMBER(rngCFCSA2)*(INDEX(budA2CSBP4,0,1))*(INDEX(budA2CSSF,0,1)="Salary")*(rngCFCSA2=A47)),0) -> 0 | Q47: =IF(ISNUMBER(SUMPRODUCT(--ISNUMBER(rngCFCSA2)*(INDEX(budA2CSBP5,0,1))*(INDEX(budA2CSSF,0,1)="Salary")*(rngCFCSA2=A47))),SUMPRODUCT(--ISNUMBER(rngCFCSA2)*(INDEX(budA2CSBP5,0,1))*(INDEX(budA2CSSF,0,1)="Salary")*(rngCFCSA2=A47)),0) -> 0 | T47: =IF(ISNUMBER(SUMPRODUCT(--ISNUMBER(rngCFCSA2)*(INDEX(budA2CSBP6,0,1))*(INDEX(budA2CSSF,0,1)="Salary")*(rngCFCSA2=A47))),SUMPRODUCT(--ISNUMBER(rngCFCSA2)*(INDEX(budA2CSBP6,0,1))*(INDEX(budA2CSSF,0,1)="Salary")*(rngCFCSA2=A47)),0) -> 0 | W47: =IF(ISNUMBER(SUMPRODUCT(--ISNUMBER(rngCFCSA2)*(INDEX(budA2CSBP7,0,1))*(INDEX(budA2CSSF,0,1)="Salary")*(rngCFCSA2=A47))),SUMPRODUCT(--ISNUMBER(rngCFCSA2)*(INDEX(budA2CSBP7,0,1))*(INDEX(budA2CSSF,0,1)="Salary")*(rngCFCSA2=A47)),0) -> 0 | Z47: =IF(ISNUMBER(SUMPRODUCT(--ISNUMBER(rngCFCSA2)*(INDEX(budA2CSBP8,0,1))*(INDEX(budA2CSSF,0,1)="Salary")*(rngCFCSA2=A47))),SUMPRODUCT(--ISNUMBER(rngCFCSA2)*(INDEX(budA2CSBP8,0,1))*(INDEX(budA2CSSF,0,1)="Salary")*(rngCFCSA2=A47)),0) -> 0 | AC47: =IF(ISNUMBER(SUMPRODUCT(--ISNUMBER(rngCFCSA2)*(INDEX(budA2CSBP9,0,1))*(INDEX(budA2CSSF,0,1)="Salary")*(rngCFCSA2=A47))),SUMPRODUCT(--ISNUMBER(rngCFCSA2)*(INDEX(budA2CSBP9,0,1))*(INDEX(budA2CSSF,0,1)="Salary")*(rngCFCSA2=A47)),0) -> 0 | AF47: =IF(ISNUMBER(SUMPRODUCT(--ISNUMBER(rngCFCSA2)*(INDEX(budA2CSBP10,0,1))*(INDEX(budA2CSSF,0,1)="Salary")*(rngCFCSA2=A47))),SUMPRODUCT(--ISNUMBER(rngCFCSA2)*(INDEX(budA2CSBP10,0,1))*(INDEX(budA2CSSF,0,1)="Salary")*(rngCFCSA2=A47)),0) -> 0 | AI47: 0
A48: =_xlfn.XLOOKUP(B48,MTDC[Description],MTDC[VALUE],"N/A",0) -> 50090 | B48: S&W Student Employment | D48: =IF(AND(B48="Make a Selection",OR(sFABCCS=1,sFABCCS=2,sFABCCS=3)),"",IF(sFABCCS=2,"Included",IF(sFABCCS=3,"Custom F&A Amt",IF(_xlfn.XLOOKUP(B48,MTDC[Description],MTDC[Include in MTDC],"N/A",0)="MTDC","Included","Excluded")))) -> Included | E48: =IF(ISNUMBER(SUMPRODUCT(--ISNUMBER(rngCFCSA2)*(INDEX(budA2CSBP1,0,1))*(INDEX(budA2CSSF,0,1)="Salary")*(rngCFCSA2=A48))),SUMPRODUCT(--ISNUMBER(rngCFCSA2)*(INDEX(budA2CSBP1,0,1))*(INDEX(budA2CSSF,0,1)="Salary")*(rngCFCSA2=A48)),0) -> 0 | H48: =IF(ISNUMBER(SUMPRODUCT(--ISNUMBER(rngCFCSA2)*(INDEX(budA2CSBP2,0,1))*(INDEX(budA2CSSF,0,1)="Salary")*(rngCFCSA2=A48))),SUMPRODUCT(--ISNUMBER(rngCFCSA2)*(INDEX(budA2CSBP2,0,1))*(INDEX(budA2CSSF,0,1)="Salary")*(rngCFCSA2=A48)),0) -> 0 | K48: =IF(ISNUMBER(SUMPRODUCT(--ISNUMBER(rngCFCSA2)*(INDEX(budA2CSBP3,0,1))*(INDEX(budA2CSSF,0,1)="Salary")*(rngCFCSA2=A48))),SUMPRODUCT(--ISNUMBER(rngCFCSA2)*(INDEX(budA2CSBP3,0,1))*(INDEX(budA2CSSF,0,1)="Salary")*(rngCFCSA2=A48)),0) -> 0 | N48: =IF(ISNUMBER(SUMPRODUCT(--ISNUMBER(rngCFCSA2)*(INDEX(budA2CSBP4,0,1))*(INDEX(budA2CSSF,0,1)="Salary")*(rngCFCSA2=A48))),SUMPRODUCT(--ISNUMBER(rngCFCSA2)*(INDEX(budA2CSBP4,0,1))*(INDEX(budA2CSSF,0,1)="Salary")*(rngCFCSA2=A48)),0) -> 0 | Q48: =IF(ISNUMBER(SUMPRODUCT(--ISNUMBER(rngCFCSA2)*(INDEX(budA2CSBP5,0,1))*(INDEX(budA2CSSF,0,1)="Salary")*(rngCFCSA2=A48))),SUMPRODUCT(--ISNUMBER(rngCFCSA2)*(INDEX(budA2CSBP5,0,1))*(INDEX(budA2CSSF,0,1)="Salary")*(rngCFCSA2=A48)),0) -> 0 | T48: =IF(ISNUMBER(SUMPRODUCT(--ISNUMBER(rngCFCSA2)*(INDEX(budA2CSBP6,0,1))*(INDEX(budA2CSSF,0,1)="Salary")*(rngCFCSA2=A48))),SUMPRODUCT(--ISNUMBER(rngCFCSA2)*(INDEX(budA2CSBP6,0,1))*(INDEX(budA2CSSF,0,1)="Salary")*(rngCFCSA2=A48)),0) -> 0 | W48: =IF(ISNUMBER(SUMPRODUCT(--ISNUMBER(rngCFCSA2)*(INDEX(budA2CSBP7,0,1))*(INDEX(budA2CSSF,0,1)="Salary")*(rngCFCSA2=A48))),SUMPRODUCT(--ISNUMBER(rngCFCSA2)*(INDEX(budA2CSBP7,0,1))*(INDEX(budA2CSSF,0,1)="Salary")*(rngCFCSA2=A48)),0) -> 0 | Z48: =IF(ISNUMBER(SUMPRODUCT(--ISNUMBER(rngCFCSA2)*(INDEX(budA2CSBP8,0,1))*(INDEX(budA2CSSF,0,1)="Salary")*(rngCFCSA2=A48))),SUMPRODUCT(--ISNUMBER(rngCFCSA2)*(INDEX(budA2CSBP8,0,1))*(INDEX(budA2CSSF,0,1)="Salary")*(rngCFCSA2=A48)),0) -> 0 | AC48: =IF(ISNUMBER(SUMPRODUCT(--ISNUMBER(rngCFCSA2)*(INDEX(budA2CSBP9,0,1))*(INDEX(budA2CSSF,0,1)="Salary")*(rngCFCSA2=A48))),SUMPRODUCT(--ISNUMBER(rngCFCSA2)*(INDEX(budA2CSBP9,0,1))*(INDEX(budA2CSSF,0,1)="Salary")*(rngCFCSA2=A48)),0) -> 0 | AF48: =IF(ISNUMBER(SUMPRODUCT(--ISNUMBER(rngCFCSA2)*(INDEX(budA2CSBP10,0,1))*(INDEX(budA2CSSF,0,1)="Salary")*(rngCFCSA2=A48))),SUMPRODUCT(--ISNUMBER(rngCFCSA2)*(INDEX(budA2CSBP10,0,1))*(INDEX(budA2CSSF,0,1)="Salary")*(rngCFCSA2=A48)),0) -> 0 | AI48: 0
A49: =_xlfn.XLOOKUP(B49,MTDC[Description],MTDC[VALUE],"N/A",0) -> 50100 | B49: S&W Contracted | D49: =IF(AND(B49="Make a Selection",OR(sFABCCS=1,sFABCCS=2,sFABCCS=3)),"",IF(sFABCCS=2,"Included",IF(sFABCCS=3,"Custom F&A Amt",IF(_xlfn.XLOOKUP(B49,MTDC[Description],MTDC[Include in MTDC],"N/A",0)="MTDC","Included","Excluded")))) -> Included | E49: =IF(ISNUMBER(SUMPRODUCT(--ISNUMBER(rngCFCSA2)*(INDEX(budA2CSBP1,0,1))*(INDEX(budA2CSSF,0,1)="Salary")*(rngCFCSA2=A49))),SUMPRODUCT(--ISNUMBER(rngCFCSA2)*(INDEX(budA2CSBP1,0,1))*(INDEX(budA2CSSF,0,1)="Salary")*(rngCFCSA2=A49)),0) -> 0 | H49: =IF(ISNUMBER(SUMPRODUCT(--ISNUMBER(rngCFCSA2)*(INDEX(budA2CSBP2,0,1))*(INDEX(budA2CSSF,0,1)="Salary")*(rngCFCSA2=A49))),SUMPRODUCT(--ISNUMBER(rngCFCSA2)*(INDEX(budA2CSBP2,0,1))*(INDEX(budA2CSSF,0,1)="Salary")*(rngCFCSA2=A49)),0) -> 0 | K49: =IF(ISNUMBER(SUMPRODUCT(--ISNUMBER(rngCFCSA2)*(INDEX(budA2CSBP3,0,1))*(INDEX(budA2CSSF,0,1)="Salary")*(rngCFCSA2=A49))),SUMPRODUCT(--ISNUMBER(rngCFCSA2)*(INDEX(budA2CSBP3,0,1))*(INDEX(budA2CSSF,0,1)="Salary")*(rngCFCSA2=A49)),0) -> 0 | N49: =IF(ISNUMBER(SUMPRODUCT(--ISNUMBER(rngCFCSA2)*(INDEX(budA2CSBP4,0,1))*(INDEX(budA2CSSF,0,1)="Salary")*(rngCFCSA2=A49))),SUMPRODUCT(--ISNUMBER(rngCFCSA2)*(INDEX(budA2CSBP4,0,1))*(INDEX(budA2CSSF,0,1)="Salary")*(rngCFCSA2=A49)),0) -> 0 | Q49: =IF(ISNUMBER(SUMPRODUCT(--ISNUMBER(rngCFCSA2)*(INDEX(budA2CSBP5,0,1))*(INDEX(budA2CSSF,0,1)="Salary")*(rngCFCSA2=A49))),SUMPRODUCT(--ISNUMBER(rngCFCSA2)*(INDEX(budA2CSBP5,0,1))*(INDEX(budA2CSSF,0,1)="Salary")*(rngCFCSA2=A49)),0) -> 0 | T49: =IF(ISNUMBER(SUMPRODUCT(--ISNUMBER(rngCFCSA2)*(INDEX(budA2CSBP6,0,1))*(INDEX(budA2CSSF,0,1)="Salary")*(rngCFCSA2=A49))),SUMPRODUCT(--ISNUMBER(rngCFCSA2)*(INDEX(budA2CSBP6,0,1))*(INDEX(budA2CSSF,0,1)="Salary")*(rngCFCSA2=A49)),0) -> 0 | W49: =IF(ISNUMBER(SUMPRODUCT(--ISNUMBER(rngCFCSA2)*(INDEX(budA2CSBP7,0,1))*(INDEX(budA2CSSF,0,1)="Salary")*(rngCFCSA2=A49))),SUMPRODUCT(--ISNUMBER(rngCFCSA2)*(INDEX(budA2CSBP7,0,1))*(INDEX(budA2CSSF,0,1)="Salary")*(rngCFCSA2=A49)),0) -> 0 | Z49: =IF(ISNUMBER(SUMPRODUCT(--ISNUMBER(rngCFCSA2)*(INDEX(budA2CSBP8,0,1))*(INDEX(budA2CSSF,0,1)="Salary")*(rngCFCSA2=A49))),SUMPRODUCT(--ISNUMBER(rngCFCSA2)*(INDEX(budA2CSBP8,0,1))*(INDEX(budA2CSSF,0,1)="Salary")*(rngCFCSA2=A49)),0) -> 0 | AC49: =IF(ISNUMBER(SUMPRODUCT(--ISNUMBER(rngCFCSA2)*(INDEX(budA2CSBP9,0,1))*(INDEX(budA2CSSF,0,1)="Salary")*(rngCFCSA2=A49))),SUMPRODUCT(--ISNUMBER(rngCFCSA2)*(INDEX(budA2CSBP9,0,1))*(INDEX(budA2CSSF,0,1)="Salary")*(rngCFCSA2=A49)),0) -> 0 | AF49: =IF(ISNUMBER(SUMPRODUCT(--ISNUMBER(rngCFCSA2)*(INDEX(budA2CSBP10,0,1))*(INDEX(budA2CSSF,0,1)="Salary")*(rngCFCSA2=A49))),SUMPRODUCT(--ISNUMBER(rngCFCSA2)*(INDEX(budA2CSBP10,0,1))*(INDEX(budA2CSSF,0,1)="Salary")*(rngCFCSA2=A49)),0) -> 0 | AI49: 0
A50: =_xlfn.XLOOKUP(B50,MTDC[Description],MTDC[VALUE],"N/A",0) -> 50110 | B50: Student Aid Student Researcher Stipend | D50: =IF(AND(B50="Make a Selection",OR(sFABCCS=1,sFABCCS=2,sFABCCS=3)),"",IF(sFABCCS=2,"Included",IF(sFABCCS=3,"Custom F&A Amt",IF(_xlfn.XLOOKUP(B50,MTDC[Description],MTDC[Include in MTDC],"N/A",0)="MTDC","Included","Excluded")))) -> Included | E50: =IF(ISNUMBER(SUMPRODUCT(--ISNUMBER(rngCFCSA2)*(INDEX(budA2CSBP1,0,1))*(INDEX(budA2CSSF,0,1)="Salary")*(rngCFCSA2=A50))),SUMPRODUCT(--ISNUMBER(rngCFCSA2)*(INDEX(budA2CSBP1,0,1))*(INDEX(budA2CSSF,0,1)="Salary")*(rngCFCSA2=A50)),0) -> 0 | H50: =IF(ISNUMBER(SUMPRODUCT(--ISNUMBER(rngCFCSA2)*(INDEX(budA2CSBP2,0,1))*(INDEX(budA2CSSF,0,1)="Salary")*(rngCFCSA2=A50))),SUMPRODUCT(--ISNUMBER(rngCFCSA2)*(INDEX(budA2CSBP2,0,1))*(INDEX(budA2CSSF,0,1)="Salary")*(rngCFCSA2=A50)),0) -> 0 | K50: =IF(ISNUMBER(SUMPRODUCT(--ISNUMBER(rngCFCSA2)*(INDEX(budA2CSBP3,0,1))*(INDEX(budA2CSSF,0,1)="Salary")*(rngCFCSA2=A50))),SUMPRODUCT(--ISNUMBER(rngCFCSA2)*(INDEX(budA2CSBP3,0,1))*(INDEX(budA2CSSF,0,1)="Salary")*(rngCFCSA2=A50)),0) -> 0 | N50: =IF(ISNUMBER(SUMPRODUCT(--ISNUMBER(rngCFCSA2)*(INDEX(budA2CSBP4,0,1))*(INDEX(budA2CSSF,0,1)="Salary")*(rngCFCSA2=A50))),SUMPRODUCT(--ISNUMBER(rngCFCSA2)*(INDEX(budA2CSBP4,0,1))*(INDEX(budA2CSSF,0,1)="Salary")*(rngCFCSA2=A50)),0) -> 0 | Q50: =IF(ISNUMBER(SUMPRODUCT(--ISNUMBER(rngCFCSA2)*(INDEX(budA2CSBP5,0,1))*(INDEX(budA2CSSF,0,1)="Salary")*(rngCFCSA2=A50))),SUMPRODUCT(--ISNUMBER(rngCFCSA2)*(INDEX(budA2CSBP5,0,1))*(INDEX(budA2CSSF,0,1)="Salary")*(rngCFCSA2=A50)),0) -> 0 | T50: =IF(ISNUMBER(SUMPRODUCT(--ISNUMBER(rngCFCSA2)*(INDEX(budA2CSBP6,0,1))*(INDEX(budA2CSSF,0,1)="Salary")*(rngCFCSA2=A50))),SUMPRODUCT(--ISNUMBER(rngCFCSA2)*(INDEX(budA2CSBP6,0,1))*(INDEX(budA2CSSF,0,1)="Salary")*(rngCFCSA2=A50)),0) -> 0 | W50: =IF(ISNUMBER(SUMPRODUCT(--ISNUMBER(rngCFCSA2)*(INDEX(budA2CSBP7,0,1))*(INDEX(budA2CSSF,0,1)="Salary")*(rngCFCSA2=A50))),SUMPRODUCT(--ISNUMBER(rngCFCSA2)*(INDEX(budA2CSBP7,0,1))*(INDEX(budA2CSSF,0,1)="Salary")*(rngCFCSA2=A50)),0) -> 0 | Z50: =IF(ISNUMBER(SUMPRODUCT(--ISNUMBER(rngCFCSA2)*(INDEX(budA2CSBP8,0,1))*(INDEX(budA2CSSF,0,1)="Salary")*(rngCFCSA2=A50))),SUMPRODUCT(--ISNUMBER(rngCFCSA2)*(INDEX(budA2CSBP8,0,1))*(INDEX(budA2CSSF,0,1)="Salary")*(rngCFCSA2=A50)),0) -> 0 | AC50: =IF(ISNUMBER(SUMPRODUCT(--ISNUMBER(rngCFCSA2)*(INDEX(budA2CSBP9,0,1))*(INDEX(budA2CSSF,0,1)="Salary")*(rngCFCSA2=A50))),SUMPRODUCT(--ISNUMBER(rngCFCSA2)*(INDEX(budA2CSBP9,0,1))*(INDEX(budA2CSSF,0,1)="Salary")*(rngCFCSA2=A50)),0) -> 0 | AF50: =IF(ISNUMBER(SUMPRODUCT(--ISNUMBER(rngCFCSA2)*(INDEX(budA2CSBP10,0,1))*(INDEX(budA2CSSF,0,1)="Salary")*(rngCFCSA2=A50))),SUMPRODUCT(--ISNUMBER(rngCFCSA2)*(INDEX(budA2CSBP10,0,1))*(INDEX(budA2CSSF,0,1)="Salary")*(rngCFCSA2=A50)),0) -> 0 | AI50: 0
A51: =_xlfn.XLOOKUP(B51,MTDC[Description],MTDC[VALUE],"N/A",0) -> 50115 | B51: Student Aid Pre & Post Fellowship | D51: =IF(AND(B51="Make a Selection",OR(sFABCCS=1,sFABCCS=2,sFABCCS=3)),"",IF(sFABCCS=2,"Included",IF(sFABCCS=3,"Custom F&A Amt",IF(_xlfn.XLOOKUP(B51,MTDC[Description],MTDC[Include in MTDC],"N/A",0)="MTDC","Included","Excluded")))) -> Included | E51: =IF(ISNUMBER(SUMPRODUCT(--ISNUMBER(rngCFCSA2)*(INDEX(budA2CSBP1,0,1))*(INDEX(budA2CSSF,0,1)="Salary")*(rngCFCSA2=A51))),SUMPRODUCT(--ISNUMBER(rngCFCSA2)*(INDEX(budA2CSBP1,0,1))*(INDEX(budA2CSSF,0,1)="Salary")*(rngCFCSA2=A51)),0) -> 0 | H51: =IF(ISNUMBER(SUMPRODUCT(--ISNUMBER(rngCFCSA2)*(INDEX(budA2CSBP2,0,1))*(INDEX(budA2CSSF,0,1)="Salary")*(rngCFCSA2=A51))),SUMPRODUCT(--ISNUMBER(rngCFCSA2)*(INDEX(budA2CSBP2,0,1))*(INDEX(budA2CSSF,0,1)="Salary")*(rngCFCSA2=A51)),0) -> 0 | K51: =IF(ISNUMBER(SUMPRODUCT(--ISNUMBER(rngCFCSA2)*(INDEX(budA2CSBP3,0,1))*(INDEX(budA2CSSF,0,1)="Salary")*(rngCFCSA2=A51))),SUMPRODUCT(--ISNUMBER(rngCFCSA2)*(INDEX(budA2CSBP3,0,1))*(INDEX(budA2CSSF,0,1)="Salary")*(rngCFCSA2=A51)),0) -> 0 | N51: =IF(ISNUMBER(SUMPRODUCT(--ISNUMBER(rngCFCSA2)*(INDEX(budA2CSBP4,0,1))*(INDEX(budA2CSSF,0,1)="Salary")*(rngCFCSA2=A51))),SUMPRODUCT(--ISNUMBER(rngCFCSA2)*(INDEX(budA2CSBP4,0,1))*(INDEX(budA2CSSF,0,1)="Salary")*(rngCFCSA2=A51)),0) -> 0 | Q51: =IF(ISNUMBER(SUMPRODUCT(--ISNUMBER(rngCFCSA2)*(INDEX(budA2CSBP5,0,1))*(INDEX(budA2CSSF,0,1)="Salary")*(rngCFCSA2=A51))),SUMPRODUCT(--ISNUMBER(rngCFCSA2)*(INDEX(budA2CSBP5,0,1))*(INDEX(budA2CSSF,0,1)="Salary")*(rngCFCSA2=A51)),0) -> 0 | T51: =IF(ISNUMBER(SUMPRODUCT(--ISNUMBER(rngCFCSA2)*(INDEX(budA2CSBP6,0,1))*(INDEX(budA2CSSF,0,1)="Salary")*(rngCFCSA2=A51))),SUMPRODUCT(--ISNUMBER(rngCFCSA2)*(INDEX(budA2CSBP6,0,1))*(INDEX(budA2CSSF,0,1)="Salary")*(rngCFCSA2=A51)),0) -> 0 | W51: =IF(ISNUMBER(SUMPRODUCT(--ISNUMBER(rngCFCSA2)*(INDEX(budA2CSBP7,0,1))*(INDEX(budA2CSSF,0,1)="Salary")*(rngCFCSA2=A51))),SUMPRODUCT(--ISNUMBER(rngCFCSA2)*(INDEX(budA2CSBP7,0,1))*(INDEX(budA2CSSF,0,1)="Salary")*(rngCFCSA2=A51)),0) -> 0 | Z51: =IF(ISNUMBER(SUMPRODUCT(--ISNUMBER(rngCFCSA2)*(INDEX(budA2CSBP8,0,1))*(INDEX(budA2CSSF,0,1)="Salary")*(rngCFCSA2=A51))),SUMPRODUCT(--ISNUMBER(rngCFCSA2)*(INDEX(budA2CSBP8,0,1))*(INDEX(budA2CSSF,0,1)="Salary")*(rngCFCSA2=A51)),0) -> 0 | AC51: =IF(ISNUMBER(SUMPRODUCT(--ISNUMBER(rngCFCSA2)*(INDEX(budA2CSBP9,0,1))*(INDEX(budA2CSSF,0,1)="Salary")*(rngCFCSA2=A51))),SUMPRODUCT(--ISNUMBER(rngCFCSA2)*(INDEX(budA2CSBP9,0,1))*(INDEX(budA2CSSF,0,1)="Salary")*(rngCFCSA2=A51)),0) -> 0 | AF51: =IF(ISNUMBER(SUMPRODUCT(--ISNUMBER(rngCFCSA2)*(INDEX(budA2CSBP10,0,1))*(INDEX(budA2CSSF,0,1)="Salary")*(rngCFCSA2=A51))),SUMPRODUCT(--ISNUMBER(rngCFCSA2)*(INDEX(budA2CSBP10,0,1))*(INDEX(budA2CSSF,0,1)="Salary")*(rngCFCSA2=A51)),0) -> 0 | AI51: 0
A52: =_xlfn.XLOOKUP(B52,MTDC[Description],MTDC[VALUE],"N/A",0) -> 50120 | B52: S&W Hourly Employees | D52: =IF(AND(B52="Make a Selection",OR(sFABCCS=1,sFABCCS=2,sFABCCS=3)),"",IF(sFABCCS=2,"Included",IF(sFABCCS=3,"Custom F&A Amt",IF(_xlfn.XLOOKUP(B52,MTDC[Description],MTDC[Include in MTDC],"N/A",0)="MTDC","Included","Excluded")))) -> Included | E52: =IF(ISNUMBER(SUMPRODUCT(--ISNUMBER(rngCFCSA2)*(INDEX(budA2CSBP1,0,1))*(INDEX(budA2CSSF,0,1)="Salary")*(rngCFCSA2=A52))),SUMPRODUCT(--ISNUMBER(rngCFCSA2)*(INDEX(budA2CSBP1,0,1))*(INDEX(budA2CSSF,0,1)="Salary")*(rngCFCSA2=A52)),0) -> 0 | H52: =IF(ISNUMBER(SUMPRODUCT(--ISNUMBER(rngCFCSA2)*(INDEX(budA2CSBP2,0,1))*(INDEX(budA2CSSF,0,1)="Salary")*(rngCFCSA2=A52))),SUMPRODUCT(--ISNUMBER(rngCFCSA2)*(INDEX(budA2CSBP2,0,1))*(INDEX(budA2CSSF,0,1)="Salary")*(rngCFCSA2=A52)),0) -> 0 | K52: =IF(ISNUMBER(SUMPRODUCT(--ISNUMBER(rngCFCSA2)*(INDEX(budA2CSBP3,0,1))*(INDEX(budA2CSSF,0,1)="Salary")*(rngCFCSA2=A52))),SUMPRODUCT(--ISNUMBER(rngCFCSA2)*(INDEX(budA2CSBP3,0,1))*(INDEX(budA2CSSF,0,1)="Salary")*(rngCFCSA2=A52)),0) -> 0 | N52: =IF(ISNUMBER(SUMPRODUCT(--ISNUMBER(rngCFCSA2)*(INDEX(budA2CSBP4,0,1))*(INDEX(budA2CSSF,0,1)="Salary")*(rngCFCSA2=A52))),SUMPRODUCT(--ISNUMBER(rngCFCSA2)*(INDEX(budA2CSBP4,0,1))*(INDEX(budA2CSSF,0,1)="Salary")*(rngCFCSA2=A52)),0) -> 0 | Q52: =IF(ISNUMBER(SUMPRODUCT(--ISNUMBER(rngCFCSA2)*(INDEX(budA2CSBP5,0,1))*(INDEX(budA2CSSF,0,1)="Salary")*(rngCFCSA2=A52))),SUMPRODUCT(--ISNUMBER(rngCFCSA2)*(INDEX(budA2CSBP5,0,1))*(INDEX(budA2CSSF,0,1)="Salary")*(rngCFCSA2=A52)),0) -> 0 | T52: =IF(ISNUMBER(SUMPRODUCT(--ISNUMBER(rngCFCSA2)*(INDEX(budA2CSBP6,0,1))*(INDEX(budA2CSSF,0,1)="Salary")*(rngCFCSA2=A52))),SUMPRODUCT(--ISNUMBER(rngCFCSA2)*(INDEX(budA2CSBP6,0,1))*(INDEX(budA2CSSF,0,1)="Salary")*(rngCFCSA2=A52)),0) -> 0 | W52: =IF(ISNUMBER(SUMPRODUCT(--ISNUMBER(rngCFCSA2)*(INDEX(budA2CSBP7,0,1))*(INDEX(budA2CSSF,0,1)="Salary")*(rngCFCSA2=A52))),SUMPRODUCT(--ISNUMBER(rngCFCSA2)*(INDEX(budA2CSBP7,0,1))*(INDEX(budA2CSSF,0,1)="Salary")*(rngCFCSA2=A52)),0) -> 0 | Z52: =IF(ISNUMBER(SUMPRODUCT(--ISNUMBER(rngCFCSA2)*(INDEX(budA2CSBP8,0,1))*(INDEX(budA2CSSF,0,1)="Salary")*(rngCFCSA2=A52))),SUMPRODUCT(--ISNUMBER(rngCFCSA2)*(INDEX(budA2CSBP8,0,1))*(INDEX(budA2CSSF,0,1)="Salary")*(rngCFCSA2=A52)),0) -> 0 | AC52: =IF(ISNUMBER(SUMPRODUCT(--ISNUMBER(rngCFCSA2)*(INDEX(budA2CSBP9,0,1))*(INDEX(budA2CSSF,0,1)="Salary")*(rngCFCSA2=A52))),SUMPRODUCT(--ISNUMBER(rngCFCSA2)*(INDEX(budA2CSBP9,0,1))*(INDEX(budA2CSSF,0,1)="Salary")*(rngCFCSA2=A52)),0) -> 0 | AF52: =IF(ISNUMBER(SUMPRODUCT(--ISNUMBER(rngCFCSA2)*(INDEX(budA2CSBP10,0,1))*(INDEX(budA2CSSF,0,1)="Salary")*(rngCFCSA2=A52))),SUMPRODUCT(--ISNUMBER(rngCFCSA2)*(INDEX(budA2CSBP10,0,1))*(INDEX(budA2CSSF,0,1)="Salary")*(rngCFCSA2=A52)),0) -> 0 | AI52: 0
A53: =_xlfn.XLOOKUP(B53,MTDC[Description],MTDC[VALUE],"N/A",0) -> 51110 | B53: FB Staff Employees | D53: =IF(sFABCCS=2,"Included",IF(sFABCCS=3,"Custom F&A Amt",IF(_xlfn.XLOOKUP(B53,MTDC[Description],MTDC[Include in MTDC],"N/A",0)="MTDC","Included","Excluded"))) -> Included | E53: =SUMPRODUCT((INDEX(budA2CSSF,0,1)="Fringe")*INDEX(budA2CSBP1,0,1)) -> 0 | H53: =SUMPRODUCT((INDEX(budA2CSSF,0,1)="Fringe")*INDEX(budA2CSBP2,0,1)) -> 0 | K53: =SUMPRODUCT((INDEX(budA2CSSF,0,1)="Fringe")*INDEX(budA2CSBP3,0,1)) -> 0 | N53: =SUMPRODUCT((INDEX(budA2CSSF,0,1)="Fringe")*INDEX(budA2CSBP4,0,1)) -> 0 | Q53: =SUMPRODUCT((INDEX(budA2CSSF,0,1)="Fringe")*INDEX(budA2CSBP5,0,1)) -> 0 | T53: =SUMPRODUCT((INDEX(budA2CSSF,0,1)="Fringe")*INDEX(budA2CSBP6,0,1)) -> 0 | W53: =SUMPRODUCT((INDEX(budA2CSSF,0,1)="Fringe")*INDEX(budA2CSBP7,0,1)) -> 0 | Z53: =SUMPRODUCT((INDEX(budA2CSSF,0,1)="Fringe")*INDEX(budA2CSBP8,0,1)) -> 0 | AC53: =SUMPRODUCT((INDEX(budA2CSSF,0,1)="Fringe")*INDEX(budA2CSBP9,0,1)) -> 0 | AF53: =SUMPRODUCT((INDEX(budA2CSSF,0,1)="Fringe")*INDEX(budA2CSBP10,0,1)) -> 0 | AI53: =SUM(E53:AH53) -> 0
B55: Salary & Wages (Basic) | E55: =SUM(E39:G52) -> 0 | H55: =SUM(H39:J52) -> 0 | K55: =SUM(K39:M52) -> 0 | N55: =SUM(N39:P52) -> 0 | Q55: =SUM(Q39:S52) -> 0 | T55: =SUM(T39:V52) -> 0 | W55: =SUM(W39:Y52) -> 0 | Z55: =SUM(Z39:AB52) -> 0 | AC55: =SUM(AC39:AE52) -> 0 | AF55: =SUM(AF39:AH52) -> 0 | AI55: =SUM(E55:AH55) -> 0
B56: Fringe (Basic) | E56: =SUMPRODUCT((INDEX(budA2CSSF,0,1)="Fringe")*INDEX(budA2CSBP1,0,1)) -> 0 | H56: =SUMPRODUCT((INDEX(budA2CSSF,0,1)="Fringe")*INDEX(budA2CSBP2,0,1)) -> 0 | K56: =SUMPRODUCT((INDEX(budA2CSSF,0,1)="Fringe")*INDEX(budA2CSBP3,0,1)) -> 0 | N56: =SUMPRODUCT((INDEX(budA2CSSF,0,1)="Fringe")*INDEX(budA2CSBP4,0,1)) -> 0 | Q56: =SUMPRODUCT((INDEX(budA2CSSF,0,1)="Fringe")*INDEX(budA2CSBP5,0,1)) -> 0 | T56: =SUMPRODUCT((INDEX(budA2CSSF,0,1)="Fringe")*INDEX(budA2CSBP6,0,1)) -> 0 | W56: =SUMPRODUCT((INDEX(budA2CSSF,0,1)="Fringe")*INDEX(budA2CSBP7,0,1)) -> 0 | Z56: =SUMPRODUCT((INDEX(budA2CSSF,0,1)="Fringe")*INDEX(budA2CSBP8,0,1)) -> 0 | AC56: =SUMPRODUCT((INDEX(budA2CSSF,0,1)="Fringe")*INDEX(budA2CSBP9,0,1)) -> 0 | AF56: =SUMPRODUCT((INDEX(budA2CSSF,0,1)="Fringe")*INDEX(budA2CSBP10,0,1)) -> 0 | AI56: =SUM(E56:AH56) -> 0
